Workbook

Sheet FInal decision changes
A1: Cell | B1: Change
A2: I_Global Inputs'!G9 | B2: Updated labour rate for Field Worker to be consistent with our final decision .
A3: I_Global Inputs'!H60 | B3: Updated the inflation escalation for 2024-25 based on actual CPI data for December 2023 from the ABS.
A4: Final decision price list' | B4: New sheet summarising the final decision prices for 2024-25. This eliminates the duplication in the source sheet ('Weighted average price list'!).

Sheet Draft decision changes
A1: Cell | B1: Change
A2: I_Global Inputs'!G9 | B2: Substituted our draft decision benchmark labour rate for Field Worker.
A3: I_Global Inputs'!G29 | B3: Substituted our draft decision pre-tax real WACC for 2023-24.
A4: I_Global Inputs'!H60 | B4: Substituted our draft decision CPI forecast.
A6: Revised Proposal Changes
A7: I_Global Inputs'!G9 | B7: Substituted our Revised Proposal labour rate for Field Worker.
A8: I_Global Inputs'!G36 | B8: Substituted our Revised Proposal on cost rate.
A9: I_Global Inputs'!I60:L60 | B9: Update FY26 to FY29 inflation inputs to align with the rest of the AER’s draft decision models
A10: I_CAPEX - Stock Costs!D13:D14 | B10: =B7 -> Substituted our Revised Proposal labour rate for Field Worker.
A11: I_CAPEX - Stock Costs!D174:D176 | B11: Update the material (capex) costs associated with smart controllers after receiving updated prices from suppliers.
A12: I_OPEX Input!R151 | B12: Update the maintenance (opex) costs associated with smart controllers after receiving updated prices from suppliers.
A13: I_OPEX Input!B151:C151 | B13: Updated the opex label from “Smart Controller (Licence and maintenance fee)” to “Smart Controller”
A14: C_OPEX Calc!F123 | B14: Updated the opex label from “Smart Controller (Licence and maintenance fee)” to “Smart Controller”
A15: FY25 to FY24 comparison!E6:E238 | B15: Prices in column E of the sheet have been updated to align with the 2023-24 Pricing Proposal
A16: Detailed price list'!B58 and Detailed price list'!L58 | B16: Updated the opex label from “Smart Controller (Licence and maintenance fee)” to “Smart Controller”
A17: Weighted average price list!B58 | B17: Updated the opex label from “Smart Controller (Licence and maintenance fee)” to “Smart Controller”
A18: Weighted average price list!C5:G237 | B18: Updated formulas to ensure a price was shown even if there was no volume forecast provided
A19: I_Mapping & Lookups!X60 | B19: Updated the opex label from “Smart Controller (Licence and maintenance fee)” to “Smart Controller”
A20: Luminaire Volumes!F6:H126 | B20: Added back volumes previously presented in the Initial Proposal
A21: Scenario_Price_List_linked | B21: This worksheet was removed as it is not required as part of the Revised Proposal
A22: Unit Costs!K163:O165 | B22: =B11 -> Update the material (capex) costs associated with smart controllers after receiving updated prices from suppliers.
A23: Unit Costs!K180:O180 | B23: =B10 -> Substituted our Revised Proposal labour rate for Field Worker.

Sheet Cover page
B27: 2023-11-30
B30: Attachment 9.8: Public lighting model FY24-29
B34: Ausgrid’s 2024-29 Revised Regulatory Proposal

Sheet Questions + comments
B1: Questions and comments
B5: Owner | C5: Question/comment | D5: Response
B18: Change Log
B20: General changes:
B21: a) Worksheets with a tab colour highlighted red have not been used, as well as cells highlighted with a grey cross-hatch.
B22: b) Worksheets highlighted with a tab colour of blue are for reporting and have been added
B24: In addition the following specific changes were made to original model:
B25: Change | C25: Change Type | D25: Worksheet | E25: Cell Reference
A26: =N(A25)+1 -> 1 | B26: Added this change log | C26: Version control | D26: Questions + comments | E26: Row 18 onwards
A27: =N(A26)+1 -> 2 | B27: Updated notes to be Ausgrid specific | C27: Labelling | D27: Read This Sheet | E27: C11:C20
A28: 3 | B28: Removed unused mapping and formatted cell to show cells are not used | C28: Formatting | D28: O_New Component SLUOS | E28: Columns F to M
A29: 4 | B29: Replaced Formulas with Ausgrid Support list using 15 of 19 available rows | C29: Labelling | D29: O_New Component SLUOS | E29: B5:B23
A30: 5 | B30: Removed formulas given night patrol is included in bulk contract costs | C30: Formulas | D30: O_New Component SLUOS | E30: C26:D26
A31: 6 | B31: Increased traditional luminaire categories from 57 to 70 aligning to FY23 pricing proposal | C31: Formulas | D31: O_New Component SLUOS | E31: B33:B89
A32: 7 | B32: Created unused categories because only 59 of 92 LED luminaire categories were required | C32: Formulas | D32: O_New Component SLUOS | E32: B92:B183
A33: 8 | B33: This sheet was hidden as it is not required by Ausgrid | C33: Simplification | D33: Sheet 1 | E33: All
A34: 9 | B34: This sheet was hidden as it is not required by Ausgrid | C34: Simplification | D34: SRC_STLAssetList | E34: All
A35: 10 | B35: This sheet is not required by Ausgrid, grey format applied to show it is not been applied. | C35: Simplification | D35: I_CAPEX - Hybid Calcs | E35: All
A36: 11 | B36: Removed work in progress yellow cell fill colour | C36: Formatting | D36: I_CAPEX | E36: T166:T478
A37: 12 | B37: Removed redundant working notes | C37: Labelling | D37: I_CAPEX | E37: V481:V484
A38: 13 | B38: Removed note not applicable to Ausgrid | C38: Labelling | D38: I_CAPEX | E38: AD398
A39: 14 | B39: Updated and simplified the list of materials required, including minor formatting changes | C39: Simplification | D39: I_CAPEX - Stock Costs | E39: All
A40: 15 | B40: Updated sub assembly mapping to categories which align to Ausgrid's business model | C40: Update | D40: I_CAPEX | E40: AE49:AK121
A41: 16 | B41: Updated bracket mapping to categories which align to Ausgrid's business model | C41: Update | D41: I_CAPEX | E41: K49:Q55
A42: 17 | B42: Updated support mapping to categories which align to Ausgrid's business model | C42: Update | D42: I_CAPEX | E42: A49:G87
A43: 18 | B43: Updated luminaire mapping to categories which align to Ausgrid's business model | C43: Update | D43: I_CAPEX | E43: U49:AA477
A44: 19 | B44: Inserted [40] rows, standardised formatting, greyed out unused columns, removed conditional formatting | C44: Formatting | D44: C_CAPEX Build Up | E44: All
A45: 20 | B45: Replaced logic for Design with Ausgrid Warranty logic including updating column M (Overheads) to exclude the new values in column K | C45: Logic | D45: C_CAPEX Build Up | E45: K14:K185
A46: 21 | B46: Copied formulas from top row all the way down each column from J to N to ensure formula consistency and no hard codes | C46: Logic | D46: C_CAPEX Build Up | E46: J14:AF14
A47: 22 | B47: Removed or greyed out unused mapping and charges | C47: Simplification | D47: O_New Component SLUOS | E47: All
A48: 23 | B48: Updated formulas to include the full reference range | C48: Formulas | D48: O_New Component SLUOS | E48: I5:I19
A49: 24 | B49: Changed heading and worksheet colours to Ausgrid colours | C49: Formatting | D49: All | E49: All
A50: 25
A51: 26
A52: 27
A53: 28
A54: 29
A55: 30

Sheet Read This Sheet
B1: SLUOS Construction Cost Calculation Workbook
B3: Description
B4: This Excel workbook contains a costing model for the calculation of SLUOS Capital charges.
B5: This workbook is designed to take financial, technical and material inputs to calculate both CAPEX and OPEX charges applicable to assemblies relating to Streetlights. For OPEX this is achieved through a ground up approach by calculating the forecasted level of maintenance per failure rates and calculating the cost of repairs utilising labour, plant and material rates. For CAPEX this is achieved by calculating the cost of labour, plant and materials and applying a return on investment of a period of time for the economic life of the asset. This model takes into consideration appropriate overheads, oncosts and CPI to establish the final fully loaded SLUOS charges. These charges are based on an annual charge.
B7: A description of each of the sheets is contained below:
C8: Items highlighted in red are not applicable for Ausgrid
B9: Worksheet | C9: Function
B10: Global Inputs | C10: Contains all inputs from other major workbooks - including overheads, oncosts, pay rates.
B11: CAPEX Inputs | C11: • Contains a list of all stock and their associated costs. This data is extracted from WASP. • Models the design costs associated with streetlights. • Contains components (from stock list) used to construct larger assemblies, giving prices for each. • Models the traffic control costs associated with a streetlight construction.
B12: CAPEX - Stock Costs | C12: Contains all stock costs as per 21/22 dollars as tracked through procurement purchase prices
B13: CAPEX - Hybrid Calcs | C13: Calculates assembly costs where assembly cannot be directly calculated (i.e. insufficient data to distinguish assets)
B14: CAPEX Build Up | C14: • For the assemblies listed in the CAPEX Input (luminaire, bracket, pole) the CAPEX cost for the component is calculated. • This is then calculated as an annual cost based of a given asset lifespan.
B15: OPEX Input | C15: • For a given lamp type, this sheet contains the associated lamp, ballast/igniter and starter/PE cell cost. It also contains the failure rates for these components. • Pole maintenance costs are modelled • Small component usage (fuses, etc) are measured to be able to provide a cost per pole to account for these otherwise unrecovered costs • Bulk Works Additional Material usage is measured to pass on these costs on an average per pole basis • Streetlight Improvement Programs are listed to be able to have these costs passed on, in a per pole cost
B16: Warranty NPV | C16: • Given that LEDs have parts and labour warranty for the first three years, the average NPV cost of maintenance is calculated across the span of the luminaire’s lifetime
B17: OPEX Calc | C17: • All luminaires and poles now have their associated costs calculated
B18: OPEX Tariff and Revenue Summary | C18: • Contains nominal Opex charges for each component and an estimate of the nominal revenue through to FY29
B19: Mapping & Lookups | C19: • This sheet provides construction information for a given construction code (type of pole, number of luminaires etc) • Because of different naming conventions for a number of the bulbs and luminaire types, this sheet provides a given CAPEX and OPEX code for a given lamp code from the traditional tariff code. This then allows the costs to be found in the CAPEX Calc and OPEX Calc sheets
B20: New Component SLUOS (For New Assets) | C20: • To be able to map to the old lamp tariff codes, the new componentised structure is now collapsed again, such that it can map according allowing direct comparison of the old and new costs for a given assembly type.

Sheet Instructions
B2: Steps to create new asset in pricing model
B3: When creating a new code, always work from a copy of the model rather than the model itself
B4: When creating new entries for the steps below, formulas from the previous entry should just be copied down
B6: CAPEX CHARGE
B7: Step | C7: Sheet affected | D7: Columns | E7: Instruction | F7: Notes
B8: 1 | C8: CAPEX - Stock Costs | D8: B:H | E8: Create new entry in "CAPEX - Stock Costs" tab for the purchase price of the luminaire and its stock item code | F8: This should be added after the last entry
B9: 2 | C9: CAPEX - Input | D9: U:AC | E9: Create new sub assembly in "CAPEX - Input" tab | F9: This can be done by copying and pasting the last one in the list (columns U to AC) and changing the materials item code (column Y) to the stock item code created in step 1
B10: 3 | C10: Mapping & Lookups | D10: X:AD | E10: Create new entry in "Mapping & Lookups" tab | F10: Data needs to be entered into columns X, Y, Z and AD
B11: 4 | C11: CAPEX Build Up | D11: B:Z | E11: Create new entry at bottom of table in "CAPEX Build Up" and change the "Mapped to Assembly/Item" (column F) to the new LED code created in step 2
B12: OPEX CHARGE
B13: 5 | C13: OPEX Input | D13: B:N | E13: Create a new entry in the "Additions through the regulatory period" in tab "OPEX Input". | F13: This should be added after the last entry which is currently in row 182. All entries in this table are usually common except for the luminaire failure column (column K) and smart controller cost (column H).
B14: =B13+1 -> 6 | C14: OPEX Calc | D14: B:AG | E14: Create a new entry in the "OPEX Calc" tab and change the Mapping code (column F)
B15: =B14+1 -> 7 | C15: Warranty NPV | D15: B:N | E15: Create a new entry in the "Warranty NPV" tab and change the Lamp Type (Column B) to the new LED code
B16: 8 | C16: OPEX Tariff and Revenue Summary | D16: B:V | E16: Create a new entry in the "OPEX Tariff and Revenue Summary" tab and change the Lamp Type (Column J) to the new LED code
B17: PRICING SUMMARY
B18: =B16+1 -> 9 | C18: New Component SLUOS | D18: B:J | E18: Create a new entry in the "New Component SLUOS" tab and change the CAPEX and OPEX lookups (column G&H) to the LED code created

Sheet Final decision price list
B1: Public lighting pricing list - Final decision
B2: This sheet displays the final decision post 2009 annuity capital and annual maintenance charges.
C3: Nominal $
B4: Categories | C4: ='[1]C_CAPEX Build Up'!S14 -> FY25
B5: =_xlfn.UNIQUE('Weighted average price list'!B5:B237,FALSE,FALSE) -> Connection - O/U | C5: =VLOOKUP($B5,'Weighted average price list'!$B$4:$G$237,2,FALSE) -> 102.2358901
B6: Connection - UGR1 | C6: =VLOOKUP($B6,'Weighted average price list'!$B$4:$G$237,2,FALSE) -> 93.71386342
B7: Connection - UGR2 | C7: =VLOOKUP($B7,'Weighted average price list'!$B$4:$G$237,2,FALSE) -> 34.07355983
B8: Legacy Luminaire - Major (Cat V) road | C8: =VLOOKUP($B8,'Weighted average price list'!$B$4:$G$237,2,FALSE) -> 53.40881817
B9: Legacy Luminaire - Minor (Cat P) road | C9: =VLOOKUP($B9,'Weighted average price list'!$B$4:$G$237,2,FALSE) -> 33.42645047
B10: Luminaire - Minor (Cat P) road | C10: =VLOOKUP($B10,'Weighted average price list'!$B$4:$G$237,2,FALSE) -> 23.32463152
B11: Luminaire - Major (Cat V) road | C11: =VLOOKUP($B11,'Weighted average price list'!$B$4:$G$237,2,FALSE) -> 31.76425867
B12: Smart Controller | C12: =VLOOKUP($B12,'Weighted average price list'!$B$4:$G$237,2,FALSE) -> 4.398974671
B13: Luminaire - Decorative | C13: =VLOOKUP($B13,'Weighted average price list'!$B$4:$G$237,2,FALSE) -> 25.02975226
B14: Luminaire - Floodlight | C14: =VLOOKUP($B14,'Weighted average price list'!$B$4:$G$237,2,FALSE) -> 31.76425867
B15: Luminaire - Major (Cat V) road - smart controller installed | C15: =VLOOKUP($B15,'Weighted average price list'!$B$4:$G$237,2,FALSE) -> 22.50725193
B16: Luminaire - Minor (Cat P) road - smart controller installed | C16: =VLOOKUP($B16,'Weighted average price list'!$B$4:$G$237,2,FALSE) -> 18.05449408
B17: Luminaire - Floodlight - smart controller installed | C17: =VLOOKUP($B17,'Weighted average price list'!$B$4:$G$237,2,FALSE) -> 22.50725193
B18: Luminaire - Decorative - smart controller installed | C18: =VLOOKUP($B18,'Weighted average price list'!$B$4:$G$237,2,FALSE) -> 19.75961482
B19: Legacy Bracket - Minor (Cat P) road - Short | C19: =VLOOKUP($B19,'Weighted average price list'!$B$4:$G$237,2,FALSE) -> 7.732532703
B20: Legacy Bracket - Minor (Cat P) road - Medium | C20: =VLOOKUP($B20,'Weighted average price list'!$B$4:$G$237,2,FALSE) -> 14.19825569
B21: Legacy Bracket - Minor (Cat P) road - Long | C21: =VLOOKUP($B21,'Weighted average price list'!$B$4:$G$237,2,FALSE) -> 22.45163532
B22: Legacy Bracket - Major (Cat V) road - Short | C22: =VLOOKUP($B22,'Weighted average price list'!$B$4:$G$237,2,FALSE) -> 11.47677737
B23: Legacy Bracket - Major (Cat V) road - Medium | C23: =VLOOKUP($B23,'Weighted average price list'!$B$4:$G$237,2,FALSE) -> 22.104475
B24: Legacy Bracket - Major (Cat V) road - Long | C24: =VLOOKUP($B24,'Weighted average price list'!$B$4:$G$237,2,FALSE) -> 32.0753962
B25: Bracket - Minor Road (Cat P) - Short | C25: =VLOOKUP($B25,'Weighted average price list'!$B$4:$G$237,2,FALSE) -> 9.587446265
B26: Bracket - Minor Road (Cat P) - Medium | C26: =VLOOKUP($B26,'Weighted average price list'!$B$4:$G$237,2,FALSE) -> 15.25652296
B27: Bracket - Major Road (Cat V) - Short | C27: =VLOOKUP($B27,'Weighted average price list'!$B$4:$G$237,2,FALSE) -> 12.44095894
B28: Bracket - Major Road (Cat V) - Medium | C28: =VLOOKUP($B28,'Weighted average price list'!$B$4:$G$237,2,FALSE) -> 22.60936607
B29: Bracket - Major Road (Cat V) - Long | C29: =VLOOKUP($B29,'Weighted average price list'!$B$4:$G$237,2,FALSE) -> 28.19695295
B30: Legacy Luminaire - 1000W SON | C30: =VLOOKUP($B30,'Weighted average price list'!$B$4:$G$237,2,FALSE) -> 107.1368881
B31: Legacy Luminaire - 1000W SON FLOODLIGHT | C31: =VLOOKUP($B31,'Weighted average price list'!$B$4:$G$237,2,FALSE) -> 87.60816005
B32: Legacy Luminaire - 1000W/1500W MBI FLOODLIG | C32: =VLOOKUP($B32,'Weighted average price list'!$B$4:$G$237,2,FALSE) -> 118.7688164
B33: Legacy Luminaire - 100W MBI | C33: =VLOOKUP($B33,'Weighted average price list'!$B$4:$G$237,2,FALSE) -> 40.05251779
B34: Legacy Luminaire - 100W MBI FLOODLIGHT | C34: =VLOOKUP($B34,'Weighted average price list'!$B$4:$G$237,2,FALSE) -> 43.41298073
B35: Legacy Luminaire - 100W SON | C35: =VLOOKUP($B35,'Weighted average price list'!$B$4:$G$237,2,FALSE) -> 42.67517755
B36: Legacy Luminaire - 100W SON - PLAIN | C36: =VLOOKUP($B36,'Weighted average price list'!$B$4:$G$237,2,FALSE) -> 42.67517755
B37: Legacy Luminaire - 100W SON FLOODLIGHT | C37: =VLOOKUP($B37,'Weighted average price list'!$B$4:$G$237,2,FALSE) -> 62.86293292
B38: Legacy Luminaire - 125W MBF | C38: =VLOOKUP($B38,'Weighted average price list'!$B$4:$G$237,2,FALSE) -> 25.86218141
B39: Legacy Luminaire - 125W MBF - BOURKE HILL | C39: =VLOOKUP($B39,'Weighted average price list'!$B$4:$G$237,2,FALSE) -> 80.39429076
B40: Legacy Luminaire - 125W MBF - PARKVILLE | C40: =VLOOKUP($B40,'Weighted average price list'!$B$4:$G$237,2,FALSE) -> 101.275658
B41: Legacy Luminaire - 125W MBF - PLAIN | C41: =VLOOKUP($B41,'Weighted average price list'!$B$4:$G$237,2,FALSE) -> 25.86218141
B42: Legacy Luminaire - 125W/250W MBF FLOODLIGHT | C42: =VLOOKUP($B42,'Weighted average price list'!$B$4:$G$237,2,FALSE) -> 35.78669099
B43: Legacy Luminaire - 150W SON | C43: =VLOOKUP($B43,'Weighted average price list'!$B$4:$G$237,2,FALSE) -> 43.05945004
B44: Legacy Luminaire - 150W SON - PARKVILLE | C44: =VLOOKUP($B44,'Weighted average price list'!$B$4:$G$237,2,FALSE) -> 116.7321722
B45: Legacy Luminaire - 150W SON - PARKWAY 1 | C45: =VLOOKUP($B45,'Weighted average price list'!$B$4:$G$237,2,FALSE) -> 51.41737675
B46: Legacy Luminaire - 150W SON ACTIVE REACTOR | C46: =VLOOKUP($B46,'Weighted average price list'!$B$4:$G$237,2,FALSE) -> 63.42589212
B47: Legacy Luminaire - 150W SON FLOODLIGHT | C47: =VLOOKUP($B47,'Weighted average price list'!$B$4:$G$237,2,FALSE) -> 50.45669551
B48: Legacy Luminaire - 150W/250W MBI FLOODLIGHT | C48: =VLOOKUP($B48,'Weighted average price list'!$B$4:$G$237,2,FALSE) -> 77.62860343
B49: Legacy Luminaire - 250W MBF | C49: =VLOOKUP($B49,'Weighted average price list'!$B$4:$G$237,2,FALSE) -> 42.29090506
B50: Legacy Luminaire - 250W MBF - PARKWAY 1 | C50: =VLOOKUP($B50,'Weighted average price list'!$B$4:$G$237,2,FALSE) -> 51.41737675
B51: Legacy Luminaire - 250W SON | C51: =VLOOKUP($B51,'Weighted average price list'!$B$4:$G$237,2,FALSE) -> 43.05945004
B52: Legacy Luminaire - 250W SON - PARKVILLE | C52: =VLOOKUP($B52,'Weighted average price list'!$B$4:$G$237,2,FALSE) -> 126.1007356
B53: Legacy Luminaire - 250W SON - PARKWAY 1 | C53: =VLOOKUP($B53,'Weighted average price list'!$B$4:$G$237,2,FALSE) -> 51.41737675
B54: Legacy Luminaire - 250W SON ACTIVE REACTOR | C54: =VLOOKUP($B54,'Weighted average price list'!$B$4:$G$237,2,FALSE) -> 63.42589212
B55: Legacy Luminaire - 250W SON FLOODLIGHT | C55: =VLOOKUP($B55,'Weighted average price list'!$B$4:$G$237,2,FALSE) -> 50.45669551
B56: Legacy Luminaire - 250W SON GEC 'BOSTON 3' | C56: =VLOOKUP($B56,'Weighted average price list'!$B$4:$G$237,2,FALSE) -> 108.6874276
B57: Legacy Luminaire - 2X14W TF - T5 PIERLIGHT | C57: =VLOOKUP($B57,'Weighted average price list'!$B$4:$G$237,2,FALSE) -> 33.90788671
B58: Legacy Luminaire - 2x14W TF - T5 PIERLITE M | C58: =VLOOKUP($B58,'Weighted average price list'!$B$4:$G$237,2,FALSE) -> 33.90788671
B59: Legacy Luminaire - 2x250W SON FLOODLIGHT | C59: =VLOOKUP($B59,'Weighted average price list'!$B$4:$G$237,2,FALSE) -> 71.11134197
B60: Legacy Luminaire - 2x400W SON FLOODLIGHT | C60: =VLOOKUP($B60,'Weighted average price list'!$B$4:$G$237,2,FALSE) -> 142.0883926
B61: Legacy Luminaire - 2x80W MBF - BOURKE HILL | C61: =VLOOKUP($B61,'Weighted average price list'!$B$4:$G$237,2,FALSE) -> 70.053518
B62: Legacy Luminaire - 400W MBF | C62: =VLOOKUP($B62,'Weighted average price list'!$B$4:$G$237,2,FALSE) -> 33.80808979
B63: Legacy Luminaire - 400W MBF - B2229 | C63: =VLOOKUP($B63,'Weighted average price list'!$B$4:$G$237,2,FALSE) -> 33.80808979
B64: Legacy Luminaire - 400W MBF - PARKWAY 1 | C64: =VLOOKUP($B64,'Weighted average price list'!$B$4:$G$237,2,FALSE) -> 68.16719688
B65: Legacy Luminaire - 400W MBF FLOODLIGHT | C65: =VLOOKUP($B65,'Weighted average price list'!$B$4:$G$237,2,FALSE) -> 74.8832713
B66: Legacy Luminaire - 400W MBI FLOODLIGHT | C66: =VLOOKUP($B66,'Weighted average price list'!$B$4:$G$237,2,FALSE) -> 58.89147672
B67: Legacy Luminaire - 400W SON | C67: =VLOOKUP($B67,'Weighted average price list'!$B$4:$G$237,2,FALSE) -> 46.80610684
B68: Legacy Luminaire - 400W SON - PARKWAY 1 | C68: =VLOOKUP($B68,'Weighted average price list'!$B$4:$G$237,2,FALSE) -> 51.41737675
B69: Legacy Luminaire - 400W SON ACTIVE REACTOR | C69: =VLOOKUP($B69,'Weighted average price list'!$B$4:$G$237,2,FALSE) -> 71.11134197
B70: Legacy Luminaire - 400W SON FLOODLIGHT | C70: =VLOOKUP($B70,'Weighted average price list'!$B$4:$G$237,2,FALSE) -> 50.45669551
B71: Legacy Luminaire - 42W MBF SYLVANIA SUB ECO | C71: =VLOOKUP($B71,'Weighted average price list'!$B$4:$G$237,2,FALSE) -> 31.14592817
B72: Legacy Luminaire - 4x250W SON | C72: =VLOOKUP($B72,'Weighted average price list'!$B$4:$G$237,2,FALSE) -> 80.07257648
B73: Legacy Luminaire - 4x600W SON | C73: =VLOOKUP($B73,'Weighted average price list'!$B$4:$G$237,2,FALSE) -> 122.0274472
B74: Legacy Luminaire - 50W MBF | C74: =VLOOKUP($B74,'Weighted average price list'!$B$4:$G$237,2,FALSE) -> 23.46047833
B75: Legacy Luminaire - 50W MBF - BOURKE HILL | C75: =VLOOKUP($B75,'Weighted average price list'!$B$4:$G$237,2,FALSE) -> 70.053518
B76: Legacy Luminaire - 50W MBF - NOSTALGIA | C76: =VLOOKUP($B76,'Weighted average price list'!$B$4:$G$237,2,FALSE) -> 70.053518
B77: Legacy Luminaire - 50W MBF - PLAIN | C77: =VLOOKUP($B77,'Weighted average price list'!$B$4:$G$237,2,FALSE) -> 23.46047833
B78: Legacy Luminaire - 50W SON | C78: =VLOOKUP($B78,'Weighted average price list'!$B$4:$G$237,2,FALSE) -> 22.69193335
B79: Legacy Luminaire - 50W SON - NOSTALGIA | C79: =VLOOKUP($B79,'Weighted average price list'!$B$4:$G$237,2,FALSE) -> 35.46899371
B80: Legacy Luminaire - 50W SON - PLAIN | C80: =VLOOKUP($B80,'Weighted average price list'!$B$4:$G$237,2,FALSE) -> 22.69193335
B81: Legacy Luminaire - 70W MBI | C81: =VLOOKUP($B81,'Weighted average price list'!$B$4:$G$237,2,FALSE) -> 29.37635335
B82: Legacy Luminaire - 70W MBI - MACQUARIE DEC. | C82: =VLOOKUP($B82,'Weighted average price list'!$B$4:$G$237,2,FALSE) -> 113.897088
B83: Legacy Luminaire - 70W MBI II | C83: =VLOOKUP($B83,'Weighted average price list'!$B$4:$G$237,2,FALSE) -> 25.86218141
B84: Legacy Luminaire - 70W MBI II AERO | C84: =VLOOKUP($B84,'Weighted average price list'!$B$4:$G$237,2,FALSE) -> 26.82286264
B85: Legacy Luminaire - 70W SON | C85: =VLOOKUP($B85,'Weighted average price list'!$B$4:$G$237,2,FALSE) -> 25.76611328
B86: Legacy Luminaire - 70W SON - BOURKE HILL | C86: =VLOOKUP($B86,'Weighted average price list'!$B$4:$G$237,2,FALSE) -> 78.35764655
B87: Legacy Luminaire - 70W SON - NOSTALGIA | C87: =VLOOKUP($B87,'Weighted average price list'!$B$4:$G$237,2,FALSE) -> 73.06237161
B88: Legacy Luminaire - 70W SON - PARKVILLE | C88: =VLOOKUP($B88,'Weighted average price list'!$B$4:$G$237,2,FALSE) -> 91.66884568
B89: Legacy Luminaire - 70W SON - PLAIN | C89: =VLOOKUP($B89,'Weighted average price list'!$B$4:$G$237,2,FALSE) -> 25.76611328
B90: Legacy Luminaire - 70W SON BOLLARD | C90: =VLOOKUP($B90,'Weighted average price list'!$B$4:$G$237,2,FALSE) -> 55.75089584
B91: Legacy Luminaire - 70W SON FLOODLIGHT | C91: =VLOOKUP($B91,'Weighted average price list'!$B$4:$G$237,2,FALSE) -> 31.09222609
B92: Legacy Luminaire - 80W MBF - BEGA+CURVE BRA | C92: =VLOOKUP($B92,'Weighted average price list'!$B$4:$G$237,2,FALSE) -> 114.5080812
B93: Legacy Luminaire - 80W MBF - BOURKE HILL | C93: =VLOOKUP($B93,'Weighted average price list'!$B$4:$G$237,2,FALSE) -> 53.61241942
B94: Legacy Luminaire - 80W MBF - NOSTALGIA | C94: =VLOOKUP($B94,'Weighted average price list'!$B$4:$G$237,2,FALSE) -> 68.88725098
B95: Legacy Luminaire - 80W MBF - PLAIN | C95: =VLOOKUP($B95,'Weighted average price list'!$B$4:$G$237,2,FALSE) -> 22.36530173
B96: Legacy Luminaire - 80W MBF - REGAL/FLINDERS | C96: =VLOOKUP($B96,'Weighted average price list'!$B$4:$G$237,2,FALSE) -> 124.7931345
B97: Legacy Luminaire - 80W MBF BOLLARD | C97: =VLOOKUP($B97,'Weighted average price list'!$B$4:$G$237,2,FALSE) -> 44.34568828
B98: Legacy Luminaire - 80W MBF TOORAK | C98: =VLOOKUP($B98,'Weighted average price list'!$B$4:$G$237,2,FALSE) -> 62.84840877
B99: Legacy Luminaire - TH FLOODLIGHT | C99: =VLOOKUP($B99,'Weighted average price list'!$B$4:$G$237,2,FALSE) -> 127.9337154
B100: Philips minor road RRW | C100: =VLOOKUP($B100,'Weighted average price list'!$B$4:$G$237,2,FALSE) -> 54.50021094
B101: Philips minor road | C101: =VLOOKUP($B101,'Weighted average price list'!$B$4:$G$237,2,FALSE) -> 54.65057266
B102: Aldridge minor road | C102: =VLOOKUP($B102,'Weighted average price list'!$B$4:$G$237,2,FALSE) -> 50.67500875
B103: Aldridge minor road RRW | C103: =VLOOKUP($B103,'Weighted average price list'!$B$4:$G$237,2,FALSE) -> 50.67500875
B104: Aldridge minor road RRW ZHAGA | C104: =VLOOKUP($B104,'Weighted average price list'!$B$4:$G$237,2,FALSE) -> 53.37249803
B105: Aldridge minor road ZHAGA | C105: =VLOOKUP($B105,'Weighted average price list'!$B$4:$G$237,2,FALSE) -> 53.37249803
B106: 17W LED SY RRW | C106: =VLOOKUP($B106,'Weighted average price list'!$B$4:$G$237,2,FALSE) -> 66.57337351
B107: 1x17W LED | C107: =VLOOKUP($B107,'Weighted average price list'!$B$4:$G$237,2,FALSE) -> 62.72883059
B108: 20W LED GE | C108: =VLOOKUP($B108,'Weighted average price list'!$B$4:$G$237,2,FALSE) -> 55.84069119
B109: 1x22W LED | C109: =VLOOKUP($B109,'Weighted average price list'!$B$4:$G$237,2,FALSE) -> 65.13166992
B110: 1x25W LED GE | C110: =VLOOKUP($B110,'Weighted average price list'!$B$4:$G$237,2,FALSE) -> 55.84069119
B111: Philips minor road high | C111: =VLOOKUP($B111,'Weighted average price list'!$B$4:$G$237,2,FALSE) -> 54.80093439
B112: 28W LED SY | C112: =VLOOKUP($B112,'Weighted average price list'!$B$4:$G$237,2,FALSE) -> 69.4567807
B113: 1x29W LED | C113: =VLOOKUP($B113,'Weighted average price list'!$B$4:$G$237,2,FALSE) -> 40.68407717
B114: 33W LED LRL | C114: =VLOOKUP($B114,'Weighted average price list'!$B$4:$G$237,2,FALSE) -> 76.02454153
B115: Bourke Hill Decorative | C115: =VLOOKUP($B115,'Weighted average price list'!$B$4:$G$237,2,FALSE) -> 156.1447346
B116: 40W LED ALD | C116: =VLOOKUP($B116,'Weighted average price list'!$B$4:$G$237,2,FALSE) -> 53.95573151
B117: 40W LED ALD ZHAGA | C117: =VLOOKUP($B117,'Weighted average price list'!$B$4:$G$237,2,FALSE) -> 56.8202923
B118: 42W LED LRL | C118: =VLOOKUP($B118,'Weighted average price list'!$B$4:$G$237,2,FALSE) -> 93.48177269
B119: Philips major road V5 | C119: =VLOOKUP($B119,'Weighted average price list'!$B$4:$G$237,2,FALSE) -> 58.71033914
B120: Philips major road V5 ZHAGA | C120: =VLOOKUP($B120,'Weighted average price list'!$B$4:$G$237,2,FALSE) -> 66.98023382
B121: 50W LED SY PT | C121: =VLOOKUP($B121,'Weighted average price list'!$B$4:$G$237,2,FALSE) -> 200.8950357
B122: Aldridge major road V5 | C122: =VLOOKUP($B122,'Weighted average price list'!$B$4:$G$237,2,FALSE) -> 83.20360674
B123: Aldridge major road V5 Zhaga | C123: =VLOOKUP($B123,'Weighted average price list'!$B$4:$G$237,2,FALSE) -> 86.20164146
B124: Philips floodlight PX3 | C124: =VLOOKUP($B124,'Weighted average price list'!$B$4:$G$237,2,FALSE) -> 86.23099516
B125: Aldridge major road V3 | C125: =VLOOKUP($B125,'Weighted average price list'!$B$4:$G$237,2,FALSE) -> 93.13194135
B126: Aldridge major road V3 ZHAGA | C126: =VLOOKUP($B126,'Weighted average price list'!$B$4:$G$237,2,FALSE) -> 96.12997607
B127: Philips major road V3 | C127: =VLOOKUP($B127,'Weighted average price list'!$B$4:$G$237,2,FALSE) -> 69.6912058
B128: Philips major road V3 ZHAGA | C128: =VLOOKUP($B128,'Weighted average price list'!$B$4:$G$237,2,FALSE) -> 77.96110048
B129: 100W LED ALD | C129: =VLOOKUP($B129,'Weighted average price list'!$B$4:$G$237,2,FALSE) -> 125.3594411
B130: 100W LED SY CT | C130: =VLOOKUP($B130,'Weighted average price list'!$B$4:$G$237,2,FALSE) -> 218.9798732
B131: 100W LED SY PT | C131: =VLOOKUP($B131,'Weighted average price list'!$B$4:$G$237,2,FALSE) -> 215.9657336
B132: Sylvania floodlight PX2 | C132: =VLOOKUP($B132,'Weighted average price list'!$B$4:$G$237,2,FALSE) -> 128.4826389
B133: Philips floodlight PX2 | C133: =VLOOKUP($B133,'Weighted average price list'!$B$4:$G$237,2,FALSE) -> 94.80161328
B134: Philips major road V1 | C134: =VLOOKUP($B134,'Weighted average price list'!$B$4:$G$237,2,FALSE) -> 74.95386605
B135: Philips major road V1 ZHAGA | C135: =VLOOKUP($B135,'Weighted average price list'!$B$4:$G$237,2,FALSE) -> 83.22376073
B136: Sylvania floodlight PX1 | C136: =VLOOKUP($B136,'Weighted average price list'!$B$4:$G$237,2,FALSE) -> 139.4554255
B137: 150W LED Syrkel PT | C137: =VLOOKUP($B137,'Weighted average price list'!$B$4:$G$237,2,FALSE) -> 231.0364314
B138: Philips floodlight PX1 | C138: =VLOOKUP($B138,'Weighted average price list'!$B$4:$G$237,2,FALSE) -> 95.55342188
B139: Aldridge major road V1 | C139: =VLOOKUP($B139,'Weighted average price list'!$B$4:$G$237,2,FALSE) -> 101.9761438
B140: Aldridge major road V1 ZHAGA | C140: =VLOOKUP($B140,'Weighted average price list'!$B$4:$G$237,2,FALSE) -> 104.9741785
B141: 200W LED ALD | C141: =VLOOKUP($B141,'Weighted average price list'!$B$4:$G$237,2,FALSE) -> 125.3594411
B142: Philips major road V1 High | C142: =VLOOKUP($B142,'Weighted average price list'!$B$4:$G$237,2,FALSE) -> 87.28352721
B143: Philips major road V1 High ZHAGA | C143: =VLOOKUP($B143,'Weighted average price list'!$B$4:$G$237,2,FALSE) -> 95.55342188
B144: Aldridge major road V1 High | C144: =VLOOKUP($B144,'Weighted average price list'!$B$4:$G$237,2,FALSE) -> 114.5681652
B145: Aldridge major road V1 High ZHAGA | C145: =VLOOKUP($B145,'Weighted average price list'!$B$4:$G$237,2,FALSE) -> 114.6723179
B146: 298W LED ALD | C146: =VLOOKUP($B146,'Weighted average price list'!$B$4:$G$237,2,FALSE) -> 181.5858813
B147: 600W LED ALD HM | C147: =VLOOKUP($B147,'Weighted average price list'!$B$4:$G$237,2,FALSE) -> 409.3087649
B148: COLONIAL ROCKS SPHERE | C148: =VLOOKUP($B148,'Weighted average price list'!$B$4:$G$237,2,FALSE) -> 126.0378071
B149: LED TRIAL | C149: =VLOOKUP($B149,'Weighted average price list'!$B$4:$G$237,2,FALSE) -> 40.68407717
B150: Spare Luminaire 1 | C150: =VLOOKUP($B150,'Weighted average price list'!$B$4:$G$237,2,FALSE) -> 0
B151: Spare Luminaire 2 | C151: =VLOOKUP($B151,'Weighted average price list'!$B$4:$G$237,2,FALSE) -> 0
B152: Spare Luminaire 3 | C152: =VLOOKUP($B152,'Weighted average price list'!$B$4:$G$237,2,FALSE) -> 0
B153: Spare Luminaire 4 | C153: =VLOOKUP($B153,'Weighted average price list'!$B$4:$G$237,2,FALSE) -> 0
B154: Spare Luminaire 5 | C154: =VLOOKUP($B154,'Weighted average price list'!$B$4:$G$237,2,FALSE) -> 0
B155: Smart Controller - materials and installation | C155: =VLOOKUP($B155,'Weighted average price list'!$B$4:$G$237,2,FALSE) -> 48.25949775
B156: Smart Controller - material price only | C156: =VLOOKUP($B156,'Weighted average price list'!$B$4:$G$237,2,FALSE) -> 20.92539312
B157: Smart Controller - material price adjusted for PE Cell | C157: =VLOOKUP($B157,'Weighted average price list'!$B$4:$G$237,2,FALSE) -> 19.17041772
B158: Support - COLUMN 10.5M-13.5M | C158: =VLOOKUP($B158,'Weighted average price list'!$B$4:$G$237,2,FALSE) -> 427.5623354
B159: Support - COLUMN 14M-15M | C159: =VLOOKUP($B159,'Weighted average price list'!$B$4:$G$237,2,FALSE) -> 427.5623354
B160: Support - COLUMN 2.5M-3.5M | C160: =VLOOKUP($B160,'Weighted average price list'!$B$4:$G$237,2,FALSE) -> 373.8122948
B161: Support - COLUMN 4-6.5M ORION WATE | C161: =VLOOKUP($B161,'Weighted average price list'!$B$4:$G$237,2,FALSE) -> 384.3515185
B162: Support - COLUMN 4M-6.5M | C162: =VLOOKUP($B162,'Weighted average price list'!$B$4:$G$237,2,FALSE) -> 401.3460166
B163: Support - COLUMN 7M-10M | C163: =VLOOKUP($B163,'Weighted average price list'!$B$4:$G$237,2,FALSE) -> 392.7828974
B164: Support - DECORATIVE COLUMN | C164: =VLOOKUP($B164,'Weighted average price list'!$B$4:$G$237,2,FALSE) -> 412.2804611
B165: Support - DEDICATED SUPPORT & COND | C165: =VLOOKUP($B165,'Weighted average price list'!$B$4:$G$237,2,FALSE) -> 381.3214917
B166: Support - MACQUARIE STANDARD | C166: =VLOOKUP($B166,'Weighted average price list'!$B$4:$G$237,2,FALSE) -> 376.578841
B167: Support - MAST 15.5M-30M | C167: =VLOOKUP($B167,'Weighted average price list'!$B$4:$G$237,2,FALSE) -> 398.3159898
B168: Support - ORION DOUBLE ARM | C168: =VLOOKUP($B168,'Weighted average price list'!$B$4:$G$237,2,FALSE) -> 365.6292464
B169: Support - POLO 10.5M DECORATIVE 2M | C169: =VLOOKUP($B169,'Weighted average price list'!$B$4:$G$237,2,FALSE) -> 388.5672079
B170: Support - ROCKS STANDARD | C170: =VLOOKUP($B170,'Weighted average price list'!$B$4:$G$237,2,FALSE) -> 390.2910297

Sheet Detailed price list
B1: Public lighting price list - post July 2009 capital annuity and annual maintenance charges
B2: This sheet summarises the post July 2009 capital annuity and annual maintenance charges calculated in this model. | M2: Volume (FY25-FY29)
D3: Nominal $ | M3: =MATCH($M$2,$O$4:$Q$4,0) -> 1
B4: Charge Reference | C4: Charge Group | D4: ='C_CAPEX Build Up'!S14 -> FY25 | E4: ='C_CAPEX Build Up'!T14 -> FY26 | F4: ='C_CAPEX Build Up'!U14 -> FY27 | G4: ='C_CAPEX Build Up'!V14 -> FY28 | H4: ='C_CAPEX Build Up'!W14 -> FY29 | J4: Charge Type | K4: Road Type | L4: Applied Scenario Price Grouping | M4: Volume (FY25-FY29) | O4: Volume (FY25-FY29) | P4: Volume (FY22 Billing) | Q4: Estimated Average Revenue
B5: O/U | C5: Opex - Connections | D5: 102.2358901 | E5: 105.0982712 | F5: 108.0407928 | G5: 111.0656985 | H5: 114.175295 | J5: N/A | K5: N/A | L5: Connection - O/U | M5: =INDEX(O5:Q5,,$M$3) -> 2880 | O5: =SUM('I_Asset number input'!K5:O5) -> 2880 | P5: 4552 | Q5: =+O5/5*AVERAGE(D5,E5,F5,G5,H5) -> 62278.95716
B6: UGR1 | C6: =C5 -> Opex - Connections | D6: 93.71386342 | E6: 96.33764648 | F6: 99.03488973 | G6: 101.8076499 | H6: 104.6580412 | J6: N/A | K6: N/A | L6: Connection - UGR1 | M6: =INDEX(O6:Q6,,$M$3) -> 162507.5 | O6: =SUM('I_Asset number input'!K6:O6) -> 162507.5 | P6: 254888 | Q6: =+O6/5*AVERAGE(D6,E6,F6,G6,H6) -> 3221237.255
B7: UGR2 | C7: =C6 -> Opex - Connections | D7: 34.07355983 | E7: 35.02754492 | F7: 36.00823951 | G7: 37.01639141 | H7: 38.05276935 | J7: N/A | K7: N/A | L7: Connection - UGR2 | M7: =INDEX(O7:Q7,,$M$3) -> 124642.5 | O7: =SUM('I_Asset number input'!K7:O7) -> 124642.5 | P7: 195760 | Q7: 898315.9725
B8: MBF1x1000 | C8: Opex - Maintenance- Traditional Luminaire | D8: 62.20142521 | E8: 63.94292897 | F8: 65.73319103 | G8: 67.57357651 | H8: 69.46548875 | J8: Traditional | K8: Major (Cat V) | L8: Legacy Luminaire - Major (Cat V) road | M8: =INDEX(O8:Q8,,$M$3) -> 5 | O8: =SUM('I_Asset number input'!K8:O8) -> 5 | P8: 16 | Q8: 65.78332209
B9: MBF1x125 | C9: =C8 -> Opex - Maintenance- Traditional Luminaire | D9: 36.22678416 | E9: 37.24105482 | F9: 38.28372285 | G9: 39.35558329 | H9: 40.45745349 | J9: Traditional | K9: Minor (Cat P) | L9: Legacy Luminaire - Minor (Cat P) road | M9: =INDEX(O9:Q9,,$M$3) -> 977 | O9: =SUM('I_Asset number input'!K9:O9) -> 977 | P9: 10520 | Q9: 7486.344514
B10: MBF1x250 | C10: =C9 -> Opex - Maintenance- Traditional Luminaire | D10: 49.25014321 | E10: 50.62903943 | F10: 52.04654172 | G10: 53.50373097 | H10: 55.00171833 | J10: Traditional | K10: Major (Cat V) | L10: Legacy Luminaire - Major (Cat V) road | M10: =INDEX(O10:Q10,,$M$3) -> 8847.5 | O10: =SUM('I_Asset number input'!K10:O10) -> 8847.5 | P10: 92720 | Q10: 92166.59236
B11: MBF1x400 | C11: Opex - Maintenance- Traditional Luminaire | D11: 49.25014321 | E11: 50.62903943 | F11: 52.04654172 | G11: 53.50373097 | H11: 55.00171833 | J11: Traditional | K11: Major (Cat V) | L11: Legacy Luminaire - Major (Cat V) road | M11: =INDEX(O11:Q11,,$M$3) -> 2920 | O11: =SUM('I_Asset number input'!K11:O11) -> 2920 | P11: 31824 | Q11: 30418.36108
B12: MBF1x42 | C12: Opex - Maintenance- Traditional Luminaire | D12: 32.31581769 | E12: 33.22058986 | F12: 34.15069366 | G12: 35.10683834 | H12: 36.08975298 | J12: Traditional | K12: Minor (Cat P) | L12: Legacy Luminaire - Minor (Cat P) road | M12: =INDEX(O12:Q12,,$M$3) -> 23720 | O12: =SUM('I_Asset number input'!K12:O12) -> 23720 | P12: 247472 | Q12: 162134.4475
B13: MBF1x50 | C13: Opex - Maintenance- Traditional Luminaire | D13: 36.25151002 | E13: 37.26647296 | F13: 38.30985264 | G13: 39.38244466 | H13: 40.48506691 | J13: Traditional | K13: Minor (Cat P) | L13: Legacy Luminaire - Minor (Cat P) road | M13: =INDEX(O13:Q13,,$M$3) -> 2154 | O13: =SUM('I_Asset number input'!K13:O13) -> 2154 | P13: 23400 | Q13: 16516.47111
B14: MBF1x80 | C14: Opex - Maintenance- Traditional Luminaire | D14: 34.74158667 | E14: 35.71427506 | F14: 36.71419659 | G14: 37.74211374 | H14: 38.79881032 | J14: Traditional | K14: Minor (Cat P) | L14: Legacy Luminaire - Minor (Cat P) road | M14: =INDEX(O14:Q14,,$M$3) -> 7315.5 | O14: =SUM('I_Asset number input'!K14:O14) -> 7315.5 | P14: 88712 | Q14: 53757.50766
B15: MBF2x80 | C15: Opex - Maintenance- Traditional Luminaire | D15: 43.75766087 | E15: 44.9827796 | F15: 46.24219898 | G15: 47.53687934 | H15: 48.86780791 | J15: Traditional | K15: Minor (Cat P) | L15: Legacy Luminaire - Minor (Cat P) road | M15: =INDEX(O15:Q15,,$M$3) -> 11 | O15: =SUM('I_Asset number input'!K15:O15) -> 11 | P15: 120 | Q15: 101.8104237
B16: MBI1x100 | C16: Opex - Maintenance- Traditional Luminaire | D16: 46.22590747 | E16: 47.52013171 | F16: 48.85059139 | G16: 50.21830103 | H16: 51.62430354 | J16: Traditional | K16: Major (Cat V) | L16: Legacy Luminaire - Major (Cat V) road | M16: =INDEX(O16:Q16,,$M$3) -> 17.5 | O16: =SUM('I_Asset number input'!K16:O16) -> 17.5 | P16: 168 | Q16: 171.1074646
B17: MBI1x1000 | C17: Opex - Maintenance- Traditional Luminaire | D17: 48.1503936 | E17: 49.49849923 | F17: 50.88434888 | G17: 52.30899927 | H17: 53.77353676 | J17: Traditional | K17: Major (Cat V) | L17: Legacy Luminaire - Major (Cat V) road | M17: =INDEX(O17:Q17,,$M$3) -> 8.5 | O17: =SUM('I_Asset number input'!K17:O17) -> 8.5 | P17: 64 | Q17: 86.56936443
B18: MBI1x150 | C18: Opex - Maintenance- Traditional Luminaire | D18: 46.22590747 | E18: 47.52013171 | F18: 48.85059139 | G18: 50.21830103 | H18: 51.62430354 | J18: Traditional | K18: Major (Cat V) | L18: Legacy Luminaire - Major (Cat V) road | M18: =INDEX(O18:Q18,,$M$3) -> 2 | O18: =SUM('I_Asset number input'!K18:O18) -> 2 | P18: 32 | Q18: 19.55513881
B19: MBI1x250 | C19: Opex - Maintenance- Traditional Luminaire | D19: 45.87733408 | E19: 47.16179902 | F19: 48.48222617 | G19: 49.83962239 | H19: 51.23502273 | J19: Traditional | K19: Major (Cat V) | L19: Legacy Luminaire - Major (Cat V) road | M19: =INDEX(O19:Q19,,$M$3) -> 38 | O19: =SUM('I_Asset number input'!K19:O19) -> 38 | P19: 440 | Q19: 368.7459267
B20: MBI1x400 | C20: Opex - Maintenance- Traditional Luminaire | D20: 45.86605339 | E20: 47.15020249 | F20: 48.47030496 | G20: 49.82736741 | H20: 51.22242464 | J20: Traditional | K20: Major (Cat V) | L20: Legacy Luminaire - Major (Cat V) road | M20: =INDEX(O20:Q20,,$M$3) -> 87 | O20: =SUM('I_Asset number input'!K20:O20) -> 87 | P20: 968 | Q20: 844.0265081
B21: MBI1x70 | C21: Opex - Maintenance- Traditional Luminaire | D21: 34.15594393 | E21: 35.11223561 | F21: 36.09530135 | G21: 37.10589079 | H21: 38.14477451 | J21: Traditional | K21: Minor (Cat P) | L21: Legacy Luminaire - Minor (Cat P) road | M21: =INDEX(O21:Q21,,$M$3) -> 102 | O21: =SUM('I_Asset number input'!K21:O21) -> 102 | P21: 1400 | Q21: 736.9057165
B22: MBI1x70 II | C22: Opex - Maintenance- Traditional Luminaire | D22: 36.60949454 | E22: 37.63448025 | F22: 38.68816333 | G22: 39.77134723 | H22: 40.8848579 | J22: Traditional | K22: Minor (Cat P) | L22: Legacy Luminaire - Minor (Cat P) road | M22: =INDEX(O22:Q22,,$M$3) -> 13 | O22: =SUM('I_Asset number input'!K22:O22) -> 13 | P22: 584 | Q22: 100.6659385
B23: SON1x100 | C23: Opex - Maintenance- Traditional Luminaire | D23: 55.22605196 | E23: 56.77226054 | F23: 58.36175957 | G23: 59.9957611 | H23: 61.6755111 | J23: Traditional | K23: Major (Cat V) | L23: Legacy Luminaire - Major (Cat V) road | M23: =INDEX(O23:Q23,,$M$3) -> 876.5 | O23: =SUM('I_Asset number input'!K23:O23) -> 876.5 | P23: 10112 | Q23: 10238.61893
B24: SON1x1000 | C24: Opex - Maintenance- Traditional Luminaire | D24: 56.56529995 | E24: 58.14900454 | F24: 59.7770494 | G24: 61.45067595 | H24: 63.17116037 | J24: Traditional | K24: Major (Cat V) | L24: Legacy Luminaire - Major (Cat V) road | M24: =INDEX(O24:Q24,,$M$3) -> 28.5 | O24: =SUM('I_Asset number input'!K24:O24) -> 28.5 | P24: 264 | Q24: 340.9890368
B25: SON1x150 | C25: Opex - Maintenance- Traditional Luminaire | D25: 54.56148346 | E25: 56.08908558 | F25: 57.65945721 | G25: 59.27379581 | H25: 60.93333236 | J25: Traditional | K25: Major (Cat V) | L25: Legacy Luminaire - Major (Cat V) road | M25: =INDEX(O25:Q25,,$M$3) -> 12998.5 | O25: =SUM('I_Asset number input'!K25:O25) -> 12998.5 | P25: 137320 | Q25: 150011.6093
B26: SON1x150 AR | C26: Opex - Maintenance- Traditional Luminaire | D26: 54.56148346 | E26: 56.08908558 | F26: 57.65945721 | G26: 59.27379581 | H26: 60.93333236 | J26: Traditional | K26: Major (Cat V) | L26: Legacy Luminaire - Major (Cat V) road | M26: =INDEX(O26:Q26,,$M$3) -> 2321.5 | O26: =SUM('I_Asset number input'!K26:O26) -> 2321.5 | P26: 25040 | Q26: 26791.70296
B27: SON1x250 | C27: Opex - Maintenance- Traditional Luminaire | D27: 54.8740053 | E27: 56.41035734 | F27: 57.98972388 | G27: 59.61330923 | H27: 61.28235141 | J27: Traditional | K27: Major (Cat V) | L27: Legacy Luminaire - Major (Cat V) road | M27: =INDEX(O27:Q27,,$M$3) -> 15865.5 | O27: =SUM('I_Asset number input'!K27:O27) -> 15865.5 | P27: 167184 | Q27: 184147.5249
B28: SON1x250 AR | C28: Opex - Maintenance- Traditional Luminaire | D28: 54.8740053 | E28: 56.41035734 | F28: 57.98972388 | G28: 59.61330923 | H28: 61.28235141 | J28: Traditional | K28: Major (Cat V) | L28: Legacy Luminaire - Major (Cat V) road | M28: =INDEX(O28:Q28,,$M$3) -> 3019.5 | O28: =SUM('I_Asset number input'!K28:O28) -> 3019.5 | P28: 32080 | Q28: 35046.70206
B29: SON1x400 | C29: Opex - Maintenance- Traditional Luminaire | D29: 55.01188258 | E29: 56.55209489 | F29: 58.13542977 | G29: 59.76309456 | H29: 61.4363304 | J29: Traditional | K29: Major (Cat V) | L29: Legacy Luminaire - Major (Cat V) road | M29: =INDEX(O29:Q29,,$M$3) -> 1455.5 | O29: =SUM('I_Asset number input'!K29:O29) -> 1455.5 | P29: 15120 | Q29: 16936.13001
B30: SON1x400 AR | C30: Opex - Maintenance- Traditional Luminaire | D30: 55.01188258 | E30: 56.55209489 | F30: 58.13542977 | G30: 59.76309456 | H30: 61.4363304 | J30: Traditional | K30: Major (Cat V) | L30: Legacy Luminaire - Major (Cat V) road | M30: =INDEX(O30:Q30,,$M$3) -> 313 | O30: =SUM('I_Asset number input'!K30:O30) -> 313 | P30: 3280 | Q30: 3642.053379
B31: SON1x50 | C31: Opex - Maintenance- Traditional Luminaire | D31: 40.56781788 | E31: 41.70362799 | F31: 42.8712383 | G31: 44.07153914 | H31: 45.30544577 | J31: Traditional | K31: Minor (Cat P) | L31: Legacy Luminaire - Minor (Cat P) road | M31: =INDEX(O31:Q31,,$M$3) -> 8.5 | O31: =SUM('I_Asset number input'!K31:O31) -> 8.5 | P31: 88 | Q31: 72.93668749
B32: SON1x600 | C32: Opex - Maintenance- Traditional Luminaire | D32: 56.56529995 | E32: 58.14900454 | F32: 59.7770494 | G32: 61.45067595 | H32: 63.17116037 | J32: Traditional | K32: Major (Cat V) | L32: Legacy Luminaire - Major (Cat V) road | M32: =INDEX(O32:Q32,,$M$3) -> 0 | O32: =SUM('I_Asset number input'!K32:O32) -> 0 | P32: 0 | Q32: 0
B33: SON1x70 | C33: Opex - Maintenance- Traditional Luminaire | D33: 40.2222055 | E33: 41.34833922 | F33: 42.50600222 | G33: 43.69607724 | H33: 44.91947177 | J33: Traditional | K33: Minor (Cat P) | L33: Legacy Luminaire - Minor (Cat P) road | M33: =INDEX(O33:Q33,,$M$3) -> 360.5 | O33: =SUM('I_Asset number input'!K33:O33) -> 360.5 | P33: 5096 | Q33: 3067.020024
B34: SON2x250 | C34: Opex - Maintenance- Traditional Luminaire | D34: 76.47731531 | E34: 78.61851275 | F34: 80.81965903 | G34: 83.08243259 | H34: 85.40855886 | J34: Traditional | K34: Major (Cat V) | L34: Legacy Luminaire - Major (Cat V) road | M34: =INDEX(O34:Q34,,$M$3) -> 9 | O34: =SUM('I_Asset number input'!K34:O34) -> 9 | P34: 88 | Q34: 145.5863323
B35: SON2x400 | C35: Opex - Maintenance- Traditional Luminaire | D35: 76.74408217 | E35: 78.8927485 | F35: 81.10157279 | G35: 83.37223932 | H35: 85.70647954 | J35: Traditional | K35: Major (Cat V) | L35: Legacy Luminaire - Major (Cat V) road | M35: =INDEX(O35:Q35,,$M$3) -> 2 | O35: =SUM('I_Asset number input'!K35:O35) -> 2 | P35: 32 | Q35: 32.46536979
B36: SON4x250 | C36: Opex - Maintenance- Traditional Luminaire | D36: 115.5510198 | E36: 118.7861954 | F36: 122.1119489 | G36: 125.5308162 | H36: 129.0454043 | J36: Traditional | K36: Major (Cat V) | L36: Legacy Luminaire - Major (Cat V) road | M36: =INDEX(O36:Q36,,$M$3) -> 2 | O36: =SUM('I_Asset number input'!K36:O36) -> 2 | P36: 40 | Q36: 48.88203077
B37: SON4x600 | C37: Opex - Maintenance- Traditional Luminaire | D37: 121.6829823 | E37: 125.0898395 | F37: 128.5920812 | G37: 132.192378 | H37: 135.8934753 | J37: Traditional | K37: Major (Cat V) | L37: Legacy Luminaire - Major (Cat V) road | M37: =INDEX(O37:Q37,,$M$3) -> -3 | O37: =SUM('I_Asset number input'!K37:O37) -> -3 | P37: 24 | Q37: -77.21409076
B38: TF1x20 | C38: Opex - Maintenance- Traditional Luminaire | D38: 38.45481159 | E38: 39.53146215 | F38: 40.63825656 | G38: 41.7760388 | H38: 42.94567645 | J38: Traditional | K38: Minor (Cat P) | L38: Legacy Luminaire - Minor (Cat P) road | M38: =INDEX(O38:Q38,,$M$3) -> 5 | O38: =SUM('I_Asset number input'!K38:O38) -> 5 | P38: 8 | Q38: 40.66924911
B39: TF1x40 | C39: Opex - Maintenance- Traditional Luminaire | D39: 63.21199777 | E39: 64.98179535 | F39: 66.8011434 | G39: 68.6714292 | H39: 70.59407892 | J39: Traditional | K39: Minor (Cat P) | L39: Legacy Luminaire - Minor (Cat P) road | M39: =INDEX(O39:Q39,,$M$3) -> 42.5 | O39: =SUM('I_Asset number input'!K39:O39) -> 42.5 | P39: 472 | Q39: 568.2427559
B40: TF1x80 | C40: Opex - Maintenance- Traditional Luminaire | D40: 38.47173263 | E40: 39.54885694 | F40: 40.65613837 | G40: 41.79442126 | H40: 42.96457358 | J40: Traditional | K40: Minor (Cat P) | L40: Legacy Luminaire - Minor (Cat P) road | M40: =INDEX(O40:Q40,,$M$3) -> 16 | O40: =SUM('I_Asset number input'!K40:O40) -> 16 | P40: 144 | Q40: 130.1988626
B41: TF2x14 T5 | C41: Opex - Maintenance- Traditional Luminaire | D41: 38.47173263 | E41: 39.54885694 | F41: 40.65613837 | G41: 41.79442126 | H41: 42.96457358 | J41: Traditional | K41: Minor (Cat P) | L41: Legacy Luminaire - Minor (Cat P) road | M41: =INDEX(O41:Q41,,$M$3) -> 2 | O41: =SUM('I_Asset number input'!K41:O41) -> 2 | P41: 56 | Q41: 16.27485782
B42: TF2x20 | C42: Opex - Maintenance- Traditional Luminaire | D42: 49.27289034 | E42: 50.65242342 | F42: 52.07058042 | G42: 53.5284427 | H42: 55.02712194 | J42: Traditional | K42: Minor (Cat P) | L42: Legacy Luminaire - Minor (Cat P) road | M42: =INDEX(O42:Q42,,$M$3) -> 226 | O42: =SUM('I_Asset number input'!K42:O42) -> 226 | P42: 2648 | Q42: 2355.385188
B43: TF2x26 | C43: Opex - Maintenance- Traditional Luminaire | D43: 38.47173263 | E43: 39.54885694 | F43: 40.65613837 | G43: 41.79442126 | H43: 42.96457358 | J43: Traditional | K43: Minor (Cat P) | L43: Legacy Luminaire - Minor (Cat P) road | M43: =INDEX(O43:Q43,,$M$3) -> 8.5 | O43: =SUM('I_Asset number input'!K43:O43) -> 8.5 | P43: 64 | Q43: 69.16814574
B44: TF2x40 | C44: Opex - Maintenance- Traditional Luminaire | D44: 38.47173263 | E44: 39.54885694 | F44: 40.65613837 | G44: 41.79442126 | H44: 42.96457358 | J44: Traditional | K44: Minor (Cat P) | L44: Legacy Luminaire - Minor (Cat P) road | M44: =INDEX(O44:Q44,,$M$3) -> 14 | O44: =SUM('I_Asset number input'!K44:O44) -> 14 | P44: 96 | Q44: 113.9240048
B45: TF4x20 | C45: Opex - Maintenance- Traditional Luminaire | D45: 38.45481159 | E45: 39.53146215 | F45: 40.63825656 | G45: 41.7760388 | H45: 42.94567645 | J45: Traditional | K45: Minor (Cat P) | L45: Legacy Luminaire - Minor (Cat P) road | M45: =INDEX(O45:Q45,,$M$3) -> 12 | O45: =SUM('I_Asset number input'!K45:O45) -> 12 | P45: 56 | Q45: 97.60619787
B46: TF4x40 | C46: Opex - Maintenance- Traditional Luminaire | D46: 38.47173263 | E46: 39.54885694 | F46: 40.65613837 | G46: 41.79442126 | H46: 42.96457358 | J46: Traditional | K46: Minor (Cat P) | L46: Legacy Luminaire - Minor (Cat P) road | M46: =INDEX(O46:Q46,,$M$3) -> 5 | O46: =SUM('I_Asset number input'!K46:O46) -> 5 | P46: 16 | Q46: 40.68714456
B47: LED TRIAL | C47: Opex - Maintenance- LED Luminaire | D47: 23.32463152 | E47: 23.97767015 | F47: 24.64899244 | G47: 25.33911027 | H47: 26.0485499 | J47: LED | K47: Minor (Cat P) | L47: Luminaire - Minor (Cat P) road | M47: =INDEX(O47:Q47,,$M$3) -> 440 | O47: =SUM('I_Asset number input'!K47:O47) -> 440 | P47: 712 | Q47: 2170.765595
B48: LED1x100 | C48: Opex - Maintenance- LED Luminaire | D48: 31.76425867 | E48: 32.65358838 | F48: 33.56781739 | G48: 34.50764281 | H48: 35.47378128 | J48: LED | K48: Major (Cat V) | L48: Luminaire - Major (Cat V) road | M48: =INDEX(O48:Q48,,$M$3) -> 40918.5 | O48: =SUM('I_Asset number input'!K48:O48) -> 40918.5 | P48: 71120 | Q48: 274918.4525
B49: LED1x17 | C49: Opex - Maintenance- LED Luminaire | D49: 23.32463152 | E49: 23.97767015 | F49: 24.64899244 | G49: 25.33911027 | H49: 26.0485499 | J49: LED | K49: Minor (Cat P) | L49: Luminaire - Minor (Cat P) road | M49: =INDEX(O49:Q49,,$M$3) -> 692170 | O49: =SUM('I_Asset number input'!K49:O49) -> 692170 | P49: 764648 | Q49: 3414860.96
B50: LED1x200 | C50: Opex - Maintenance- LED Luminaire | D50: 31.76425867 | E50: 32.65358838 | F50: 33.56781739 | G50: 34.50764281 | H50: 35.47378128 | J50: LED | K50: Major (Cat V) | L50: Luminaire - Major (Cat V) road | M50: =INDEX(O50:Q50,,$M$3) -> 13525 | O50: =SUM('I_Asset number input'!K50:O50) -> 13525 | P50: 21384 | Q50: 90870.19489
B51: LED1x22 | C51: Opex - Maintenance- LED Luminaire | D51: 23.32463152 | E51: 23.97767015 | F51: 24.64899244 | G51: 25.33911027 | H51: 26.0485499 | J51: LED | K51: Minor (Cat P) | L51: Luminaire - Minor (Cat P) road | M51: =INDEX(O51:Q51,,$M$3) -> 72155 | O51: =SUM('I_Asset number input'!K51:O51) -> 72155 | P51: 115744 | Q51: 355980.8899
B52: LED1x25 GE | C52: Opex - Maintenance- LED Luminaire | D52: 23.32463152 | E52: 23.97767015 | F52: 24.64899244 | G52: 25.33911027 | H52: 26.0485499 | J52: LED | K52: Minor (Cat P) | L52: Luminaire - Minor (Cat P) road | M52: =INDEX(O52:Q52,,$M$3) -> 22460 | O52: =SUM('I_Asset number input'!K52:O52) -> 22460 | P52: 35840 | Q52: 110807.7165
B53: LED1x28 | C53: Opex - Maintenance- LED Luminaire | D53: 23.32463152 | E53: 23.97767015 | F53: 24.64899244 | G53: 25.33911027 | H53: 26.0485499 | J53: LED | K53: Minor (Cat P) | L53: Luminaire - Minor (Cat P) road | M53: =INDEX(O53:Q53,,$M$3) -> 19825 | O53: =SUM('I_Asset number input'!K53:O53) -> 19825 | P53: 30088 | Q53: 97807.79075
B54: LED1x29 | C54: Opex - Maintenance- LED Luminaire | D54: 23.32463152 | E54: 23.97767015 | F54: 24.64899244 | G54: 25.33911027 | H54: 26.0485499 | J54: LED | K54: Minor (Cat P) | L54: Luminaire - Minor (Cat P) road | M54: =INDEX(O54:Q54,,$M$3) -> 72590 | O54: =SUM('I_Asset number input'!K54:O54) -> 72590 | P54: 116496 | Q54: 358126.9877
B55: LED1x298 | C55: Opex - Maintenance- LED Luminaire | D55: 31.76425867 | E55: 32.65358838 | F55: 33.56781739 | G55: 34.50764281 | H55: 35.47378128 | J55: LED | K55: Major (Cat V) | L55: Luminaire - Major (Cat V) road | M55: =INDEX(O55:Q55,,$M$3) -> 265 | O55: =SUM('I_Asset number input'!K55:O55) -> 265 | P55: 424 | Q55: 1780.451138
B56: LED1x33 | C56: Opex - Maintenance- LED Luminaire | D56: 23.32463152 | E56: 23.97767015 | F56: 24.64899244 | G56: 25.33911027 | H56: 26.0485499 | J56: LED | K56: Minor (Cat P) | L56: Luminaire - Minor (Cat P) road | M56: =INDEX(O56:Q56,,$M$3) -> 145 | O56: =SUM('I_Asset number input'!K56:O56) -> 145 | P56: 232 | Q56: 715.3659349
B57: LED1x42 | C57: Opex - Maintenance- LED Luminaire | D57: 23.32463152 | E57: 23.97767015 | F57: 24.64899244 | G57: 25.33911027 | H57: 26.0485499 | J57: LED | K57: Minor (Cat P) | L57: Luminaire - Minor (Cat P) road | M57: =INDEX(O57:Q57,,$M$3) -> 200 | O57: =SUM('I_Asset number input'!K57:O57) -> 200 | P57: 328 | Q57: 986.7116343
B58: Smart Controller | C58: Opex - Maintenance- Smart controller | D58: 4.398974671 | E58: 4.522136334 | F58: 4.648746254 | G58: 4.778900974 | H58: 4.912699741 | J58: Smart Controller | K58: N/A | L58: Smart Controller | M58: =INDEX(O58:Q58,,$M$3) -> 304000 | O58: =SUM('I_Asset number input'!K58:O58) -> 304000 | P58: 0 | Q58: 282859.329
B59: Luminaire - Decorative | C59: Opex - Maintenance- LED Luminaire | D59: 25.02975226 | E59: 25.73053054 | F59: 26.45092907 | G59: 27.19149719 | H59: 27.9527996 | J59: LED | K59: Minor (Cat P) | L59: Luminaire - Decorative | M59: =INDEX(O59:Q59,,$M$3) -> 0 | O59: =SUM('I_Asset number input'!K59:O59) -> 0 | P59: 0 | Q59: 0
B60: Luminaire - Floodlight | C60: Opex - Maintenance- LED Luminaire | D60: 31.76425867 | E60: 32.65358838 | F60: 33.56781739 | G60: 34.50764281 | H60: 35.47378128 | J60: LED | K60: Major (Cat V) | L60: Luminaire - Floodlight | M60: =INDEX(O60:Q60,,$M$3) -> 0 | O60: =SUM('I_Asset number input'!K60:O60) -> 0 | P60: 0 | Q60: 0
B61: Luminaire - Major (Cat V) road - smart controller installed | C61: Opex - Maintenance- LED Luminaire | D61: 22.50725193 | E61: 23.13740572 | F61: 23.78520244 | G61: 24.45113605 | H61: 25.13571434 | J61: LED | K61: Major (Cat V) | L61: Luminaire - Major (Cat V) road - smart controller installed | M61: =INDEX(O61:Q61,,$M$3) -> 260865 | O61: =SUM('I_Asset number input'!K61:O61) -> 260865 | P61: 0 | Q61: 1241891.767
B62: Luminaire - Minor (Cat P) road - smart controller installed | C62: Opex - Maintenance- LED Luminaire | D62: 18.05449408 | E62: 18.5599804 | F62: 19.07961923 | G62: 19.61380681 | H62: 20.16295047 | J62: LED | K62: Minor (Cat P) | L62: Luminaire - Minor (Cat P) road - smart controller installed | M62: =INDEX(O62:Q62,,$M$3) -> 28985 | O62: =SUM('I_Asset number input'!K62:O62) -> 28985 | P62: 0 | Q62: 110688.9047
B63: Luminaire - Floodlight - smart controller installed | C63: Opex - Maintenance- LED Luminaire | D63: 22.50725193 | E63: 23.13740572 | F63: 23.78520244 | G63: 24.45113605 | H63: 25.13571434 | J63: LED | K63: Major (Cat V) | L63: Luminaire - Floodlight - smart controller installed | M63: =INDEX(O63:Q63,,$M$3) -> 0 | O63: =SUM('I_Asset number input'!K63:O63) -> 0 | P63: 0 | Q63: 0
B64: Luminaire - Decorative - smart controller installed | C64: Opex - Maintenance- LED Luminaire | D64: 19.75961482 | E64: 20.31284079 | F64: 20.88155587 | G64: 21.46619373 | H64: 22.06720017 | J64: LED | K64: Minor (Cat P) | L64: Luminaire - Decorative - smart controller installed | M64: =INDEX(O64:Q64,,$M$3) -> 0 | O64: =SUM('I_Asset number input'!K64:O64) -> 0 | P64: 0 | Q64: 0
B65: 0.5 | C65: Capital - Bracket | D65: 6.445776866 | E65: 6.62624451 | F65: 6.811764853 | G65: 7.00247936 | H65: 7.198533456 | J65: Bracket | K65: Minor (Cat P) | L65: Legacy Bracket - Minor (Cat P) road - Short | M65: =INDEX(O65:Q65,,$M$3) -> 32543.5 | O65: =SUM('I_Asset number input'!K65:O65) -> 32543.5 | P65: 49704 | Q65: 44369.54631
B66: 0.6 | C66: Capital - Bracket | D66: 6.445776866 | E66: 6.62624451 | F66: 6.811764853 | G66: 7.00247936 | H66: 7.198533456 | J66: Bracket | K66: Minor (Cat P) | L66: Legacy Bracket - Minor (Cat P) road - Short | M66: =INDEX(O66:Q66,,$M$3) -> 130 | O66: =SUM('I_Asset number input'!K66:O66) -> 130 | P66: 208 | Q66: 177.240955
B67: 1.0 | C67: Capital - Bracket | D67: 7.931592944 | E67: 8.153660187 | F67: 8.381944826 | G67: 8.616620935 | H67: 8.857867462 | J67: Bracket | K67: Minor (Cat P) | L67: Legacy Bracket - Minor (Cat P) road - Short | M67: =INDEX(O67:Q67,,$M$3) -> 580 | O67: =SUM('I_Asset number input'!K67:O67) -> 580 | P67: 952 | Q67: 973.0471234
B68: 1.2 | C68: Capital - Bracket | D68: 7.931592944 | E68: 8.153660187 | F68: 8.381944826 | G68: 8.616620935 | H68: 8.857867462 | J68: Bracket | K68: Minor (Cat P) | L68: Legacy Bracket - Minor (Cat P) road - Short | M68: =INDEX(O68:Q68,,$M$3) -> 2285 | O68: =SUM('I_Asset number input'!K68:O68) -> 2285 | P68: 3648 | Q68: 3833.470133
B69: 1.5 | C69: Capital - Bracket | D69: 7.931592944 | E69: 8.153660187 | F69: 8.381944826 | G69: 8.616620935 | H69: 8.857867462 | J69: Bracket | K69: Minor (Cat P) | L69: Legacy Bracket - Minor (Cat P) road - Short | M69: =INDEX(O69:Q69,,$M$3) -> 1330 | O69: =SUM('I_Asset number input'!K69:O69) -> 1330 | P69: 2160 | Q69: 2231.297714
B70: 2.0 | C70: Capital - Bracket | D70: 7.931592944 | E70: 8.153660187 | F70: 8.381944826 | G70: 8.616620935 | H70: 8.857867462 | J70: Bracket | K70: Minor (Cat P) | L70: Legacy Bracket - Minor (Cat P) road - Short | M70: =INDEX(O70:Q70,,$M$3) -> 203421.5 | O70: =SUM('I_Asset number input'!K70:O70) -> 203421.5 | P70: 300376 | Q70: =+O70/5*AVERAGE(D70,E70,F70,G70,H70) -> 341273.63
B71: 2.5 | C71: Capital - Bracket | D71: 7.931592944 | E71: 8.153660187 | F71: 8.381944826 | G71: 8.616620935 | H71: 8.857867462 | J71: Bracket | K71: Minor (Cat P) | L71: Legacy Bracket - Minor (Cat P) road - Short | M71: =INDEX(O71:Q71,,$M$3) -> 345 | O71: =SUM('I_Asset number input'!K71:O71) -> 345 | P71: 552 | Q71: 578.7952717
B72: 3.0 | C72: Capital - Bracket | D72: 7.931592944 | E72: 8.153660187 | F72: 8.381944826 | G72: 8.616620935 | H72: 8.857867462 | J72: Bracket | K72: Minor (Cat P) | L72: Legacy Bracket - Minor (Cat P) road - Short | M72: =INDEX(O72:Q72,,$M$3) -> 3245 | O72: =SUM('I_Asset number input'!K72:O72) -> 3245 | P72: 5008 | Q72: 5444.030889
B73: 3.5 | C73: Capital - Bracket | D73: 11.22050874 | E73: 11.53465843 | F73: 11.85760362 | G73: 12.18959057 | H73: 12.53087242 | J73: Bracket | K73: Minor (Cat P) | L73: Legacy Bracket - Minor (Cat P) road - Medium | M73: =INDEX(O73:Q73,,$M$3) -> 5285 | O73: =SUM('I_Asset number input'!K73:O73) -> 5285 | P73: 8456 | Q73: 12543.04562
B74: 4.0 | C74: Capital - Bracket | D74: 18.05073858 | E74: 18.55611975 | F74: 19.07565049 | G74: 19.60972696 | H74: 20.15875639 | J74: Bracket | K74: Minor (Cat P) | L74: Legacy Bracket - Minor (Cat P) road - Medium | M74: =INDEX(O74:Q74,,$M$3) -> 3145 | O74: =SUM('I_Asset number input'!K74:O74) -> 3145 | P74: 4952 | Q74: 12007.73482
B75: 4.5 | C75: Capital - Bracket | D75: 18.05073858 | E75: 18.55611975 | F75: 19.07565049 | G75: 19.60972696 | H75: 20.15875639 | J75: Bracket | K75: Minor (Cat P) | L75: Legacy Bracket - Minor (Cat P) road - Medium | M75: =INDEX(O75:Q75,,$M$3) -> 720 | O75: =SUM('I_Asset number input'!K75:O75) -> 720 | P75: 1096 | Q75: 2748.988575
B76: 5.0 | C76: Capital - Bracket | D76: 18.05073858 | E76: 18.55611975 | F76: 19.07565049 | G76: 19.60972696 | H76: 20.15875639 | J76: Bracket | K76: Minor (Cat P) | L76: Legacy Bracket - Minor (Cat P) road - Medium | M76: =INDEX(O76:Q76,,$M$3) -> 220 | O76: =SUM('I_Asset number input'!K76:O76) -> 220 | P76: 368 | Q76: 839.9687312
B77: 6.0 | C77: Capital - Bracket | D77: 22.45163532 | E77: 23.08023197 | F77: 23.72642795 | G77: 24.390716 | H77: 25.07360267 | J77: Bracket | K77: Minor (Cat P) | L77: Legacy Bracket - Minor (Cat P) road - Long | M77: =INDEX(O77:Q77,,$M$3) -> 1360 | O77: =SUM('I_Asset number input'!K77:O77) -> 1360 | P77: 2144 | Q77: 6458.510197
B78: 6.5 | C78: Capital - Bracket | D78: 22.45163532 | E78: 23.08023197 | F78: 23.72642795 | G78: 24.390716 | H78: 25.07360267 | J78: Bracket | K78: Minor (Cat P) | L78: Legacy Bracket - Minor (Cat P) road - Long | M78: =INDEX(O78:Q78,,$M$3) -> 190 | O78: =SUM('I_Asset number input'!K78:O78) -> 190 | P78: 312 | Q78: 902.2918658
B79: 7.0 | C79: Capital - Bracket | D79: 22.45163532 | E79: 23.08023197 | F79: 23.72642795 | G79: 24.390716 | H79: 25.07360267 | J79: Bracket | K79: Minor (Cat P) | L79: Legacy Bracket - Minor (Cat P) road - Long | M79: =INDEX(O79:Q79,,$M$3) -> 120 | O79: =SUM('I_Asset number input'!K79:O79) -> 120 | P79: 200 | Q79: 569.8685468
B80: 8.0 | C80: =C79 -> Capital - Bracket | D80: 22.45163532 | E80: 23.08023197 | F80: 23.72642795 | G80: 24.390716 | H80: 25.07360267 | J80: Bracket | K80: Minor (Cat P) | L80: Legacy Bracket - Minor (Cat P) road - Long | M80: =INDEX(O80:Q80,,$M$3) -> 10 | O80: =SUM('I_Asset number input'!K80:O80) -> 10 | P80: 16 | Q80: 47.48904557
B81: C4 | C81: Capital - Bracket | D81: 10.34771717 | E81: 10.63743061 | F81: 10.93525538 | G81: 11.2414186 | H81: 11.55615372 | J81: Bracket | K81: Major (Cat V) | L81: Legacy Bracket - Major (Cat V) road - Short | M81: =INDEX(O81:Q81,,$M$3) -> 270 | O81: =SUM('I_Asset number input'!K81:O81) -> 270 | P81: 432 | Q81: 590.9541352
B82: T1 | C82: Capital - Bracket | D82: 9.514326746 | E82: 9.780707071 | F82: 10.05454546 | G82: 10.33605073 | H82: 10.62543753 | J82: Bracket | K82: Major (Cat V) | L82: Legacy Bracket - Major (Cat V) road - Short | M82: =INDEX(O82:Q82,,$M$3) -> 10485 | O82: =SUM('I_Asset number input'!K82:O82) -> 10485 | P82: 14688 | Q82: 21100.46172
B83: T2 | C83: Capital - Bracket | D83: 15.22900397 | E83: 15.65538275 | F83: 16.0936992 | G83: 16.54428755 | H83: 17.00749139 | J83: Bracket | K83: Major (Cat V) | L83: Legacy Bracket - Major (Cat V) road - Short | M83: =INDEX(O83:Q83,,$M$3) -> 3660 | O83: =SUM('I_Asset number input'!K83:O83) -> 3660 | P83: 5848 | Q83: 11789.57222
B84: T2A | C84: Capital - Bracket | D84: 15.22900397 | E84: 15.65538275 | F84: 16.0936992 | G84: 16.54428755 | H84: 17.00749139 | J84: Bracket | K84: Major (Cat V) | L84: Legacy Bracket - Major (Cat V) road - Short | M84: =INDEX(O84:Q84,,$M$3) -> 1905 | O84: =SUM('I_Asset number input'!K84:O84) -> 1905 | P84: 2584 | Q84: 6136.375703
B85: T3 | C85: Capital - Bracket | D85: 22.104475 | E85: 22.72335192 | F85: 23.35955604 | G85: 24.01357248 | H85: 24.68589996 | J85: Bracket | K85: Major (Cat V) | L85: Legacy Bracket - Major (Cat V) road - Medium | M85: =INDEX(O85:Q85,,$M$3) -> 3160 | O85: =SUM('I_Asset number input'!K85:O85) -> 3160 | P85: 5064 | Q85: 14774.49852
B86: T3A | C86: Capital - Bracket | D86: 22.104475 | E86: 22.72335192 | F86: 23.35955604 | G86: 24.01357248 | H86: 24.68589996 | J86: Bracket | K86: Major (Cat V) | L86: Legacy Bracket - Major (Cat V) road - Medium | M86: =INDEX(O86:Q86,,$M$3) -> 1550 | O86: =SUM('I_Asset number input'!K86:O86) -> 1550 | P86: 2120 | Q86: 7246.985036
B87: T4 | C87: Capital - Bracket | D87: 22.104475 | E87: 22.72335192 | F87: 23.35955604 | G87: 24.01357248 | H87: 24.68589996 | J87: Bracket | K87: Major (Cat V) | L87: Legacy Bracket - Major (Cat V) road - Medium | M87: =INDEX(O87:Q87,,$M$3) -> 2270 | O87: =SUM('I_Asset number input'!K87:O87) -> 2270 | P87: 3656 | Q87: 10613.32647
B88: T5 | C88: Capital - Bracket | D88: 22.104475 | E88: 22.72335192 | F88: 23.35955604 | G88: 24.01357248 | H88: 24.68589996 | J88: Bracket | K88: Major (Cat V) | L88: Legacy Bracket - Major (Cat V) road - Medium | M88: =INDEX(O88:Q88,,$M$3) -> 395 | O88: =SUM('I_Asset number input'!K88:O88) -> 395 | P88: 624 | Q88: 1846.812316
B89: T6 | C89: Capital - Bracket | D89: 22.104475 | E89: 22.72335192 | F89: 23.35955604 | G89: 24.01357248 | H89: 24.68589996 | J89: Bracket | K89: Major (Cat V) | L89: Legacy Bracket - Major (Cat V) road - Medium | M89: =INDEX(O89:Q89,,$M$3) -> 2525 | O89: =SUM('I_Asset number input'!K89:O89) -> 2525 | P89: 3896 | Q89: 11805.5724
B90: T7 | C90: Capital - Bracket | D90: 32.0753962 | E90: 32.97343709 | F90: 33.89662116 | G90: 34.84565236 | H90: 35.82125436 | J90: Bracket | K90: Major (Cat V) | L90: Legacy Bracket - Major (Cat V) road - Long | M90: =INDEX(O90:Q90,,$M$3) -> 1380 | O90: =SUM('I_Asset number input'!K90:O90) -> 1380 | P90: 2104 | Q90: 9362.602337
B91: Bracket - Minor Road (Cat P) - Short | C91: Capital - Bracket | D91: 9.587446265 | E91: 9.855873776 | F91: 10.13181667 | G91: 10.41548536 | H91: 10.70709615 | J91: Bracket | K91: Minor (Cat P) | L91: Bracket - Minor Road (Cat P) - Short | M91: =INDEX(O91:Q91,,$M$3) -> 10333.2 | O91: =SUM('I_Asset number input'!K91:O91) -> 10333.2 | Q91: 20954.78648
B92: Bracket - Minor Road (Cat P) - Medium | C92: Capital - Bracket | D92: 15.25652296 | E92: 15.68367221 | F92: 16.12278071 | G92: 16.57418328 | H92: 17.03822413 | J92: Bracket | K92: Minor (Cat P) | L92: Bracket - Minor Road (Cat P) - Medium | M92: =INDEX(O92:Q92,,$M$3) -> 0 | O92: =SUM('I_Asset number input'!K92:O92) -> 0 | Q92: 0
B93: Bracket - Major Road (Cat V) - Short | C93: Capital - Bracket | D93: 12.44095894 | E93: 12.78927856 | F93: 13.14735036 | G93: 13.5154474 | H93: 13.89385034 | J93: Bracket | K93: Major (Cat V) | L93: Bracket - Major Road (Cat V) - Short | M93: =INDEX(O93:Q93,,$M$3) -> 2583.3 | O93: =SUM('I_Asset number input'!K93:O93) -> 2583.3 | Q93: 6797.890462
B94: Bracket - Major Road (Cat V) - Medium | C94: Capital - Bracket | D94: 22.60936607 | E94: 23.24237883 | F94: 23.89311457 | G94: 24.56206948 | H94: 25.24975367 | J94: Bracket | K94: Major (Cat V) | L94: Bracket - Major Road (Cat V) - Medium | M94: =INDEX(O94:Q94,,$M$3) -> 0 | O94: =SUM('I_Asset number input'!K94:O94) -> 0 | Q94: 0
B95: Bracket - Major Road (Cat V) - Long | C95: Capital - Bracket | D95: 28.19695295 | E95: 28.98640592 | F95: 29.79796184 | G95: 30.63223956 | H95: 31.48987522 | J95: Bracket | K95: Major (Cat V) | L95: Bracket - Major Road (Cat V) - Long | M95: =INDEX(O95:Q95,,$M$3) -> 0 | O95: =SUM('I_Asset number input'!K95:O95) -> 0 | Q95: 0
B96: 1000W SON | C96: Capital - Traditional Luminaire | D96: 107.1368881 | E96: 110.1364865 | F96: 113.220067 | G96: 116.3899811 | H96: 119.6486458 | J96: Traditional | K96: Major (Cat V) | L96: Legacy Luminaire - 1000W SON | M96: =INDEX(O96:Q96,,$M$3) -> 32.5 | O96: =SUM('I_Asset number input'!K96:O96) -> 32.5 | P96: 64 | Q96: 736.4916891
B97: 1000W SON FLOODLIGHT | C97: Capital - Traditional Luminaire | D97: 87.60816005 | E97: 90.06099678 | F97: 92.58250757 | G97: 95.17461515 | H97: 97.83929606 | J97: Traditional | K97: Major (Cat V) | L97: Legacy Luminaire - 1000W SON FLOODLIGHT | M97: =INDEX(O97:Q97,,$M$3) -> 7.5 | O97: =SUM('I_Asset number input'!K97:O97) -> 7.5 | P97: 24 | Q97: 138.9796727
B98: 1000W/1500W MBI FLOODLIG | C98: Capital - Traditional Luminaire | D98: 118.7688164 | E98: 122.0940833 | F98: 125.5124504 | G98: 129.0265243 | H98: 132.6389846 | J98: Traditional | K98: Major (Cat V) | L98: Legacy Luminaire - 1000W/1500W MBI FLOODLIG | M98: =INDEX(O98:Q98,,$M$3) -> 12.5 | O98: =SUM('I_Asset number input'!K98:O98) -> 12.5 | P98: 40 | Q98: 314.0204296
B99: 100W MBI | C99: Capital - Traditional Luminaire | D99: 40.05251779 | E99: 41.17390063 | F99: 42.32667972 | G99: 43.51173412 | H99: 44.72996744 | J99: Traditional | K99: Major (Cat V) | L99: Legacy Luminaire - 100W MBI | M99: =INDEX(O99:Q99,,$M$3) -> 0 | O99: =SUM('I_Asset number input'!K99:O99) -> 0 | P99: 80 | Q99: 0
B100: 100W MBI FLOODLIGHT | C100: Capital - Traditional Luminaire | D100: 43.41298073 | E100: 44.62844918 | F100: 45.87794807 | G100: 47.16243021 | H100: 48.48287503 | J100: Traditional | K100: Major (Cat V) | L100: Legacy Luminaire - 100W MBI FLOODLIGHT | M100: =INDEX(O100:Q100,,$M$3) -> 7.5 | O100: =SUM('I_Asset number input'!K100:O100) -> 7.5 | P100: 32 | Q100: 68.86940497
B101: 100W SON | C101: Capital - Traditional Luminaire | D101: 42.67517755 | E101: 43.86998912 | F101: 45.09825279 | G101: 46.36090516 | H101: 47.65890904 | J101: Traditional | K101: Major (Cat V) | L101: Legacy Luminaire - 100W SON | M101: =INDEX(O101:Q101,,$M$3) -> 223.3333333 | O101: =SUM('I_Asset number input'!K101:O101) -> 223.3333333 | P101: 3040 | Q101: 2015.924887
B102: 100W SON - PLAIN | C102: Capital - Traditional Luminaire | D102: 42.67517755 | E102: 43.86998912 | F102: 45.09825279 | G102: 46.36090516 | H102: 47.65890904 | J102: Traditional | K102: Major (Cat V) | L102: Legacy Luminaire - 100W SON - PLAIN | M102: =INDEX(O102:Q102,,$M$3) -> 84.66666667 | O102: =SUM('I_Asset number input'!K102:O102) -> 84.66666667 | P102: 1016 | Q102: 764.2461513
B103: 100W SON FLOODLIGHT | C103: Capital - Traditional Luminaire | D103: 62.86293292 | E103: 64.62295745 | F103: 66.43225882 | G103: 68.29221667 | H103: 70.20424926 | J103: Traditional | K103: Major (Cat V) | L103: Legacy Luminaire - 100W SON FLOODLIGHT | M103: =INDEX(O103:Q103,,$M$3) -> 5 | O103: =SUM('I_Asset number input'!K103:O103) -> 5 | P103: 16 | Q103: 66.48292303
B104: 125W MBF | C104: Capital - Traditional Luminaire | D104: 25.86218141 | E104: 26.58626588 | F104: 27.33062314 | G104: 28.09582076 | H104: 28.88244225 | J104: Traditional | K104: Minor (Cat P) | L104: Legacy Luminaire - 125W MBF | M104: =INDEX(O104:Q104,,$M$3) -> 0 | O104: =SUM('I_Asset number input'!K104:O104) -> 0 | P104: 1896 | Q104: 0
B105: 125W MBF - BOURKE HILL | C105: Capital - Traditional Luminaire | D105: 80.39429076 | E105: 82.64515494 | F105: 84.95903839 | G105: 87.33770552 | H105: 89.78297011 | J105: Traditional | K105: Minor (Cat P) | L105: Legacy Luminaire - 125W MBF - BOURKE HILL | M105: =INDEX(O105:Q105,,$M$3) -> 72.5 | O105: =SUM('I_Asset number input'!K105:O105) -> 72.5 | P105: 16 | Q105: 1232.845563
B106: 125W MBF - PARKVILLE | C106: Capital - Traditional Luminaire | D106: 101.275658 | E106: 104.1111547 | F106: 107.0260392 | G106: 110.0225341 | H106: 113.1029242 | J106: Traditional | K106: Minor (Cat P) | L106: Legacy Luminaire - 125W MBF - PARKVILLE | M106: =INDEX(O106:Q106,,$M$3) -> 20 | O106: =SUM('I_Asset number input'!K106:O106) -> 20 | P106: 32 | Q106: 428.4306481
B107: 125W MBF - PLAIN | C107: Capital - Traditional Luminaire | D107: 25.86218141 | E107: 26.58626588 | F107: 27.33062314 | G107: 28.09582076 | H107: 28.88244225 | J107: Traditional | K107: Minor (Cat P) | L107: Legacy Luminaire - 125W MBF - PLAIN | M107: =INDEX(O107:Q107,,$M$3) -> 915 | O107: =SUM('I_Asset number input'!K107:O107) -> 915 | P107: 1528 | Q107: 5005.318404
B108: 125W/250W MBF FLOODLIGHT | C108: Capital - Traditional Luminaire | D108: 35.78669099 | E108: 36.78864001 | F108: 37.81864141 | G108: 38.8774806 | H108: 39.96596496 | J108: Traditional | K108: Minor (Cat P) | L108: Legacy Luminaire - 125W/250W MBF FLOODLIGHT | M108: =INDEX(O108:Q108,,$M$3) -> 25 | O108: =SUM('I_Asset number input'!K108:O108) -> 25 | P108: 72 | Q108: 189.237418
B109: 150W SON | C109: Capital - Traditional Luminaire | D109: 43.05945004 | E109: 44.2650204 | F109: 45.50434409 | G109: 46.77836612 | H109: 48.08805799 | J109: Traditional | K109: Major (Cat V) | L109: Legacy Luminaire - 150W SON | M109: =INDEX(O109:Q109,,$M$3) -> 5170 | O109: =SUM('I_Asset number input'!K109:O109) -> 5170 | P109: 60400 | Q109: 47087.37535
B110: 150W SON - PARKVILLE | C110: Capital - Traditional Luminaire | D110: 116.7321722 | E110: 120.0004176 | F110: 123.3601666 | G110: 126.8139813 | H110: 130.3644952 | J110: Traditional | K110: Major (Cat V) | L110: Legacy Luminaire - 150W SON - PARKVILLE | M110: =INDEX(O110:Q110,,$M$3) -> 75 | O110: =SUM('I_Asset number input'!K110:O110) -> 75 | P110: 112 | Q110: 1851.813698
B111: 150W SON - PARKWAY 1 | C111: Capital - Traditional Luminaire | D111: 51.41737675 | E111: 52.85695076 | F111: 54.33682969 | G111: 55.85814199 | H111: 57.42204771 | J111: Traditional | K111: Major (Cat V) | L111: Legacy Luminaire - 150W SON - PARKWAY 1 | M111: =INDEX(O111:Q111,,$M$3) -> 37.33333333 | O111: =SUM('I_Asset number input'!K111:O111) -> 37.33333333 | P111: 424 | Q111: 406.0244114
B112: 150W SON ACTIVE REACTOR | C112: Capital - Traditional Luminaire | D112: 63.42589212 | E112: 65.20167828 | F112: 67.02718256 | G112: 68.90379697 | H112: 70.83295248 | J112: Traditional | K112: Major (Cat V) | L112: Legacy Luminaire - 150W SON ACTIVE REACTOR | M112: =INDEX(O112:Q112,,$M$3) -> 1924.666667 | O112: =SUM('I_Asset number input'!K112:O112) -> 1924.666667 | P112: 21016 | Q112: 25820.6738
B113: 150W SON FLOODLIGHT | C113: Capital - Traditional Luminaire | D113: 50.45669551 | E113: 51.86937255 | F113: 53.32160146 | G113: 54.81448959 | H113: 56.34917533 | J113: Traditional | K113: Major (Cat V) | L113: Legacy Luminaire - 150W SON FLOODLIGHT | M113: =INDEX(O113:Q113,,$M$3) -> 625 | O113: =SUM('I_Asset number input'!K113:O113) -> 625 | P113: 1488 | Q113: 6670.283361
B114: 150W/250W MBI FLOODLIGHT | C114: Capital - Traditional Luminaire | D114: 77.62860343 | E114: 79.80203442 | F114: 82.03631672 | G114: 84.33315403 | H114: 86.69429776 | J114: Traditional | K114: Major (Cat V) | L114: Legacy Luminaire - 150W/250W MBI FLOODLIGHT | M114: =INDEX(O114:Q114,,$M$3) -> 100 | O114: =SUM('I_Asset number input'!K114:O114) -> 100 | P114: 288 | Q114: 1641.977625
B115: 250W MBF | C115: Capital - Traditional Luminaire | D115: 42.29090506 | E115: 43.47495784 | F115: 44.6921615 | G115: 45.9434442 | H115: 47.22976008 | J115: Traditional | K115: Major (Cat V) | L115: Legacy Luminaire - 250W MBF | M115: =INDEX(O115:Q115,,$M$3) -> 794 | O115: =SUM('I_Asset number input'!K115:O115) -> 794 | P115: 9040 | Q115: 7102.527823
B116: 250W MBF - PARKWAY 1 | C116: Capital - Traditional Luminaire | D116: 51.41737675 | E116: 52.85695076 | F116: 54.33682969 | G116: 55.85814199 | H116: 57.42204771 | J116: Traditional | K116: Major (Cat V) | L116: Legacy Luminaire - 250W MBF - PARKWAY 1 | M116: =INDEX(O116:Q116,,$M$3) -> 86 | O116: =SUM('I_Asset number input'!K116:O116) -> 86 | P116: 1032 | Q116: 935.3062333
B117: 250W SON | C117: Capital - Traditional Luminaire | D117: 43.05945004 | E117: 44.2650204 | F117: 45.50434409 | G117: 46.77836612 | H117: 48.08805799 | J117: Traditional | K117: Major (Cat V) | L117: Legacy Luminaire - 250W SON | M117: =INDEX(O117:Q117,,$M$3) -> 5995.333333 | O117: =SUM('I_Asset number input'!K117:O117) -> 5995.333333 | P117: 62872 | Q117: 54604.35416
B118: 250W SON - PARKVILLE | C118: Capital - Traditional Luminaire | D118: 126.1007356 | E118: 129.6312802 | F118: 133.2606723 | G118: 136.9916795 | H118: 140.8271466 | J118: Traditional | K118: Major (Cat V) | L118: Legacy Luminaire - 250W SON - PARKVILLE | M118: =INDEX(O118:Q118,,$M$3) -> 55 | O118: =SUM('I_Asset number input'!K118:O118) -> 55 | P118: 48 | Q118: 1466.985331
B119: 250W SON - PARKWAY 1 | C119: Capital - Traditional Luminaire | D119: 51.41737675 | E119: 52.85695076 | F119: 54.33682969 | G119: 55.85814199 | H119: 57.42204771 | J119: Traditional | K119: Major (Cat V) | L119: Legacy Luminaire - 250W SON - PARKWAY 1 | M119: =INDEX(O119:Q119,,$M$3) -> 185 | O119: =SUM('I_Asset number input'!K119:O119) -> 185 | P119: 280 | Q119: 2011.995967
B120: 250W SON ACTIVE REACTOR | C120: Capital - Traditional Luminaire | D120: 63.42589212 | E120: 65.20167828 | F120: 67.02718256 | G120: 68.90379697 | H120: 70.83295248 | J120: Traditional | K120: Major (Cat V) | L120: Legacy Luminaire - 250W SON ACTIVE REACTOR | M120: =INDEX(O120:Q120,,$M$3) -> 2546 | O120: =SUM('I_Asset number input'!K120:O120) -> 2546 | P120: 25160 | Q120: 34156.27061
B121: 250W SON FLOODLIGHT | C121: Capital - Traditional Luminaire | D121: 50.45669551 | E121: 51.86937255 | F121: 53.32160146 | G121: 54.81448959 | H121: 56.34917533 | J121: Traditional | K121: Major (Cat V) | L121: Legacy Luminaire - 250W SON FLOODLIGHT | M121: =INDEX(O121:Q121,,$M$3) -> 2652.5 | O121: =SUM('I_Asset number input'!K121:O121) -> 2652.5 | P121: 7184 | Q121: 28308.68258
B122: 250W SON GEC 'BOSTON 3' | C122: Capital - Traditional Luminaire | D122: 108.6874276 | E122: 111.7304377 | F122: 114.8586454 | G122: 118.0744361 | H122: 121.3802619 | J122: Traditional | K122: Major (Cat V) | L122: Legacy Luminaire - 250W SON GEC 'BOSTON 3' | M122: =INDEX(O122:Q122,,$M$3) -> 35 | O122: =SUM('I_Asset number input'!K122:O122) -> 35 | P122: 24 | Q122: 804.6236921
B123: 2X14W TF - T5 PIERLIGHT | C123: Capital - Traditional Luminaire | D123: 33.90788671 | E123: 34.85723332 | F123: 35.83315956 | G123: 36.8364096 | H123: 37.86774845 | J123: Traditional | K123: Minor (Cat P) | L123: Legacy Luminaire - 2X14W TF - T5 PIERLIGHT | M123: =INDEX(O123:Q123,,$M$3) -> 0 | O123: =SUM('I_Asset number input'!K123:O123) -> 0 | P123: 0 | Q123: 0
B124: 2x14W TF - T5 PIERLITE M | C124: Capital - Traditional Luminaire | D124: 33.90788671 | E124: 34.85723332 | F124: 35.83315956 | G124: 36.8364096 | H124: 37.86774845 | J124: Traditional | K124: Minor (Cat P) | L124: Legacy Luminaire - 2x14W TF - T5 PIERLITE M | M124: =INDEX(O124:Q124,,$M$3) -> 0 | O124: =SUM('I_Asset number input'!K124:O124) -> 0 | P124: 16 | Q124: 0
B125: 2x250W SON FLOODLIGHT | C125: Capital - Traditional Luminaire | D125: 71.11134197 | E125: 73.1023039 | F125: 75.14900841 | G125: 77.25301616 | H125: 79.41593153 | J125: Traditional | K125: Major (Cat V) | L125: Legacy Luminaire - 2x250W SON FLOODLIGHT | M125: =INDEX(O125:Q125,,$M$3) -> 4.666666667 | O125: =SUM('I_Asset number input'!K125:O125) -> 4.666666667 | P125: 40 | Q125: 70.1925657
B126: 2x400W SON FLOODLIGHT | C126: Capital - Traditional Luminaire | D126: 142.0883926 | E126: 146.0665566 | F126: 150.1561005 | G126: 154.3601427 | H126: 158.6818888 | J126: Traditional | K126: Major (Cat V) | L126: Legacy Luminaire - 2x400W SON FLOODLIGHT | M126: =INDEX(O126:Q126,,$M$3) -> 5.333333333 | O126: =SUM('I_Asset number input'!K126:O126) -> 5.333333333 | P126: 48 | Q126: 160.2886573
B127: 2x80W MBF - BOURKE HILL | C127: Capital - Traditional Luminaire | D127: 70.053518 | E127: 72.01486317 | F127: 74.03112172 | G127: 76.1038311 | H127: 78.2345718 | J127: Traditional | K127: Minor (Cat P) | L127: Legacy Luminaire - 2x80W MBF - BOURKE HILL | M127: =INDEX(O127:Q127,,$M$3) -> 2.666666667 | O127: =SUM('I_Asset number input'!K127:O127) -> 2.666666667 | P127: 32 | Q127: 39.51337662
B128: 400W MBF | C128: Capital - Traditional Luminaire | D128: 33.80808979 | E128: 34.75464231 | F128: 35.72769623 | G128: 36.72799353 | H128: 37.75629696 | J128: Traditional | K128: Major (Cat V) | L128: Legacy Luminaire - 400W MBF | M128: =INDEX(O128:Q128,,$M$3) -> 329.3333333 | O128: =SUM('I_Asset number input'!K128:O128) -> 329.3333333 | P128: 3800 | Q128: 2355.058963
B129: 400W MBF - B2229 | C129: Capital - Traditional Luminaire | D129: 33.80808979 | E129: 34.75464231 | F129: 35.72769623 | G129: 36.72799353 | H129: 37.75629696 | J129: Traditional | K129: Major (Cat V) | L129: Legacy Luminaire - 400W MBF - B2229 | M129: =INDEX(O129:Q129,,$M$3) -> 56.66666667 | O129: =SUM('I_Asset number input'!K129:O129) -> 56.66666667 | P129: 664 | Q129: 405.222696
B130: 400W MBF - PARKWAY 1 | C130: Capital - Traditional Luminaire | D130: 68.16719688 | E130: 70.0757292 | F130: 72.03769624 | G130: 74.05459406 | H130: 76.12796061 | J130: Traditional | K130: Major (Cat V) | L130: Legacy Luminaire - 400W MBF - PARKWAY 1 | M130: =INDEX(O130:Q130,,$M$3) -> 48.66666667 | O130: =SUM('I_Asset number input'!K130:O130) -> 48.66666667 | P130: 544 | Q130: 701.7016512
B131: 400W MBF FLOODLIGHT | C131: Capital - Traditional Luminaire | D131: 74.8832713 | E131: 76.979839 | F131: 79.135106 | G131: 81.35071577 | H131: 83.62835776 | J131: Traditional | K131: Major (Cat V) | L131: Legacy Luminaire - 400W MBF FLOODLIGHT | M131: =INDEX(O131:Q131,,$M$3) -> 70 | O131: =SUM('I_Asset number input'!K131:O131) -> 70 | P131: 176 | Q131: 1108.736412
B132: 400W MBI FLOODLIGHT | C132: Capital - Traditional Luminaire | D132: 58.89147672 | E132: 60.54030917 | F132: 62.23530532 | G132: 63.97775765 | H132: 65.76899484 | J132: Traditional | K132: Major (Cat V) | L132: Legacy Luminaire - 400W MBI FLOODLIGHT | M132: =INDEX(O132:Q132,,$M$3) -> 132.5 | O132: =SUM('I_Asset number input'!K132:O132) -> 132.5 | P132: 432 | Q132: 1650.493372
B133: 400W SON | C133: Capital - Traditional Luminaire | D133: 46.80610684 | E133: 48.11657539 | F133: 49.46373418 | G133: 50.84861048 | H133: 52.27226028 | J133: Traditional | K133: Major (Cat V) | L133: Legacy Luminaire - 400W SON | M133: =INDEX(O133:Q133,,$M$3) -> 447.3333333 | O133: =SUM('I_Asset number input'!K133:O133) -> 447.3333333 | P133: 3952 | Q133: 4428.730392
B134: 400W SON - PARKWAY 1 | C134: Capital - Traditional Luminaire | D134: 51.41737675 | E134: 52.85695076 | F134: 54.33682969 | G134: 55.85814199 | H134: 57.42204771 | J134: Traditional | K134: Major (Cat V) | L134: Legacy Luminaire - 400W SON - PARKWAY 1 | M134: =INDEX(O134:Q134,,$M$3) -> 3.333333333 | O134: =SUM('I_Asset number input'!K134:O134) -> 3.333333333 | P134: 40 | Q134: =+O134/5*AVERAGE(D134,E134,F134,G134,H134) -> 36.25217959
B135: 400W SON ACTIVE REACTOR | C135: Capital - Traditional Luminaire | D135: 71.11134197 | E135: 73.1023039 | F135: 75.14900841 | G135: 77.25301616 | H135: 79.41593153 | J135: Traditional | K135: Major (Cat V) | L135: Legacy Luminaire - 400W SON ACTIVE REACTOR | M135: =INDEX(O135:Q135,,$M$3) -> 268.6666667 | O135: =SUM('I_Asset number input'!K135:O135) -> 268.6666667 | P135: 1528 | Q135: 4041.086282
B136: 400W SON FLOODLIGHT | C136: Capital - Traditional Luminaire | D136: 50.45669551 | E136: 51.86937255 | F136: 53.32160146 | G136: 54.81448959 | H136: 56.34917533 | J136: Traditional | K136: Major (Cat V) | L136: Legacy Luminaire - 400W SON FLOODLIGHT | M136: =INDEX(O136:Q136,,$M$3) -> 877.5 | O136: =SUM('I_Asset number input'!K136:O136) -> 877.5 | P136: 2248 | Q136: 9365.077839
B137: 42W MBF SYLVANIA SUB ECO | C137: Capital - Traditional Luminaire | D137: 31.14592817 | E137: 32.01794599 | F137: 32.9143784 | G137: 33.83590896 | H137: 34.78324035 | J137: Traditional | K137: Minor (Cat P) | L137: Legacy Luminaire - 42W MBF SYLVANIA SUB ECO | M137: =INDEX(O137:Q137,,$M$3) -> 0 | O137: =SUM('I_Asset number input'!K137:O137) -> 0 | P137: 193272 | Q137: 0
B138: 4x250W SON | C138: Capital - Traditional Luminaire | D138: 80.07257648 | E138: 82.31443337 | F138: 84.61905734 | G138: 86.98820573 | H138: 89.4236851 | J138: Traditional | K138: Major (Cat V) | L138: Legacy Luminaire - 4x250W SON | M138: =INDEX(O138:Q138,,$M$3) -> 0 | O138: =SUM('I_Asset number input'!K138:O138) -> 0 | P138: 0 | Q138: 0
B139: 4x600W SON | C139: Capital - Traditional Luminaire | D139: 122.0274472 | E139: 125.4439486 | F139: 128.9561046 | G139: 132.5665933 | H139: 136.2781677 | J139: Traditional | K139: Major (Cat V) | L139: Legacy Luminaire - 4x600W SON | M139: =INDEX(O139:Q139,,$M$3) -> 7.5 | O139: =SUM('I_Asset number input'!K139:O139) -> 7.5 | P139: 24 | Q139: 193.5816784
B140: 50W MBF | C140: Capital - Traditional Luminaire | D140: 23.46047833 | E140: 24.11732038 | F140: 24.79255256 | G140: 25.48668977 | H140: 26.2002613 | J140: Traditional | K140: Minor (Cat P) | L140: Legacy Luminaire - 50W MBF | M140: =INDEX(O140:Q140,,$M$3) -> 0 | O140: =SUM('I_Asset number input'!K140:O140) -> 0 | P140: 1208 | Q140: 0
B141: 50W MBF - BOURKE HILL | C141: Capital - Traditional Luminaire | D141: 70.053518 | E141: 72.01486317 | F141: 74.03112172 | G141: 76.1038311 | H141: 78.2345718 | J141: Traditional | K141: Minor (Cat P) | L141: Legacy Luminaire - 50W MBF - BOURKE HILL | M141: =INDEX(O141:Q141,,$M$3) -> 40 | O141: =SUM('I_Asset number input'!K141:O141) -> 40 | P141: 8 | Q141: 592.7006493
B142: 50W MBF - NOSTALGIA | C142: Capital - Traditional Luminaire | D142: 70.053518 | E142: 72.01486317 | F142: 74.03112172 | G142: 76.1038311 | H142: 78.2345718 | J142: Traditional | K142: Minor (Cat P) | L142: Legacy Luminaire - 50W MBF - NOSTALGIA | M142: =INDEX(O142:Q142,,$M$3) -> 0 | O142: =SUM('I_Asset number input'!K142:O142) -> 0 | P142: 392 | Q142: 0
B143: 50W MBF - PLAIN | C143: Capital - Traditional Luminaire | D143: 23.46047833 | E143: 24.11732038 | F143: 24.79255256 | G143: 25.48668977 | H143: 26.2002613 | J143: Traditional | K143: Minor (Cat P) | L143: Legacy Luminaire - 50W MBF - PLAIN | M143: =INDEX(O143:Q143,,$M$3) -> 290 | O143: =SUM('I_Asset number input'!K143:O143) -> 290 | P143: 536 | Q143: 1439.064707
B144: 50W SON | C144: Capital - Traditional Luminaire | D144: 22.69193335 | E144: 23.32725781 | F144: 23.98036998 | G144: 24.65176785 | H144: 25.34196339 | J144: Traditional | K144: Minor (Cat P) | L144: Legacy Luminaire - 50W SON | M144: =INDEX(O144:Q144,,$M$3) -> 0 | O144: =SUM('I_Asset number input'!K144:O144) -> 0 | P144: 16 | Q144: 0
B145: 50W SON - NOSTALGIA | C145: Capital - Traditional Luminaire | D145: 35.46899371 | E145: 36.4620479 | F145: 37.48290544 | G145: 38.53234475 | H145: 39.61116607 | J145: Traditional | K145: Minor (Cat P) | L145: Legacy Luminaire - 50W SON - NOSTALGIA | M145: =INDEX(O145:Q145,,$M$3) -> 0 | O145: =SUM('I_Asset number input'!K145:O145) -> 0 | P145: 16 | Q145: 0
B146: 50W SON - PLAIN | C146: Capital - Traditional Luminaire | D146: 22.69193335 | E146: 23.32725781 | F146: 23.98036998 | G146: 24.65176785 | H146: 25.34196339 | J146: Traditional | K146: Minor (Cat P) | L146: Legacy Luminaire - 50W SON - PLAIN | M146: =INDEX(O146:Q146,,$M$3) -> 0 | O146: =SUM('I_Asset number input'!K146:O146) -> 0 | P146: 8 | Q146: 0
B147: 70W MBI | C147: =C146 -> Capital - Traditional Luminaire | D147: 29.37635335 | E147: 30.19882694 | F147: 31.044328 | G147: 31.91350124 | H147: 32.80700942 | J147: Traditional | K147: Minor (Cat P) | L147: Legacy Luminaire - 70W MBI | M147: =INDEX(O147:Q147,,$M$3) -> 0 | O147: =SUM('I_Asset number input'!K147:O147) -> 0 | P147: 384 | Q147: 0
B148: 70W MBI - MACQUARIE DEC. | C148: Capital - Traditional Luminaire | D148: 113.897088 | E148: 117.0859572 | F148: 120.3641077 | G148: 123.7340393 | H148: 127.1983215 | J148: Traditional | K148: Minor (Cat P) | L148: Legacy Luminaire - 70W MBI - MACQUARIE DEC. | M148: =INDEX(O148:Q148,,$M$3) -> 25 | O148: =SUM('I_Asset number input'!K148:O148) -> 25 | P148: 48 | Q148: 602.2795136
B149: 70W MBI II | C149: Capital - Traditional Luminaire | D149: 25.86218141 | E149: 26.58626588 | F149: 27.33062314 | G149: 28.09582076 | H149: 28.88244225 | J149: Traditional | K149: Minor (Cat P) | L149: Legacy Luminaire - 70W MBI II | M149: =INDEX(O149:Q149,,$M$3) -> 0 | O149: =SUM('I_Asset number input'!K149:O149) -> 0 | P149: 520 | Q149: 0
B150: 70W MBI II AERO | C150: Capital - Traditional Luminaire | D150: 26.82286264 | E150: 27.57384408 | F150: 28.34585137 | G150: 29.13947316 | H150: 29.95531463 | J150: Traditional | K150: Minor (Cat P) | L150: Legacy Luminaire - 70W MBI II AERO | M150: =INDEX(O150:Q150,,$M$3) -> 0 | O150: =SUM('I_Asset number input'!K150:O150) -> 0 | P150: 24 | Q150: 0
B151: 70W SON | C151: Capital - Traditional Luminaire | D151: 25.76611328 | E151: 26.48750806 | F151: 27.22910031 | G151: 27.99145552 | H151: 28.77515501 | J151: Traditional | K151: Minor (Cat P) | L151: Legacy Luminaire - 70W SON | M151: =INDEX(O151:Q151,,$M$3) -> 0 | O151: =SUM('I_Asset number input'!K151:O151) -> 0 | P151: 1144 | Q151: 0
B152: 70W SON - BOURKE HILL | C152: Capital - Traditional Luminaire | D152: 78.35764655 | E152: 80.55148915 | F152: 82.80675454 | G152: 85.12516243 | H152: 87.50848066 | J152: Traditional | K152: Minor (Cat P) | L152: Legacy Luminaire - 70W SON - BOURKE HILL | M152: =INDEX(O152:Q152,,$M$3) -> 5 | O152: =SUM('I_Asset number input'!K152:O152) -> 5 | P152: 16 | Q152: 82.86990667
B153: 70W SON - NOSTALGIA | C153: Capital - Traditional Luminaire | D153: 73.06237161 | E153: 75.1079581 | F153: 77.21081654 | G153: 79.37255041 | H153: 81.5948081 | J153: Traditional | K153: Minor (Cat P) | L153: Legacy Luminaire - 70W SON - NOSTALGIA | M153: =INDEX(O153:Q153,,$M$3) -> 345 | O153: =SUM('I_Asset number input'!K153:O153) -> 345 | P153: 480 | Q153: 5331.609366
B154: 70W SON - PARKVILLE | C154: Capital - Traditional Luminaire | D154: 91.66884568 | E154: 94.23537272 | F154: 96.8737569 | G154: 99.58601006 | H154: 102.3742004 | J154: Traditional | K154: Minor (Cat P) | L154: Legacy Luminaire - 70W SON - PARKVILLE | M154: =INDEX(O154:Q154,,$M$3) -> 30 | O154: =SUM('I_Asset number input'!K154:O154) -> 30 | P154: 40 | Q154: 581.6858229
B155: 70W SON - PLAIN | C155: Capital - Traditional Luminaire | D155: 25.76611328 | E155: 26.48750806 | F155: 27.22910031 | G155: 27.99145552 | H155: 28.77515501 | J155: Traditional | K155: Minor (Cat P) | L155: Legacy Luminaire - 70W SON - PLAIN | M155: =INDEX(O155:Q155,,$M$3) -> 160 | O155: =SUM('I_Asset number input'!K155:O155) -> 160 | P155: 272 | Q155: 871.9957261
B156: 70W SON BOLLARD | C156: Capital - Traditional Luminaire | D156: 55.75089584 | E156: 57.3117989 | F156: 58.91640383 | G156: 60.56593419 | H156: 62.26164778 | J156: Traditional | K156: Minor (Cat P) | L156: Legacy Luminaire - 70W SON BOLLARD | M156: =INDEX(O156:Q156,,$M$3) -> 5 | O156: =SUM('I_Asset number input'!K156:O156) -> 5 | P156: 8 | Q156: 58.96133611
B157: 70W SON FLOODLIGHT | C157: Capital - Traditional Luminaire | D157: 31.09222609 | E157: 31.96274037 | F157: 32.85762714 | G157: 33.77756879 | H157: 34.72326678 | J157: Traditional | K157: Minor (Cat P) | L157: Legacy Luminaire - 70W SON FLOODLIGHT | M157: =INDEX(O157:Q157,,$M$3) -> 52.5 | O157: =SUM('I_Asset number input'!K157:O157) -> 52.5 | P157: 168 | Q157: 345.2682013
B158: 80W MBF - BEGA+CURVE BRA | C158: Capital - Traditional Luminaire | D158: 114.5080812 | E158: 117.7140569 | F158: 121.0097928 | G158: 124.3978022 | H158: 127.8806684 | J158: Traditional | K158: Minor (Cat P) | L158: Legacy Luminaire - 80W MBF - BEGA+CURVE BRA | M158: =INDEX(O158:Q158,,$M$3) -> 150 | O158: =SUM('I_Asset number input'!K158:O158) -> 150 | P158: 64 | Q158: 3633.062409
B159: 80W MBF - BOURKE HILL | C159: Capital - Traditional Luminaire | D159: 53.61241942 | E159: 55.11344982 | F159: 56.65650579 | G159: 58.24276395 | H159: 59.87343386 | J159: Traditional | K159: Minor (Cat P) | L159: Legacy Luminaire - 80W MBF - BOURKE HILL | M159: =INDEX(O159:Q159,,$M$3) -> 1445 | O159: =SUM('I_Asset number input'!K159:O159) -> 1445 | P159: 1744 | Q159: 16386.21751
B160: 80W MBF - NOSTALGIA | C160: Capital - Traditional Luminaire | D160: 68.88725098 | E160: 70.81594324 | F160: 72.79863465 | G160: 74.83683709 | H160: 76.93210473 | J160: Traditional | K160: Minor (Cat P) | L160: Legacy Luminaire - 80W MBF - NOSTALGIA | M160: =INDEX(O160:Q160,,$M$3) -> 0 | O160: =SUM('I_Asset number input'!K160:O160) -> 0 | P160: 760 | Q160: 0
B161: 80W MBF - PLAIN | C161: Capital - Traditional Luminaire | D161: 22.36530173 | E161: 22.99148123 | F161: 23.63519238 | G161: 24.29692603 | H161: 24.97718678 | J161: Traditional | K161: Minor (Cat P) | L161: Legacy Luminaire - 80W MBF - PLAIN | M161: =INDEX(O161:Q161,,$M$3) -> 815 | O161: =SUM('I_Asset number input'!K161:O161) -> 815 | P161: 12048 | Q161: 3855.474474
B162: 80W MBF - REGAL/FLINDERS | C162: Capital - Traditional Luminaire | D162: 124.7931345 | E162: 128.2870691 | F162: 131.8788263 | G162: 135.5711448 | H162: 139.3668401 | J162: Traditional | K162: Minor (Cat P) | L162: Legacy Luminaire - 80W MBF - REGAL/FLINDERS | M162: =INDEX(O162:Q162,,$M$3) -> 85 | O162: =SUM('I_Asset number input'!K162:O162) -> 85 | P162: 112 | Q162: 2243.64985
B163: 80W MBF BOLLARD | C163: Capital - Traditional Luminaire | D163: 44.34568828 | E163: 45.58727049 | F163: 46.86361428 | G163: 48.17569291 | H163: 49.52450687 | J163: Traditional | K163: Minor (Cat P) | L163: Legacy Luminaire - 80W MBF BOLLARD | M163: =INDEX(O163:Q163,,$M$3) -> 215 | O163: =SUM('I_Asset number input'!K163:O163) -> 215 | P163: 32 | Q163: 2016.672246
B164: 80W MBF TOORAK | C164: Capital - Traditional Luminaire | D164: 62.84840877 | E164: 64.60802666 | F164: 66.41691 | G164: 68.27643811 | H164: 70.18802894 | J164: Traditional | K164: Minor (Cat P) | L164: Legacy Luminaire - 80W MBF TOORAK | M164: =INDEX(O164:Q164,,$M$3) -> 330 | O164: =SUM('I_Asset number input'!K164:O164) -> 330 | P164: 104 | Q164: 4386.859125
B165: TH FLOODLIGHT | C165: Capital - Traditional Luminaire | D165: 127.9337154 | E165: 131.5155794 | F165: 135.1977278 | G165: 138.9829682 | H165: 142.8741871 | J165: Traditional | K165: Major (Cat V) | L165: Legacy Luminaire - TH FLOODLIGHT | M165: =INDEX(O165:Q165,,$M$3) -> 27.5 | O165: =SUM('I_Asset number input'!K165:O165) -> 27.5 | P165: 88 | Q165: 744.1545957
B166: 10W LED PH RRW | C166: Capital - LED Luminaire | D166: 54.50021094 | E166: 56.02609756 | F166: 57.59470567 | G166: 59.20723137 | H166: 60.86490426 | J166: LED | K166: Minor (Cat P) | L166: Philips minor road RRW | M166: =INDEX(O166:Q166,,$M$3) -> 5 | O166: =SUM('I_Asset number input'!K166:O166) -> 5 | P166: 0 | Q166: 57.63862996
B167: 16W LED PH | C167: Capital - LED Luminaire | D167: 54.65057266 | E167: 56.18066908 | F167: 57.75360486 | G167: 59.37057938 | H167: 61.03282566 | J167: LED | K167: Minor (Cat P) | L167: Philips minor road | M167: =INDEX(O167:Q167,,$M$3) -> 985 | O167: =SUM('I_Asset number input'!K167:O167) -> 985 | P167: 896 | Q167: 11386.13712
B168: 17W LED ALD | C168: Capital - LED Luminaire | D168: 50.67500875 | E168: 52.09379808 | F168: 53.55231041 | G168: 55.05165789 | H168: 56.59298382 | J168: LED | K168: Minor (Cat P) | L168: Aldridge minor road | M168: =INDEX(O168:Q168,,$M$3) -> 60485 | O168: =SUM('I_Asset number input'!K168:O168) -> 60485 | P168: 204624 | Q168: 648316.3572
B169: 17W LED ALD RRW | C169: Capital - LED Luminaire | D169: 50.67500875 | E169: 52.09379808 | F169: 53.55231041 | G169: 55.05165789 | H169: 56.59298382 | J169: LED | K169: Minor (Cat P) | L169: Aldridge minor road RRW | M169: =INDEX(O169:Q169,,$M$3) -> 3525 | O169: =SUM('I_Asset number input'!K169:O169) -> 3525 | P169: 4856 | Q169: 37783.17201
B170: 17W LED ALD RRW ZHAGA | C170: Capital - LED Luminaire | D170: 53.37249803 | E170: 54.86681116 | F170: 56.40296178 | G170: 57.98212126 | H170: 59.60549375 | J170: LED | K170: Minor (Cat P) | L170: Aldridge minor road RRW ZHAGA | M170: =INDEX(O170:Q170,,$M$3) -> 3480 | O170: =SUM('I_Asset number input'!K170:O170) -> 3480 | P170: 0 | Q170: 39286.40013
B171: 17W LED ALD ZHAGA | C171: Capital - LED Luminaire | D171: 53.37249803 | E171: 54.86681116 | F171: 56.40296178 | G171: 57.98212126 | H171: 59.60549375 | J171: LED | K171: Minor (Cat P) | L171: Aldridge minor road ZHAGA | M171: =INDEX(O171:Q171,,$M$3) -> 195465 | O171: =SUM('I_Asset number input'!K171:O171) -> 195465 | P171: 0 | Q171: 2206642.587
B172: 17W LED SY RRW | C172: Capital - LED Luminaire | D172: 66.57337351 | E172: 68.43728226 | F172: 70.35337637 | G172: 72.32311693 | H172: 74.34800591 | J172: LED | K172: Minor (Cat P) | L172: 17W LED SY RRW | M172: =INDEX(O172:Q172,,$M$3) -> 12565 | O172: =SUM('I_Asset number input'!K172:O172) -> 12565 | P172: 20088 | Q172: 176932.8689
B173: 1x17W LED | C173: Capital - LED Luminaire | D173: 62.72883059 | E173: 64.48510055 | F173: 66.29054223 | G173: 68.14653232 | H173: 70.05448607 | J173: LED | K173: Minor (Cat P) | L173: 1x17W LED | M173: =INDEX(O173:Q173,,$M$3) -> 95490.13909 | O173: =SUM('I_Asset number input'!K173:O173) -> 95490.13909 | P173: 45040 | Q173: 1266984.142
B174: 20W LED GE | C174: Capital - LED Luminaire | D174: 55.84069119 | E174: 57.40410832 | F174: 59.01129771 | G174: 60.66348489 | H174: 62.36192969 | J174: LED | K174: Minor (Cat P) | L174: 20W LED GE | M174: =INDEX(O174:Q174,,$M$3) -> 223.2292886 | O174: =SUM('I_Asset number input'!K174:O174) -> 223.2292886 | P174: 392 | Q174: 2636.619273
B175: 1x22W LED | C175: Capital - LED Luminaire | D175: 65.13166992 | E175: 66.95521412 | F175: 68.82981357 | G175: 70.7568977 | H175: 72.73793597 | J175: LED | K175: Minor (Cat P) | L175: 1x22W LED | M175: =INDEX(O175:Q175,,$M$3) -> 28375.36095 | O175: =SUM('I_Asset number input'!K175:O175) -> 28375.36095 | P175: 96776 | Q175: 390912.0606
B176: 1x25W LED GE | C176: Capital - LED Luminaire | D176: 55.84069119 | E176: 57.40410832 | F176: 59.01129771 | G176: 60.66348489 | H176: 62.36192969 | J176: LED | K176: Minor (Cat P) | L176: 1x25W LED GE | M176: =INDEX(O176:Q176,,$M$3) -> 12330.26196 | O176: =SUM('I_Asset number input'!K176:O176) -> 12330.26196 | P176: 32944 | Q176: 145635.9357
B177: 25W LED PH | C177: Capital - LED Luminaire | D177: 54.80093439 | E177: 56.3352406 | F177: 57.91250404 | G177: 59.5339274 | H177: 61.20074706 | J177: LED | K177: Minor (Cat P) | L177: Philips minor road high | M177: =INDEX(O177:Q177,,$M$3) -> 4200 | O177: =SUM('I_Asset number input'!K177:O177) -> 4200 | P177: 1840 | Q177: 48683.60339
B178: 28W LED SY | C178: Capital - LED Luminaire | D178: 69.4567807 | E178: 71.40141854 | F178: 73.40050198 | G178: 75.45555538 | H178: 77.56814578 | J178: LED | K178: Minor (Cat P) | L178: 28W LED SY | M178: =INDEX(O178:Q178,,$M$3) -> 4894.559844 | O178: =SUM('I_Asset number input'!K178:O178) -> 4894.559844 | P178: 6344 | Q178: 71907.42793
B179: 1x29W LED | C179: Capital - LED Luminaire | D179: 40.68407717 | E179: 41.82314228 | F179: 42.99409873 | G179: 44.19783939 | H179: 45.43528216 | J179: LED20 | K179: Minor (Cat P) | L179: 1x29W LED | M179: =INDEX(O179:Q179,,$M$3) -> 65825 | O179: =SUM('I_Asset number input'!K179:O179) -> 65825 | P179: 105648 | Q179: 566448.9798
B180: 33W LED LRL | C180: Capital - LED Luminaire | D180: 76.02454153 | E180: 78.15306229 | F180: 80.34117698 | G180: 82.59055409 | H180: 84.90290884 | J180: LED | K180: Minor (Cat P) | L180: 33W LED LRL | M180: =INDEX(O180:Q180,,$M$3) -> 14.5025 | O180: =SUM('I_Asset number input'!K180:O180) -> 14.5025 | P180: 24 | Q180: 233.2073026
B181: 34W LED BOURKE HILL | C181: Capital - LED Luminaire | D181: 156.1447346 | E181: 160.5164454 | F181: 165.0105546 | G181: 169.6304889 | H181: 174.3797713 | J181: LED | K181: Minor (Cat P) | L181: Bourke Hill Decorative | M181: =INDEX(O181:Q181,,$M$3) -> 235 | O181: =SUM('I_Asset number input'!K181:O181) -> 235 | P181: 328 | Q181: 7761.410752
B182: 40W LED ALD | C182: Capital - LED Luminaire | D182: 53.95573151 | E182: 55.4663739 | F182: 57.01931097 | G182: 58.61572687 | H182: 60.25683893 | J182: LED | K182: Minor (Cat P) | L182: 40W LED ALD | M182: =INDEX(O182:Q182,,$M$3) -> 15 | O182: =SUM('I_Asset number input'!K182:O182) -> 15 | P182: 0 | Q182: 171.1883893
B183: 40W LED ALD ZHAGA | C183: Capital - LED Luminaire | D183: 56.8202923 | E183: 58.41113613 | F183: 60.04652009 | G183: 61.72769123 | H183: 63.45593148 | J183: LED | K183: Minor (Cat P) | L183: 40W LED ALD ZHAGA | M183: =INDEX(O183:Q183,,$M$3) -> 0 | O183: =SUM('I_Asset number input'!K183:O183) -> 0 | P183: 0 | Q183: 0
B184: 42W LED LRL | C184: Capital - LED Luminaire | D184: 93.48177269 | E184: 96.09905772 | F184: 98.78962101 | G184: 101.5555142 | H184: 104.3988463 | J184: LED | K184: Major (Cat V) | L184: 42W LED LRL | M184: =INDEX(O184:Q184,,$M$3) -> 48.2612375 | O184: =SUM('I_Asset number input'!K184:O184) -> 48.2612375 | P184: 80 | Q184: 954.2690859
B185: 49W LED PH | C185: Capital - LED Luminaire | D185: 58.71033914 | E185: 60.35410014 | F185: 62.04388284 | G185: 63.78097577 | H185: 65.56670349 | J185: LED | K185: Minor (Cat P) | L185: Philips major road V5 | M185: =INDEX(O185:Q185,,$M$3) -> 940 | O185: =SUM('I_Asset number input'!K185:O185) -> 940 | P185: 528 | Q185: 11673.14565
B186: 49W LED PH ZHAGA | C186: Capital - LED Luminaire | D186: 66.98023382 | E186: 68.85553376 | F186: 70.783338 | G186: 72.76511654 | H186: 74.80238054 | J186: LED | K186: Minor (Cat P) | L186: Philips major road V5 ZHAGA | M186: =INDEX(O186:Q186,,$M$3) -> 4779.666667 | O186: =SUM('I_Asset number input'!K186:O186) -> 4779.666667 | P186: 0 | Q186: 67715.75594
B187: 50W LED SY PT | C187: Capital - LED Luminaire | D187: 200.8950357 | E187: 206.519657 | F187: 212.3017554 | G187: 218.2457399 | H187: 224.3561429 | J187: LED | K187: Minor (Cat P) | L187: 50W LED SY PT | M187: =INDEX(O187:Q187,,$M$3) -> 125 | O187: =SUM('I_Asset number input'!K187:O187) -> 125 | P187: 152 | Q187: 5311.591655
B188: 58W LED ALD | C188: Capital - LED Luminaire | D188: 83.20360674 | E188: 85.53312562 | F188: 87.92786593 | G188: 90.38965373 | H188: 92.92036619 | J188: LED | K188: Minor (Cat P) | L188: Aldridge major road V5 | M188: =INDEX(O188:Q188,,$M$3) -> 30 | O188: =SUM('I_Asset number input'!K188:O188) -> 30 | P188: 16 | Q188: 527.9695419
B189: 58W LED ALD ZHAGA | C189: Capital - LED Luminaire | D189: 86.20164146 | E189: 88.61509875 | F189: 91.09612756 | G189: 93.64661975 | H189: 96.26852014 | J189: LED | K189: Minor (Cat P) | L189: Aldridge major road V5 Zhaga | M189: =INDEX(O189:Q189,,$M$3) -> 0 | O189: =SUM('I_Asset number input'!K189:O189) -> 0 | P189: 0 | Q189: 0
B190: 70W LED PH FLOOD | C190: Capital - LED Luminaire | D190: 86.23099516 | E190: 88.64527429 | F190: 91.12714795 | G190: 93.67850864 | H190: 96.30130184 | J190: LED | K190: Major (Cat V) | L190: Philips floodlight PX3 | M190: =INDEX(O190:Q190,,$M$3) -> 1177.5 | O190: =SUM('I_Asset number input'!K190:O190) -> 1177.5 | P190: 40 | Q190: 21476.81003
B191: 74W LED ALD | C191: Capital - LED Luminaire | D191: 93.13194135 | E191: 95.73943187 | F191: 98.41992642 | G191: 101.1754689 | H191: 104.0081606 | J191: LED | K191: Major (Cat V) | L191: Aldridge major road V3 | M191: =INDEX(O191:Q191,,$M$3) -> 155 | O191: =SUM('I_Asset number input'!K191:O191) -> 155 | P191: 184 | Q191: 3053.344561
B192: 74W LED ALD ZHAGA | C192: Capital - LED Luminaire | D192: 96.12997607 | E192: 98.821405 | F192: 101.5881881 | G192: 104.432435 | H192: 107.3563146 | J192: LED | K192: Major (Cat V) | L192: Aldridge major road V3 ZHAGA | M192: =INDEX(O192:Q192,,$M$3) -> 5 | O192: =SUM('I_Asset number input'!K192:O192) -> 5 | P192: 0 | Q192: 101.6656637
B193: 76W LED PH | C193: Capital - LED Luminaire | D193: 69.6912058 | E193: 71.64240703 | F193: 73.64823762 | G193: 75.71022708 | H193: 77.82994773 | J193: LED | K193: Major (Cat V) | L193: Philips major road V3 | M193: =INDEX(O193:Q193,,$M$3) -> 16885 | O193: =SUM('I_Asset number input'!K193:O193) -> 16885 | P193: 19376 | Q193: 248899.7759
B194: 76W LED PH ZHAGA | C194: Capital - LED Luminaire | D194: 77.96110048 | E194: 80.14384066 | F194: 82.38769279 | G194: 84.69436786 | H194: 87.06562479 | J194: LED | K194: Major (Cat V) | L194: Philips major road V3 ZHAGA | M194: =INDEX(O194:Q194,,$M$3) -> 133207.6667 | O194: =SUM('I_Asset number input'!K194:O194) -> 133207.6667 | P194: 0 | Q194: 2196608.419
B195: 100W LED ALD | C195: Capital - LED Luminaire | D195: 125.3594411 | E195: 128.8692311 | F195: 132.4772875 | G195: 136.1863616 | H195: 139.9992816 | J195: LED | K195: Major (Cat V) | L195: 100W LED ALD | M195: =INDEX(O195:Q195,,$M$3) -> 13519.92888 | O195: =SUM('I_Asset number input'!K195:O195) -> 13519.92888 | P195: 22168 | Q195: 358489.8929
B196: 100W LED SY CT | C196: Capital - LED Luminaire | D196: 218.9798732 | E196: 225.1108303 | F196: 231.4134409 | G196: 237.8925107 | H196: 244.5529803 | J196: LED | K196: Minor (Cat P) | L196: 100W LED SY CT | M196: =INDEX(O196:Q196,,$M$3) -> 30 | O196: =SUM('I_Asset number input'!K196:O196) -> 30 | P196: 40 | Q196: 1389.539562
B197: 100W LED SY PT | C197: Capital - LED Luminaire | D197: 215.9657336 | E197: 222.0123014 | F197: 228.2281599 | G197: 234.6180489 | H197: 241.1868408 | J197: LED | K197: Minor (Cat P) | L197: 100W LED SY PT | M197: =INDEX(O197:Q197,,$M$3) -> 215 | O197: =SUM('I_Asset number input'!K197:O197) -> 215 | P197: 304 | Q197: 9821.295328
B198: 110W LED SY FLOOD | C198: Capital - LED Luminaire | D198: 128.4826389 | E198: 132.0798715 | F198: 135.7778189 | G198: 139.5793006 | H198: 143.4872155 | J198: LED | K198: Major (Cat V) | L198: Sylvania floodlight PX2 | M198: =INDEX(O198:Q198,,$M$3) -> 20 | O198: =SUM('I_Asset number input'!K198:O198) -> 20 | P198: 0 | Q198: =+O198/5*AVERAGE(D198,E198,F198,G198,H198) -> 543.5254763
B199: 120W LED PH FLOOD | C199: Capital - LED Luminaire | D199: 94.80161328 | E199: 97.45585095 | F199: 100.1844015 | G199: 102.9893454 | H199: 105.8728217 | J199: LED | K199: Major (Cat V) | L199: Philips floodlight PX2 | M199: =INDEX(O199:Q199,,$M$3) -> 130 | O199: =SUM('I_Asset number input'!K199:O199) -> 130 | P199: 112 | Q199: 2606.780971
B200: 140W LED PH | C200: Capital - LED Luminaire | D200: 74.95386605 | E200: 77.05241025 | F200: 79.20970909 | G200: 81.42740758 | H200: 83.70719677 | J200: LED | K200: Major (Cat V) | L200: Philips major road V1 | M200: =INDEX(O200:Q200,,$M$3) -> 16890 | O200: =SUM('I_Asset number input'!K200:O200) -> 16890 | P200: 19768 | Q200: 267774.4584
... 37 more rows

Sheet Weighted average price list
B1: Public lighting pricing list - weighted average price
B2: This sheet displays the proposed weighted average post 2009 annuity capital and annual maintenance charges.
C3: Nominal $
B4: Categories | C4: ='C_CAPEX Build Up'!S14 -> FY25 | D4: ='C_CAPEX Build Up'!T14 -> FY26 | E4: ='C_CAPEX Build Up'!U14 -> FY27 | F4: ='C_CAPEX Build Up'!V14 -> FY28 | G4: ='C_CAPEX Build Up'!W14 -> FY29
B5: Connection - O/U | C5: =IF(SUMIF('Detailed price list'!$L$5:$L$237,$B5,'Detailed price list'!$M$5:$M$237)=0, IFERROR(INDEX('Detailed price list'!D$5:D$237,MATCH($B5,'Detailed price list'!$B$5:$B$237,0)),INDEX('Detailed price list'!D$5:D$237,MATCH($B5,'Detailed price list'!$L$5:$L$237,0))), SUMPRODUCT(('Detailed price list'!D$5:D$237)*('Detailed price list'!$M$5:$M$237)*('Detailed price list'!$L$5:$L$237=$B5))/SUMIF('Detailed price list'!$L$5:$L$237,$B5,'Detailed price list'!$M$5:$M$237)) -> 102.2358901 | D5: =IF(SUMIF('Detailed price list'!$L$5:$L$237,$B5,'Detailed price list'!$M$5:$M$237)=0, IFERROR(INDEX('Detailed price list'!E$5:E$237,MATCH($B5,'Detailed price list'!$B$5:$B$237,0)),INDEX('Detailed price list'!E$5:E$237,MATCH($B5,'Detailed price list'!$L$5:$L$237,0))), SUMPRODUCT(('Detailed price list'!E$5:E$237)*('Detailed price list'!$M$5:$M$237)*('Detailed price list'!$L$5:$L$237=$B5))/SUMIF('Detailed price list'!$L$5:$L$237,$B5,'Detailed price list'!$M$5:$M$237)) -> 105.0982712 | E5: =IF(SUMIF('Detailed price list'!$L$5:$L$237,$B5,'Detailed price list'!$M$5:$M$237)=0, IFERROR(INDEX('Detailed price list'!F$5:F$237,MATCH($B5,'Detailed price list'!$B$5:$B$237,0)),INDEX('Detailed price list'!F$5:F$237,MATCH($B5,'Detailed price list'!$L$5:$L$237,0))), SUMPRODUCT(('Detailed price list'!F$5:F$237)*('Detailed price list'!$M$5:$M$237)*('Detailed price list'!$L$5:$L$237=$B5))/SUMIF('Detailed price list'!$L$5:$L$237,$B5,'Detailed price list'!$M$5:$M$237)) -> 108.0407928 | F5: =IF(SUMIF('Detailed price list'!$L$5:$L$237,$B5,'Detailed price list'!$M$5:$M$237)=0, IFERROR(INDEX('Detailed price list'!G$5:G$237,MATCH($B5,'Detailed price list'!$B$5:$B$237,0)),INDEX('Detailed price list'!G$5:G$237,MATCH($B5,'Detailed price list'!$L$5:$L$237,0))), SUMPRODUCT(('Detailed price list'!G$5:G$237)*('Detailed price list'!$M$5:$M$237)*('Detailed price list'!$L$5:$L$237=$B5))/SUMIF('Detailed price list'!$L$5:$L$237,$B5,'Detailed price list'!$M$5:$M$237)) -> 111.0656985 | G5: =IF(SUMIF('Detailed price list'!$L$5:$L$237,$B5,'Detailed price list'!$M$5:$M$237)=0, IFERROR(INDEX('Detailed price list'!H$5:H$237,MATCH($B5,'Detailed price list'!$B$5:$B$237,0)),INDEX('Detailed price list'!H$5:H$237,MATCH($B5,'Detailed price list'!$L$5:$L$237,0))), SUMPRODUCT(('Detailed price list'!H$5:H$237)*('Detailed price list'!$M$5:$M$237)*('Detailed price list'!$L$5:$L$237=$B5))/SUMIF('Detailed price list'!$L$5:$L$237,$B5,'Detailed price list'!$M$5:$M$237)) -> 114.175295
B6: Connection - UGR1 | C6: =IF(SUMIF('Detailed price list'!$L$5:$L$237,$B6,'Detailed price list'!$M$5:$M$237)=0, IFERROR(INDEX('Detailed price list'!D$5:D$237,MATCH($B6,'Detailed price list'!$B$5:$B$237,0)),INDEX('Detailed price list'!D$5:D$237,MATCH($B6,'Detailed price list'!$L$5:$L$237,0))), SUMPRODUCT(('Detailed price list'!D$5:D$237)*('Detailed price list'!$M$5:$M$237)*('Detailed price list'!$L$5:$L$237=$B6))/SUMIF('Detailed price list'!$L$5:$L$237,$B6,'Detailed price list'!$M$5:$M$237)) -> 93.71386342 | D6: =IF(SUMIF('Detailed price list'!$L$5:$L$237,$B6,'Detailed price list'!$M$5:$M$237)=0, IFERROR(INDEX('Detailed price list'!E$5:E$237,MATCH($B6,'Detailed price list'!$B$5:$B$237,0)),INDEX('Detailed price list'!E$5:E$237,MATCH($B6,'Detailed price list'!$L$5:$L$237,0))), SUMPRODUCT(('Detailed price list'!E$5:E$237)*('Detailed price list'!$M$5:$M$237)*('Detailed price list'!$L$5:$L$237=$B6))/SUMIF('Detailed price list'!$L$5:$L$237,$B6,'Detailed price list'!$M$5:$M$237)) -> 96.33764648 | E6: =IF(SUMIF('Detailed price list'!$L$5:$L$237,$B6,'Detailed price list'!$M$5:$M$237)=0, IFERROR(INDEX('Detailed price list'!F$5:F$237,MATCH($B6,'Detailed price list'!$B$5:$B$237,0)),INDEX('Detailed price list'!F$5:F$237,MATCH($B6,'Detailed price list'!$L$5:$L$237,0))), SUMPRODUCT(('Detailed price list'!F$5:F$237)*('Detailed price list'!$M$5:$M$237)*('Detailed price list'!$L$5:$L$237=$B6))/SUMIF('Detailed price list'!$L$5:$L$237,$B6,'Detailed price list'!$M$5:$M$237)) -> 99.03488973 | F6: =IF(SUMIF('Detailed price list'!$L$5:$L$237,$B6,'Detailed price list'!$M$5:$M$237)=0, IFERROR(INDEX('Detailed price list'!G$5:G$237,MATCH($B6,'Detailed price list'!$B$5:$B$237,0)),INDEX('Detailed price list'!G$5:G$237,MATCH($B6,'Detailed price list'!$L$5:$L$237,0))), SUMPRODUCT(('Detailed price list'!G$5:G$237)*('Detailed price list'!$M$5:$M$237)*('Detailed price list'!$L$5:$L$237=$B6))/SUMIF('Detailed price list'!$L$5:$L$237,$B6,'Detailed price list'!$M$5:$M$237)) -> 101.8076499 | G6: =IF(SUMIF('Detailed price list'!$L$5:$L$237,$B6,'Detailed price list'!$M$5:$M$237)=0, IFERROR(INDEX('Detailed price list'!H$5:H$237,MATCH($B6,'Detailed price list'!$B$5:$B$237,0)),INDEX('Detailed price list'!H$5:H$237,MATCH($B6,'Detailed price list'!$L$5:$L$237,0))), SUMPRODUCT(('Detailed price list'!H$5:H$237)*('Detailed price list'!$M$5:$M$237)*('Detailed price list'!$L$5:$L$237=$B6))/SUMIF('Detailed price list'!$L$5:$L$237,$B6,'Detailed price list'!$M$5:$M$237)) -> 104.6580412
B7: Connection - UGR2 | C7: =IF(SUMIF('Detailed price list'!$L$5:$L$237,$B7,'Detailed price list'!$M$5:$M$237)=0, IFERROR(INDEX('Detailed price list'!D$5:D$237,MATCH($B7,'Detailed price list'!$B$5:$B$237,0)),INDEX('Detailed price list'!D$5:D$237,MATCH($B7,'Detailed price list'!$L$5:$L$237,0))), SUMPRODUCT(('Detailed price list'!D$5:D$237)*('Detailed price list'!$M$5:$M$237)*('Detailed price list'!$L$5:$L$237=$B7))/SUMIF('Detailed price list'!$L$5:$L$237,$B7,'Detailed price list'!$M$5:$M$237)) -> 34.07355983 | D7: =IF(SUMIF('Detailed price list'!$L$5:$L$237,$B7,'Detailed price list'!$M$5:$M$237)=0, IFERROR(INDEX('Detailed price list'!E$5:E$237,MATCH($B7,'Detailed price list'!$B$5:$B$237,0)),INDEX('Detailed price list'!E$5:E$237,MATCH($B7,'Detailed price list'!$L$5:$L$237,0))), SUMPRODUCT(('Detailed price list'!E$5:E$237)*('Detailed price list'!$M$5:$M$237)*('Detailed price list'!$L$5:$L$237=$B7))/SUMIF('Detailed price list'!$L$5:$L$237,$B7,'Detailed price list'!$M$5:$M$237)) -> 35.02754492 | E7: =IF(SUMIF('Detailed price list'!$L$5:$L$237,$B7,'Detailed price list'!$M$5:$M$237)=0, IFERROR(INDEX('Detailed price list'!F$5:F$237,MATCH($B7,'Detailed price list'!$B$5:$B$237,0)),INDEX('Detailed price list'!F$5:F$237,MATCH($B7,'Detailed price list'!$L$5:$L$237,0))), SUMPRODUCT(('Detailed price list'!F$5:F$237)*('Detailed price list'!$M$5:$M$237)*('Detailed price list'!$L$5:$L$237=$B7))/SUMIF('Detailed price list'!$L$5:$L$237,$B7,'Detailed price list'!$M$5:$M$237)) -> 36.00823951 | F7: =IF(SUMIF('Detailed price list'!$L$5:$L$237,$B7,'Detailed price list'!$M$5:$M$237)=0, IFERROR(INDEX('Detailed price list'!G$5:G$237,MATCH($B7,'Detailed price list'!$B$5:$B$237,0)),INDEX('Detailed price list'!G$5:G$237,MATCH($B7,'Detailed price list'!$L$5:$L$237,0))), SUMPRODUCT(('Detailed price list'!G$5:G$237)*('Detailed price list'!$M$5:$M$237)*('Detailed price list'!$L$5:$L$237=$B7))/SUMIF('Detailed price list'!$L$5:$L$237,$B7,'Detailed price list'!$M$5:$M$237)) -> 37.01639141 | G7: =IF(SUMIF('Detailed price list'!$L$5:$L$237,$B7,'Detailed price list'!$M$5:$M$237)=0, IFERROR(INDEX('Detailed price list'!H$5:H$237,MATCH($B7,'Detailed price list'!$B$5:$B$237,0)),INDEX('Detailed price list'!H$5:H$237,MATCH($B7,'Detailed price list'!$L$5:$L$237,0))), SUMPRODUCT(('Detailed price list'!H$5:H$237)*('Detailed price list'!$M$5:$M$237)*('Detailed price list'!$L$5:$L$237=$B7))/SUMIF('Detailed price list'!$L$5:$L$237,$B7,'Detailed price list'!$M$5:$M$237)) -> 38.05276935
B8: Legacy Luminaire - Major (Cat V) road | C8: =IF(SUMIF('Detailed price list'!$L$5:$L$237,$B8,'Detailed price list'!$M$5:$M$237)=0, IFERROR(INDEX('Detailed price list'!D$5:D$237,MATCH($B8,'Detailed price list'!$B$5:$B$237,0)),INDEX('Detailed price list'!D$5:D$237,MATCH($B8,'Detailed price list'!$L$5:$L$237,0))), SUMPRODUCT(('Detailed price list'!D$5:D$237)*('Detailed price list'!$M$5:$M$237)*('Detailed price list'!$L$5:$L$237=$B8))/SUMIF('Detailed price list'!$L$5:$L$237,$B8,'Detailed price list'!$M$5:$M$237)) -> 53.40881817 | D8: =IF(SUMIF('Detailed price list'!$L$5:$L$237,$B8,'Detailed price list'!$M$5:$M$237)=0, IFERROR(INDEX('Detailed price list'!E$5:E$237,MATCH($B8,'Detailed price list'!$B$5:$B$237,0)),INDEX('Detailed price list'!E$5:E$237,MATCH($B8,'Detailed price list'!$L$5:$L$237,0))), SUMPRODUCT(('Detailed price list'!E$5:E$237)*('Detailed price list'!$M$5:$M$237)*('Detailed price list'!$L$5:$L$237=$B8))/SUMIF('Detailed price list'!$L$5:$L$237,$B8,'Detailed price list'!$M$5:$M$237)) -> 54.90414818 | E8: =IF(SUMIF('Detailed price list'!$L$5:$L$237,$B8,'Detailed price list'!$M$5:$M$237)=0, IFERROR(INDEX('Detailed price list'!F$5:F$237,MATCH($B8,'Detailed price list'!$B$5:$B$237,0)),INDEX('Detailed price list'!F$5:F$237,MATCH($B8,'Detailed price list'!$L$5:$L$237,0))), SUMPRODUCT(('Detailed price list'!F$5:F$237)*('Detailed price list'!$M$5:$M$237)*('Detailed price list'!$L$5:$L$237=$B8))/SUMIF('Detailed price list'!$L$5:$L$237,$B8,'Detailed price list'!$M$5:$M$237)) -> 56.44134416 | F8: =IF(SUMIF('Detailed price list'!$L$5:$L$237,$B8,'Detailed price list'!$M$5:$M$237)=0, IFERROR(INDEX('Detailed price list'!G$5:G$237,MATCH($B8,'Detailed price list'!$B$5:$B$237,0)),INDEX('Detailed price list'!G$5:G$237,MATCH($B8,'Detailed price list'!$L$5:$L$237,0))), SUMPRODUCT(('Detailed price list'!G$5:G$237)*('Detailed price list'!$M$5:$M$237)*('Detailed price list'!$L$5:$L$237=$B8))/SUMIF('Detailed price list'!$L$5:$L$237,$B8,'Detailed price list'!$M$5:$M$237)) -> 58.02157826 | G8: =IF(SUMIF('Detailed price list'!$L$5:$L$237,$B8,'Detailed price list'!$M$5:$M$237)=0, IFERROR(INDEX('Detailed price list'!H$5:H$237,MATCH($B8,'Detailed price list'!$B$5:$B$237,0)),INDEX('Detailed price list'!H$5:H$237,MATCH($B8,'Detailed price list'!$L$5:$L$237,0))), SUMPRODUCT(('Detailed price list'!H$5:H$237)*('Detailed price list'!$M$5:$M$237)*('Detailed price list'!$L$5:$L$237=$B8))/SUMIF('Detailed price list'!$L$5:$L$237,$B8,'Detailed price list'!$M$5:$M$237)) -> 59.64605546
B9: Legacy Luminaire - Minor (Cat P) road | C9: =IF(SUMIF('Detailed price list'!$L$5:$L$237,$B9,'Detailed price list'!$M$5:$M$237)=0, IFERROR(INDEX('Detailed price list'!D$5:D$237,MATCH($B9,'Detailed price list'!$B$5:$B$237,0)),INDEX('Detailed price list'!D$5:D$237,MATCH($B9,'Detailed price list'!$L$5:$L$237,0))), SUMPRODUCT(('Detailed price list'!D$5:D$237)*('Detailed price list'!$M$5:$M$237)*('Detailed price list'!$L$5:$L$237=$B9))/SUMIF('Detailed price list'!$L$5:$L$237,$B9,'Detailed price list'!$M$5:$M$237)) -> 33.42645047 | D9: =IF(SUMIF('Detailed price list'!$L$5:$L$237,$B9,'Detailed price list'!$M$5:$M$237)=0, IFERROR(INDEX('Detailed price list'!E$5:E$237,MATCH($B9,'Detailed price list'!$B$5:$B$237,0)),INDEX('Detailed price list'!E$5:E$237,MATCH($B9,'Detailed price list'!$L$5:$L$237,0))), SUMPRODUCT(('Detailed price list'!E$5:E$237)*('Detailed price list'!$M$5:$M$237)*('Detailed price list'!$L$5:$L$237=$B9))/SUMIF('Detailed price list'!$L$5:$L$237,$B9,'Detailed price list'!$M$5:$M$237)) -> 34.36231792 | E9: =IF(SUMIF('Detailed price list'!$L$5:$L$237,$B9,'Detailed price list'!$M$5:$M$237)=0, IFERROR(INDEX('Detailed price list'!F$5:F$237,MATCH($B9,'Detailed price list'!$B$5:$B$237,0)),INDEX('Detailed price list'!F$5:F$237,MATCH($B9,'Detailed price list'!$L$5:$L$237,0))), SUMPRODUCT(('Detailed price list'!F$5:F$237)*('Detailed price list'!$M$5:$M$237)*('Detailed price list'!$L$5:$L$237=$B9))/SUMIF('Detailed price list'!$L$5:$L$237,$B9,'Detailed price list'!$M$5:$M$237)) -> 35.32438761 | F9: =IF(SUMIF('Detailed price list'!$L$5:$L$237,$B9,'Detailed price list'!$M$5:$M$237)=0, IFERROR(INDEX('Detailed price list'!G$5:G$237,MATCH($B9,'Detailed price list'!$B$5:$B$237,0)),INDEX('Detailed price list'!G$5:G$237,MATCH($B9,'Detailed price list'!$L$5:$L$237,0))), SUMPRODUCT(('Detailed price list'!G$5:G$237)*('Detailed price list'!$M$5:$M$237)*('Detailed price list'!$L$5:$L$237=$B9))/SUMIF('Detailed price list'!$L$5:$L$237,$B9,'Detailed price list'!$M$5:$M$237)) -> 36.31339315 | G9: =IF(SUMIF('Detailed price list'!$L$5:$L$237,$B9,'Detailed price list'!$M$5:$M$237)=0, IFERROR(INDEX('Detailed price list'!H$5:H$237,MATCH($B9,'Detailed price list'!$B$5:$B$237,0)),INDEX('Detailed price list'!H$5:H$237,MATCH($B9,'Detailed price list'!$L$5:$L$237,0))), SUMPRODUCT(('Detailed price list'!H$5:H$237)*('Detailed price list'!$M$5:$M$237)*('Detailed price list'!$L$5:$L$237=$B9))/SUMIF('Detailed price list'!$L$5:$L$237,$B9,'Detailed price list'!$M$5:$M$237)) -> 37.33008868
B10: Legacy Luminaire - Major (Cat V) road | C10: =IF(SUMIF('Detailed price list'!$L$5:$L$237,$B10,'Detailed price list'!$M$5:$M$237)=0, IFERROR(INDEX('Detailed price list'!D$5:D$237,MATCH($B10,'Detailed price list'!$B$5:$B$237,0)),INDEX('Detailed price list'!D$5:D$237,MATCH($B10,'Detailed price list'!$L$5:$L$237,0))), SUMPRODUCT(('Detailed price list'!D$5:D$237)*('Detailed price list'!$M$5:$M$237)*('Detailed price list'!$L$5:$L$237=$B10))/SUMIF('Detailed price list'!$L$5:$L$237,$B10,'Detailed price list'!$M$5:$M$237)) -> 53.40881817 | D10: =IF(SUMIF('Detailed price list'!$L$5:$L$237,$B10,'Detailed price list'!$M$5:$M$237)=0, IFERROR(INDEX('Detailed price list'!E$5:E$237,MATCH($B10,'Detailed price list'!$B$5:$B$237,0)),INDEX('Detailed price list'!E$5:E$237,MATCH($B10,'Detailed price list'!$L$5:$L$237,0))), SUMPRODUCT(('Detailed price list'!E$5:E$237)*('Detailed price list'!$M$5:$M$237)*('Detailed price list'!$L$5:$L$237=$B10))/SUMIF('Detailed price list'!$L$5:$L$237,$B10,'Detailed price list'!$M$5:$M$237)) -> 54.90414818 | E10: =IF(SUMIF('Detailed price list'!$L$5:$L$237,$B10,'Detailed price list'!$M$5:$M$237)=0, IFERROR(INDEX('Detailed price list'!F$5:F$237,MATCH($B10,'Detailed price list'!$B$5:$B$237,0)),INDEX('Detailed price list'!F$5:F$237,MATCH($B10,'Detailed price list'!$L$5:$L$237,0))), SUMPRODUCT(('Detailed price list'!F$5:F$237)*('Detailed price list'!$M$5:$M$237)*('Detailed price list'!$L$5:$L$237=$B10))/SUMIF('Detailed price list'!$L$5:$L$237,$B10,'Detailed price list'!$M$5:$M$237)) -> 56.44134416 | F10: =IF(SUMIF('Detailed price list'!$L$5:$L$237,$B10,'Detailed price list'!$M$5:$M$237)=0, IFERROR(INDEX('Detailed price list'!G$5:G$237,MATCH($B10,'Detailed price list'!$B$5:$B$237,0)),INDEX('Detailed price list'!G$5:G$237,MATCH($B10,'Detailed price list'!$L$5:$L$237,0))), SUMPRODUCT(('Detailed price list'!G$5:G$237)*('Detailed price list'!$M$5:$M$237)*('Detailed price list'!$L$5:$L$237=$B10))/SUMIF('Detailed price list'!$L$5:$L$237,$B10,'Detailed price list'!$M$5:$M$237)) -> 58.02157826 | G10: =IF(SUMIF('Detailed price list'!$L$5:$L$237,$B10,'Detailed price list'!$M$5:$M$237)=0, IFERROR(INDEX('Detailed price list'!H$5:H$237,MATCH($B10,'Detailed price list'!$B$5:$B$237,0)),INDEX('Detailed price list'!H$5:H$237,MATCH($B10,'Detailed price list'!$L$5:$L$237,0))), SUMPRODUCT(('Detailed price list'!H$5:H$237)*('Detailed price list'!$M$5:$M$237)*('Detailed price list'!$L$5:$L$237=$B10))/SUMIF('Detailed price list'!$L$5:$L$237,$B10,'Detailed price list'!$M$5:$M$237)) -> 59.64605546
B11: Legacy Luminaire - Major (Cat V) road | C11: =IF(SUMIF('Detailed price list'!$L$5:$L$237,$B11,'Detailed price list'!$M$5:$M$237)=0, IFERROR(INDEX('Detailed price list'!D$5:D$237,MATCH($B11,'Detailed price list'!$B$5:$B$237,0)),INDEX('Detailed price list'!D$5:D$237,MATCH($B11,'Detailed price list'!$L$5:$L$237,0))), SUMPRODUCT(('Detailed price list'!D$5:D$237)*('Detailed price list'!$M$5:$M$237)*('Detailed price list'!$L$5:$L$237=$B11))/SUMIF('Detailed price list'!$L$5:$L$237,$B11,'Detailed price list'!$M$5:$M$237)) -> 53.40881817 | D11: =IF(SUMIF('Detailed price list'!$L$5:$L$237,$B11,'Detailed price list'!$M$5:$M$237)=0, IFERROR(INDEX('Detailed price list'!E$5:E$237,MATCH($B11,'Detailed price list'!$B$5:$B$237,0)),INDEX('Detailed price list'!E$5:E$237,MATCH($B11,'Detailed price list'!$L$5:$L$237,0))), SUMPRODUCT(('Detailed price list'!E$5:E$237)*('Detailed price list'!$M$5:$M$237)*('Detailed price list'!$L$5:$L$237=$B11))/SUMIF('Detailed price list'!$L$5:$L$237,$B11,'Detailed price list'!$M$5:$M$237)) -> 54.90414818 | E11: =IF(SUMIF('Detailed price list'!$L$5:$L$237,$B11,'Detailed price list'!$M$5:$M$237)=0, IFERROR(INDEX('Detailed price list'!F$5:F$237,MATCH($B11,'Detailed price list'!$B$5:$B$237,0)),INDEX('Detailed price list'!F$5:F$237,MATCH($B11,'Detailed price list'!$L$5:$L$237,0))), SUMPRODUCT(('Detailed price list'!F$5:F$237)*('Detailed price list'!$M$5:$M$237)*('Detailed price list'!$L$5:$L$237=$B11))/SUMIF('Detailed price list'!$L$5:$L$237,$B11,'Detailed price list'!$M$5:$M$237)) -> 56.44134416 | F11: =IF(SUMIF('Detailed price list'!$L$5:$L$237,$B11,'Detailed price list'!$M$5:$M$237)=0, IFERROR(INDEX('Detailed price list'!G$5:G$237,MATCH($B11,'Detailed price list'!$B$5:$B$237,0)),INDEX('Detailed price list'!G$5:G$237,MATCH($B11,'Detailed price list'!$L$5:$L$237,0))), SUMPRODUCT(('Detailed price list'!G$5:G$237)*('Detailed price list'!$M$5:$M$237)*('Detailed price list'!$L$5:$L$237=$B11))/SUMIF('Detailed price list'!$L$5:$L$237,$B11,'Detailed price list'!$M$5:$M$237)) -> 58.02157826 | G11: =IF(SUMIF('Detailed price list'!$L$5:$L$237,$B11,'Detailed price list'!$M$5:$M$237)=0, IFERROR(INDEX('Detailed price list'!H$5:H$237,MATCH($B11,'Detailed price list'!$B$5:$B$237,0)),INDEX('Detailed price list'!H$5:H$237,MATCH($B11,'Detailed price list'!$L$5:$L$237,0))), SUMPRODUCT(('Detailed price list'!H$5:H$237)*('Detailed price list'!$M$5:$M$237)*('Detailed price list'!$L$5:$L$237=$B11))/SUMIF('Detailed price list'!$L$5:$L$237,$B11,'Detailed price list'!$M$5:$M$237)) -> 59.64605546
B12: Legacy Luminaire - Minor (Cat P) road | C12: =IF(SUMIF('Detailed price list'!$L$5:$L$237,$B12,'Detailed price list'!$M$5:$M$237)=0, IFERROR(INDEX('Detailed price list'!D$5:D$237,MATCH($B12,'Detailed price list'!$B$5:$B$237,0)),INDEX('Detailed price list'!D$5:D$237,MATCH($B12,'Detailed price list'!$L$5:$L$237,0))), SUMPRODUCT(('Detailed price list'!D$5:D$237)*('Detailed price list'!$M$5:$M$237)*('Detailed price list'!$L$5:$L$237=$B12))/SUMIF('Detailed price list'!$L$5:$L$237,$B12,'Detailed price list'!$M$5:$M$237)) -> 33.42645047 | D12: =IF(SUMIF('Detailed price list'!$L$5:$L$237,$B12,'Detailed price list'!$M$5:$M$237)=0, IFERROR(INDEX('Detailed price list'!E$5:E$237,MATCH($B12,'Detailed price list'!$B$5:$B$237,0)),INDEX('Detailed price list'!E$5:E$237,MATCH($B12,'Detailed price list'!$L$5:$L$237,0))), SUMPRODUCT(('Detailed price list'!E$5:E$237)*('Detailed price list'!$M$5:$M$237)*('Detailed price list'!$L$5:$L$237=$B12))/SUMIF('Detailed price list'!$L$5:$L$237,$B12,'Detailed price list'!$M$5:$M$237)) -> 34.36231792 | E12: =IF(SUMIF('Detailed price list'!$L$5:$L$237,$B12,'Detailed price list'!$M$5:$M$237)=0, IFERROR(INDEX('Detailed price list'!F$5:F$237,MATCH($B12,'Detailed price list'!$B$5:$B$237,0)),INDEX('Detailed price list'!F$5:F$237,MATCH($B12,'Detailed price list'!$L$5:$L$237,0))), SUMPRODUCT(('Detailed price list'!F$5:F$237)*('Detailed price list'!$M$5:$M$237)*('Detailed price list'!$L$5:$L$237=$B12))/SUMIF('Detailed price list'!$L$5:$L$237,$B12,'Detailed price list'!$M$5:$M$237)) -> 35.32438761 | F12: =IF(SUMIF('Detailed price list'!$L$5:$L$237,$B12,'Detailed price list'!$M$5:$M$237)=0, IFERROR(INDEX('Detailed price list'!G$5:G$237,MATCH($B12,'Detailed price list'!$B$5:$B$237,0)),INDEX('Detailed price list'!G$5:G$237,MATCH($B12,'Detailed price list'!$L$5:$L$237,0))), SUMPRODUCT(('Detailed price list'!G$5:G$237)*('Detailed price list'!$M$5:$M$237)*('Detailed price list'!$L$5:$L$237=$B12))/SUMIF('Detailed price list'!$L$5:$L$237,$B12,'Detailed price list'!$M$5:$M$237)) -> 36.31339315 | G12: =IF(SUMIF('Detailed price list'!$L$5:$L$237,$B12,'Detailed price list'!$M$5:$M$237)=0, IFERROR(INDEX('Detailed price list'!H$5:H$237,MATCH($B12,'Detailed price list'!$B$5:$B$237,0)),INDEX('Detailed price list'!H$5:H$237,MATCH($B12,'Detailed price list'!$L$5:$L$237,0))), SUMPRODUCT(('Detailed price list'!H$5:H$237)*('Detailed price list'!$M$5:$M$237)*('Detailed price list'!$L$5:$L$237=$B12))/SUMIF('Detailed price list'!$L$5:$L$237,$B12,'Detailed price list'!$M$5:$M$237)) -> 37.33008868
B13: Legacy Luminaire - Minor (Cat P) road | C13: =IF(SUMIF('Detailed price list'!$L$5:$L$237,$B13,'Detailed price list'!$M$5:$M$237)=0, IFERROR(INDEX('Detailed price list'!D$5:D$237,MATCH($B13,'Detailed price list'!$B$5:$B$237,0)),INDEX('Detailed price list'!D$5:D$237,MATCH($B13,'Detailed price list'!$L$5:$L$237,0))), SUMPRODUCT(('Detailed price list'!D$5:D$237)*('Detailed price list'!$M$5:$M$237)*('Detailed price list'!$L$5:$L$237=$B13))/SUMIF('Detailed price list'!$L$5:$L$237,$B13,'Detailed price list'!$M$5:$M$237)) -> 33.42645047 | D13: =IF(SUMIF('Detailed price list'!$L$5:$L$237,$B13,'Detailed price list'!$M$5:$M$237)=0, IFERROR(INDEX('Detailed price list'!E$5:E$237,MATCH($B13,'Detailed price list'!$B$5:$B$237,0)),INDEX('Detailed price list'!E$5:E$237,MATCH($B13,'Detailed price list'!$L$5:$L$237,0))), SUMPRODUCT(('Detailed price list'!E$5:E$237)*('Detailed price list'!$M$5:$M$237)*('Detailed price list'!$L$5:$L$237=$B13))/SUMIF('Detailed price list'!$L$5:$L$237,$B13,'Detailed price list'!$M$5:$M$237)) -> 34.36231792 | E13: =IF(SUMIF('Detailed price list'!$L$5:$L$237,$B13,'Detailed price list'!$M$5:$M$237)=0, IFERROR(INDEX('Detailed price list'!F$5:F$237,MATCH($B13,'Detailed price list'!$B$5:$B$237,0)),INDEX('Detailed price list'!F$5:F$237,MATCH($B13,'Detailed price list'!$L$5:$L$237,0))), SUMPRODUCT(('Detailed price list'!F$5:F$237)*('Detailed price list'!$M$5:$M$237)*('Detailed price list'!$L$5:$L$237=$B13))/SUMIF('Detailed price list'!$L$5:$L$237,$B13,'Detailed price list'!$M$5:$M$237)) -> 35.32438761 | F13: =IF(SUMIF('Detailed price list'!$L$5:$L$237,$B13,'Detailed price list'!$M$5:$M$237)=0, IFERROR(INDEX('Detailed price list'!G$5:G$237,MATCH($B13,'Detailed price list'!$B$5:$B$237,0)),INDEX('Detailed price list'!G$5:G$237,MATCH($B13,'Detailed price list'!$L$5:$L$237,0))), SUMPRODUCT(('Detailed price list'!G$5:G$237)*('Detailed price list'!$M$5:$M$237)*('Detailed price list'!$L$5:$L$237=$B13))/SUMIF('Detailed price list'!$L$5:$L$237,$B13,'Detailed price list'!$M$5:$M$237)) -> 36.31339315 | G13: =IF(SUMIF('Detailed price list'!$L$5:$L$237,$B13,'Detailed price list'!$M$5:$M$237)=0, IFERROR(INDEX('Detailed price list'!H$5:H$237,MATCH($B13,'Detailed price list'!$B$5:$B$237,0)),INDEX('Detailed price list'!H$5:H$237,MATCH($B13,'Detailed price list'!$L$5:$L$237,0))), SUMPRODUCT(('Detailed price list'!H$5:H$237)*('Detailed price list'!$M$5:$M$237)*('Detailed price list'!$L$5:$L$237=$B13))/SUMIF('Detailed price list'!$L$5:$L$237,$B13,'Detailed price list'!$M$5:$M$237)) -> 37.33008868
B14: Legacy Luminaire - Minor (Cat P) road | C14: =IF(SUMIF('Detailed price list'!$L$5:$L$237,$B14,'Detailed price list'!$M$5:$M$237)=0, IFERROR(INDEX('Detailed price list'!D$5:D$237,MATCH($B14,'Detailed price list'!$B$5:$B$237,0)),INDEX('Detailed price list'!D$5:D$237,MATCH($B14,'Detailed price list'!$L$5:$L$237,0))), SUMPRODUCT(('Detailed price list'!D$5:D$237)*('Detailed price list'!$M$5:$M$237)*('Detailed price list'!$L$5:$L$237=$B14))/SUMIF('Detailed price list'!$L$5:$L$237,$B14,'Detailed price list'!$M$5:$M$237)) -> 33.42645047 | D14: =IF(SUMIF('Detailed price list'!$L$5:$L$237,$B14,'Detailed price list'!$M$5:$M$237)=0, IFERROR(INDEX('Detailed price list'!E$5:E$237,MATCH($B14,'Detailed price list'!$B$5:$B$237,0)),INDEX('Detailed price list'!E$5:E$237,MATCH($B14,'Detailed price list'!$L$5:$L$237,0))), SUMPRODUCT(('Detailed price list'!E$5:E$237)*('Detailed price list'!$M$5:$M$237)*('Detailed price list'!$L$5:$L$237=$B14))/SUMIF('Detailed price list'!$L$5:$L$237,$B14,'Detailed price list'!$M$5:$M$237)) -> 34.36231792 | E14: =IF(SUMIF('Detailed price list'!$L$5:$L$237,$B14,'Detailed price list'!$M$5:$M$237)=0, IFERROR(INDEX('Detailed price list'!F$5:F$237,MATCH($B14,'Detailed price list'!$B$5:$B$237,0)),INDEX('Detailed price list'!F$5:F$237,MATCH($B14,'Detailed price list'!$L$5:$L$237,0))), SUMPRODUCT(('Detailed price list'!F$5:F$237)*('Detailed price list'!$M$5:$M$237)*('Detailed price list'!$L$5:$L$237=$B14))/SUMIF('Detailed price list'!$L$5:$L$237,$B14,'Detailed price list'!$M$5:$M$237)) -> 35.32438761 | F14: =IF(SUMIF('Detailed price list'!$L$5:$L$237,$B14,'Detailed price list'!$M$5:$M$237)=0, IFERROR(INDEX('Detailed price list'!G$5:G$237,MATCH($B14,'Detailed price list'!$B$5:$B$237,0)),INDEX('Detailed price list'!G$5:G$237,MATCH($B14,'Detailed price list'!$L$5:$L$237,0))), SUMPRODUCT(('Detailed price list'!G$5:G$237)*('Detailed price list'!$M$5:$M$237)*('Detailed price list'!$L$5:$L$237=$B14))/SUMIF('Detailed price list'!$L$5:$L$237,$B14,'Detailed price list'!$M$5:$M$237)) -> 36.31339315 | G14: =IF(SUMIF('Detailed price list'!$L$5:$L$237,$B14,'Detailed price list'!$M$5:$M$237)=0, IFERROR(INDEX('Detailed price list'!H$5:H$237,MATCH($B14,'Detailed price list'!$B$5:$B$237,0)),INDEX('Detailed price list'!H$5:H$237,MATCH($B14,'Detailed price list'!$L$5:$L$237,0))), SUMPRODUCT(('Detailed price list'!H$5:H$237)*('Detailed price list'!$M$5:$M$237)*('Detailed price list'!$L$5:$L$237=$B14))/SUMIF('Detailed price list'!$L$5:$L$237,$B14,'Detailed price list'!$M$5:$M$237)) -> 37.33008868
B15: Legacy Luminaire - Minor (Cat P) road | C15: =IF(SUMIF('Detailed price list'!$L$5:$L$237,$B15,'Detailed price list'!$M$5:$M$237)=0, IFERROR(INDEX('Detailed price list'!D$5:D$237,MATCH($B15,'Detailed price list'!$B$5:$B$237,0)),INDEX('Detailed price list'!D$5:D$237,MATCH($B15,'Detailed price list'!$L$5:$L$237,0))), SUMPRODUCT(('Detailed price list'!D$5:D$237)*('Detailed price list'!$M$5:$M$237)*('Detailed price list'!$L$5:$L$237=$B15))/SUMIF('Detailed price list'!$L$5:$L$237,$B15,'Detailed price list'!$M$5:$M$237)) -> 33.42645047 | D15: =IF(SUMIF('Detailed price list'!$L$5:$L$237,$B15,'Detailed price list'!$M$5:$M$237)=0, IFERROR(INDEX('Detailed price list'!E$5:E$237,MATCH($B15,'Detailed price list'!$B$5:$B$237,0)),INDEX('Detailed price list'!E$5:E$237,MATCH($B15,'Detailed price list'!$L$5:$L$237,0))), SUMPRODUCT(('Detailed price list'!E$5:E$237)*('Detailed price list'!$M$5:$M$237)*('Detailed price list'!$L$5:$L$237=$B15))/SUMIF('Detailed price list'!$L$5:$L$237,$B15,'Detailed price list'!$M$5:$M$237)) -> 34.36231792 | E15: =IF(SUMIF('Detailed price list'!$L$5:$L$237,$B15,'Detailed price list'!$M$5:$M$237)=0, IFERROR(INDEX('Detailed price list'!F$5:F$237,MATCH($B15,'Detailed price list'!$B$5:$B$237,0)),INDEX('Detailed price list'!F$5:F$237,MATCH($B15,'Detailed price list'!$L$5:$L$237,0))), SUMPRODUCT(('Detailed price list'!F$5:F$237)*('Detailed price list'!$M$5:$M$237)*('Detailed price list'!$L$5:$L$237=$B15))/SUMIF('Detailed price list'!$L$5:$L$237,$B15,'Detailed price list'!$M$5:$M$237)) -> 35.32438761 | F15: =IF(SUMIF('Detailed price list'!$L$5:$L$237,$B15,'Detailed price list'!$M$5:$M$237)=0, IFERROR(INDEX('Detailed price list'!G$5:G$237,MATCH($B15,'Detailed price list'!$B$5:$B$237,0)),INDEX('Detailed price list'!G$5:G$237,MATCH($B15,'Detailed price list'!$L$5:$L$237,0))), SUMPRODUCT(('Detailed price list'!G$5:G$237)*('Detailed price list'!$M$5:$M$237)*('Detailed price list'!$L$5:$L$237=$B15))/SUMIF('Detailed price list'!$L$5:$L$237,$B15,'Detailed price list'!$M$5:$M$237)) -> 36.31339315 | G15: =IF(SUMIF('Detailed price list'!$L$5:$L$237,$B15,'Detailed price list'!$M$5:$M$237)=0, IFERROR(INDEX('Detailed price list'!H$5:H$237,MATCH($B15,'Detailed price list'!$B$5:$B$237,0)),INDEX('Detailed price list'!H$5:H$237,MATCH($B15,'Detailed price list'!$L$5:$L$237,0))), SUMPRODUCT(('Detailed price list'!H$5:H$237)*('Detailed price list'!$M$5:$M$237)*('Detailed price list'!$L$5:$L$237=$B15))/SUMIF('Detailed price list'!$L$5:$L$237,$B15,'Detailed price list'!$M$5:$M$237)) -> 37.33008868
B16: Legacy Luminaire - Major (Cat V) road | C16: =IF(SUMIF('Detailed price list'!$L$5:$L$237,$B16,'Detailed price list'!$M$5:$M$237)=0, IFERROR(INDEX('Detailed price list'!D$5:D$237,MATCH($B16,'Detailed price list'!$B$5:$B$237,0)),INDEX('Detailed price list'!D$5:D$237,MATCH($B16,'Detailed price list'!$L$5:$L$237,0))), SUMPRODUCT(('Detailed price list'!D$5:D$237)*('Detailed price list'!$M$5:$M$237)*('Detailed price list'!$L$5:$L$237=$B16))/SUMIF('Detailed price list'!$L$5:$L$237,$B16,'Detailed price list'!$M$5:$M$237)) -> 53.40881817 | D16: =IF(SUMIF('Detailed price list'!$L$5:$L$237,$B16,'Detailed price list'!$M$5:$M$237)=0, IFERROR(INDEX('Detailed price list'!E$5:E$237,MATCH($B16,'Detailed price list'!$B$5:$B$237,0)),INDEX('Detailed price list'!E$5:E$237,MATCH($B16,'Detailed price list'!$L$5:$L$237,0))), SUMPRODUCT(('Detailed price list'!E$5:E$237)*('Detailed price list'!$M$5:$M$237)*('Detailed price list'!$L$5:$L$237=$B16))/SUMIF('Detailed price list'!$L$5:$L$237,$B16,'Detailed price list'!$M$5:$M$237)) -> 54.90414818 | E16: =IF(SUMIF('Detailed price list'!$L$5:$L$237,$B16,'Detailed price list'!$M$5:$M$237)=0, IFERROR(INDEX('Detailed price list'!F$5:F$237,MATCH($B16,'Detailed price list'!$B$5:$B$237,0)),INDEX('Detailed price list'!F$5:F$237,MATCH($B16,'Detailed price list'!$L$5:$L$237,0))), SUMPRODUCT(('Detailed price list'!F$5:F$237)*('Detailed price list'!$M$5:$M$237)*('Detailed price list'!$L$5:$L$237=$B16))/SUMIF('Detailed price list'!$L$5:$L$237,$B16,'Detailed price list'!$M$5:$M$237)) -> 56.44134416 | F16: =IF(SUMIF('Detailed price list'!$L$5:$L$237,$B16,'Detailed price list'!$M$5:$M$237)=0, IFERROR(INDEX('Detailed price list'!G$5:G$237,MATCH($B16,'Detailed price list'!$B$5:$B$237,0)),INDEX('Detailed price list'!G$5:G$237,MATCH($B16,'Detailed price list'!$L$5:$L$237,0))), SUMPRODUCT(('Detailed price list'!G$5:G$237)*('Detailed price list'!$M$5:$M$237)*('Detailed price list'!$L$5:$L$237=$B16))/SUMIF('Detailed price list'!$L$5:$L$237,$B16,'Detailed price list'!$M$5:$M$237)) -> 58.02157826 | G16: =IF(SUMIF('Detailed price list'!$L$5:$L$237,$B16,'Detailed price list'!$M$5:$M$237)=0, IFERROR(INDEX('Detailed price list'!H$5:H$237,MATCH($B16,'Detailed price list'!$B$5:$B$237,0)),INDEX('Detailed price list'!H$5:H$237,MATCH($B16,'Detailed price list'!$L$5:$L$237,0))), SUMPRODUCT(('Detailed price list'!H$5:H$237)*('Detailed price list'!$M$5:$M$237)*('Detailed price list'!$L$5:$L$237=$B16))/SUMIF('Detailed price list'!$L$5:$L$237,$B16,'Detailed price list'!$M$5:$M$237)) -> 59.64605546
B17: Legacy Luminaire - Major (Cat V) road | C17: =IF(SUMIF('Detailed price list'!$L$5:$L$237,$B17,'Detailed price list'!$M$5:$M$237)=0, IFERROR(INDEX('Detailed price list'!D$5:D$237,MATCH($B17,'Detailed price list'!$B$5:$B$237,0)),INDEX('Detailed price list'!D$5:D$237,MATCH($B17,'Detailed price list'!$L$5:$L$237,0))), SUMPRODUCT(('Detailed price list'!D$5:D$237)*('Detailed price list'!$M$5:$M$237)*('Detailed price list'!$L$5:$L$237=$B17))/SUMIF('Detailed price list'!$L$5:$L$237,$B17,'Detailed price list'!$M$5:$M$237)) -> 53.40881817 | D17: =IF(SUMIF('Detailed price list'!$L$5:$L$237,$B17,'Detailed price list'!$M$5:$M$237)=0, IFERROR(INDEX('Detailed price list'!E$5:E$237,MATCH($B17,'Detailed price list'!$B$5:$B$237,0)),INDEX('Detailed price list'!E$5:E$237,MATCH($B17,'Detailed price list'!$L$5:$L$237,0))), SUMPRODUCT(('Detailed price list'!E$5:E$237)*('Detailed price list'!$M$5:$M$237)*('Detailed price list'!$L$5:$L$237=$B17))/SUMIF('Detailed price list'!$L$5:$L$237,$B17,'Detailed price list'!$M$5:$M$237)) -> 54.90414818 | E17: =IF(SUMIF('Detailed price list'!$L$5:$L$237,$B17,'Detailed price list'!$M$5:$M$237)=0, IFERROR(INDEX('Detailed price list'!F$5:F$237,MATCH($B17,'Detailed price list'!$B$5:$B$237,0)),INDEX('Detailed price list'!F$5:F$237,MATCH($B17,'Detailed price list'!$L$5:$L$237,0))), SUMPRODUCT(('Detailed price list'!F$5:F$237)*('Detailed price list'!$M$5:$M$237)*('Detailed price list'!$L$5:$L$237=$B17))/SUMIF('Detailed price list'!$L$5:$L$237,$B17,'Detailed price list'!$M$5:$M$237)) -> 56.44134416 | F17: =IF(SUMIF('Detailed price list'!$L$5:$L$237,$B17,'Detailed price list'!$M$5:$M$237)=0, IFERROR(INDEX('Detailed price list'!G$5:G$237,MATCH($B17,'Detailed price list'!$B$5:$B$237,0)),INDEX('Detailed price list'!G$5:G$237,MATCH($B17,'Detailed price list'!$L$5:$L$237,0))), SUMPRODUCT(('Detailed price list'!G$5:G$237)*('Detailed price list'!$M$5:$M$237)*('Detailed price list'!$L$5:$L$237=$B17))/SUMIF('Detailed price list'!$L$5:$L$237,$B17,'Detailed price list'!$M$5:$M$237)) -> 58.02157826 | G17: =IF(SUMIF('Detailed price list'!$L$5:$L$237,$B17,'Detailed price list'!$M$5:$M$237)=0, IFERROR(INDEX('Detailed price list'!H$5:H$237,MATCH($B17,'Detailed price list'!$B$5:$B$237,0)),INDEX('Detailed price list'!H$5:H$237,MATCH($B17,'Detailed price list'!$L$5:$L$237,0))), SUMPRODUCT(('Detailed price list'!H$5:H$237)*('Detailed price list'!$M$5:$M$237)*('Detailed price list'!$L$5:$L$237=$B17))/SUMIF('Detailed price list'!$L$5:$L$237,$B17,'Detailed price list'!$M$5:$M$237)) -> 59.64605546
B18: Legacy Luminaire - Major (Cat V) road | C18: =IF(SUMIF('Detailed price list'!$L$5:$L$237,$B18,'Detailed price list'!$M$5:$M$237)=0, IFERROR(INDEX('Detailed price list'!D$5:D$237,MATCH($B18,'Detailed price list'!$B$5:$B$237,0)),INDEX('Detailed price list'!D$5:D$237,MATCH($B18,'Detailed price list'!$L$5:$L$237,0))), SUMPRODUCT(('Detailed price list'!D$5:D$237)*('Detailed price list'!$M$5:$M$237)*('Detailed price list'!$L$5:$L$237=$B18))/SUMIF('Detailed price list'!$L$5:$L$237,$B18,'Detailed price list'!$M$5:$M$237)) -> 53.40881817 | D18: =IF(SUMIF('Detailed price list'!$L$5:$L$237,$B18,'Detailed price list'!$M$5:$M$237)=0, IFERROR(INDEX('Detailed price list'!E$5:E$237,MATCH($B18,'Detailed price list'!$B$5:$B$237,0)),INDEX('Detailed price list'!E$5:E$237,MATCH($B18,'Detailed price list'!$L$5:$L$237,0))), SUMPRODUCT(('Detailed price list'!E$5:E$237)*('Detailed price list'!$M$5:$M$237)*('Detailed price list'!$L$5:$L$237=$B18))/SUMIF('Detailed price list'!$L$5:$L$237,$B18,'Detailed price list'!$M$5:$M$237)) -> 54.90414818 | E18: =IF(SUMIF('Detailed price list'!$L$5:$L$237,$B18,'Detailed price list'!$M$5:$M$237)=0, IFERROR(INDEX('Detailed price list'!F$5:F$237,MATCH($B18,'Detailed price list'!$B$5:$B$237,0)),INDEX('Detailed price list'!F$5:F$237,MATCH($B18,'Detailed price list'!$L$5:$L$237,0))), SUMPRODUCT(('Detailed price list'!F$5:F$237)*('Detailed price list'!$M$5:$M$237)*('Detailed price list'!$L$5:$L$237=$B18))/SUMIF('Detailed price list'!$L$5:$L$237,$B18,'Detailed price list'!$M$5:$M$237)) -> 56.44134416 | F18: =IF(SUMIF('Detailed price list'!$L$5:$L$237,$B18,'Detailed price list'!$M$5:$M$237)=0, IFERROR(INDEX('Detailed price list'!G$5:G$237,MATCH($B18,'Detailed price list'!$B$5:$B$237,0)),INDEX('Detailed price list'!G$5:G$237,MATCH($B18,'Detailed price list'!$L$5:$L$237,0))), SUMPRODUCT(('Detailed price list'!G$5:G$237)*('Detailed price list'!$M$5:$M$237)*('Detailed price list'!$L$5:$L$237=$B18))/SUMIF('Detailed price list'!$L$5:$L$237,$B18,'Detailed price list'!$M$5:$M$237)) -> 58.02157826 | G18: =IF(SUMIF('Detailed price list'!$L$5:$L$237,$B18,'Detailed price list'!$M$5:$M$237)=0, IFERROR(INDEX('Detailed price list'!H$5:H$237,MATCH($B18,'Detailed price list'!$B$5:$B$237,0)),INDEX('Detailed price list'!H$5:H$237,MATCH($B18,'Detailed price list'!$L$5:$L$237,0))), SUMPRODUCT(('Detailed price list'!H$5:H$237)*('Detailed price list'!$M$5:$M$237)*('Detailed price list'!$L$5:$L$237=$B18))/SUMIF('Detailed price list'!$L$5:$L$237,$B18,'Detailed price list'!$M$5:$M$237)) -> 59.64605546
B19: Legacy Luminaire - Major (Cat V) road | C19: =IF(SUMIF('Detailed price list'!$L$5:$L$237,$B19,'Detailed price list'!$M$5:$M$237)=0, IFERROR(INDEX('Detailed price list'!D$5:D$237,MATCH($B19,'Detailed price list'!$B$5:$B$237,0)),INDEX('Detailed price list'!D$5:D$237,MATCH($B19,'Detailed price list'!$L$5:$L$237,0))), SUMPRODUCT(('Detailed price list'!D$5:D$237)*('Detailed price list'!$M$5:$M$237)*('Detailed price list'!$L$5:$L$237=$B19))/SUMIF('Detailed price list'!$L$5:$L$237,$B19,'Detailed price list'!$M$5:$M$237)) -> 53.40881817 | D19: =IF(SUMIF('Detailed price list'!$L$5:$L$237,$B19,'Detailed price list'!$M$5:$M$237)=0, IFERROR(INDEX('Detailed price list'!E$5:E$237,MATCH($B19,'Detailed price list'!$B$5:$B$237,0)),INDEX('Detailed price list'!E$5:E$237,MATCH($B19,'Detailed price list'!$L$5:$L$237,0))), SUMPRODUCT(('Detailed price list'!E$5:E$237)*('Detailed price list'!$M$5:$M$237)*('Detailed price list'!$L$5:$L$237=$B19))/SUMIF('Detailed price list'!$L$5:$L$237,$B19,'Detailed price list'!$M$5:$M$237)) -> 54.90414818 | E19: =IF(SUMIF('Detailed price list'!$L$5:$L$237,$B19,'Detailed price list'!$M$5:$M$237)=0, IFERROR(INDEX('Detailed price list'!F$5:F$237,MATCH($B19,'Detailed price list'!$B$5:$B$237,0)),INDEX('Detailed price list'!F$5:F$237,MATCH($B19,'Detailed price list'!$L$5:$L$237,0))), SUMPRODUCT(('Detailed price list'!F$5:F$237)*('Detailed price list'!$M$5:$M$237)*('Detailed price list'!$L$5:$L$237=$B19))/SUMIF('Detailed price list'!$L$5:$L$237,$B19,'Detailed price list'!$M$5:$M$237)) -> 56.44134416 | F19: =IF(SUMIF('Detailed price list'!$L$5:$L$237,$B19,'Detailed price list'!$M$5:$M$237)=0, IFERROR(INDEX('Detailed price list'!G$5:G$237,MATCH($B19,'Detailed price list'!$B$5:$B$237,0)),INDEX('Detailed price list'!G$5:G$237,MATCH($B19,'Detailed price list'!$L$5:$L$237,0))), SUMPRODUCT(('Detailed price list'!G$5:G$237)*('Detailed price list'!$M$5:$M$237)*('Detailed price list'!$L$5:$L$237=$B19))/SUMIF('Detailed price list'!$L$5:$L$237,$B19,'Detailed price list'!$M$5:$M$237)) -> 58.02157826 | G19: =IF(SUMIF('Detailed price list'!$L$5:$L$237,$B19,'Detailed price list'!$M$5:$M$237)=0, IFERROR(INDEX('Detailed price list'!H$5:H$237,MATCH($B19,'Detailed price list'!$B$5:$B$237,0)),INDEX('Detailed price list'!H$5:H$237,MATCH($B19,'Detailed price list'!$L$5:$L$237,0))), SUMPRODUCT(('Detailed price list'!H$5:H$237)*('Detailed price list'!$M$5:$M$237)*('Detailed price list'!$L$5:$L$237=$B19))/SUMIF('Detailed price list'!$L$5:$L$237,$B19,'Detailed price list'!$M$5:$M$237)) -> 59.64605546
B20: Legacy Luminaire - Major (Cat V) road | C20: =IF(SUMIF('Detailed price list'!$L$5:$L$237,$B20,'Detailed price list'!$M$5:$M$237)=0, IFERROR(INDEX('Detailed price list'!D$5:D$237,MATCH($B20,'Detailed price list'!$B$5:$B$237,0)),INDEX('Detailed price list'!D$5:D$237,MATCH($B20,'Detailed price list'!$L$5:$L$237,0))), SUMPRODUCT(('Detailed price list'!D$5:D$237)*('Detailed price list'!$M$5:$M$237)*('Detailed price list'!$L$5:$L$237=$B20))/SUMIF('Detailed price list'!$L$5:$L$237,$B20,'Detailed price list'!$M$5:$M$237)) -> 53.40881817 | D20: =IF(SUMIF('Detailed price list'!$L$5:$L$237,$B20,'Detailed price list'!$M$5:$M$237)=0, IFERROR(INDEX('Detailed price list'!E$5:E$237,MATCH($B20,'Detailed price list'!$B$5:$B$237,0)),INDEX('Detailed price list'!E$5:E$237,MATCH($B20,'Detailed price list'!$L$5:$L$237,0))), SUMPRODUCT(('Detailed price list'!E$5:E$237)*('Detailed price list'!$M$5:$M$237)*('Detailed price list'!$L$5:$L$237=$B20))/SUMIF('Detailed price list'!$L$5:$L$237,$B20,'Detailed price list'!$M$5:$M$237)) -> 54.90414818 | E20: =IF(SUMIF('Detailed price list'!$L$5:$L$237,$B20,'Detailed price list'!$M$5:$M$237)=0, IFERROR(INDEX('Detailed price list'!F$5:F$237,MATCH($B20,'Detailed price list'!$B$5:$B$237,0)),INDEX('Detailed price list'!F$5:F$237,MATCH($B20,'Detailed price list'!$L$5:$L$237,0))), SUMPRODUCT(('Detailed price list'!F$5:F$237)*('Detailed price list'!$M$5:$M$237)*('Detailed price list'!$L$5:$L$237=$B20))/SUMIF('Detailed price list'!$L$5:$L$237,$B20,'Detailed price list'!$M$5:$M$237)) -> 56.44134416 | F20: =IF(SUMIF('Detailed price list'!$L$5:$L$237,$B20,'Detailed price list'!$M$5:$M$237)=0, IFERROR(INDEX('Detailed price list'!G$5:G$237,MATCH($B20,'Detailed price list'!$B$5:$B$237,0)),INDEX('Detailed price list'!G$5:G$237,MATCH($B20,'Detailed price list'!$L$5:$L$237,0))), SUMPRODUCT(('Detailed price list'!G$5:G$237)*('Detailed price list'!$M$5:$M$237)*('Detailed price list'!$L$5:$L$237=$B20))/SUMIF('Detailed price list'!$L$5:$L$237,$B20,'Detailed price list'!$M$5:$M$237)) -> 58.02157826 | G20: =IF(SUMIF('Detailed price list'!$L$5:$L$237,$B20,'Detailed price list'!$M$5:$M$237)=0, IFERROR(INDEX('Detailed price list'!H$5:H$237,MATCH($B20,'Detailed price list'!$B$5:$B$237,0)),INDEX('Detailed price list'!H$5:H$237,MATCH($B20,'Detailed price list'!$L$5:$L$237,0))), SUMPRODUCT(('Detailed price list'!H$5:H$237)*('Detailed price list'!$M$5:$M$237)*('Detailed price list'!$L$5:$L$237=$B20))/SUMIF('Detailed price list'!$L$5:$L$237,$B20,'Detailed price list'!$M$5:$M$237)) -> 59.64605546
B21: Legacy Luminaire - Minor (Cat P) road | C21: =IF(SUMIF('Detailed price list'!$L$5:$L$237,$B21,'Detailed price list'!$M$5:$M$237)=0, IFERROR(INDEX('Detailed price list'!D$5:D$237,MATCH($B21,'Detailed price list'!$B$5:$B$237,0)),INDEX('Detailed price list'!D$5:D$237,MATCH($B21,'Detailed price list'!$L$5:$L$237,0))), SUMPRODUCT(('Detailed price list'!D$5:D$237)*('Detailed price list'!$M$5:$M$237)*('Detailed price list'!$L$5:$L$237=$B21))/SUMIF('Detailed price list'!$L$5:$L$237,$B21,'Detailed price list'!$M$5:$M$237)) -> 33.42645047 | D21: =IF(SUMIF('Detailed price list'!$L$5:$L$237,$B21,'Detailed price list'!$M$5:$M$237)=0, IFERROR(INDEX('Detailed price list'!E$5:E$237,MATCH($B21,'Detailed price list'!$B$5:$B$237,0)),INDEX('Detailed price list'!E$5:E$237,MATCH($B21,'Detailed price list'!$L$5:$L$237,0))), SUMPRODUCT(('Detailed price list'!E$5:E$237)*('Detailed price list'!$M$5:$M$237)*('Detailed price list'!$L$5:$L$237=$B21))/SUMIF('Detailed price list'!$L$5:$L$237,$B21,'Detailed price list'!$M$5:$M$237)) -> 34.36231792 | E21: =IF(SUMIF('Detailed price list'!$L$5:$L$237,$B21,'Detailed price list'!$M$5:$M$237)=0, IFERROR(INDEX('Detailed price list'!F$5:F$237,MATCH($B21,'Detailed price list'!$B$5:$B$237,0)),INDEX('Detailed price list'!F$5:F$237,MATCH($B21,'Detailed price list'!$L$5:$L$237,0))), SUMPRODUCT(('Detailed price list'!F$5:F$237)*('Detailed price list'!$M$5:$M$237)*('Detailed price list'!$L$5:$L$237=$B21))/SUMIF('Detailed price list'!$L$5:$L$237,$B21,'Detailed price list'!$M$5:$M$237)) -> 35.32438761 | F21: =IF(SUMIF('Detailed price list'!$L$5:$L$237,$B21,'Detailed price list'!$M$5:$M$237)=0, IFERROR(INDEX('Detailed price list'!G$5:G$237,MATCH($B21,'Detailed price list'!$B$5:$B$237,0)),INDEX('Detailed price list'!G$5:G$237,MATCH($B21,'Detailed price list'!$L$5:$L$237,0))), SUMPRODUCT(('Detailed price list'!G$5:G$237)*('Detailed price list'!$M$5:$M$237)*('Detailed price list'!$L$5:$L$237=$B21))/SUMIF('Detailed price list'!$L$5:$L$237,$B21,'Detailed price list'!$M$5:$M$237)) -> 36.31339315 | G21: =IF(SUMIF('Detailed price list'!$L$5:$L$237,$B21,'Detailed price list'!$M$5:$M$237)=0, IFERROR(INDEX('Detailed price list'!H$5:H$237,MATCH($B21,'Detailed price list'!$B$5:$B$237,0)),INDEX('Detailed price list'!H$5:H$237,MATCH($B21,'Detailed price list'!$L$5:$L$237,0))), SUMPRODUCT(('Detailed price list'!H$5:H$237)*('Detailed price list'!$M$5:$M$237)*('Detailed price list'!$L$5:$L$237=$B21))/SUMIF('Detailed price list'!$L$5:$L$237,$B21,'Detailed price list'!$M$5:$M$237)) -> 37.33008868
B22: Legacy Luminaire - Minor (Cat P) road | C22: =IF(SUMIF('Detailed price list'!$L$5:$L$237,$B22,'Detailed price list'!$M$5:$M$237)=0, IFERROR(INDEX('Detailed price list'!D$5:D$237,MATCH($B22,'Detailed price list'!$B$5:$B$237,0)),INDEX('Detailed price list'!D$5:D$237,MATCH($B22,'Detailed price list'!$L$5:$L$237,0))), SUMPRODUCT(('Detailed price list'!D$5:D$237)*('Detailed price list'!$M$5:$M$237)*('Detailed price list'!$L$5:$L$237=$B22))/SUMIF('Detailed price list'!$L$5:$L$237,$B22,'Detailed price list'!$M$5:$M$237)) -> 33.42645047 | D22: =IF(SUMIF('Detailed price list'!$L$5:$L$237,$B22,'Detailed price list'!$M$5:$M$237)=0, IFERROR(INDEX('Detailed price list'!E$5:E$237,MATCH($B22,'Detailed price list'!$B$5:$B$237,0)),INDEX('Detailed price list'!E$5:E$237,MATCH($B22,'Detailed price list'!$L$5:$L$237,0))), SUMPRODUCT(('Detailed price list'!E$5:E$237)*('Detailed price list'!$M$5:$M$237)*('Detailed price list'!$L$5:$L$237=$B22))/SUMIF('Detailed price list'!$L$5:$L$237,$B22,'Detailed price list'!$M$5:$M$237)) -> 34.36231792 | E22: =IF(SUMIF('Detailed price list'!$L$5:$L$237,$B22,'Detailed price list'!$M$5:$M$237)=0, IFERROR(INDEX('Detailed price list'!F$5:F$237,MATCH($B22,'Detailed price list'!$B$5:$B$237,0)),INDEX('Detailed price list'!F$5:F$237,MATCH($B22,'Detailed price list'!$L$5:$L$237,0))), SUMPRODUCT(('Detailed price list'!F$5:F$237)*('Detailed price list'!$M$5:$M$237)*('Detailed price list'!$L$5:$L$237=$B22))/SUMIF('Detailed price list'!$L$5:$L$237,$B22,'Detailed price list'!$M$5:$M$237)) -> 35.32438761 | F22: =IF(SUMIF('Detailed price list'!$L$5:$L$237,$B22,'Detailed price list'!$M$5:$M$237)=0, IFERROR(INDEX('Detailed price list'!G$5:G$237,MATCH($B22,'Detailed price list'!$B$5:$B$237,0)),INDEX('Detailed price list'!G$5:G$237,MATCH($B22,'Detailed price list'!$L$5:$L$237,0))), SUMPRODUCT(('Detailed price list'!G$5:G$237)*('Detailed price list'!$M$5:$M$237)*('Detailed price list'!$L$5:$L$237=$B22))/SUMIF('Detailed price list'!$L$5:$L$237,$B22,'Detailed price list'!$M$5:$M$237)) -> 36.31339315 | G22: =IF(SUMIF('Detailed price list'!$L$5:$L$237,$B22,'Detailed price list'!$M$5:$M$237)=0, IFERROR(INDEX('Detailed price list'!H$5:H$237,MATCH($B22,'Detailed price list'!$B$5:$B$237,0)),INDEX('Detailed price list'!H$5:H$237,MATCH($B22,'Detailed price list'!$L$5:$L$237,0))), SUMPRODUCT(('Detailed price list'!H$5:H$237)*('Detailed price list'!$M$5:$M$237)*('Detailed price list'!$L$5:$L$237=$B22))/SUMIF('Detailed price list'!$L$5:$L$237,$B22,'Detailed price list'!$M$5:$M$237)) -> 37.33008868
B23: Legacy Luminaire - Major (Cat V) road | C23: =IF(SUMIF('Detailed price list'!$L$5:$L$237,$B23,'Detailed price list'!$M$5:$M$237)=0, IFERROR(INDEX('Detailed price list'!D$5:D$237,MATCH($B23,'Detailed price list'!$B$5:$B$237,0)),INDEX('Detailed price list'!D$5:D$237,MATCH($B23,'Detailed price list'!$L$5:$L$237,0))), SUMPRODUCT(('Detailed price list'!D$5:D$237)*('Detailed price list'!$M$5:$M$237)*('Detailed price list'!$L$5:$L$237=$B23))/SUMIF('Detailed price list'!$L$5:$L$237,$B23,'Detailed price list'!$M$5:$M$237)) -> 53.40881817 | D23: =IF(SUMIF('Detailed price list'!$L$5:$L$237,$B23,'Detailed price list'!$M$5:$M$237)=0, IFERROR(INDEX('Detailed price list'!E$5:E$237,MATCH($B23,'Detailed price list'!$B$5:$B$237,0)),INDEX('Detailed price list'!E$5:E$237,MATCH($B23,'Detailed price list'!$L$5:$L$237,0))), SUMPRODUCT(('Detailed price list'!E$5:E$237)*('Detailed price list'!$M$5:$M$237)*('Detailed price list'!$L$5:$L$237=$B23))/SUMIF('Detailed price list'!$L$5:$L$237,$B23,'Detailed price list'!$M$5:$M$237)) -> 54.90414818 | E23: =IF(SUMIF('Detailed price list'!$L$5:$L$237,$B23,'Detailed price list'!$M$5:$M$237)=0, IFERROR(INDEX('Detailed price list'!F$5:F$237,MATCH($B23,'Detailed price list'!$B$5:$B$237,0)),INDEX('Detailed price list'!F$5:F$237,MATCH($B23,'Detailed price list'!$L$5:$L$237,0))), SUMPRODUCT(('Detailed price list'!F$5:F$237)*('Detailed price list'!$M$5:$M$237)*('Detailed price list'!$L$5:$L$237=$B23))/SUMIF('Detailed price list'!$L$5:$L$237,$B23,'Detailed price list'!$M$5:$M$237)) -> 56.44134416 | F23: =IF(SUMIF('Detailed price list'!$L$5:$L$237,$B23,'Detailed price list'!$M$5:$M$237)=0, IFERROR(INDEX('Detailed price list'!G$5:G$237,MATCH($B23,'Detailed price list'!$B$5:$B$237,0)),INDEX('Detailed price list'!G$5:G$237,MATCH($B23,'Detailed price list'!$L$5:$L$237,0))), SUMPRODUCT(('Detailed price list'!G$5:G$237)*('Detailed price list'!$M$5:$M$237)*('Detailed price list'!$L$5:$L$237=$B23))/SUMIF('Detailed price list'!$L$5:$L$237,$B23,'Detailed price list'!$M$5:$M$237)) -> 58.02157826 | G23: =IF(SUMIF('Detailed price list'!$L$5:$L$237,$B23,'Detailed price list'!$M$5:$M$237)=0, IFERROR(INDEX('Detailed price list'!H$5:H$237,MATCH($B23,'Detailed price list'!$B$5:$B$237,0)),INDEX('Detailed price list'!H$5:H$237,MATCH($B23,'Detailed price list'!$L$5:$L$237,0))), SUMPRODUCT(('Detailed price list'!H$5:H$237)*('Detailed price list'!$M$5:$M$237)*('Detailed price list'!$L$5:$L$237=$B23))/SUMIF('Detailed price list'!$L$5:$L$237,$B23,'Detailed price list'!$M$5:$M$237)) -> 59.64605546
B24: Legacy Luminaire - Major (Cat V) road | C24: =IF(SUMIF('Detailed price list'!$L$5:$L$237,$B24,'Detailed price list'!$M$5:$M$237)=0, IFERROR(INDEX('Detailed price list'!D$5:D$237,MATCH($B24,'Detailed price list'!$B$5:$B$237,0)),INDEX('Detailed price list'!D$5:D$237,MATCH($B24,'Detailed price list'!$L$5:$L$237,0))), SUMPRODUCT(('Detailed price list'!D$5:D$237)*('Detailed price list'!$M$5:$M$237)*('Detailed price list'!$L$5:$L$237=$B24))/SUMIF('Detailed price list'!$L$5:$L$237,$B24,'Detailed price list'!$M$5:$M$237)) -> 53.40881817 | D24: =IF(SUMIF('Detailed price list'!$L$5:$L$237,$B24,'Detailed price list'!$M$5:$M$237)=0, IFERROR(INDEX('Detailed price list'!E$5:E$237,MATCH($B24,'Detailed price list'!$B$5:$B$237,0)),INDEX('Detailed price list'!E$5:E$237,MATCH($B24,'Detailed price list'!$L$5:$L$237,0))), SUMPRODUCT(('Detailed price list'!E$5:E$237)*('Detailed price list'!$M$5:$M$237)*('Detailed price list'!$L$5:$L$237=$B24))/SUMIF('Detailed price list'!$L$5:$L$237,$B24,'Detailed price list'!$M$5:$M$237)) -> 54.90414818 | E24: =IF(SUMIF('Detailed price list'!$L$5:$L$237,$B24,'Detailed price list'!$M$5:$M$237)=0, IFERROR(INDEX('Detailed price list'!F$5:F$237,MATCH($B24,'Detailed price list'!$B$5:$B$237,0)),INDEX('Detailed price list'!F$5:F$237,MATCH($B24,'Detailed price list'!$L$5:$L$237,0))), SUMPRODUCT(('Detailed price list'!F$5:F$237)*('Detailed price list'!$M$5:$M$237)*('Detailed price list'!$L$5:$L$237=$B24))/SUMIF('Detailed price list'!$L$5:$L$237,$B24,'Detailed price list'!$M$5:$M$237)) -> 56.44134416 | F24: =IF(SUMIF('Detailed price list'!$L$5:$L$237,$B24,'Detailed price list'!$M$5:$M$237)=0, IFERROR(INDEX('Detailed price list'!G$5:G$237,MATCH($B24,'Detailed price list'!$B$5:$B$237,0)),INDEX('Detailed price list'!G$5:G$237,MATCH($B24,'Detailed price list'!$L$5:$L$237,0))), SUMPRODUCT(('Detailed price list'!G$5:G$237)*('Detailed price list'!$M$5:$M$237)*('Detailed price list'!$L$5:$L$237=$B24))/SUMIF('Detailed price list'!$L$5:$L$237,$B24,'Detailed price list'!$M$5:$M$237)) -> 58.02157826 | G24: =IF(SUMIF('Detailed price list'!$L$5:$L$237,$B24,'Detailed price list'!$M$5:$M$237)=0, IFERROR(INDEX('Detailed price list'!H$5:H$237,MATCH($B24,'Detailed price list'!$B$5:$B$237,0)),INDEX('Detailed price list'!H$5:H$237,MATCH($B24,'Detailed price list'!$L$5:$L$237,0))), SUMPRODUCT(('Detailed price list'!H$5:H$237)*('Detailed price list'!$M$5:$M$237)*('Detailed price list'!$L$5:$L$237=$B24))/SUMIF('Detailed price list'!$L$5:$L$237,$B24,'Detailed price list'!$M$5:$M$237)) -> 59.64605546
B25: Legacy Luminaire - Major (Cat V) road | C25: =IF(SUMIF('Detailed price list'!$L$5:$L$237,$B25,'Detailed price list'!$M$5:$M$237)=0, IFERROR(INDEX('Detailed price list'!D$5:D$237,MATCH($B25,'Detailed price list'!$B$5:$B$237,0)),INDEX('Detailed price list'!D$5:D$237,MATCH($B25,'Detailed price list'!$L$5:$L$237,0))), SUMPRODUCT(('Detailed price list'!D$5:D$237)*('Detailed price list'!$M$5:$M$237)*('Detailed price list'!$L$5:$L$237=$B25))/SUMIF('Detailed price list'!$L$5:$L$237,$B25,'Detailed price list'!$M$5:$M$237)) -> 53.40881817 | D25: =IF(SUMIF('Detailed price list'!$L$5:$L$237,$B25,'Detailed price list'!$M$5:$M$237)=0, IFERROR(INDEX('Detailed price list'!E$5:E$237,MATCH($B25,'Detailed price list'!$B$5:$B$237,0)),INDEX('Detailed price list'!E$5:E$237,MATCH($B25,'Detailed price list'!$L$5:$L$237,0))), SUMPRODUCT(('Detailed price list'!E$5:E$237)*('Detailed price list'!$M$5:$M$237)*('Detailed price list'!$L$5:$L$237=$B25))/SUMIF('Detailed price list'!$L$5:$L$237,$B25,'Detailed price list'!$M$5:$M$237)) -> 54.90414818 | E25: =IF(SUMIF('Detailed price list'!$L$5:$L$237,$B25,'Detailed price list'!$M$5:$M$237)=0, IFERROR(INDEX('Detailed price list'!F$5:F$237,MATCH($B25,'Detailed price list'!$B$5:$B$237,0)),INDEX('Detailed price list'!F$5:F$237,MATCH($B25,'Detailed price list'!$L$5:$L$237,0))), SUMPRODUCT(('Detailed price list'!F$5:F$237)*('Detailed price list'!$M$5:$M$237)*('Detailed price list'!$L$5:$L$237=$B25))/SUMIF('Detailed price list'!$L$5:$L$237,$B25,'Detailed price list'!$M$5:$M$237)) -> 56.44134416 | F25: =IF(SUMIF('Detailed price list'!$L$5:$L$237,$B25,'Detailed price list'!$M$5:$M$237)=0, IFERROR(INDEX('Detailed price list'!G$5:G$237,MATCH($B25,'Detailed price list'!$B$5:$B$237,0)),INDEX('Detailed price list'!G$5:G$237,MATCH($B25,'Detailed price list'!$L$5:$L$237,0))), SUMPRODUCT(('Detailed price list'!G$5:G$237)*('Detailed price list'!$M$5:$M$237)*('Detailed price list'!$L$5:$L$237=$B25))/SUMIF('Detailed price list'!$L$5:$L$237,$B25,'Detailed price list'!$M$5:$M$237)) -> 58.02157826 | G25: =IF(SUMIF('Detailed price list'!$L$5:$L$237,$B25,'Detailed price list'!$M$5:$M$237)=0, IFERROR(INDEX('Detailed price list'!H$5:H$237,MATCH($B25,'Detailed price list'!$B$5:$B$237,0)),INDEX('Detailed price list'!H$5:H$237,MATCH($B25,'Detailed price list'!$L$5:$L$237,0))), SUMPRODUCT(('Detailed price list'!H$5:H$237)*('Detailed price list'!$M$5:$M$237)*('Detailed price list'!$L$5:$L$237=$B25))/SUMIF('Detailed price list'!$L$5:$L$237,$B25,'Detailed price list'!$M$5:$M$237)) -> 59.64605546
B26: Legacy Luminaire - Major (Cat V) road | C26: =IF(SUMIF('Detailed price list'!$L$5:$L$237,$B26,'Detailed price list'!$M$5:$M$237)=0, IFERROR(INDEX('Detailed price list'!D$5:D$237,MATCH($B26,'Detailed price list'!$B$5:$B$237,0)),INDEX('Detailed price list'!D$5:D$237,MATCH($B26,'Detailed price list'!$L$5:$L$237,0))), SUMPRODUCT(('Detailed price list'!D$5:D$237)*('Detailed price list'!$M$5:$M$237)*('Detailed price list'!$L$5:$L$237=$B26))/SUMIF('Detailed price list'!$L$5:$L$237,$B26,'Detailed price list'!$M$5:$M$237)) -> 53.40881817 | D26: =IF(SUMIF('Detailed price list'!$L$5:$L$237,$B26,'Detailed price list'!$M$5:$M$237)=0, IFERROR(INDEX('Detailed price list'!E$5:E$237,MATCH($B26,'Detailed price list'!$B$5:$B$237,0)),INDEX('Detailed price list'!E$5:E$237,MATCH($B26,'Detailed price list'!$L$5:$L$237,0))), SUMPRODUCT(('Detailed price list'!E$5:E$237)*('Detailed price list'!$M$5:$M$237)*('Detailed price list'!$L$5:$L$237=$B26))/SUMIF('Detailed price list'!$L$5:$L$237,$B26,'Detailed price list'!$M$5:$M$237)) -> 54.90414818 | E26: =IF(SUMIF('Detailed price list'!$L$5:$L$237,$B26,'Detailed price list'!$M$5:$M$237)=0, IFERROR(INDEX('Detailed price list'!F$5:F$237,MATCH($B26,'Detailed price list'!$B$5:$B$237,0)),INDEX('Detailed price list'!F$5:F$237,MATCH($B26,'Detailed price list'!$L$5:$L$237,0))), SUMPRODUCT(('Detailed price list'!F$5:F$237)*('Detailed price list'!$M$5:$M$237)*('Detailed price list'!$L$5:$L$237=$B26))/SUMIF('Detailed price list'!$L$5:$L$237,$B26,'Detailed price list'!$M$5:$M$237)) -> 56.44134416 | F26: =IF(SUMIF('Detailed price list'!$L$5:$L$237,$B26,'Detailed price list'!$M$5:$M$237)=0, IFERROR(INDEX('Detailed price list'!G$5:G$237,MATCH($B26,'Detailed price list'!$B$5:$B$237,0)),INDEX('Detailed price list'!G$5:G$237,MATCH($B26,'Detailed price list'!$L$5:$L$237,0))), SUMPRODUCT(('Detailed price list'!G$5:G$237)*('Detailed price list'!$M$5:$M$237)*('Detailed price list'!$L$5:$L$237=$B26))/SUMIF('Detailed price list'!$L$5:$L$237,$B26,'Detailed price list'!$M$5:$M$237)) -> 58.02157826 | G26: =IF(SUMIF('Detailed price list'!$L$5:$L$237,$B26,'Detailed price list'!$M$5:$M$237)=0, IFERROR(INDEX('Detailed price list'!H$5:H$237,MATCH($B26,'Detailed price list'!$B$5:$B$237,0)),INDEX('Detailed price list'!H$5:H$237,MATCH($B26,'Detailed price list'!$L$5:$L$237,0))), SUMPRODUCT(('Detailed price list'!H$5:H$237)*('Detailed price list'!$M$5:$M$237)*('Detailed price list'!$L$5:$L$237=$B26))/SUMIF('Detailed price list'!$L$5:$L$237,$B26,'Detailed price list'!$M$5:$M$237)) -> 59.64605546
B27: Legacy Luminaire - Major (Cat V) road | C27: =IF(SUMIF('Detailed price list'!$L$5:$L$237,$B27,'Detailed price list'!$M$5:$M$237)=0, IFERROR(INDEX('Detailed price list'!D$5:D$237,MATCH($B27,'Detailed price list'!$B$5:$B$237,0)),INDEX('Detailed price list'!D$5:D$237,MATCH($B27,'Detailed price list'!$L$5:$L$237,0))), SUMPRODUCT(('Detailed price list'!D$5:D$237)*('Detailed price list'!$M$5:$M$237)*('Detailed price list'!$L$5:$L$237=$B27))/SUMIF('Detailed price list'!$L$5:$L$237,$B27,'Detailed price list'!$M$5:$M$237)) -> 53.40881817 | D27: =IF(SUMIF('Detailed price list'!$L$5:$L$237,$B27,'Detailed price list'!$M$5:$M$237)=0, IFERROR(INDEX('Detailed price list'!E$5:E$237,MATCH($B27,'Detailed price list'!$B$5:$B$237,0)),INDEX('Detailed price list'!E$5:E$237,MATCH($B27,'Detailed price list'!$L$5:$L$237,0))), SUMPRODUCT(('Detailed price list'!E$5:E$237)*('Detailed price list'!$M$5:$M$237)*('Detailed price list'!$L$5:$L$237=$B27))/SUMIF('Detailed price list'!$L$5:$L$237,$B27,'Detailed price list'!$M$5:$M$237)) -> 54.90414818 | E27: =IF(SUMIF('Detailed price list'!$L$5:$L$237,$B27,'Detailed price list'!$M$5:$M$237)=0, IFERROR(INDEX('Detailed price list'!F$5:F$237,MATCH($B27,'Detailed price list'!$B$5:$B$237,0)),INDEX('Detailed price list'!F$5:F$237,MATCH($B27,'Detailed price list'!$L$5:$L$237,0))), SUMPRODUCT(('Detailed price list'!F$5:F$237)*('Detailed price list'!$M$5:$M$237)*('Detailed price list'!$L$5:$L$237=$B27))/SUMIF('Detailed price list'!$L$5:$L$237,$B27,'Detailed price list'!$M$5:$M$237)) -> 56.44134416 | F27: =IF(SUMIF('Detailed price list'!$L$5:$L$237,$B27,'Detailed price list'!$M$5:$M$237)=0, IFERROR(INDEX('Detailed price list'!G$5:G$237,MATCH($B27,'Detailed price list'!$B$5:$B$237,0)),INDEX('Detailed price list'!G$5:G$237,MATCH($B27,'Detailed price list'!$L$5:$L$237,0))), SUMPRODUCT(('Detailed price list'!G$5:G$237)*('Detailed price list'!$M$5:$M$237)*('Detailed price list'!$L$5:$L$237=$B27))/SUMIF('Detailed price list'!$L$5:$L$237,$B27,'Detailed price list'!$M$5:$M$237)) -> 58.02157826 | G27: =IF(SUMIF('Detailed price list'!$L$5:$L$237,$B27,'Detailed price list'!$M$5:$M$237)=0, IFERROR(INDEX('Detailed price list'!H$5:H$237,MATCH($B27,'Detailed price list'!$B$5:$B$237,0)),INDEX('Detailed price list'!H$5:H$237,MATCH($B27,'Detailed price list'!$L$5:$L$237,0))), SUMPRODUCT(('Detailed price list'!H$5:H$237)*('Detailed price list'!$M$5:$M$237)*('Detailed price list'!$L$5:$L$237=$B27))/SUMIF('Detailed price list'!$L$5:$L$237,$B27,'Detailed price list'!$M$5:$M$237)) -> 59.64605546
B28: Legacy Luminaire - Major (Cat V) road | C28: =IF(SUMIF('Detailed price list'!$L$5:$L$237,$B28,'Detailed price list'!$M$5:$M$237)=0, IFERROR(INDEX('Detailed price list'!D$5:D$237,MATCH($B28,'Detailed price list'!$B$5:$B$237,0)),INDEX('Detailed price list'!D$5:D$237,MATCH($B28,'Detailed price list'!$L$5:$L$237,0))), SUMPRODUCT(('Detailed price list'!D$5:D$237)*('Detailed price list'!$M$5:$M$237)*('Detailed price list'!$L$5:$L$237=$B28))/SUMIF('Detailed price list'!$L$5:$L$237,$B28,'Detailed price list'!$M$5:$M$237)) -> 53.40881817 | D28: =IF(SUMIF('Detailed price list'!$L$5:$L$237,$B28,'Detailed price list'!$M$5:$M$237)=0, IFERROR(INDEX('Detailed price list'!E$5:E$237,MATCH($B28,'Detailed price list'!$B$5:$B$237,0)),INDEX('Detailed price list'!E$5:E$237,MATCH($B28,'Detailed price list'!$L$5:$L$237,0))), SUMPRODUCT(('Detailed price list'!E$5:E$237)*('Detailed price list'!$M$5:$M$237)*('Detailed price list'!$L$5:$L$237=$B28))/SUMIF('Detailed price list'!$L$5:$L$237,$B28,'Detailed price list'!$M$5:$M$237)) -> 54.90414818 | E28: =IF(SUMIF('Detailed price list'!$L$5:$L$237,$B28,'Detailed price list'!$M$5:$M$237)=0, IFERROR(INDEX('Detailed price list'!F$5:F$237,MATCH($B28,'Detailed price list'!$B$5:$B$237,0)),INDEX('Detailed price list'!F$5:F$237,MATCH($B28,'Detailed price list'!$L$5:$L$237,0))), SUMPRODUCT(('Detailed price list'!F$5:F$237)*('Detailed price list'!$M$5:$M$237)*('Detailed price list'!$L$5:$L$237=$B28))/SUMIF('Detailed price list'!$L$5:$L$237,$B28,'Detailed price list'!$M$5:$M$237)) -> 56.44134416 | F28: =IF(SUMIF('Detailed price list'!$L$5:$L$237,$B28,'Detailed price list'!$M$5:$M$237)=0, IFERROR(INDEX('Detailed price list'!G$5:G$237,MATCH($B28,'Detailed price list'!$B$5:$B$237,0)),INDEX('Detailed price list'!G$5:G$237,MATCH($B28,'Detailed price list'!$L$5:$L$237,0))), SUMPRODUCT(('Detailed price list'!G$5:G$237)*('Detailed price list'!$M$5:$M$237)*('Detailed price list'!$L$5:$L$237=$B28))/SUMIF('Detailed price list'!$L$5:$L$237,$B28,'Detailed price list'!$M$5:$M$237)) -> 58.02157826 | G28: =IF(SUMIF('Detailed price list'!$L$5:$L$237,$B28,'Detailed price list'!$M$5:$M$237)=0, IFERROR(INDEX('Detailed price list'!H$5:H$237,MATCH($B28,'Detailed price list'!$B$5:$B$237,0)),INDEX('Detailed price list'!H$5:H$237,MATCH($B28,'Detailed price list'!$L$5:$L$237,0))), SUMPRODUCT(('Detailed price list'!H$5:H$237)*('Detailed price list'!$M$5:$M$237)*('Detailed price list'!$L$5:$L$237=$B28))/SUMIF('Detailed price list'!$L$5:$L$237,$B28,'Detailed price list'!$M$5:$M$237)) -> 59.64605546
B29: Legacy Luminaire - Major (Cat V) road | C29: =IF(SUMIF('Detailed price list'!$L$5:$L$237,$B29,'Detailed price list'!$M$5:$M$237)=0, IFERROR(INDEX('Detailed price list'!D$5:D$237,MATCH($B29,'Detailed price list'!$B$5:$B$237,0)),INDEX('Detailed price list'!D$5:D$237,MATCH($B29,'Detailed price list'!$L$5:$L$237,0))), SUMPRODUCT(('Detailed price list'!D$5:D$237)*('Detailed price list'!$M$5:$M$237)*('Detailed price list'!$L$5:$L$237=$B29))/SUMIF('Detailed price list'!$L$5:$L$237,$B29,'Detailed price list'!$M$5:$M$237)) -> 53.40881817 | D29: =IF(SUMIF('Detailed price list'!$L$5:$L$237,$B29,'Detailed price list'!$M$5:$M$237)=0, IFERROR(INDEX('Detailed price list'!E$5:E$237,MATCH($B29,'Detailed price list'!$B$5:$B$237,0)),INDEX('Detailed price list'!E$5:E$237,MATCH($B29,'Detailed price list'!$L$5:$L$237,0))), SUMPRODUCT(('Detailed price list'!E$5:E$237)*('Detailed price list'!$M$5:$M$237)*('Detailed price list'!$L$5:$L$237=$B29))/SUMIF('Detailed price list'!$L$5:$L$237,$B29,'Detailed price list'!$M$5:$M$237)) -> 54.90414818 | E29: =IF(SUMIF('Detailed price list'!$L$5:$L$237,$B29,'Detailed price list'!$M$5:$M$237)=0, IFERROR(INDEX('Detailed price list'!F$5:F$237,MATCH($B29,'Detailed price list'!$B$5:$B$237,0)),INDEX('Detailed price list'!F$5:F$237,MATCH($B29,'Detailed price list'!$L$5:$L$237,0))), SUMPRODUCT(('Detailed price list'!F$5:F$237)*('Detailed price list'!$M$5:$M$237)*('Detailed price list'!$L$5:$L$237=$B29))/SUMIF('Detailed price list'!$L$5:$L$237,$B29,'Detailed price list'!$M$5:$M$237)) -> 56.44134416 | F29: =IF(SUMIF('Detailed price list'!$L$5:$L$237,$B29,'Detailed price list'!$M$5:$M$237)=0, IFERROR(INDEX('Detailed price list'!G$5:G$237,MATCH($B29,'Detailed price list'!$B$5:$B$237,0)),INDEX('Detailed price list'!G$5:G$237,MATCH($B29,'Detailed price list'!$L$5:$L$237,0))), SUMPRODUCT(('Detailed price list'!G$5:G$237)*('Detailed price list'!$M$5:$M$237)*('Detailed price list'!$L$5:$L$237=$B29))/SUMIF('Detailed price list'!$L$5:$L$237,$B29,'Detailed price list'!$M$5:$M$237)) -> 58.02157826 | G29: =IF(SUMIF('Detailed price list'!$L$5:$L$237,$B29,'Detailed price list'!$M$5:$M$237)=0, IFERROR(INDEX('Detailed price list'!H$5:H$237,MATCH($B29,'Detailed price list'!$B$5:$B$237,0)),INDEX('Detailed price list'!H$5:H$237,MATCH($B29,'Detailed price list'!$L$5:$L$237,0))), SUMPRODUCT(('Detailed price list'!H$5:H$237)*('Detailed price list'!$M$5:$M$237)*('Detailed price list'!$L$5:$L$237=$B29))/SUMIF('Detailed price list'!$L$5:$L$237,$B29,'Detailed price list'!$M$5:$M$237)) -> 59.64605546
B30: Legacy Luminaire - Major (Cat V) road | C30: =IF(SUMIF('Detailed price list'!$L$5:$L$237,$B30,'Detailed price list'!$M$5:$M$237)=0, IFERROR(INDEX('Detailed price list'!D$5:D$237,MATCH($B30,'Detailed price list'!$B$5:$B$237,0)),INDEX('Detailed price list'!D$5:D$237,MATCH($B30,'Detailed price list'!$L$5:$L$237,0))), SUMPRODUCT(('Detailed price list'!D$5:D$237)*('Detailed price list'!$M$5:$M$237)*('Detailed price list'!$L$5:$L$237=$B30))/SUMIF('Detailed price list'!$L$5:$L$237,$B30,'Detailed price list'!$M$5:$M$237)) -> 53.40881817 | D30: =IF(SUMIF('Detailed price list'!$L$5:$L$237,$B30,'Detailed price list'!$M$5:$M$237)=0, IFERROR(INDEX('Detailed price list'!E$5:E$237,MATCH($B30,'Detailed price list'!$B$5:$B$237,0)),INDEX('Detailed price list'!E$5:E$237,MATCH($B30,'Detailed price list'!$L$5:$L$237,0))), SUMPRODUCT(('Detailed price list'!E$5:E$237)*('Detailed price list'!$M$5:$M$237)*('Detailed price list'!$L$5:$L$237=$B30))/SUMIF('Detailed price list'!$L$5:$L$237,$B30,'Detailed price list'!$M$5:$M$237)) -> 54.90414818 | E30: =IF(SUMIF('Detailed price list'!$L$5:$L$237,$B30,'Detailed price list'!$M$5:$M$237)=0, IFERROR(INDEX('Detailed price list'!F$5:F$237,MATCH($B30,'Detailed price list'!$B$5:$B$237,0)),INDEX('Detailed price list'!F$5:F$237,MATCH($B30,'Detailed price list'!$L$5:$L$237,0))), SUMPRODUCT(('Detailed price list'!F$5:F$237)*('Detailed price list'!$M$5:$M$237)*('Detailed price list'!$L$5:$L$237=$B30))/SUMIF('Detailed price list'!$L$5:$L$237,$B30,'Detailed price list'!$M$5:$M$237)) -> 56.44134416 | F30: =IF(SUMIF('Detailed price list'!$L$5:$L$237,$B30,'Detailed price list'!$M$5:$M$237)=0, IFERROR(INDEX('Detailed price list'!G$5:G$237,MATCH($B30,'Detailed price list'!$B$5:$B$237,0)),INDEX('Detailed price list'!G$5:G$237,MATCH($B30,'Detailed price list'!$L$5:$L$237,0))), SUMPRODUCT(('Detailed price list'!G$5:G$237)*('Detailed price list'!$M$5:$M$237)*('Detailed price list'!$L$5:$L$237=$B30))/SUMIF('Detailed price list'!$L$5:$L$237,$B30,'Detailed price list'!$M$5:$M$237)) -> 58.02157826 | G30: =IF(SUMIF('Detailed price list'!$L$5:$L$237,$B30,'Detailed price list'!$M$5:$M$237)=0, IFERROR(INDEX('Detailed price list'!H$5:H$237,MATCH($B30,'Detailed price list'!$B$5:$B$237,0)),INDEX('Detailed price list'!H$5:H$237,MATCH($B30,'Detailed price list'!$L$5:$L$237,0))), SUMPRODUCT(('Detailed price list'!H$5:H$237)*('Detailed price list'!$M$5:$M$237)*('Detailed price list'!$L$5:$L$237=$B30))/SUMIF('Detailed price list'!$L$5:$L$237,$B30,'Detailed price list'!$M$5:$M$237)) -> 59.64605546
B31: Legacy Luminaire - Minor (Cat P) road | C31: =IF(SUMIF('Detailed price list'!$L$5:$L$237,$B31,'Detailed price list'!$M$5:$M$237)=0, IFERROR(INDEX('Detailed price list'!D$5:D$237,MATCH($B31,'Detailed price list'!$B$5:$B$237,0)),INDEX('Detailed price list'!D$5:D$237,MATCH($B31,'Detailed price list'!$L$5:$L$237,0))), SUMPRODUCT(('Detailed price list'!D$5:D$237)*('Detailed price list'!$M$5:$M$237)*('Detailed price list'!$L$5:$L$237=$B31))/SUMIF('Detailed price list'!$L$5:$L$237,$B31,'Detailed price list'!$M$5:$M$237)) -> 33.42645047 | D31: =IF(SUMIF('Detailed price list'!$L$5:$L$237,$B31,'Detailed price list'!$M$5:$M$237)=0, IFERROR(INDEX('Detailed price list'!E$5:E$237,MATCH($B31,'Detailed price list'!$B$5:$B$237,0)),INDEX('Detailed price list'!E$5:E$237,MATCH($B31,'Detailed price list'!$L$5:$L$237,0))), SUMPRODUCT(('Detailed price list'!E$5:E$237)*('Detailed price list'!$M$5:$M$237)*('Detailed price list'!$L$5:$L$237=$B31))/SUMIF('Detailed price list'!$L$5:$L$237,$B31,'Detailed price list'!$M$5:$M$237)) -> 34.36231792 | E31: =IF(SUMIF('Detailed price list'!$L$5:$L$237,$B31,'Detailed price list'!$M$5:$M$237)=0, IFERROR(INDEX('Detailed price list'!F$5:F$237,MATCH($B31,'Detailed price list'!$B$5:$B$237,0)),INDEX('Detailed price list'!F$5:F$237,MATCH($B31,'Detailed price list'!$L$5:$L$237,0))), SUMPRODUCT(('Detailed price list'!F$5:F$237)*('Detailed price list'!$M$5:$M$237)*('Detailed price list'!$L$5:$L$237=$B31))/SUMIF('Detailed price list'!$L$5:$L$237,$B31,'Detailed price list'!$M$5:$M$237)) -> 35.32438761 | F31: =IF(SUMIF('Detailed price list'!$L$5:$L$237,$B31,'Detailed price list'!$M$5:$M$237)=0, IFERROR(INDEX('Detailed price list'!G$5:G$237,MATCH($B31,'Detailed price list'!$B$5:$B$237,0)),INDEX('Detailed price list'!G$5:G$237,MATCH($B31,'Detailed price list'!$L$5:$L$237,0))), SUMPRODUCT(('Detailed price list'!G$5:G$237)*('Detailed price list'!$M$5:$M$237)*('Detailed price list'!$L$5:$L$237=$B31))/SUMIF('Detailed price list'!$L$5:$L$237,$B31,'Detailed price list'!$M$5:$M$237)) -> 36.31339315 | G31: =IF(SUMIF('Detailed price list'!$L$5:$L$237,$B31,'Detailed price list'!$M$5:$M$237)=0, IFERROR(INDEX('Detailed price list'!H$5:H$237,MATCH($B31,'Detailed price list'!$B$5:$B$237,0)),INDEX('Detailed price list'!H$5:H$237,MATCH($B31,'Detailed price list'!$L$5:$L$237,0))), SUMPRODUCT(('Detailed price list'!H$5:H$237)*('Detailed price list'!$M$5:$M$237)*('Detailed price list'!$L$5:$L$237=$B31))/SUMIF('Detailed price list'!$L$5:$L$237,$B31,'Detailed price list'!$M$5:$M$237)) -> 37.33008868
B32: Legacy Luminaire - Major (Cat V) road | C32: =IF(SUMIF('Detailed price list'!$L$5:$L$237,$B32,'Detailed price list'!$M$5:$M$237)=0, IFERROR(INDEX('Detailed price list'!D$5:D$237,MATCH($B32,'Detailed price list'!$B$5:$B$237,0)),INDEX('Detailed price list'!D$5:D$237,MATCH($B32,'Detailed price list'!$L$5:$L$237,0))), SUMPRODUCT(('Detailed price list'!D$5:D$237)*('Detailed price list'!$M$5:$M$237)*('Detailed price list'!$L$5:$L$237=$B32))/SUMIF('Detailed price list'!$L$5:$L$237,$B32,'Detailed price list'!$M$5:$M$237)) -> 53.40881817 | D32: =IF(SUMIF('Detailed price list'!$L$5:$L$237,$B32,'Detailed price list'!$M$5:$M$237)=0, IFERROR(INDEX('Detailed price list'!E$5:E$237,MATCH($B32,'Detailed price list'!$B$5:$B$237,0)),INDEX('Detailed price list'!E$5:E$237,MATCH($B32,'Detailed price list'!$L$5:$L$237,0))), SUMPRODUCT(('Detailed price list'!E$5:E$237)*('Detailed price list'!$M$5:$M$237)*('Detailed price list'!$L$5:$L$237=$B32))/SUMIF('Detailed price list'!$L$5:$L$237,$B32,'Detailed price list'!$M$5:$M$237)) -> 54.90414818 | E32: =IF(SUMIF('Detailed price list'!$L$5:$L$237,$B32,'Detailed price list'!$M$5:$M$237)=0, IFERROR(INDEX('Detailed price list'!F$5:F$237,MATCH($B32,'Detailed price list'!$B$5:$B$237,0)),INDEX('Detailed price list'!F$5:F$237,MATCH($B32,'Detailed price list'!$L$5:$L$237,0))), SUMPRODUCT(('Detailed price list'!F$5:F$237)*('Detailed price list'!$M$5:$M$237)*('Detailed price list'!$L$5:$L$237=$B32))/SUMIF('Detailed price list'!$L$5:$L$237,$B32,'Detailed price list'!$M$5:$M$237)) -> 56.44134416 | F32: =IF(SUMIF('Detailed price list'!$L$5:$L$237,$B32,'Detailed price list'!$M$5:$M$237)=0, IFERROR(INDEX('Detailed price list'!G$5:G$237,MATCH($B32,'Detailed price list'!$B$5:$B$237,0)),INDEX('Detailed price list'!G$5:G$237,MATCH($B32,'Detailed price list'!$L$5:$L$237,0))), SUMPRODUCT(('Detailed price list'!G$5:G$237)*('Detailed price list'!$M$5:$M$237)*('Detailed price list'!$L$5:$L$237=$B32))/SUMIF('Detailed price list'!$L$5:$L$237,$B32,'Detailed price list'!$M$5:$M$237)) -> 58.02157826 | G32: =IF(SUMIF('Detailed price list'!$L$5:$L$237,$B32,'Detailed price list'!$M$5:$M$237)=0, IFERROR(INDEX('Detailed price list'!H$5:H$237,MATCH($B32,'Detailed price list'!$B$5:$B$237,0)),INDEX('Detailed price list'!H$5:H$237,MATCH($B32,'Detailed price list'!$L$5:$L$237,0))), SUMPRODUCT(('Detailed price list'!H$5:H$237)*('Detailed price list'!$M$5:$M$237)*('Detailed price list'!$L$5:$L$237=$B32))/SUMIF('Detailed price list'!$L$5:$L$237,$B32,'Detailed price list'!$M$5:$M$237)) -> 59.64605546
B33: Legacy Luminaire - Minor (Cat P) road | C33: =IF(SUMIF('Detailed price list'!$L$5:$L$237,$B33,'Detailed price list'!$M$5:$M$237)=0, IFERROR(INDEX('Detailed price list'!D$5:D$237,MATCH($B33,'Detailed price list'!$B$5:$B$237,0)),INDEX('Detailed price list'!D$5:D$237,MATCH($B33,'Detailed price list'!$L$5:$L$237,0))), SUMPRODUCT(('Detailed price list'!D$5:D$237)*('Detailed price list'!$M$5:$M$237)*('Detailed price list'!$L$5:$L$237=$B33))/SUMIF('Detailed price list'!$L$5:$L$237,$B33,'Detailed price list'!$M$5:$M$237)) -> 33.42645047 | D33: =IF(SUMIF('Detailed price list'!$L$5:$L$237,$B33,'Detailed price list'!$M$5:$M$237)=0, IFERROR(INDEX('Detailed price list'!E$5:E$237,MATCH($B33,'Detailed price list'!$B$5:$B$237,0)),INDEX('Detailed price list'!E$5:E$237,MATCH($B33,'Detailed price list'!$L$5:$L$237,0))), SUMPRODUCT(('Detailed price list'!E$5:E$237)*('Detailed price list'!$M$5:$M$237)*('Detailed price list'!$L$5:$L$237=$B33))/SUMIF('Detailed price list'!$L$5:$L$237,$B33,'Detailed price list'!$M$5:$M$237)) -> 34.36231792 | E33: =IF(SUMIF('Detailed price list'!$L$5:$L$237,$B33,'Detailed price list'!$M$5:$M$237)=0, IFERROR(INDEX('Detailed price list'!F$5:F$237,MATCH($B33,'Detailed price list'!$B$5:$B$237,0)),INDEX('Detailed price list'!F$5:F$237,MATCH($B33,'Detailed price list'!$L$5:$L$237,0))), SUMPRODUCT(('Detailed price list'!F$5:F$237)*('Detailed price list'!$M$5:$M$237)*('Detailed price list'!$L$5:$L$237=$B33))/SUMIF('Detailed price list'!$L$5:$L$237,$B33,'Detailed price list'!$M$5:$M$237)) -> 35.32438761 | F33: =IF(SUMIF('Detailed price list'!$L$5:$L$237,$B33,'Detailed price list'!$M$5:$M$237)=0, IFERROR(INDEX('Detailed price list'!G$5:G$237,MATCH($B33,'Detailed price list'!$B$5:$B$237,0)),INDEX('Detailed price list'!G$5:G$237,MATCH($B33,'Detailed price list'!$L$5:$L$237,0))), SUMPRODUCT(('Detailed price list'!G$5:G$237)*('Detailed price list'!$M$5:$M$237)*('Detailed price list'!$L$5:$L$237=$B33))/SUMIF('Detailed price list'!$L$5:$L$237,$B33,'Detailed price list'!$M$5:$M$237)) -> 36.31339315 | G33: =IF(SUMIF('Detailed price list'!$L$5:$L$237,$B33,'Detailed price list'!$M$5:$M$237)=0, IFERROR(INDEX('Detailed price list'!H$5:H$237,MATCH($B33,'Detailed price list'!$B$5:$B$237,0)),INDEX('Detailed price list'!H$5:H$237,MATCH($B33,'Detailed price list'!$L$5:$L$237,0))), SUMPRODUCT(('Detailed price list'!H$5:H$237)*('Detailed price list'!$M$5:$M$237)*('Detailed price list'!$L$5:$L$237=$B33))/SUMIF('Detailed price list'!$L$5:$L$237,$B33,'Detailed price list'!$M$5:$M$237)) -> 37.33008868
B34: Legacy Luminaire - Major (Cat V) road | C34: =IF(SUMIF('Detailed price list'!$L$5:$L$237,$B34,'Detailed price list'!$M$5:$M$237)=0, IFERROR(INDEX('Detailed price list'!D$5:D$237,MATCH($B34,'Detailed price list'!$B$5:$B$237,0)),INDEX('Detailed price list'!D$5:D$237,MATCH($B34,'Detailed price list'!$L$5:$L$237,0))), SUMPRODUCT(('Detailed price list'!D$5:D$237)*('Detailed price list'!$M$5:$M$237)*('Detailed price list'!$L$5:$L$237=$B34))/SUMIF('Detailed price list'!$L$5:$L$237,$B34,'Detailed price list'!$M$5:$M$237)) -> 53.40881817 | D34: =IF(SUMIF('Detailed price list'!$L$5:$L$237,$B34,'Detailed price list'!$M$5:$M$237)=0, IFERROR(INDEX('Detailed price list'!E$5:E$237,MATCH($B34,'Detailed price list'!$B$5:$B$237,0)),INDEX('Detailed price list'!E$5:E$237,MATCH($B34,'Detailed price list'!$L$5:$L$237,0))), SUMPRODUCT(('Detailed price list'!E$5:E$237)*('Detailed price list'!$M$5:$M$237)*('Detailed price list'!$L$5:$L$237=$B34))/SUMIF('Detailed price list'!$L$5:$L$237,$B34,'Detailed price list'!$M$5:$M$237)) -> 54.90414818 | E34: =IF(SUMIF('Detailed price list'!$L$5:$L$237,$B34,'Detailed price list'!$M$5:$M$237)=0, IFERROR(INDEX('Detailed price list'!F$5:F$237,MATCH($B34,'Detailed price list'!$B$5:$B$237,0)),INDEX('Detailed price list'!F$5:F$237,MATCH($B34,'Detailed price list'!$L$5:$L$237,0))), SUMPRODUCT(('Detailed price list'!F$5:F$237)*('Detailed price list'!$M$5:$M$237)*('Detailed price list'!$L$5:$L$237=$B34))/SUMIF('Detailed price list'!$L$5:$L$237,$B34,'Detailed price list'!$M$5:$M$237)) -> 56.44134416 | F34: =IF(SUMIF('Detailed price list'!$L$5:$L$237,$B34,'Detailed price list'!$M$5:$M$237)=0, IFERROR(INDEX('Detailed price list'!G$5:G$237,MATCH($B34,'Detailed price list'!$B$5:$B$237,0)),INDEX('Detailed price list'!G$5:G$237,MATCH($B34,'Detailed price list'!$L$5:$L$237,0))), SUMPRODUCT(('Detailed price list'!G$5:G$237)*('Detailed price list'!$M$5:$M$237)*('Detailed price list'!$L$5:$L$237=$B34))/SUMIF('Detailed price list'!$L$5:$L$237,$B34,'Detailed price list'!$M$5:$M$237)) -> 58.02157826 | G34: =IF(SUMIF('Detailed price list'!$L$5:$L$237,$B34,'Detailed price list'!$M$5:$M$237)=0, IFERROR(INDEX('Detailed price list'!H$5:H$237,MATCH($B34,'Detailed price list'!$B$5:$B$237,0)),INDEX('Detailed price list'!H$5:H$237,MATCH($B34,'Detailed price list'!$L$5:$L$237,0))), SUMPRODUCT(('Detailed price list'!H$5:H$237)*('Detailed price list'!$M$5:$M$237)*('Detailed price list'!$L$5:$L$237=$B34))/SUMIF('Detailed price list'!$L$5:$L$237,$B34,'Detailed price list'!$M$5:$M$237)) -> 59.64605546
B35: Legacy Luminaire - Major (Cat V) road | C35: =IF(SUMIF('Detailed price list'!$L$5:$L$237,$B35,'Detailed price list'!$M$5:$M$237)=0, IFERROR(INDEX('Detailed price list'!D$5:D$237,MATCH($B35,'Detailed price list'!$B$5:$B$237,0)),INDEX('Detailed price list'!D$5:D$237,MATCH($B35,'Detailed price list'!$L$5:$L$237,0))), SUMPRODUCT(('Detailed price list'!D$5:D$237)*('Detailed price list'!$M$5:$M$237)*('Detailed price list'!$L$5:$L$237=$B35))/SUMIF('Detailed price list'!$L$5:$L$237,$B35,'Detailed price list'!$M$5:$M$237)) -> 53.40881817 | D35: =IF(SUMIF('Detailed price list'!$L$5:$L$237,$B35,'Detailed price list'!$M$5:$M$237)=0, IFERROR(INDEX('Detailed price list'!E$5:E$237,MATCH($B35,'Detailed price list'!$B$5:$B$237,0)),INDEX('Detailed price list'!E$5:E$237,MATCH($B35,'Detailed price list'!$L$5:$L$237,0))), SUMPRODUCT(('Detailed price list'!E$5:E$237)*('Detailed price list'!$M$5:$M$237)*('Detailed price list'!$L$5:$L$237=$B35))/SUMIF('Detailed price list'!$L$5:$L$237,$B35,'Detailed price list'!$M$5:$M$237)) -> 54.90414818 | E35: =IF(SUMIF('Detailed price list'!$L$5:$L$237,$B35,'Detailed price list'!$M$5:$M$237)=0, IFERROR(INDEX('Detailed price list'!F$5:F$237,MATCH($B35,'Detailed price list'!$B$5:$B$237,0)),INDEX('Detailed price list'!F$5:F$237,MATCH($B35,'Detailed price list'!$L$5:$L$237,0))), SUMPRODUCT(('Detailed price list'!F$5:F$237)*('Detailed price list'!$M$5:$M$237)*('Detailed price list'!$L$5:$L$237=$B35))/SUMIF('Detailed price list'!$L$5:$L$237,$B35,'Detailed price list'!$M$5:$M$237)) -> 56.44134416 | F35: =IF(SUMIF('Detailed price list'!$L$5:$L$237,$B35,'Detailed price list'!$M$5:$M$237)=0, IFERROR(INDEX('Detailed price list'!G$5:G$237,MATCH($B35,'Detailed price list'!$B$5:$B$237,0)),INDEX('Detailed price list'!G$5:G$237,MATCH($B35,'Detailed price list'!$L$5:$L$237,0))), SUMPRODUCT(('Detailed price list'!G$5:G$237)*('Detailed price list'!$M$5:$M$237)*('Detailed price list'!$L$5:$L$237=$B35))/SUMIF('Detailed price list'!$L$5:$L$237,$B35,'Detailed price list'!$M$5:$M$237)) -> 58.02157826 | G35: =IF(SUMIF('Detailed price list'!$L$5:$L$237,$B35,'Detailed price list'!$M$5:$M$237)=0, IFERROR(INDEX('Detailed price list'!H$5:H$237,MATCH($B35,'Detailed price list'!$B$5:$B$237,0)),INDEX('Detailed price list'!H$5:H$237,MATCH($B35,'Detailed price list'!$L$5:$L$237,0))), SUMPRODUCT(('Detailed price list'!H$5:H$237)*('Detailed price list'!$M$5:$M$237)*('Detailed price list'!$L$5:$L$237=$B35))/SUMIF('Detailed price list'!$L$5:$L$237,$B35,'Detailed price list'!$M$5:$M$237)) -> 59.64605546
B36: Legacy Luminaire - Major (Cat V) road | C36: =IF(SUMIF('Detailed price list'!$L$5:$L$237,$B36,'Detailed price list'!$M$5:$M$237)=0, IFERROR(INDEX('Detailed price list'!D$5:D$237,MATCH($B36,'Detailed price list'!$B$5:$B$237,0)),INDEX('Detailed price list'!D$5:D$237,MATCH($B36,'Detailed price list'!$L$5:$L$237,0))), SUMPRODUCT(('Detailed price list'!D$5:D$237)*('Detailed price list'!$M$5:$M$237)*('Detailed price list'!$L$5:$L$237=$B36))/SUMIF('Detailed price list'!$L$5:$L$237,$B36,'Detailed price list'!$M$5:$M$237)) -> 53.40881817 | D36: =IF(SUMIF('Detailed price list'!$L$5:$L$237,$B36,'Detailed price list'!$M$5:$M$237)=0, IFERROR(INDEX('Detailed price list'!E$5:E$237,MATCH($B36,'Detailed price list'!$B$5:$B$237,0)),INDEX('Detailed price list'!E$5:E$237,MATCH($B36,'Detailed price list'!$L$5:$L$237,0))), SUMPRODUCT(('Detailed price list'!E$5:E$237)*('Detailed price list'!$M$5:$M$237)*('Detailed price list'!$L$5:$L$237=$B36))/SUMIF('Detailed price list'!$L$5:$L$237,$B36,'Detailed price list'!$M$5:$M$237)) -> 54.90414818 | E36: =IF(SUMIF('Detailed price list'!$L$5:$L$237,$B36,'Detailed price list'!$M$5:$M$237)=0, IFERROR(INDEX('Detailed price list'!F$5:F$237,MATCH($B36,'Detailed price list'!$B$5:$B$237,0)),INDEX('Detailed price list'!F$5:F$237,MATCH($B36,'Detailed price list'!$L$5:$L$237,0))), SUMPRODUCT(('Detailed price list'!F$5:F$237)*('Detailed price list'!$M$5:$M$237)*('Detailed price list'!$L$5:$L$237=$B36))/SUMIF('Detailed price list'!$L$5:$L$237,$B36,'Detailed price list'!$M$5:$M$237)) -> 56.44134416 | F36: =IF(SUMIF('Detailed price list'!$L$5:$L$237,$B36,'Detailed price list'!$M$5:$M$237)=0, IFERROR(INDEX('Detailed price list'!G$5:G$237,MATCH($B36,'Detailed price list'!$B$5:$B$237,0)),INDEX('Detailed price list'!G$5:G$237,MATCH($B36,'Detailed price list'!$L$5:$L$237,0))), SUMPRODUCT(('Detailed price list'!G$5:G$237)*('Detailed price list'!$M$5:$M$237)*('Detailed price list'!$L$5:$L$237=$B36))/SUMIF('Detailed price list'!$L$5:$L$237,$B36,'Detailed price list'!$M$5:$M$237)) -> 58.02157826 | G36: =IF(SUMIF('Detailed price list'!$L$5:$L$237,$B36,'Detailed price list'!$M$5:$M$237)=0, IFERROR(INDEX('Detailed price list'!H$5:H$237,MATCH($B36,'Detailed price list'!$B$5:$B$237,0)),INDEX('Detailed price list'!H$5:H$237,MATCH($B36,'Detailed price list'!$L$5:$L$237,0))), SUMPRODUCT(('Detailed price list'!H$5:H$237)*('Detailed price list'!$M$5:$M$237)*('Detailed price list'!$L$5:$L$237=$B36))/SUMIF('Detailed price list'!$L$5:$L$237,$B36,'Detailed price list'!$M$5:$M$237)) -> 59.64605546
B37: Legacy Luminaire - Major (Cat V) road | C37: =IF(SUMIF('Detailed price list'!$L$5:$L$237,$B37,'Detailed price list'!$M$5:$M$237)=0, IFERROR(INDEX('Detailed price list'!D$5:D$237,MATCH($B37,'Detailed price list'!$B$5:$B$237,0)),INDEX('Detailed price list'!D$5:D$237,MATCH($B37,'Detailed price list'!$L$5:$L$237,0))), SUMPRODUCT(('Detailed price list'!D$5:D$237)*('Detailed price list'!$M$5:$M$237)*('Detailed price list'!$L$5:$L$237=$B37))/SUMIF('Detailed price list'!$L$5:$L$237,$B37,'Detailed price list'!$M$5:$M$237)) -> 53.40881817 | D37: =IF(SUMIF('Detailed price list'!$L$5:$L$237,$B37,'Detailed price list'!$M$5:$M$237)=0, IFERROR(INDEX('Detailed price list'!E$5:E$237,MATCH($B37,'Detailed price list'!$B$5:$B$237,0)),INDEX('Detailed price list'!E$5:E$237,MATCH($B37,'Detailed price list'!$L$5:$L$237,0))), SUMPRODUCT(('Detailed price list'!E$5:E$237)*('Detailed price list'!$M$5:$M$237)*('Detailed price list'!$L$5:$L$237=$B37))/SUMIF('Detailed price list'!$L$5:$L$237,$B37,'Detailed price list'!$M$5:$M$237)) -> 54.90414818 | E37: =IF(SUMIF('Detailed price list'!$L$5:$L$237,$B37,'Detailed price list'!$M$5:$M$237)=0, IFERROR(INDEX('Detailed price list'!F$5:F$237,MATCH($B37,'Detailed price list'!$B$5:$B$237,0)),INDEX('Detailed price list'!F$5:F$237,MATCH($B37,'Detailed price list'!$L$5:$L$237,0))), SUMPRODUCT(('Detailed price list'!F$5:F$237)*('Detailed price list'!$M$5:$M$237)*('Detailed price list'!$L$5:$L$237=$B37))/SUMIF('Detailed price list'!$L$5:$L$237,$B37,'Detailed price list'!$M$5:$M$237)) -> 56.44134416 | F37: =IF(SUMIF('Detailed price list'!$L$5:$L$237,$B37,'Detailed price list'!$M$5:$M$237)=0, IFERROR(INDEX('Detailed price list'!G$5:G$237,MATCH($B37,'Detailed price list'!$B$5:$B$237,0)),INDEX('Detailed price list'!G$5:G$237,MATCH($B37,'Detailed price list'!$L$5:$L$237,0))), SUMPRODUCT(('Detailed price list'!G$5:G$237)*('Detailed price list'!$M$5:$M$237)*('Detailed price list'!$L$5:$L$237=$B37))/SUMIF('Detailed price list'!$L$5:$L$237,$B37,'Detailed price list'!$M$5:$M$237)) -> 58.02157826 | G37: =IF(SUMIF('Detailed price list'!$L$5:$L$237,$B37,'Detailed price list'!$M$5:$M$237)=0, IFERROR(INDEX('Detailed price list'!H$5:H$237,MATCH($B37,'Detailed price list'!$B$5:$B$237,0)),INDEX('Detailed price list'!H$5:H$237,MATCH($B37,'Detailed price list'!$L$5:$L$237,0))), SUMPRODUCT(('Detailed price list'!H$5:H$237)*('Detailed price list'!$M$5:$M$237)*('Detailed price list'!$L$5:$L$237=$B37))/SUMIF('Detailed price list'!$L$5:$L$237,$B37,'Detailed price list'!$M$5:$M$237)) -> 59.64605546
B38: Legacy Luminaire - Minor (Cat P) road | C38: =IF(SUMIF('Detailed price list'!$L$5:$L$237,$B38,'Detailed price list'!$M$5:$M$237)=0, IFERROR(INDEX('Detailed price list'!D$5:D$237,MATCH($B38,'Detailed price list'!$B$5:$B$237,0)),INDEX('Detailed price list'!D$5:D$237,MATCH($B38,'Detailed price list'!$L$5:$L$237,0))), SUMPRODUCT(('Detailed price list'!D$5:D$237)*('Detailed price list'!$M$5:$M$237)*('Detailed price list'!$L$5:$L$237=$B38))/SUMIF('Detailed price list'!$L$5:$L$237,$B38,'Detailed price list'!$M$5:$M$237)) -> 33.42645047 | D38: =IF(SUMIF('Detailed price list'!$L$5:$L$237,$B38,'Detailed price list'!$M$5:$M$237)=0, IFERROR(INDEX('Detailed price list'!E$5:E$237,MATCH($B38,'Detailed price list'!$B$5:$B$237,0)),INDEX('Detailed price list'!E$5:E$237,MATCH($B38,'Detailed price list'!$L$5:$L$237,0))), SUMPRODUCT(('Detailed price list'!E$5:E$237)*('Detailed price list'!$M$5:$M$237)*('Detailed price list'!$L$5:$L$237=$B38))/SUMIF('Detailed price list'!$L$5:$L$237,$B38,'Detailed price list'!$M$5:$M$237)) -> 34.36231792 | E38: =IF(SUMIF('Detailed price list'!$L$5:$L$237,$B38,'Detailed price list'!$M$5:$M$237)=0, IFERROR(INDEX('Detailed price list'!F$5:F$237,MATCH($B38,'Detailed price list'!$B$5:$B$237,0)),INDEX('Detailed price list'!F$5:F$237,MATCH($B38,'Detailed price list'!$L$5:$L$237,0))), SUMPRODUCT(('Detailed price list'!F$5:F$237)*('Detailed price list'!$M$5:$M$237)*('Detailed price list'!$L$5:$L$237=$B38))/SUMIF('Detailed price list'!$L$5:$L$237,$B38,'Detailed price list'!$M$5:$M$237)) -> 35.32438761 | F38: =IF(SUMIF('Detailed price list'!$L$5:$L$237,$B38,'Detailed price list'!$M$5:$M$237)=0, IFERROR(INDEX('Detailed price list'!G$5:G$237,MATCH($B38,'Detailed price list'!$B$5:$B$237,0)),INDEX('Detailed price list'!G$5:G$237,MATCH($B38,'Detailed price list'!$L$5:$L$237,0))), SUMPRODUCT(('Detailed price list'!G$5:G$237)*('Detailed price list'!$M$5:$M$237)*('Detailed price list'!$L$5:$L$237=$B38))/SUMIF('Detailed price list'!$L$5:$L$237,$B38,'Detailed price list'!$M$5:$M$237)) -> 36.31339315 | G38: =IF(SUMIF('Detailed price list'!$L$5:$L$237,$B38,'Detailed price list'!$M$5:$M$237)=0, IFERROR(INDEX('Detailed price list'!H$5:H$237,MATCH($B38,'Detailed price list'!$B$5:$B$237,0)),INDEX('Detailed price list'!H$5:H$237,MATCH($B38,'Detailed price list'!$L$5:$L$237,0))), SUMPRODUCT(('Detailed price list'!H$5:H$237)*('Detailed price list'!$M$5:$M$237)*('Detailed price list'!$L$5:$L$237=$B38))/SUMIF('Detailed price list'!$L$5:$L$237,$B38,'Detailed price list'!$M$5:$M$237)) -> 37.33008868
B39: Legacy Luminaire - Minor (Cat P) road | C39: =IF(SUMIF('Detailed price list'!$L$5:$L$237,$B39,'Detailed price list'!$M$5:$M$237)=0, IFERROR(INDEX('Detailed price list'!D$5:D$237,MATCH($B39,'Detailed price list'!$B$5:$B$237,0)),INDEX('Detailed price list'!D$5:D$237,MATCH($B39,'Detailed price list'!$L$5:$L$237,0))), SUMPRODUCT(('Detailed price list'!D$5:D$237)*('Detailed price list'!$M$5:$M$237)*('Detailed price list'!$L$5:$L$237=$B39))/SUMIF('Detailed price list'!$L$5:$L$237,$B39,'Detailed price list'!$M$5:$M$237)) -> 33.42645047 | D39: =IF(SUMIF('Detailed price list'!$L$5:$L$237,$B39,'Detailed price list'!$M$5:$M$237)=0, IFERROR(INDEX('Detailed price list'!E$5:E$237,MATCH($B39,'Detailed price list'!$B$5:$B$237,0)),INDEX('Detailed price list'!E$5:E$237,MATCH($B39,'Detailed price list'!$L$5:$L$237,0))), SUMPRODUCT(('Detailed price list'!E$5:E$237)*('Detailed price list'!$M$5:$M$237)*('Detailed price list'!$L$5:$L$237=$B39))/SUMIF('Detailed price list'!$L$5:$L$237,$B39,'Detailed price list'!$M$5:$M$237)) -> 34.36231792 | E39: =IF(SUMIF('Detailed price list'!$L$5:$L$237,$B39,'Detailed price list'!$M$5:$M$237)=0, IFERROR(INDEX('Detailed price list'!F$5:F$237,MATCH($B39,'Detailed price list'!$B$5:$B$237,0)),INDEX('Detailed price list'!F$5:F$237,MATCH($B39,'Detailed price list'!$L$5:$L$237,0))), SUMPRODUCT(('Detailed price list'!F$5:F$237)*('Detailed price list'!$M$5:$M$237)*('Detailed price list'!$L$5:$L$237=$B39))/SUMIF('Detailed price list'!$L$5:$L$237,$B39,'Detailed price list'!$M$5:$M$237)) -> 35.32438761 | F39: =IF(SUMIF('Detailed price list'!$L$5:$L$237,$B39,'Detailed price list'!$M$5:$M$237)=0, IFERROR(INDEX('Detailed price list'!G$5:G$237,MATCH($B39,'Detailed price list'!$B$5:$B$237,0)),INDEX('Detailed price list'!G$5:G$237,MATCH($B39,'Detailed price list'!$L$5:$L$237,0))), SUMPRODUCT(('Detailed price list'!G$5:G$237)*('Detailed price list'!$M$5:$M$237)*('Detailed price list'!$L$5:$L$237=$B39))/SUMIF('Detailed price list'!$L$5:$L$237,$B39,'Detailed price list'!$M$5:$M$237)) -> 36.31339315 | G39: =IF(SUMIF('Detailed price list'!$L$5:$L$237,$B39,'Detailed price list'!$M$5:$M$237)=0, IFERROR(INDEX('Detailed price list'!H$5:H$237,MATCH($B39,'Detailed price list'!$B$5:$B$237,0)),INDEX('Detailed price list'!H$5:H$237,MATCH($B39,'Detailed price list'!$L$5:$L$237,0))), SUMPRODUCT(('Detailed price list'!H$5:H$237)*('Detailed price list'!$M$5:$M$237)*('Detailed price list'!$L$5:$L$237=$B39))/SUMIF('Detailed price list'!$L$5:$L$237,$B39,'Detailed price list'!$M$5:$M$237)) -> 37.33008868
B40: Legacy Luminaire - Minor (Cat P) road | C40: =IF(SUMIF('Detailed price list'!$L$5:$L$237,$B40,'Detailed price list'!$M$5:$M$237)=0, IFERROR(INDEX('Detailed price list'!D$5:D$237,MATCH($B40,'Detailed price list'!$B$5:$B$237,0)),INDEX('Detailed price list'!D$5:D$237,MATCH($B40,'Detailed price list'!$L$5:$L$237,0))), SUMPRODUCT(('Detailed price list'!D$5:D$237)*('Detailed price list'!$M$5:$M$237)*('Detailed price list'!$L$5:$L$237=$B40))/SUMIF('Detailed price list'!$L$5:$L$237,$B40,'Detailed price list'!$M$5:$M$237)) -> 33.42645047 | D40: =IF(SUMIF('Detailed price list'!$L$5:$L$237,$B40,'Detailed price list'!$M$5:$M$237)=0, IFERROR(INDEX('Detailed price list'!E$5:E$237,MATCH($B40,'Detailed price list'!$B$5:$B$237,0)),INDEX('Detailed price list'!E$5:E$237,MATCH($B40,'Detailed price list'!$L$5:$L$237,0))), SUMPRODUCT(('Detailed price list'!E$5:E$237)*('Detailed price list'!$M$5:$M$237)*('Detailed price list'!$L$5:$L$237=$B40))/SUMIF('Detailed price list'!$L$5:$L$237,$B40,'Detailed price list'!$M$5:$M$237)) -> 34.36231792 | E40: =IF(SUMIF('Detailed price list'!$L$5:$L$237,$B40,'Detailed price list'!$M$5:$M$237)=0, IFERROR(INDEX('Detailed price list'!F$5:F$237,MATCH($B40,'Detailed price list'!$B$5:$B$237,0)),INDEX('Detailed price list'!F$5:F$237,MATCH($B40,'Detailed price list'!$L$5:$L$237,0))), SUMPRODUCT(('Detailed price list'!F$5:F$237)*('Detailed price list'!$M$5:$M$237)*('Detailed price list'!$L$5:$L$237=$B40))/SUMIF('Detailed price list'!$L$5:$L$237,$B40,'Detailed price list'!$M$5:$M$237)) -> 35.32438761 | F40: =IF(SUMIF('Detailed price list'!$L$5:$L$237,$B40,'Detailed price list'!$M$5:$M$237)=0, IFERROR(INDEX('Detailed price list'!G$5:G$237,MATCH($B40,'Detailed price list'!$B$5:$B$237,0)),INDEX('Detailed price list'!G$5:G$237,MATCH($B40,'Detailed price list'!$L$5:$L$237,0))), SUMPRODUCT(('Detailed price list'!G$5:G$237)*('Detailed price list'!$M$5:$M$237)*('Detailed price list'!$L$5:$L$237=$B40))/SUMIF('Detailed price list'!$L$5:$L$237,$B40,'Detailed price list'!$M$5:$M$237)) -> 36.31339315 | G40: =IF(SUMIF('Detailed price list'!$L$5:$L$237,$B40,'Detailed price list'!$M$5:$M$237)=0, IFERROR(INDEX('Detailed price list'!H$5:H$237,MATCH($B40,'Detailed price list'!$B$5:$B$237,0)),INDEX('Detailed price list'!H$5:H$237,MATCH($B40,'Detailed price list'!$L$5:$L$237,0))), SUMPRODUCT(('Detailed price list'!H$5:H$237)*('Detailed price list'!$M$5:$M$237)*('Detailed price list'!$L$5:$L$237=$B40))/SUMIF('Detailed price list'!$L$5:$L$237,$B40,'Detailed price list'!$M$5:$M$237)) -> 37.33008868
B41: Legacy Luminaire - Minor (Cat P) road | C41: =IF(SUMIF('Detailed price list'!$L$5:$L$237,$B41,'Detailed price list'!$M$5:$M$237)=0, IFERROR(INDEX('Detailed price list'!D$5:D$237,MATCH($B41,'Detailed price list'!$B$5:$B$237,0)),INDEX('Detailed price list'!D$5:D$237,MATCH($B41,'Detailed price list'!$L$5:$L$237,0))), SUMPRODUCT(('Detailed price list'!D$5:D$237)*('Detailed price list'!$M$5:$M$237)*('Detailed price list'!$L$5:$L$237=$B41))/SUMIF('Detailed price list'!$L$5:$L$237,$B41,'Detailed price list'!$M$5:$M$237)) -> 33.42645047 | D41: =IF(SUMIF('Detailed price list'!$L$5:$L$237,$B41,'Detailed price list'!$M$5:$M$237)=0, IFERROR(INDEX('Detailed price list'!E$5:E$237,MATCH($B41,'Detailed price list'!$B$5:$B$237,0)),INDEX('Detailed price list'!E$5:E$237,MATCH($B41,'Detailed price list'!$L$5:$L$237,0))), SUMPRODUCT(('Detailed price list'!E$5:E$237)*('Detailed price list'!$M$5:$M$237)*('Detailed price list'!$L$5:$L$237=$B41))/SUMIF('Detailed price list'!$L$5:$L$237,$B41,'Detailed price list'!$M$5:$M$237)) -> 34.36231792 | E41: =IF(SUMIF('Detailed price list'!$L$5:$L$237,$B41,'Detailed price list'!$M$5:$M$237)=0, IFERROR(INDEX('Detailed price list'!F$5:F$237,MATCH($B41,'Detailed price list'!$B$5:$B$237,0)),INDEX('Detailed price list'!F$5:F$237,MATCH($B41,'Detailed price list'!$L$5:$L$237,0))), SUMPRODUCT(('Detailed price list'!F$5:F$237)*('Detailed price list'!$M$5:$M$237)*('Detailed price list'!$L$5:$L$237=$B41))/SUMIF('Detailed price list'!$L$5:$L$237,$B41,'Detailed price list'!$M$5:$M$237)) -> 35.32438761 | F41: =IF(SUMIF('Detailed price list'!$L$5:$L$237,$B41,'Detailed price list'!$M$5:$M$237)=0, IFERROR(INDEX('Detailed price list'!G$5:G$237,MATCH($B41,'Detailed price list'!$B$5:$B$237,0)),INDEX('Detailed price list'!G$5:G$237,MATCH($B41,'Detailed price list'!$L$5:$L$237,0))), SUMPRODUCT(('Detailed price list'!G$5:G$237)*('Detailed price list'!$M$5:$M$237)*('Detailed price list'!$L$5:$L$237=$B41))/SUMIF('Detailed price list'!$L$5:$L$237,$B41,'Detailed price list'!$M$5:$M$237)) -> 36.31339315 | G41: =IF(SUMIF('Detailed price list'!$L$5:$L$237,$B41,'Detailed price list'!$M$5:$M$237)=0, IFERROR(INDEX('Detailed price list'!H$5:H$237,MATCH($B41,'Detailed price list'!$B$5:$B$237,0)),INDEX('Detailed price list'!H$5:H$237,MATCH($B41,'Detailed price list'!$L$5:$L$237,0))), SUMPRODUCT(('Detailed price list'!H$5:H$237)*('Detailed price list'!$M$5:$M$237)*('Detailed price list'!$L$5:$L$237=$B41))/SUMIF('Detailed price list'!$L$5:$L$237,$B41,'Detailed price list'!$M$5:$M$237)) -> 37.33008868
B42: Legacy Luminaire - Minor (Cat P) road | C42: =IF(SUMIF('Detailed price list'!$L$5:$L$237,$B42,'Detailed price list'!$M$5:$M$237)=0, IFERROR(INDEX('Detailed price list'!D$5:D$237,MATCH($B42,'Detailed price list'!$B$5:$B$237,0)),INDEX('Detailed price list'!D$5:D$237,MATCH($B42,'Detailed price list'!$L$5:$L$237,0))), SUMPRODUCT(('Detailed price list'!D$5:D$237)*('Detailed price list'!$M$5:$M$237)*('Detailed price list'!$L$5:$L$237=$B42))/SUMIF('Detailed price list'!$L$5:$L$237,$B42,'Detailed price list'!$M$5:$M$237)) -> 33.42645047 | D42: =IF(SUMIF('Detailed price list'!$L$5:$L$237,$B42,'Detailed price list'!$M$5:$M$237)=0, IFERROR(INDEX('Detailed price list'!E$5:E$237,MATCH($B42,'Detailed price list'!$B$5:$B$237,0)),INDEX('Detailed price list'!E$5:E$237,MATCH($B42,'Detailed price list'!$L$5:$L$237,0))), SUMPRODUCT(('Detailed price list'!E$5:E$237)*('Detailed price list'!$M$5:$M$237)*('Detailed price list'!$L$5:$L$237=$B42))/SUMIF('Detailed price list'!$L$5:$L$237,$B42,'Detailed price list'!$M$5:$M$237)) -> 34.36231792 | E42: =IF(SUMIF('Detailed price list'!$L$5:$L$237,$B42,'Detailed price list'!$M$5:$M$237)=0, IFERROR(INDEX('Detailed price list'!F$5:F$237,MATCH($B42,'Detailed price list'!$B$5:$B$237,0)),INDEX('Detailed price list'!F$5:F$237,MATCH($B42,'Detailed price list'!$L$5:$L$237,0))), SUMPRODUCT(('Detailed price list'!F$5:F$237)*('Detailed price list'!$M$5:$M$237)*('Detailed price list'!$L$5:$L$237=$B42))/SUMIF('Detailed price list'!$L$5:$L$237,$B42,'Detailed price list'!$M$5:$M$237)) -> 35.32438761 | F42: =IF(SUMIF('Detailed price list'!$L$5:$L$237,$B42,'Detailed price list'!$M$5:$M$237)=0, IFERROR(INDEX('Detailed price list'!G$5:G$237,MATCH($B42,'Detailed price list'!$B$5:$B$237,0)),INDEX('Detailed price list'!G$5:G$237,MATCH($B42,'Detailed price list'!$L$5:$L$237,0))), SUMPRODUCT(('Detailed price list'!G$5:G$237)*('Detailed price list'!$M$5:$M$237)*('Detailed price list'!$L$5:$L$237=$B42))/SUMIF('Detailed price list'!$L$5:$L$237,$B42,'Detailed price list'!$M$5:$M$237)) -> 36.31339315 | G42: =IF(SUMIF('Detailed price list'!$L$5:$L$237,$B42,'Detailed price list'!$M$5:$M$237)=0, IFERROR(INDEX('Detailed price list'!H$5:H$237,MATCH($B42,'Detailed price list'!$B$5:$B$237,0)),INDEX('Detailed price list'!H$5:H$237,MATCH($B42,'Detailed price list'!$L$5:$L$237,0))), SUMPRODUCT(('Detailed price list'!H$5:H$237)*('Detailed price list'!$M$5:$M$237)*('Detailed price list'!$L$5:$L$237=$B42))/SUMIF('Detailed price list'!$L$5:$L$237,$B42,'Detailed price list'!$M$5:$M$237)) -> 37.33008868
B43: Legacy Luminaire - Minor (Cat P) road | C43: =IF(SUMIF('Detailed price list'!$L$5:$L$237,$B43,'Detailed price list'!$M$5:$M$237)=0, IFERROR(INDEX('Detailed price list'!D$5:D$237,MATCH($B43,'Detailed price list'!$B$5:$B$237,0)),INDEX('Detailed price list'!D$5:D$237,MATCH($B43,'Detailed price list'!$L$5:$L$237,0))), SUMPRODUCT(('Detailed price list'!D$5:D$237)*('Detailed price list'!$M$5:$M$237)*('Detailed price list'!$L$5:$L$237=$B43))/SUMIF('Detailed price list'!$L$5:$L$237,$B43,'Detailed price list'!$M$5:$M$237)) -> 33.42645047 | D43: =IF(SUMIF('Detailed price list'!$L$5:$L$237,$B43,'Detailed price list'!$M$5:$M$237)=0, IFERROR(INDEX('Detailed price list'!E$5:E$237,MATCH($B43,'Detailed price list'!$B$5:$B$237,0)),INDEX('Detailed price list'!E$5:E$237,MATCH($B43,'Detailed price list'!$L$5:$L$237,0))), SUMPRODUCT(('Detailed price list'!E$5:E$237)*('Detailed price list'!$M$5:$M$237)*('Detailed price list'!$L$5:$L$237=$B43))/SUMIF('Detailed price list'!$L$5:$L$237,$B43,'Detailed price list'!$M$5:$M$237)) -> 34.36231792 | E43: =IF(SUMIF('Detailed price list'!$L$5:$L$237,$B43,'Detailed price list'!$M$5:$M$237)=0, IFERROR(INDEX('Detailed price list'!F$5:F$237,MATCH($B43,'Detailed price list'!$B$5:$B$237,0)),INDEX('Detailed price list'!F$5:F$237,MATCH($B43,'Detailed price list'!$L$5:$L$237,0))), SUMPRODUCT(('Detailed price list'!F$5:F$237)*('Detailed price list'!$M$5:$M$237)*('Detailed price list'!$L$5:$L$237=$B43))/SUMIF('Detailed price list'!$L$5:$L$237,$B43,'Detailed price list'!$M$5:$M$237)) -> 35.32438761 | F43: =IF(SUMIF('Detailed price list'!$L$5:$L$237,$B43,'Detailed price list'!$M$5:$M$237)=0, IFERROR(INDEX('Detailed price list'!G$5:G$237,MATCH($B43,'Detailed price list'!$B$5:$B$237,0)),INDEX('Detailed price list'!G$5:G$237,MATCH($B43,'Detailed price list'!$L$5:$L$237,0))), SUMPRODUCT(('Detailed price list'!G$5:G$237)*('Detailed price list'!$M$5:$M$237)*('Detailed price list'!$L$5:$L$237=$B43))/SUMIF('Detailed price list'!$L$5:$L$237,$B43,'Detailed price list'!$M$5:$M$237)) -> 36.31339315 | G43: =IF(SUMIF('Detailed price list'!$L$5:$L$237,$B43,'Detailed price list'!$M$5:$M$237)=0, IFERROR(INDEX('Detailed price list'!H$5:H$237,MATCH($B43,'Detailed price list'!$B$5:$B$237,0)),INDEX('Detailed price list'!H$5:H$237,MATCH($B43,'Detailed price list'!$L$5:$L$237,0))), SUMPRODUCT(('Detailed price list'!H$5:H$237)*('Detailed price list'!$M$5:$M$237)*('Detailed price list'!$L$5:$L$237=$B43))/SUMIF('Detailed price list'!$L$5:$L$237,$B43,'Detailed price list'!$M$5:$M$237)) -> 37.33008868
B44: Legacy Luminaire - Minor (Cat P) road | C44: =IF(SUMIF('Detailed price list'!$L$5:$L$237,$B44,'Detailed price list'!$M$5:$M$237)=0, IFERROR(INDEX('Detailed price list'!D$5:D$237,MATCH($B44,'Detailed price list'!$B$5:$B$237,0)),INDEX('Detailed price list'!D$5:D$237,MATCH($B44,'Detailed price list'!$L$5:$L$237,0))), SUMPRODUCT(('Detailed price list'!D$5:D$237)*('Detailed price list'!$M$5:$M$237)*('Detailed price list'!$L$5:$L$237=$B44))/SUMIF('Detailed price list'!$L$5:$L$237,$B44,'Detailed price list'!$M$5:$M$237)) -> 33.42645047 | D44: =IF(SUMIF('Detailed price list'!$L$5:$L$237,$B44,'Detailed price list'!$M$5:$M$237)=0, IFERROR(INDEX('Detailed price list'!E$5:E$237,MATCH($B44,'Detailed price list'!$B$5:$B$237,0)),INDEX('Detailed price list'!E$5:E$237,MATCH($B44,'Detailed price list'!$L$5:$L$237,0))), SUMPRODUCT(('Detailed price list'!E$5:E$237)*('Detailed price list'!$M$5:$M$237)*('Detailed price list'!$L$5:$L$237=$B44))/SUMIF('Detailed price list'!$L$5:$L$237,$B44,'Detailed price list'!$M$5:$M$237)) -> 34.36231792 | E44: =IF(SUMIF('Detailed price list'!$L$5:$L$237,$B44,'Detailed price list'!$M$5:$M$237)=0, IFERROR(INDEX('Detailed price list'!F$5:F$237,MATCH($B44,'Detailed price list'!$B$5:$B$237,0)),INDEX('Detailed price list'!F$5:F$237,MATCH($B44,'Detailed price list'!$L$5:$L$237,0))), SUMPRODUCT(('Detailed price list'!F$5:F$237)*('Detailed price list'!$M$5:$M$237)*('Detailed price list'!$L$5:$L$237=$B44))/SUMIF('Detailed price list'!$L$5:$L$237,$B44,'Detailed price list'!$M$5:$M$237)) -> 35.32438761 | F44: =IF(SUMIF('Detailed price list'!$L$5:$L$237,$B44,'Detailed price list'!$M$5:$M$237)=0, IFERROR(INDEX('Detailed price list'!G$5:G$237,MATCH($B44,'Detailed price list'!$B$5:$B$237,0)),INDEX('Detailed price list'!G$5:G$237,MATCH($B44,'Detailed price list'!$L$5:$L$237,0))), SUMPRODUCT(('Detailed price list'!G$5:G$237)*('Detailed price list'!$M$5:$M$237)*('Detailed price list'!$L$5:$L$237=$B44))/SUMIF('Detailed price list'!$L$5:$L$237,$B44,'Detailed price list'!$M$5:$M$237)) -> 36.31339315 | G44: =IF(SUMIF('Detailed price list'!$L$5:$L$237,$B44,'Detailed price list'!$M$5:$M$237)=0, IFERROR(INDEX('Detailed price list'!H$5:H$237,MATCH($B44,'Detailed price list'!$B$5:$B$237,0)),INDEX('Detailed price list'!H$5:H$237,MATCH($B44,'Detailed price list'!$L$5:$L$237,0))), SUMPRODUCT(('Detailed price list'!H$5:H$237)*('Detailed price list'!$M$5:$M$237)*('Detailed price list'!$L$5:$L$237=$B44))/SUMIF('Detailed price list'!$L$5:$L$237,$B44,'Detailed price list'!$M$5:$M$237)) -> 37.33008868
B45: Legacy Luminaire - Minor (Cat P) road | C45: =IF(SUMIF('Detailed price list'!$L$5:$L$237,$B45,'Detailed price list'!$M$5:$M$237)=0, IFERROR(INDEX('Detailed price list'!D$5:D$237,MATCH($B45,'Detailed price list'!$B$5:$B$237,0)),INDEX('Detailed price list'!D$5:D$237,MATCH($B45,'Detailed price list'!$L$5:$L$237,0))), SUMPRODUCT(('Detailed price list'!D$5:D$237)*('Detailed price list'!$M$5:$M$237)*('Detailed price list'!$L$5:$L$237=$B45))/SUMIF('Detailed price list'!$L$5:$L$237,$B45,'Detailed price list'!$M$5:$M$237)) -> 33.42645047 | D45: =IF(SUMIF('Detailed price list'!$L$5:$L$237,$B45,'Detailed price list'!$M$5:$M$237)=0, IFERROR(INDEX('Detailed price list'!E$5:E$237,MATCH($B45,'Detailed price list'!$B$5:$B$237,0)),INDEX('Detailed price list'!E$5:E$237,MATCH($B45,'Detailed price list'!$L$5:$L$237,0))), SUMPRODUCT(('Detailed price list'!E$5:E$237)*('Detailed price list'!$M$5:$M$237)*('Detailed price list'!$L$5:$L$237=$B45))/SUMIF('Detailed price list'!$L$5:$L$237,$B45,'Detailed price list'!$M$5:$M$237)) -> 34.36231792 | E45: =IF(SUMIF('Detailed price list'!$L$5:$L$237,$B45,'Detailed price list'!$M$5:$M$237)=0, IFERROR(INDEX('Detailed price list'!F$5:F$237,MATCH($B45,'Detailed price list'!$B$5:$B$237,0)),INDEX('Detailed price list'!F$5:F$237,MATCH($B45,'Detailed price list'!$L$5:$L$237,0))), SUMPRODUCT(('Detailed price list'!F$5:F$237)*('Detailed price list'!$M$5:$M$237)*('Detailed price list'!$L$5:$L$237=$B45))/SUMIF('Detailed price list'!$L$5:$L$237,$B45,'Detailed price list'!$M$5:$M$237)) -> 35.32438761 | F45: =IF(SUMIF('Detailed price list'!$L$5:$L$237,$B45,'Detailed price list'!$M$5:$M$237)=0, IFERROR(INDEX('Detailed price list'!G$5:G$237,MATCH($B45,'Detailed price list'!$B$5:$B$237,0)),INDEX('Detailed price list'!G$5:G$237,MATCH($B45,'Detailed price list'!$L$5:$L$237,0))), SUMPRODUCT(('Detailed price list'!G$5:G$237)*('Detailed price list'!$M$5:$M$237)*('Detailed price list'!$L$5:$L$237=$B45))/SUMIF('Detailed price list'!$L$5:$L$237,$B45,'Detailed price list'!$M$5:$M$237)) -> 36.31339315 | G45: =IF(SUMIF('Detailed price list'!$L$5:$L$237,$B45,'Detailed price list'!$M$5:$M$237)=0, IFERROR(INDEX('Detailed price list'!H$5:H$237,MATCH($B45,'Detailed price list'!$B$5:$B$237,0)),INDEX('Detailed price list'!H$5:H$237,MATCH($B45,'Detailed price list'!$L$5:$L$237,0))), SUMPRODUCT(('Detailed price list'!H$5:H$237)*('Detailed price list'!$M$5:$M$237)*('Detailed price list'!$L$5:$L$237=$B45))/SUMIF('Detailed price list'!$L$5:$L$237,$B45,'Detailed price list'!$M$5:$M$237)) -> 37.33008868
B46: Legacy Luminaire - Minor (Cat P) road | C46: =IF(SUMIF('Detailed price list'!$L$5:$L$237,$B46,'Detailed price list'!$M$5:$M$237)=0, IFERROR(INDEX('Detailed price list'!D$5:D$237,MATCH($B46,'Detailed price list'!$B$5:$B$237,0)),INDEX('Detailed price list'!D$5:D$237,MATCH($B46,'Detailed price list'!$L$5:$L$237,0))), SUMPRODUCT(('Detailed price list'!D$5:D$237)*('Detailed price list'!$M$5:$M$237)*('Detailed price list'!$L$5:$L$237=$B46))/SUMIF('Detailed price list'!$L$5:$L$237,$B46,'Detailed price list'!$M$5:$M$237)) -> 33.42645047 | D46: =IF(SUMIF('Detailed price list'!$L$5:$L$237,$B46,'Detailed price list'!$M$5:$M$237)=0, IFERROR(INDEX('Detailed price list'!E$5:E$237,MATCH($B46,'Detailed price list'!$B$5:$B$237,0)),INDEX('Detailed price list'!E$5:E$237,MATCH($B46,'Detailed price list'!$L$5:$L$237,0))), SUMPRODUCT(('Detailed price list'!E$5:E$237)*('Detailed price list'!$M$5:$M$237)*('Detailed price list'!$L$5:$L$237=$B46))/SUMIF('Detailed price list'!$L$5:$L$237,$B46,'Detailed price list'!$M$5:$M$237)) -> 34.36231792 | E46: =IF(SUMIF('Detailed price list'!$L$5:$L$237,$B46,'Detailed price list'!$M$5:$M$237)=0, IFERROR(INDEX('Detailed price list'!F$5:F$237,MATCH($B46,'Detailed price list'!$B$5:$B$237,0)),INDEX('Detailed price list'!F$5:F$237,MATCH($B46,'Detailed price list'!$L$5:$L$237,0))), SUMPRODUCT(('Detailed price list'!F$5:F$237)*('Detailed price list'!$M$5:$M$237)*('Detailed price list'!$L$5:$L$237=$B46))/SUMIF('Detailed price list'!$L$5:$L$237,$B46,'Detailed price list'!$M$5:$M$237)) -> 35.32438761 | F46: =IF(SUMIF('Detailed price list'!$L$5:$L$237,$B46,'Detailed price list'!$M$5:$M$237)=0, IFERROR(INDEX('Detailed price list'!G$5:G$237,MATCH($B46,'Detailed price list'!$B$5:$B$237,0)),INDEX('Detailed price list'!G$5:G$237,MATCH($B46,'Detailed price list'!$L$5:$L$237,0))), SUMPRODUCT(('Detailed price list'!G$5:G$237)*('Detailed price list'!$M$5:$M$237)*('Detailed price list'!$L$5:$L$237=$B46))/SUMIF('Detailed price list'!$L$5:$L$237,$B46,'Detailed price list'!$M$5:$M$237)) -> 36.31339315 | G46: =IF(SUMIF('Detailed price list'!$L$5:$L$237,$B46,'Detailed price list'!$M$5:$M$237)=0, IFERROR(INDEX('Detailed price list'!H$5:H$237,MATCH($B46,'Detailed price list'!$B$5:$B$237,0)),INDEX('Detailed price list'!H$5:H$237,MATCH($B46,'Detailed price list'!$L$5:$L$237,0))), SUMPRODUCT(('Detailed price list'!H$5:H$237)*('Detailed price list'!$M$5:$M$237)*('Detailed price list'!$L$5:$L$237=$B46))/SUMIF('Detailed price list'!$L$5:$L$237,$B46,'Detailed price list'!$M$5:$M$237)) -> 37.33008868
B47: Luminaire - Minor (Cat P) road | C47: =IF(SUMIF('Detailed price list'!$L$5:$L$237,$B47,'Detailed price list'!$M$5:$M$237)=0, IFERROR(INDEX('Detailed price list'!D$5:D$237,MATCH($B47,'Detailed price list'!$B$5:$B$237,0)),INDEX('Detailed price list'!D$5:D$237,MATCH($B47,'Detailed price list'!$L$5:$L$237,0))), SUMPRODUCT(('Detailed price list'!D$5:D$237)*('Detailed price list'!$M$5:$M$237)*('Detailed price list'!$L$5:$L$237=$B47))/SUMIF('Detailed price list'!$L$5:$L$237,$B47,'Detailed price list'!$M$5:$M$237)) -> 23.32463152 | D47: =IF(SUMIF('Detailed price list'!$L$5:$L$237,$B47,'Detailed price list'!$M$5:$M$237)=0, IFERROR(INDEX('Detailed price list'!E$5:E$237,MATCH($B47,'Detailed price list'!$B$5:$B$237,0)),INDEX('Detailed price list'!E$5:E$237,MATCH($B47,'Detailed price list'!$L$5:$L$237,0))), SUMPRODUCT(('Detailed price list'!E$5:E$237)*('Detailed price list'!$M$5:$M$237)*('Detailed price list'!$L$5:$L$237=$B47))/SUMIF('Detailed price list'!$L$5:$L$237,$B47,'Detailed price list'!$M$5:$M$237)) -> 23.97767015 | E47: =IF(SUMIF('Detailed price list'!$L$5:$L$237,$B47,'Detailed price list'!$M$5:$M$237)=0, IFERROR(INDEX('Detailed price list'!F$5:F$237,MATCH($B47,'Detailed price list'!$B$5:$B$237,0)),INDEX('Detailed price list'!F$5:F$237,MATCH($B47,'Detailed price list'!$L$5:$L$237,0))), SUMPRODUCT(('Detailed price list'!F$5:F$237)*('Detailed price list'!$M$5:$M$237)*('Detailed price list'!$L$5:$L$237=$B47))/SUMIF('Detailed price list'!$L$5:$L$237,$B47,'Detailed price list'!$M$5:$M$237)) -> 24.64899244 | F47: =IF(SUMIF('Detailed price list'!$L$5:$L$237,$B47,'Detailed price list'!$M$5:$M$237)=0, IFERROR(INDEX('Detailed price list'!G$5:G$237,MATCH($B47,'Detailed price list'!$B$5:$B$237,0)),INDEX('Detailed price list'!G$5:G$237,MATCH($B47,'Detailed price list'!$L$5:$L$237,0))), SUMPRODUCT(('Detailed price list'!G$5:G$237)*('Detailed price list'!$M$5:$M$237)*('Detailed price list'!$L$5:$L$237=$B47))/SUMIF('Detailed price list'!$L$5:$L$237,$B47,'Detailed price list'!$M$5:$M$237)) -> 25.33911027 | G47: =IF(SUMIF('Detailed price list'!$L$5:$L$237,$B47,'Detailed price list'!$M$5:$M$237)=0, IFERROR(INDEX('Detailed price list'!H$5:H$237,MATCH($B47,'Detailed price list'!$B$5:$B$237,0)),INDEX('Detailed price list'!H$5:H$237,MATCH($B47,'Detailed price list'!$L$5:$L$237,0))), SUMPRODUCT(('Detailed price list'!H$5:H$237)*('Detailed price list'!$M$5:$M$237)*('Detailed price list'!$L$5:$L$237=$B47))/SUMIF('Detailed price list'!$L$5:$L$237,$B47,'Detailed price list'!$M$5:$M$237)) -> 26.0485499
B48: Luminaire - Major (Cat V) road | C48: =IF(SUMIF('Detailed price list'!$L$5:$L$237,$B48,'Detailed price list'!$M$5:$M$237)=0, IFERROR(INDEX('Detailed price list'!D$5:D$237,MATCH($B48,'Detailed price list'!$B$5:$B$237,0)),INDEX('Detailed price list'!D$5:D$237,MATCH($B48,'Detailed price list'!$L$5:$L$237,0))), SUMPRODUCT(('Detailed price list'!D$5:D$237)*('Detailed price list'!$M$5:$M$237)*('Detailed price list'!$L$5:$L$237=$B48))/SUMIF('Detailed price list'!$L$5:$L$237,$B48,'Detailed price list'!$M$5:$M$237)) -> 31.76425867 | D48: =IF(SUMIF('Detailed price list'!$L$5:$L$237,$B48,'Detailed price list'!$M$5:$M$237)=0, IFERROR(INDEX('Detailed price list'!E$5:E$237,MATCH($B48,'Detailed price list'!$B$5:$B$237,0)),INDEX('Detailed price list'!E$5:E$237,MATCH($B48,'Detailed price list'!$L$5:$L$237,0))), SUMPRODUCT(('Detailed price list'!E$5:E$237)*('Detailed price list'!$M$5:$M$237)*('Detailed price list'!$L$5:$L$237=$B48))/SUMIF('Detailed price list'!$L$5:$L$237,$B48,'Detailed price list'!$M$5:$M$237)) -> 32.65358838 | E48: =IF(SUMIF('Detailed price list'!$L$5:$L$237,$B48,'Detailed price list'!$M$5:$M$237)=0, IFERROR(INDEX('Detailed price list'!F$5:F$237,MATCH($B48,'Detailed price list'!$B$5:$B$237,0)),INDEX('Detailed price list'!F$5:F$237,MATCH($B48,'Detailed price list'!$L$5:$L$237,0))), SUMPRODUCT(('Detailed price list'!F$5:F$237)*('Detailed price list'!$M$5:$M$237)*('Detailed price list'!$L$5:$L$237=$B48))/SUMIF('Detailed price list'!$L$5:$L$237,$B48,'Detailed price list'!$M$5:$M$237)) -> 33.56781739 | F48: =IF(SUMIF('Detailed price list'!$L$5:$L$237,$B48,'Detailed price list'!$M$5:$M$237)=0, IFERROR(INDEX('Detailed price list'!G$5:G$237,MATCH($B48,'Detailed price list'!$B$5:$B$237,0)),INDEX('Detailed price list'!G$5:G$237,MATCH($B48,'Detailed price list'!$L$5:$L$237,0))), SUMPRODUCT(('Detailed price list'!G$5:G$237)*('Detailed price list'!$M$5:$M$237)*('Detailed price list'!$L$5:$L$237=$B48))/SUMIF('Detailed price list'!$L$5:$L$237,$B48,'Detailed price list'!$M$5:$M$237)) -> 34.50764281 | G48: =IF(SUMIF('Detailed price list'!$L$5:$L$237,$B48,'Detailed price list'!$M$5:$M$237)=0, IFERROR(INDEX('Detailed price list'!H$5:H$237,MATCH($B48,'Detailed price list'!$B$5:$B$237,0)),INDEX('Detailed price list'!H$5:H$237,MATCH($B48,'Detailed price list'!$L$5:$L$237,0))), SUMPRODUCT(('Detailed price list'!H$5:H$237)*('Detailed price list'!$M$5:$M$237)*('Detailed price list'!$L$5:$L$237=$B48))/SUMIF('Detailed price list'!$L$5:$L$237,$B48,'Detailed price list'!$M$5:$M$237)) -> 35.47378128
B49: Luminaire - Minor (Cat P) road | C49: =IF(SUMIF('Detailed price list'!$L$5:$L$237,$B49,'Detailed price list'!$M$5:$M$237)=0, IFERROR(INDEX('Detailed price list'!D$5:D$237,MATCH($B49,'Detailed price list'!$B$5:$B$237,0)),INDEX('Detailed price list'!D$5:D$237,MATCH($B49,'Detailed price list'!$L$5:$L$237,0))), SUMPRODUCT(('Detailed price list'!D$5:D$237)*('Detailed price list'!$M$5:$M$237)*('Detailed price list'!$L$5:$L$237=$B49))/SUMIF('Detailed price list'!$L$5:$L$237,$B49,'Detailed price list'!$M$5:$M$237)) -> 23.32463152 | D49: =IF(SUMIF('Detailed price list'!$L$5:$L$237,$B49,'Detailed price list'!$M$5:$M$237)=0, IFERROR(INDEX('Detailed price list'!E$5:E$237,MATCH($B49,'Detailed price list'!$B$5:$B$237,0)),INDEX('Detailed price list'!E$5:E$237,MATCH($B49,'Detailed price list'!$L$5:$L$237,0))), SUMPRODUCT(('Detailed price list'!E$5:E$237)*('Detailed price list'!$M$5:$M$237)*('Detailed price list'!$L$5:$L$237=$B49))/SUMIF('Detailed price list'!$L$5:$L$237,$B49,'Detailed price list'!$M$5:$M$237)) -> 23.97767015 | E49: =IF(SUMIF('Detailed price list'!$L$5:$L$237,$B49,'Detailed price list'!$M$5:$M$237)=0, IFERROR(INDEX('Detailed price list'!F$5:F$237,MATCH($B49,'Detailed price list'!$B$5:$B$237,0)),INDEX('Detailed price list'!F$5:F$237,MATCH($B49,'Detailed price list'!$L$5:$L$237,0))), SUMPRODUCT(('Detailed price list'!F$5:F$237)*('Detailed price list'!$M$5:$M$237)*('Detailed price list'!$L$5:$L$237=$B49))/SUMIF('Detailed price list'!$L$5:$L$237,$B49,'Detailed price list'!$M$5:$M$237)) -> 24.64899244 | F49: =IF(SUMIF('Detailed price list'!$L$5:$L$237,$B49,'Detailed price list'!$M$5:$M$237)=0, IFERROR(INDEX('Detailed price list'!G$5:G$237,MATCH($B49,'Detailed price list'!$B$5:$B$237,0)),INDEX('Detailed price list'!G$5:G$237,MATCH($B49,'Detailed price list'!$L$5:$L$237,0))), SUMPRODUCT(('Detailed price list'!G$5:G$237)*('Detailed price list'!$M$5:$M$237)*('Detailed price list'!$L$5:$L$237=$B49))/SUMIF('Detailed price list'!$L$5:$L$237,$B49,'Detailed price list'!$M$5:$M$237)) -> 25.33911027 | G49: =IF(SUMIF('Detailed price list'!$L$5:$L$237,$B49,'Detailed price list'!$M$5:$M$237)=0, IFERROR(INDEX('Detailed price list'!H$5:H$237,MATCH($B49,'Detailed price list'!$B$5:$B$237,0)),INDEX('Detailed price list'!H$5:H$237,MATCH($B49,'Detailed price list'!$L$5:$L$237,0))), SUMPRODUCT(('Detailed price list'!H$5:H$237)*('Detailed price list'!$M$5:$M$237)*('Detailed price list'!$L$5:$L$237=$B49))/SUMIF('Detailed price list'!$L$5:$L$237,$B49,'Detailed price list'!$M$5:$M$237)) -> 26.0485499
B50: Luminaire - Major (Cat V) road | C50: =IF(SUMIF('Detailed price list'!$L$5:$L$237,$B50,'Detailed price list'!$M$5:$M$237)=0, IFERROR(INDEX('Detailed price list'!D$5:D$237,MATCH($B50,'Detailed price list'!$B$5:$B$237,0)),INDEX('Detailed price list'!D$5:D$237,MATCH($B50,'Detailed price list'!$L$5:$L$237,0))), SUMPRODUCT(('Detailed price list'!D$5:D$237)*('Detailed price list'!$M$5:$M$237)*('Detailed price list'!$L$5:$L$237=$B50))/SUMIF('Detailed price list'!$L$5:$L$237,$B50,'Detailed price list'!$M$5:$M$237)) -> 31.76425867 | D50: =IF(SUMIF('Detailed price list'!$L$5:$L$237,$B50,'Detailed price list'!$M$5:$M$237)=0, IFERROR(INDEX('Detailed price list'!E$5:E$237,MATCH($B50,'Detailed price list'!$B$5:$B$237,0)),INDEX('Detailed price list'!E$5:E$237,MATCH($B50,'Detailed price list'!$L$5:$L$237,0))), SUMPRODUCT(('Detailed price list'!E$5:E$237)*('Detailed price list'!$M$5:$M$237)*('Detailed price list'!$L$5:$L$237=$B50))/SUMIF('Detailed price list'!$L$5:$L$237,$B50,'Detailed price list'!$M$5:$M$237)) -> 32.65358838 | E50: =IF(SUMIF('Detailed price list'!$L$5:$L$237,$B50,'Detailed price list'!$M$5:$M$237)=0, IFERROR(INDEX('Detailed price list'!F$5:F$237,MATCH($B50,'Detailed price list'!$B$5:$B$237,0)),INDEX('Detailed price list'!F$5:F$237,MATCH($B50,'Detailed price list'!$L$5:$L$237,0))), SUMPRODUCT(('Detailed price list'!F$5:F$237)*('Detailed price list'!$M$5:$M$237)*('Detailed price list'!$L$5:$L$237=$B50))/SUMIF('Detailed price list'!$L$5:$L$237,$B50,'Detailed price list'!$M$5:$M$237)) -> 33.56781739 | F50: =IF(SUMIF('Detailed price list'!$L$5:$L$237,$B50,'Detailed price list'!$M$5:$M$237)=0, IFERROR(INDEX('Detailed price list'!G$5:G$237,MATCH($B50,'Detailed price list'!$B$5:$B$237,0)),INDEX('Detailed price list'!G$5:G$237,MATCH($B50,'Detailed price list'!$L$5:$L$237,0))), SUMPRODUCT(('Detailed price list'!G$5:G$237)*('Detailed price list'!$M$5:$M$237)*('Detailed price list'!$L$5:$L$237=$B50))/SUMIF('Detailed price list'!$L$5:$L$237,$B50,'Detailed price list'!$M$5:$M$237)) -> 34.50764281 | G50: =IF(SUMIF('Detailed price list'!$L$5:$L$237,$B50,'Detailed price list'!$M$5:$M$237)=0, IFERROR(INDEX('Detailed price list'!H$5:H$237,MATCH($B50,'Detailed price list'!$B$5:$B$237,0)),INDEX('Detailed price list'!H$5:H$237,MATCH($B50,'Detailed price list'!$L$5:$L$237,0))), SUMPRODUCT(('Detailed price list'!H$5:H$237)*('Detailed price list'!$M$5:$M$237)*('Detailed price list'!$L$5:$L$237=$B50))/SUMIF('Detailed price list'!$L$5:$L$237,$B50,'Detailed price list'!$M$5:$M$237)) -> 35.47378128
B51: Luminaire - Minor (Cat P) road | C51: =IF(SUMIF('Detailed price list'!$L$5:$L$237,$B51,'Detailed price list'!$M$5:$M$237)=0, IFERROR(INDEX('Detailed price list'!D$5:D$237,MATCH($B51,'Detailed price list'!$B$5:$B$237,0)),INDEX('Detailed price list'!D$5:D$237,MATCH($B51,'Detailed price list'!$L$5:$L$237,0))), SUMPRODUCT(('Detailed price list'!D$5:D$237)*('Detailed price list'!$M$5:$M$237)*('Detailed price list'!$L$5:$L$237=$B51))/SUMIF('Detailed price list'!$L$5:$L$237,$B51,'Detailed price list'!$M$5:$M$237)) -> 23.32463152 | D51: =IF(SUMIF('Detailed price list'!$L$5:$L$237,$B51,'Detailed price list'!$M$5:$M$237)=0, IFERROR(INDEX('Detailed price list'!E$5:E$237,MATCH($B51,'Detailed price list'!$B$5:$B$237,0)),INDEX('Detailed price list'!E$5:E$237,MATCH($B51,'Detailed price list'!$L$5:$L$237,0))), SUMPRODUCT(('Detailed price list'!E$5:E$237)*('Detailed price list'!$M$5:$M$237)*('Detailed price list'!$L$5:$L$237=$B51))/SUMIF('Detailed price list'!$L$5:$L$237,$B51,'Detailed price list'!$M$5:$M$237)) -> 23.97767015 | E51: =IF(SUMIF('Detailed price list'!$L$5:$L$237,$B51,'Detailed price list'!$M$5:$M$237)=0, IFERROR(INDEX('Detailed price list'!F$5:F$237,MATCH($B51,'Detailed price list'!$B$5:$B$237,0)),INDEX('Detailed price list'!F$5:F$237,MATCH($B51,'Detailed price list'!$L$5:$L$237,0))), SUMPRODUCT(('Detailed price list'!F$5:F$237)*('Detailed price list'!$M$5:$M$237)*('Detailed price list'!$L$5:$L$237=$B51))/SUMIF('Detailed price list'!$L$5:$L$237,$B51,'Detailed price list'!$M$5:$M$237)) -> 24.64899244 | F51: =IF(SUMIF('Detailed price list'!$L$5:$L$237,$B51,'Detailed price list'!$M$5:$M$237)=0, IFERROR(INDEX('Detailed price list'!G$5:G$237,MATCH($B51,'Detailed price list'!$B$5:$B$237,0)),INDEX('Detailed price list'!G$5:G$237,MATCH($B51,'Detailed price list'!$L$5:$L$237,0))), SUMPRODUCT(('Detailed price list'!G$5:G$237)*('Detailed price list'!$M$5:$M$237)*('Detailed price list'!$L$5:$L$237=$B51))/SUMIF('Detailed price list'!$L$5:$L$237,$B51,'Detailed price list'!$M$5:$M$237)) -> 25.33911027 | G51: =IF(SUMIF('Detailed price list'!$L$5:$L$237,$B51,'Detailed price list'!$M$5:$M$237)=0, IFERROR(INDEX('Detailed price list'!H$5:H$237,MATCH($B51,'Detailed price list'!$B$5:$B$237,0)),INDEX('Detailed price list'!H$5:H$237,MATCH($B51,'Detailed price list'!$L$5:$L$237,0))), SUMPRODUCT(('Detailed price list'!H$5:H$237)*('Detailed price list'!$M$5:$M$237)*('Detailed price list'!$L$5:$L$237=$B51))/SUMIF('Detailed price list'!$L$5:$L$237,$B51,'Detailed price list'!$M$5:$M$237)) -> 26.0485499
B52: Luminaire - Minor (Cat P) road | C52: =IF(SUMIF('Detailed price list'!$L$5:$L$237,$B52,'Detailed price list'!$M$5:$M$237)=0, IFERROR(INDEX('Detailed price list'!D$5:D$237,MATCH($B52,'Detailed price list'!$B$5:$B$237,0)),INDEX('Detailed price list'!D$5:D$237,MATCH($B52,'Detailed price list'!$L$5:$L$237,0))), SUMPRODUCT(('Detailed price list'!D$5:D$237)*('Detailed price list'!$M$5:$M$237)*('Detailed price list'!$L$5:$L$237=$B52))/SUMIF('Detailed price list'!$L$5:$L$237,$B52,'Detailed price list'!$M$5:$M$237)) -> 23.32463152 | D52: =IF(SUMIF('Detailed price list'!$L$5:$L$237,$B52,'Detailed price list'!$M$5:$M$237)=0, IFERROR(INDEX('Detailed price list'!E$5:E$237,MATCH($B52,'Detailed price list'!$B$5:$B$237,0)),INDEX('Detailed price list'!E$5:E$237,MATCH($B52,'Detailed price list'!$L$5:$L$237,0))), SUMPRODUCT(('Detailed price list'!E$5:E$237)*('Detailed price list'!$M$5:$M$237)*('Detailed price list'!$L$5:$L$237=$B52))/SUMIF('Detailed price list'!$L$5:$L$237,$B52,'Detailed price list'!$M$5:$M$237)) -> 23.97767015 | E52: =IF(SUMIF('Detailed price list'!$L$5:$L$237,$B52,'Detailed price list'!$M$5:$M$237)=0, IFERROR(INDEX('Detailed price list'!F$5:F$237,MATCH($B52,'Detailed price list'!$B$5:$B$237,0)),INDEX('Detailed price list'!F$5:F$237,MATCH($B52,'Detailed price list'!$L$5:$L$237,0))), SUMPRODUCT(('Detailed price list'!F$5:F$237)*('Detailed price list'!$M$5:$M$237)*('Detailed price list'!$L$5:$L$237=$B52))/SUMIF('Detailed price list'!$L$5:$L$237,$B52,'Detailed price list'!$M$5:$M$237)) -> 24.64899244 | F52: =IF(SUMIF('Detailed price list'!$L$5:$L$237,$B52,'Detailed price list'!$M$5:$M$237)=0, IFERROR(INDEX('Detailed price list'!G$5:G$237,MATCH($B52,'Detailed price list'!$B$5:$B$237,0)),INDEX('Detailed price list'!G$5:G$237,MATCH($B52,'Detailed price list'!$L$5:$L$237,0))), SUMPRODUCT(('Detailed price list'!G$5:G$237)*('Detailed price list'!$M$5:$M$237)*('Detailed price list'!$L$5:$L$237=$B52))/SUMIF('Detailed price list'!$L$5:$L$237,$B52,'Detailed price list'!$M$5:$M$237)) -> 25.33911027 | G52: =IF(SUMIF('Detailed price list'!$L$5:$L$237,$B52,'Detailed price list'!$M$5:$M$237)=0, IFERROR(INDEX('Detailed price list'!H$5:H$237,MATCH($B52,'Detailed price list'!$B$5:$B$237,0)),INDEX('Detailed price list'!H$5:H$237,MATCH($B52,'Detailed price list'!$L$5:$L$237,0))), SUMPRODUCT(('Detailed price list'!H$5:H$237)*('Detailed price list'!$M$5:$M$237)*('Detailed price list'!$L$5:$L$237=$B52))/SUMIF('Detailed price list'!$L$5:$L$237,$B52,'Detailed price list'!$M$5:$M$237)) -> 26.0485499
B53: Luminaire - Minor (Cat P) road | C53: =IF(SUMIF('Detailed price list'!$L$5:$L$237,$B53,'Detailed price list'!$M$5:$M$237)=0, IFERROR(INDEX('Detailed price list'!D$5:D$237,MATCH($B53,'Detailed price list'!$B$5:$B$237,0)),INDEX('Detailed price list'!D$5:D$237,MATCH($B53,'Detailed price list'!$L$5:$L$237,0))), SUMPRODUCT(('Detailed price list'!D$5:D$237)*('Detailed price list'!$M$5:$M$237)*('Detailed price list'!$L$5:$L$237=$B53))/SUMIF('Detailed price list'!$L$5:$L$237,$B53,'Detailed price list'!$M$5:$M$237)) -> 23.32463152 | D53: =IF(SUMIF('Detailed price list'!$L$5:$L$237,$B53,'Detailed price list'!$M$5:$M$237)=0, IFERROR(INDEX('Detailed price list'!E$5:E$237,MATCH($B53,'Detailed price list'!$B$5:$B$237,0)),INDEX('Detailed price list'!E$5:E$237,MATCH($B53,'Detailed price list'!$L$5:$L$237,0))), SUMPRODUCT(('Detailed price list'!E$5:E$237)*('Detailed price list'!$M$5:$M$237)*('Detailed price list'!$L$5:$L$237=$B53))/SUMIF('Detailed price list'!$L$5:$L$237,$B53,'Detailed price list'!$M$5:$M$237)) -> 23.97767015 | E53: =IF(SUMIF('Detailed price list'!$L$5:$L$237,$B53,'Detailed price list'!$M$5:$M$237)=0, IFERROR(INDEX('Detailed price list'!F$5:F$237,MATCH($B53,'Detailed price list'!$B$5:$B$237,0)),INDEX('Detailed price list'!F$5:F$237,MATCH($B53,'Detailed price list'!$L$5:$L$237,0))), SUMPRODUCT(('Detailed price list'!F$5:F$237)*('Detailed price list'!$M$5:$M$237)*('Detailed price list'!$L$5:$L$237=$B53))/SUMIF('Detailed price list'!$L$5:$L$237,$B53,'Detailed price list'!$M$5:$M$237)) -> 24.64899244 | F53: =IF(SUMIF('Detailed price list'!$L$5:$L$237,$B53,'Detailed price list'!$M$5:$M$237)=0, IFERROR(INDEX('Detailed price list'!G$5:G$237,MATCH($B53,'Detailed price list'!$B$5:$B$237,0)),INDEX('Detailed price list'!G$5:G$237,MATCH($B53,'Detailed price list'!$L$5:$L$237,0))), SUMPRODUCT(('Detailed price list'!G$5:G$237)*('Detailed price list'!$M$5:$M$237)*('Detailed price list'!$L$5:$L$237=$B53))/SUMIF('Detailed price list'!$L$5:$L$237,$B53,'Detailed price list'!$M$5:$M$237)) -> 25.33911027 | G53: =IF(SUMIF('Detailed price list'!$L$5:$L$237,$B53,'Detailed price list'!$M$5:$M$237)=0, IFERROR(INDEX('Detailed price list'!H$5:H$237,MATCH($B53,'Detailed price list'!$B$5:$B$237,0)),INDEX('Detailed price list'!H$5:H$237,MATCH($B53,'Detailed price list'!$L$5:$L$237,0))), SUMPRODUCT(('Detailed price list'!H$5:H$237)*('Detailed price list'!$M$5:$M$237)*('Detailed price list'!$L$5:$L$237=$B53))/SUMIF('Detailed price list'!$L$5:$L$237,$B53,'Detailed price list'!$M$5:$M$237)) -> 26.0485499
B54: Luminaire - Minor (Cat P) road | C54: =IF(SUMIF('Detailed price list'!$L$5:$L$237,$B54,'Detailed price list'!$M$5:$M$237)=0, IFERROR(INDEX('Detailed price list'!D$5:D$237,MATCH($B54,'Detailed price list'!$B$5:$B$237,0)),INDEX('Detailed price list'!D$5:D$237,MATCH($B54,'Detailed price list'!$L$5:$L$237,0))), SUMPRODUCT(('Detailed price list'!D$5:D$237)*('Detailed price list'!$M$5:$M$237)*('Detailed price list'!$L$5:$L$237=$B54))/SUMIF('Detailed price list'!$L$5:$L$237,$B54,'Detailed price list'!$M$5:$M$237)) -> 23.32463152 | D54: =IF(SUMIF('Detailed price list'!$L$5:$L$237,$B54,'Detailed price list'!$M$5:$M$237)=0, IFERROR(INDEX('Detailed price list'!E$5:E$237,MATCH($B54,'Detailed price list'!$B$5:$B$237,0)),INDEX('Detailed price list'!E$5:E$237,MATCH($B54,'Detailed price list'!$L$5:$L$237,0))), SUMPRODUCT(('Detailed price list'!E$5:E$237)*('Detailed price list'!$M$5:$M$237)*('Detailed price list'!$L$5:$L$237=$B54))/SUMIF('Detailed price list'!$L$5:$L$237,$B54,'Detailed price list'!$M$5:$M$237)) -> 23.97767015 | E54: =IF(SUMIF('Detailed price list'!$L$5:$L$237,$B54,'Detailed price list'!$M$5:$M$237)=0, IFERROR(INDEX('Detailed price list'!F$5:F$237,MATCH($B54,'Detailed price list'!$B$5:$B$237,0)),INDEX('Detailed price list'!F$5:F$237,MATCH($B54,'Detailed price list'!$L$5:$L$237,0))), SUMPRODUCT(('Detailed price list'!F$5:F$237)*('Detailed price list'!$M$5:$M$237)*('Detailed price list'!$L$5:$L$237=$B54))/SUMIF('Detailed price list'!$L$5:$L$237,$B54,'Detailed price list'!$M$5:$M$237)) -> 24.64899244 | F54: =IF(SUMIF('Detailed price list'!$L$5:$L$237,$B54,'Detailed price list'!$M$5:$M$237)=0, IFERROR(INDEX('Detailed price list'!G$5:G$237,MATCH($B54,'Detailed price list'!$B$5:$B$237,0)),INDEX('Detailed price list'!G$5:G$237,MATCH($B54,'Detailed price list'!$L$5:$L$237,0))), SUMPRODUCT(('Detailed price list'!G$5:G$237)*('Detailed price list'!$M$5:$M$237)*('Detailed price list'!$L$5:$L$237=$B54))/SUMIF('Detailed price list'!$L$5:$L$237,$B54,'Detailed price list'!$M$5:$M$237)) -> 25.33911027 | G54: =IF(SUMIF('Detailed price list'!$L$5:$L$237,$B54,'Detailed price list'!$M$5:$M$237)=0, IFERROR(INDEX('Detailed price list'!H$5:H$237,MATCH($B54,'Detailed price list'!$B$5:$B$237,0)),INDEX('Detailed price list'!H$5:H$237,MATCH($B54,'Detailed price list'!$L$5:$L$237,0))), SUMPRODUCT(('Detailed price list'!H$5:H$237)*('Detailed price list'!$M$5:$M$237)*('Detailed price list'!$L$5:$L$237=$B54))/SUMIF('Detailed price list'!$L$5:$L$237,$B54,'Detailed price list'!$M$5:$M$237)) -> 26.0485499
B55: Luminaire - Major (Cat V) road | C55: =IF(SUMIF('Detailed price list'!$L$5:$L$237,$B55,'Detailed price list'!$M$5:$M$237)=0, IFERROR(INDEX('Detailed price list'!D$5:D$237,MATCH($B55,'Detailed price list'!$B$5:$B$237,0)),INDEX('Detailed price list'!D$5:D$237,MATCH($B55,'Detailed price list'!$L$5:$L$237,0))), SUMPRODUCT(('Detailed price list'!D$5:D$237)*('Detailed price list'!$M$5:$M$237)*('Detailed price list'!$L$5:$L$237=$B55))/SUMIF('Detailed price list'!$L$5:$L$237,$B55,'Detailed price list'!$M$5:$M$237)) -> 31.76425867 | D55: =IF(SUMIF('Detailed price list'!$L$5:$L$237,$B55,'Detailed price list'!$M$5:$M$237)=0, IFERROR(INDEX('Detailed price list'!E$5:E$237,MATCH($B55,'Detailed price list'!$B$5:$B$237,0)),INDEX('Detailed price list'!E$5:E$237,MATCH($B55,'Detailed price list'!$L$5:$L$237,0))), SUMPRODUCT(('Detailed price list'!E$5:E$237)*('Detailed price list'!$M$5:$M$237)*('Detailed price list'!$L$5:$L$237=$B55))/SUMIF('Detailed price list'!$L$5:$L$237,$B55,'Detailed price list'!$M$5:$M$237)) -> 32.65358838 | E55: =IF(SUMIF('Detailed price list'!$L$5:$L$237,$B55,'Detailed price list'!$M$5:$M$237)=0, IFERROR(INDEX('Detailed price list'!F$5:F$237,MATCH($B55,'Detailed price list'!$B$5:$B$237,0)),INDEX('Detailed price list'!F$5:F$237,MATCH($B55,'Detailed price list'!$L$5:$L$237,0))), SUMPRODUCT(('Detailed price list'!F$5:F$237)*('Detailed price list'!$M$5:$M$237)*('Detailed price list'!$L$5:$L$237=$B55))/SUMIF('Detailed price list'!$L$5:$L$237,$B55,'Detailed price list'!$M$5:$M$237)) -> 33.56781739 | F55: =IF(SUMIF('Detailed price list'!$L$5:$L$237,$B55,'Detailed price list'!$M$5:$M$237)=0, IFERROR(INDEX('Detailed price list'!G$5:G$237,MATCH($B55,'Detailed price list'!$B$5:$B$237,0)),INDEX('Detailed price list'!G$5:G$237,MATCH($B55,'Detailed price list'!$L$5:$L$237,0))), SUMPRODUCT(('Detailed price list'!G$5:G$237)*('Detailed price list'!$M$5:$M$237)*('Detailed price list'!$L$5:$L$237=$B55))/SUMIF('Detailed price list'!$L$5:$L$237,$B55,'Detailed price list'!$M$5:$M$237)) -> 34.50764281 | G55: =IF(SUMIF('Detailed price list'!$L$5:$L$237,$B55,'Detailed price list'!$M$5:$M$237)=0, IFERROR(INDEX('Detailed price list'!H$5:H$237,MATCH($B55,'Detailed price list'!$B$5:$B$237,0)),INDEX('Detailed price list'!H$5:H$237,MATCH($B55,'Detailed price list'!$L$5:$L$237,0))), SUMPRODUCT(('Detailed price list'!H$5:H$237)*('Detailed price list'!$M$5:$M$237)*('Detailed price list'!$L$5:$L$237=$B55))/SUMIF('Detailed price list'!$L$5:$L$237,$B55,'Detailed price list'!$M$5:$M$237)) -> 35.47378128
B56: Luminaire - Minor (Cat P) road | C56: =IF(SUMIF('Detailed price list'!$L$5:$L$237,$B56,'Detailed price list'!$M$5:$M$237)=0, IFERROR(INDEX('Detailed price list'!D$5:D$237,MATCH($B56,'Detailed price list'!$B$5:$B$237,0)),INDEX('Detailed price list'!D$5:D$237,MATCH($B56,'Detailed price list'!$L$5:$L$237,0))), SUMPRODUCT(('Detailed price list'!D$5:D$237)*('Detailed price list'!$M$5:$M$237)*('Detailed price list'!$L$5:$L$237=$B56))/SUMIF('Detailed price list'!$L$5:$L$237,$B56,'Detailed price list'!$M$5:$M$237)) -> 23.32463152 | D56: =IF(SUMIF('Detailed price list'!$L$5:$L$237,$B56,'Detailed price list'!$M$5:$M$237)=0, IFERROR(INDEX('Detailed price list'!E$5:E$237,MATCH($B56,'Detailed price list'!$B$5:$B$237,0)),INDEX('Detailed price list'!E$5:E$237,MATCH($B56,'Detailed price list'!$L$5:$L$237,0))), SUMPRODUCT(('Detailed price list'!E$5:E$237)*('Detailed price list'!$M$5:$M$237)*('Detailed price list'!$L$5:$L$237=$B56))/SUMIF('Detailed price list'!$L$5:$L$237,$B56,'Detailed price list'!$M$5:$M$237)) -> 23.97767015 | E56: =IF(SUMIF('Detailed price list'!$L$5:$L$237,$B56,'Detailed price list'!$M$5:$M$237)=0, IFERROR(INDEX('Detailed price list'!F$5:F$237,MATCH($B56,'Detailed price list'!$B$5:$B$237,0)),INDEX('Detailed price list'!F$5:F$237,MATCH($B56,'Detailed price list'!$L$5:$L$237,0))), SUMPRODUCT(('Detailed price list'!F$5:F$237)*('Detailed price list'!$M$5:$M$237)*('Detailed price list'!$L$5:$L$237=$B56))/SUMIF('Detailed price list'!$L$5:$L$237,$B56,'Detailed price list'!$M$5:$M$237)) -> 24.64899244 | F56: =IF(SUMIF('Detailed price list'!$L$5:$L$237,$B56,'Detailed price list'!$M$5:$M$237)=0, IFERROR(INDEX('Detailed price list'!G$5:G$237,MATCH($B56,'Detailed price list'!$B$5:$B$237,0)),INDEX('Detailed price list'!G$5:G$237,MATCH($B56,'Detailed price list'!$L$5:$L$237,0))), SUMPRODUCT(('Detailed price list'!G$5:G$237)*('Detailed price list'!$M$5:$M$237)*('Detailed price list'!$L$5:$L$237=$B56))/SUMIF('Detailed price list'!$L$5:$L$237,$B56,'Detailed price list'!$M$5:$M$237)) -> 25.33911027 | G56: =IF(SUMIF('Detailed price list'!$L$5:$L$237,$B56,'Detailed price list'!$M$5:$M$237)=0, IFERROR(INDEX('Detailed price list'!H$5:H$237,MATCH($B56,'Detailed price list'!$B$5:$B$237,0)),INDEX('Detailed price list'!H$5:H$237,MATCH($B56,'Detailed price list'!$L$5:$L$237,0))), SUMPRODUCT(('Detailed price list'!H$5:H$237)*('Detailed price list'!$M$5:$M$237)*('Detailed price list'!$L$5:$L$237=$B56))/SUMIF('Detailed price list'!$L$5:$L$237,$B56,'Detailed price list'!$M$5:$M$237)) -> 26.0485499
B57: Luminaire - Minor (Cat P) road | C57: =IF(SUMIF('Detailed price list'!$L$5:$L$237,$B57,'Detailed price list'!$M$5:$M$237)=0, IFERROR(INDEX('Detailed price list'!D$5:D$237,MATCH($B57,'Detailed price list'!$B$5:$B$237,0)),INDEX('Detailed price list'!D$5:D$237,MATCH($B57,'Detailed price list'!$L$5:$L$237,0))), SUMPRODUCT(('Detailed price list'!D$5:D$237)*('Detailed price list'!$M$5:$M$237)*('Detailed price list'!$L$5:$L$237=$B57))/SUMIF('Detailed price list'!$L$5:$L$237,$B57,'Detailed price list'!$M$5:$M$237)) -> 23.32463152 | D57: =IF(SUMIF('Detailed price list'!$L$5:$L$237,$B57,'Detailed price list'!$M$5:$M$237)=0, IFERROR(INDEX('Detailed price list'!E$5:E$237,MATCH($B57,'Detailed price list'!$B$5:$B$237,0)),INDEX('Detailed price list'!E$5:E$237,MATCH($B57,'Detailed price list'!$L$5:$L$237,0))), SUMPRODUCT(('Detailed price list'!E$5:E$237)*('Detailed price list'!$M$5:$M$237)*('Detailed price list'!$L$5:$L$237=$B57))/SUMIF('Detailed price list'!$L$5:$L$237,$B57,'Detailed price list'!$M$5:$M$237)) -> 23.97767015 | E57: =IF(SUMIF('Detailed price list'!$L$5:$L$237,$B57,'Detailed price list'!$M$5:$M$237)=0, IFERROR(INDEX('Detailed price list'!F$5:F$237,MATCH($B57,'Detailed price list'!$B$5:$B$237,0)),INDEX('Detailed price list'!F$5:F$237,MATCH($B57,'Detailed price list'!$L$5:$L$237,0))), SUMPRODUCT(('Detailed price list'!F$5:F$237)*('Detailed price list'!$M$5:$M$237)*('Detailed price list'!$L$5:$L$237=$B57))/SUMIF('Detailed price list'!$L$5:$L$237,$B57,'Detailed price list'!$M$5:$M$237)) -> 24.64899244 | F57: =IF(SUMIF('Detailed price list'!$L$5:$L$237,$B57,'Detailed price list'!$M$5:$M$237)=0, IFERROR(INDEX('Detailed price list'!G$5:G$237,MATCH($B57,'Detailed price list'!$B$5:$B$237,0)),INDEX('Detailed price list'!G$5:G$237,MATCH($B57,'Detailed price list'!$L$5:$L$237,0))), SUMPRODUCT(('Detailed price list'!G$5:G$237)*('Detailed price list'!$M$5:$M$237)*('Detailed price list'!$L$5:$L$237=$B57))/SUMIF('Detailed price list'!$L$5:$L$237,$B57,'Detailed price list'!$M$5:$M$237)) -> 25.33911027 | G57: =IF(SUMIF('Detailed price list'!$L$5:$L$237,$B57,'Detailed price list'!$M$5:$M$237)=0, IFERROR(INDEX('Detailed price list'!H$5:H$237,MATCH($B57,'Detailed price list'!$B$5:$B$237,0)),INDEX('Detailed price list'!H$5:H$237,MATCH($B57,'Detailed price list'!$L$5:$L$237,0))), SUMPRODUCT(('Detailed price list'!H$5:H$237)*('Detailed price list'!$M$5:$M$237)*('Detailed price list'!$L$5:$L$237=$B57))/SUMIF('Detailed price list'!$L$5:$L$237,$B57,'Detailed price list'!$M$5:$M$237)) -> 26.0485499
B58: Smart Controller | C58: =IF(SUMIF('Detailed price list'!$L$5:$L$237,$B58,'Detailed price list'!$M$5:$M$237)=0, IFERROR(INDEX('Detailed price list'!D$5:D$237,MATCH($B58,'Detailed price list'!$B$5:$B$237,0)),INDEX('Detailed price list'!D$5:D$237,MATCH($B58,'Detailed price list'!$L$5:$L$237,0))), SUMPRODUCT(('Detailed price list'!D$5:D$237)*('Detailed price list'!$M$5:$M$237)*('Detailed price list'!$L$5:$L$237=$B58))/SUMIF('Detailed price list'!$L$5:$L$237,$B58,'Detailed price list'!$M$5:$M$237)) -> 4.398974671 | D58: =IF(SUMIF('Detailed price list'!$L$5:$L$237,$B58,'Detailed price list'!$M$5:$M$237)=0, IFERROR(INDEX('Detailed price list'!E$5:E$237,MATCH($B58,'Detailed price list'!$B$5:$B$237,0)),INDEX('Detailed price list'!E$5:E$237,MATCH($B58,'Detailed price list'!$L$5:$L$237,0))), SUMPRODUCT(('Detailed price list'!E$5:E$237)*('Detailed price list'!$M$5:$M$237)*('Detailed price list'!$L$5:$L$237=$B58))/SUMIF('Detailed price list'!$L$5:$L$237,$B58,'Detailed price list'!$M$5:$M$237)) -> 4.522136334 | E58: =IF(SUMIF('Detailed price list'!$L$5:$L$237,$B58,'Detailed price list'!$M$5:$M$237)=0, IFERROR(INDEX('Detailed price list'!F$5:F$237,MATCH($B58,'Detailed price list'!$B$5:$B$237,0)),INDEX('Detailed price list'!F$5:F$237,MATCH($B58,'Detailed price list'!$L$5:$L$237,0))), SUMPRODUCT(('Detailed price list'!F$5:F$237)*('Detailed price list'!$M$5:$M$237)*('Detailed price list'!$L$5:$L$237=$B58))/SUMIF('Detailed price list'!$L$5:$L$237,$B58,'Detailed price list'!$M$5:$M$237)) -> 4.648746254 | F58: =IF(SUMIF('Detailed price list'!$L$5:$L$237,$B58,'Detailed price list'!$M$5:$M$237)=0, IFERROR(INDEX('Detailed price list'!G$5:G$237,MATCH($B58,'Detailed price list'!$B$5:$B$237,0)),INDEX('Detailed price list'!G$5:G$237,MATCH($B58,'Detailed price list'!$L$5:$L$237,0))), SUMPRODUCT(('Detailed price list'!G$5:G$237)*('Detailed price list'!$M$5:$M$237)*('Detailed price list'!$L$5:$L$237=$B58))/SUMIF('Detailed price list'!$L$5:$L$237,$B58,'Detailed price list'!$M$5:$M$237)) -> 4.778900974 | G58: =IF(SUMIF('Detailed price list'!$L$5:$L$237,$B58,'Detailed price list'!$M$5:$M$237)=0, IFERROR(INDEX('Detailed price list'!H$5:H$237,MATCH($B58,'Detailed price list'!$B$5:$B$237,0)),INDEX('Detailed price list'!H$5:H$237,MATCH($B58,'Detailed price list'!$L$5:$L$237,0))), SUMPRODUCT(('Detailed price list'!H$5:H$237)*('Detailed price list'!$M$5:$M$237)*('Detailed price list'!$L$5:$L$237=$B58))/SUMIF('Detailed price list'!$L$5:$L$237,$B58,'Detailed price list'!$M$5:$M$237)) -> 4.912699741
B59: Luminaire - Decorative | C59: =IF(SUMIF('Detailed price list'!$L$5:$L$237,$B59,'Detailed price list'!$M$5:$M$237)=0, IFERROR(INDEX('Detailed price list'!D$5:D$237,MATCH($B59,'Detailed price list'!$B$5:$B$237,0)),INDEX('Detailed price list'!D$5:D$237,MATCH($B59,'Detailed price list'!$L$5:$L$237,0))), SUMPRODUCT(('Detailed price list'!D$5:D$237)*('Detailed price list'!$M$5:$M$237)*('Detailed price list'!$L$5:$L$237=$B59))/SUMIF('Detailed price list'!$L$5:$L$237,$B59,'Detailed price list'!$M$5:$M$237)) -> 25.02975226 | D59: =IF(SUMIF('Detailed price list'!$L$5:$L$237,$B59,'Detailed price list'!$M$5:$M$237)=0, IFERROR(INDEX('Detailed price list'!E$5:E$237,MATCH($B59,'Detailed price list'!$B$5:$B$237,0)),INDEX('Detailed price list'!E$5:E$237,MATCH($B59,'Detailed price list'!$L$5:$L$237,0))), SUMPRODUCT(('Detailed price list'!E$5:E$237)*('Detailed price list'!$M$5:$M$237)*('Detailed price list'!$L$5:$L$237=$B59))/SUMIF('Detailed price list'!$L$5:$L$237,$B59,'Detailed price list'!$M$5:$M$237)) -> 25.73053054 | E59: =IF(SUMIF('Detailed price list'!$L$5:$L$237,$B59,'Detailed price list'!$M$5:$M$237)=0, IFERROR(INDEX('Detailed price list'!F$5:F$237,MATCH($B59,'Detailed price list'!$B$5:$B$237,0)),INDEX('Detailed price list'!F$5:F$237,MATCH($B59,'Detailed price list'!$L$5:$L$237,0))), SUMPRODUCT(('Detailed price list'!F$5:F$237)*('Detailed price list'!$M$5:$M$237)*('Detailed price list'!$L$5:$L$237=$B59))/SUMIF('Detailed price list'!$L$5:$L$237,$B59,'Detailed price list'!$M$5:$M$237)) -> 26.45092907 | F59: =IF(SUMIF('Detailed price list'!$L$5:$L$237,$B59,'Detailed price list'!$M$5:$M$237)=0, IFERROR(INDEX('Detailed price list'!G$5:G$237,MATCH($B59,'Detailed price list'!$B$5:$B$237,0)),INDEX('Detailed price list'!G$5:G$237,MATCH($B59,'Detailed price list'!$L$5:$L$237,0))), SUMPRODUCT(('Detailed price list'!G$5:G$237)*('Detailed price list'!$M$5:$M$237)*('Detailed price list'!$L$5:$L$237=$B59))/SUMIF('Detailed price list'!$L$5:$L$237,$B59,'Detailed price list'!$M$5:$M$237)) -> 27.19149719 | G59: =IF(SUMIF('Detailed price list'!$L$5:$L$237,$B59,'Detailed price list'!$M$5:$M$237)=0, IFERROR(INDEX('Detailed price list'!H$5:H$237,MATCH($B59,'Detailed price list'!$B$5:$B$237,0)),INDEX('Detailed price list'!H$5:H$237,MATCH($B59,'Detailed price list'!$L$5:$L$237,0))), SUMPRODUCT(('Detailed price list'!H$5:H$237)*('Detailed price list'!$M$5:$M$237)*('Detailed price list'!$L$5:$L$237=$B59))/SUMIF('Detailed price list'!$L$5:$L$237,$B59,'Detailed price list'!$M$5:$M$237)) -> 27.9527996
B60: Luminaire - Floodlight | C60: =IF(SUMIF('Detailed price list'!$L$5:$L$237,$B60,'Detailed price list'!$M$5:$M$237)=0, IFERROR(INDEX('Detailed price list'!D$5:D$237,MATCH($B60,'Detailed price list'!$B$5:$B$237,0)),INDEX('Detailed price list'!D$5:D$237,MATCH($B60,'Detailed price list'!$L$5:$L$237,0))), SUMPRODUCT(('Detailed price list'!D$5:D$237)*('Detailed price list'!$M$5:$M$237)*('Detailed price list'!$L$5:$L$237=$B60))/SUMIF('Detailed price list'!$L$5:$L$237,$B60,'Detailed price list'!$M$5:$M$237)) -> 31.76425867 | D60: =IF(SUMIF('Detailed price list'!$L$5:$L$237,$B60,'Detailed price list'!$M$5:$M$237)=0, IFERROR(INDEX('Detailed price list'!E$5:E$237,MATCH($B60,'Detailed price list'!$B$5:$B$237,0)),INDEX('Detailed price list'!E$5:E$237,MATCH($B60,'Detailed price list'!$L$5:$L$237,0))), SUMPRODUCT(('Detailed price list'!E$5:E$237)*('Detailed price list'!$M$5:$M$237)*('Detailed price list'!$L$5:$L$237=$B60))/SUMIF('Detailed price list'!$L$5:$L$237,$B60,'Detailed price list'!$M$5:$M$237)) -> 32.65358838 | E60: =IF(SUMIF('Detailed price list'!$L$5:$L$237,$B60,'Detailed price list'!$M$5:$M$237)=0, IFERROR(INDEX('Detailed price list'!F$5:F$237,MATCH($B60,'Detailed price list'!$B$5:$B$237,0)),INDEX('Detailed price list'!F$5:F$237,MATCH($B60,'Detailed price list'!$L$5:$L$237,0))), SUMPRODUCT(('Detailed price list'!F$5:F$237)*('Detailed price list'!$M$5:$M$237)*('Detailed price list'!$L$5:$L$237=$B60))/SUMIF('Detailed price list'!$L$5:$L$237,$B60,'Detailed price list'!$M$5:$M$237)) -> 33.56781739 | F60: =IF(SUMIF('Detailed price list'!$L$5:$L$237,$B60,'Detailed price list'!$M$5:$M$237)=0, IFERROR(INDEX('Detailed price list'!G$5:G$237,MATCH($B60,'Detailed price list'!$B$5:$B$237,0)),INDEX('Detailed price list'!G$5:G$237,MATCH($B60,'Detailed price list'!$L$5:$L$237,0))), SUMPRODUCT(('Detailed price list'!G$5:G$237)*('Detailed price list'!$M$5:$M$237)*('Detailed price list'!$L$5:$L$237=$B60))/SUMIF('Detailed price list'!$L$5:$L$237,$B60,'Detailed price list'!$M$5:$M$237)) -> 34.50764281 | G60: =IF(SUMIF('Detailed price list'!$L$5:$L$237,$B60,'Detailed price list'!$M$5:$M$237)=0, IFERROR(INDEX('Detailed price list'!H$5:H$237,MATCH($B60,'Detailed price list'!$B$5:$B$237,0)),INDEX('Detailed price list'!H$5:H$237,MATCH($B60,'Detailed price list'!$L$5:$L$237,0))), SUMPRODUCT(('Detailed price list'!H$5:H$237)*('Detailed price list'!$M$5:$M$237)*('Detailed price list'!$L$5:$L$237=$B60))/SUMIF('Detailed price list'!$L$5:$L$237,$B60,'Detailed price list'!$M$5:$M$237)) -> 35.47378128
B61: Luminaire - Major (Cat V) road - smart controller installed | C61: =IF(SUMIF('Detailed price list'!$L$5:$L$237,$B61,'Detailed price list'!$M$5:$M$237)=0, IFERROR(INDEX('Detailed price list'!D$5:D$237,MATCH($B61,'Detailed price list'!$B$5:$B$237,0)),INDEX('Detailed price list'!D$5:D$237,MATCH($B61,'Detailed price list'!$L$5:$L$237,0))), SUMPRODUCT(('Detailed price list'!D$5:D$237)*('Detailed price list'!$M$5:$M$237)*('Detailed price list'!$L$5:$L$237=$B61))/SUMIF('Detailed price list'!$L$5:$L$237,$B61,'Detailed price list'!$M$5:$M$237)) -> 22.50725193 | D61: =IF(SUMIF('Detailed price list'!$L$5:$L$237,$B61,'Detailed price list'!$M$5:$M$237)=0, IFERROR(INDEX('Detailed price list'!E$5:E$237,MATCH($B61,'Detailed price list'!$B$5:$B$237,0)),INDEX('Detailed price list'!E$5:E$237,MATCH($B61,'Detailed price list'!$L$5:$L$237,0))), SUMPRODUCT(('Detailed price list'!E$5:E$237)*('Detailed price list'!$M$5:$M$237)*('Detailed price list'!$L$5:$L$237=$B61))/SUMIF('Detailed price list'!$L$5:$L$237,$B61,'Detailed price list'!$M$5:$M$237)) -> 23.13740572 | E61: =IF(SUMIF('Detailed price list'!$L$5:$L$237,$B61,'Detailed price list'!$M$5:$M$237)=0, IFERROR(INDEX('Detailed price list'!F$5:F$237,MATCH($B61,'Detailed price list'!$B$5:$B$237,0)),INDEX('Detailed price list'!F$5:F$237,MATCH($B61,'Detailed price list'!$L$5:$L$237,0))), SUMPRODUCT(('Detailed price list'!F$5:F$237)*('Detailed price list'!$M$5:$M$237)*('Detailed price list'!$L$5:$L$237=$B61))/SUMIF('Detailed price list'!$L$5:$L$237,$B61,'Detailed price list'!$M$5:$M$237)) -> 23.78520244 | F61: =IF(SUMIF('Detailed price list'!$L$5:$L$237,$B61,'Detailed price list'!$M$5:$M$237)=0, IFERROR(INDEX('Detailed price list'!G$5:G$237,MATCH($B61,'Detailed price list'!$B$5:$B$237,0)),INDEX('Detailed price list'!G$5:G$237,MATCH($B61,'Detailed price list'!$L$5:$L$237,0))), SUMPRODUCT(('Detailed price list'!G$5:G$237)*('Detailed price list'!$M$5:$M$237)*('Detailed price list'!$L$5:$L$237=$B61))/SUMIF('Detailed price list'!$L$5:$L$237,$B61,'Detailed price list'!$M$5:$M$237)) -> 24.45113605 | G61: =IF(SUMIF('Detailed price list'!$L$5:$L$237,$B61,'Detailed price list'!$M$5:$M$237)=0, IFERROR(INDEX('Detailed price list'!H$5:H$237,MATCH($B61,'Detailed price list'!$B$5:$B$237,0)),INDEX('Detailed price list'!H$5:H$237,MATCH($B61,'Detailed price list'!$L$5:$L$237,0))), SUMPRODUCT(('Detailed price list'!H$5:H$237)*('Detailed price list'!$M$5:$M$237)*('Detailed price list'!$L$5:$L$237=$B61))/SUMIF('Detailed price list'!$L$5:$L$237,$B61,'Detailed price list'!$M$5:$M$237)) -> 25.13571434
B62: Luminaire - Minor (Cat P) road - smart controller installed | C62: =IF(SUMIF('Detailed price list'!$L$5:$L$237,$B62,'Detailed price list'!$M$5:$M$237)=0, IFERROR(INDEX('Detailed price list'!D$5:D$237,MATCH($B62,'Detailed price list'!$B$5:$B$237,0)),INDEX('Detailed price list'!D$5:D$237,MATCH($B62,'Detailed price list'!$L$5:$L$237,0))), SUMPRODUCT(('Detailed price list'!D$5:D$237)*('Detailed price list'!$M$5:$M$237)*('Detailed price list'!$L$5:$L$237=$B62))/SUMIF('Detailed price list'!$L$5:$L$237,$B62,'Detailed price list'!$M$5:$M$237)) -> 18.05449408 | D62: =IF(SUMIF('Detailed price list'!$L$5:$L$237,$B62,'Detailed price list'!$M$5:$M$237)=0, IFERROR(INDEX('Detailed price list'!E$5:E$237,MATCH($B62,'Detailed price list'!$B$5:$B$237,0)),INDEX('Detailed price list'!E$5:E$237,MATCH($B62,'Detailed price list'!$L$5:$L$237,0))), SUMPRODUCT(('Detailed price list'!E$5:E$237)*('Detailed price list'!$M$5:$M$237)*('Detailed price list'!$L$5:$L$237=$B62))/SUMIF('Detailed price list'!$L$5:$L$237,$B62,'Detailed price list'!$M$5:$M$237)) -> 18.5599804 | E62: =IF(SUMIF('Detailed price list'!$L$5:$L$237,$B62,'Detailed price list'!$M$5:$M$237)=0, IFERROR(INDEX('Detailed price list'!F$5:F$237,MATCH($B62,'Detailed price list'!$B$5:$B$237,0)),INDEX('Detailed price list'!F$5:F$237,MATCH($B62,'Detailed price list'!$L$5:$L$237,0))), SUMPRODUCT(('Detailed price list'!F$5:F$237)*('Detailed price list'!$M$5:$M$237)*('Detailed price list'!$L$5:$L$237=$B62))/SUMIF('Detailed price list'!$L$5:$L$237,$B62,'Detailed price list'!$M$5:$M$237)) -> 19.07961923 | F62: =IF(SUMIF('Detailed price list'!$L$5:$L$237,$B62,'Detailed price list'!$M$5:$M$237)=0, IFERROR(INDEX('Detailed price list'!G$5:G$237,MATCH($B62,'Detailed price list'!$B$5:$B$237,0)),INDEX('Detailed price list'!G$5:G$237,MATCH($B62,'Detailed price list'!$L$5:$L$237,0))), SUMPRODUCT(('Detailed price list'!G$5:G$237)*('Detailed price list'!$M$5:$M$237)*('Detailed price list'!$L$5:$L$237=$B62))/SUMIF('Detailed price list'!$L$5:$L$237,$B62,'Detailed price list'!$M$5:$M$237)) -> 19.61380681 | G62: =IF(SUMIF('Detailed price list'!$L$5:$L$237,$B62,'Detailed price list'!$M$5:$M$237)=0, IFERROR(INDEX('Detailed price list'!H$5:H$237,MATCH($B62,'Detailed price list'!$B$5:$B$237,0)),INDEX('Detailed price list'!H$5:H$237,MATCH($B62,'Detailed price list'!$L$5:$L$237,0))), SUMPRODUCT(('Detailed price list'!H$5:H$237)*('Detailed price list'!$M$5:$M$237)*('Detailed price list'!$L$5:$L$237=$B62))/SUMIF('Detailed price list'!$L$5:$L$237,$B62,'Detailed price list'!$M$5:$M$237)) -> 20.16295047
B63: Luminaire - Floodlight - smart controller installed | C63: =IF(SUMIF('Detailed price list'!$L$5:$L$237,$B63,'Detailed price list'!$M$5:$M$237)=0, IFERROR(INDEX('Detailed price list'!D$5:D$237,MATCH($B63,'Detailed price list'!$B$5:$B$237,0)),INDEX('Detailed price list'!D$5:D$237,MATCH($B63,'Detailed price list'!$L$5:$L$237,0))), SUMPRODUCT(('Detailed price list'!D$5:D$237)*('Detailed price list'!$M$5:$M$237)*('Detailed price list'!$L$5:$L$237=$B63))/SUMIF('Detailed price list'!$L$5:$L$237,$B63,'Detailed price list'!$M$5:$M$237)) -> 22.50725193 | D63: =IF(SUMIF('Detailed price list'!$L$5:$L$237,$B63,'Detailed price list'!$M$5:$M$237)=0, IFERROR(INDEX('Detailed price list'!E$5:E$237,MATCH($B63,'Detailed price list'!$B$5:$B$237,0)),INDEX('Detailed price list'!E$5:E$237,MATCH($B63,'Detailed price list'!$L$5:$L$237,0))), SUMPRODUCT(('Detailed price list'!E$5:E$237)*('Detailed price list'!$M$5:$M$237)*('Detailed price list'!$L$5:$L$237=$B63))/SUMIF('Detailed price list'!$L$5:$L$237,$B63,'Detailed price list'!$M$5:$M$237)) -> 23.13740572 | E63: =IF(SUMIF('Detailed price list'!$L$5:$L$237,$B63,'Detailed price list'!$M$5:$M$237)=0, IFERROR(INDEX('Detailed price list'!F$5:F$237,MATCH($B63,'Detailed price list'!$B$5:$B$237,0)),INDEX('Detailed price list'!F$5:F$237,MATCH($B63,'Detailed price list'!$L$5:$L$237,0))), SUMPRODUCT(('Detailed price list'!F$5:F$237)*('Detailed price list'!$M$5:$M$237)*('Detailed price list'!$L$5:$L$237=$B63))/SUMIF('Detailed price list'!$L$5:$L$237,$B63,'Detailed price list'!$M$5:$M$237)) -> 23.78520244 | F63: =IF(SUMIF('Detailed price list'!$L$5:$L$237,$B63,'Detailed price list'!$M$5:$M$237)=0, IFERROR(INDEX('Detailed price list'!G$5:G$237,MATCH($B63,'Detailed price list'!$B$5:$B$237,0)),INDEX('Detailed price list'!G$5:G$237,MATCH($B63,'Detailed price list'!$L$5:$L$237,0))), SUMPRODUCT(('Detailed price list'!G$5:G$237)*('Detailed price list'!$M$5:$M$237)*('Detailed price list'!$L$5:$L$237=$B63))/SUMIF('Detailed price list'!$L$5:$L$237,$B63,'Detailed price list'!$M$5:$M$237)) -> 24.45113605 | G63: =IF(SUMIF('Detailed price list'!$L$5:$L$237,$B63,'Detailed price list'!$M$5:$M$237)=0, IFERROR(INDEX('Detailed price list'!H$5:H$237,MATCH($B63,'Detailed price list'!$B$5:$B$237,0)),INDEX('Detailed price list'!H$5:H$237,MATCH($B63,'Detailed price list'!$L$5:$L$237,0))), SUMPRODUCT(('Detailed price list'!H$5:H$237)*('Detailed price list'!$M$5:$M$237)*('Detailed price list'!$L$5:$L$237=$B63))/SUMIF('Detailed price list'!$L$5:$L$237,$B63,'Detailed price list'!$M$5:$M$237)) -> 25.13571434
B64: Luminaire - Decorative - smart controller installed | C64: =IF(SUMIF('Detailed price list'!$L$5:$L$237,$B64,'Detailed price list'!$M$5:$M$237)=0, IFERROR(INDEX('Detailed price list'!D$5:D$237,MATCH($B64,'Detailed price list'!$B$5:$B$237,0)),INDEX('Detailed price list'!D$5:D$237,MATCH($B64,'Detailed price list'!$L$5:$L$237,0))), SUMPRODUCT(('Detailed price list'!D$5:D$237)*('Detailed price list'!$M$5:$M$237)*('Detailed price list'!$L$5:$L$237=$B64))/SUMIF('Detailed price list'!$L$5:$L$237,$B64,'Detailed price list'!$M$5:$M$237)) -> 19.75961482 | D64: =IF(SUMIF('Detailed price list'!$L$5:$L$237,$B64,'Detailed price list'!$M$5:$M$237)=0, IFERROR(INDEX('Detailed price list'!E$5:E$237,MATCH($B64,'Detailed price list'!$B$5:$B$237,0)),INDEX('Detailed price list'!E$5:E$237,MATCH($B64,'Detailed price list'!$L$5:$L$237,0))), SUMPRODUCT(('Detailed price list'!E$5:E$237)*('Detailed price list'!$M$5:$M$237)*('Detailed price list'!$L$5:$L$237=$B64))/SUMIF('Detailed price list'!$L$5:$L$237,$B64,'Detailed price list'!$M$5:$M$237)) -> 20.31284079 | E64: =IF(SUMIF('Detailed price list'!$L$5:$L$237,$B64,'Detailed price list'!$M$5:$M$237)=0, IFERROR(INDEX('Detailed price list'!F$5:F$237,MATCH($B64,'Detailed price list'!$B$5:$B$237,0)),INDEX('Detailed price list'!F$5:F$237,MATCH($B64,'Detailed price list'!$L$5:$L$237,0))), SUMPRODUCT(('Detailed price list'!F$5:F$237)*('Detailed price list'!$M$5:$M$237)*('Detailed price list'!$L$5:$L$237=$B64))/SUMIF('Detailed price list'!$L$5:$L$237,$B64,'Detailed price list'!$M$5:$M$237)) -> 20.88155587 | F64: =IF(SUMIF('Detailed price list'!$L$5:$L$237,$B64,'Detailed price list'!$M$5:$M$237)=0, IFERROR(INDEX('Detailed price list'!G$5:G$237,MATCH($B64,'Detailed price list'!$B$5:$B$237,0)),INDEX('Detailed price list'!G$5:G$237,MATCH($B64,'Detailed price list'!$L$5:$L$237,0))), SUMPRODUCT(('Detailed price list'!G$5:G$237)*('Detailed price list'!$M$5:$M$237)*('Detailed price list'!$L$5:$L$237=$B64))/SUMIF('Detailed price list'!$L$5:$L$237,$B64,'Detailed price list'!$M$5:$M$237)) -> 21.46619373 | G64: =IF(SUMIF('Detailed price list'!$L$5:$L$237,$B64,'Detailed price list'!$M$5:$M$237)=0, IFERROR(INDEX('Detailed price list'!H$5:H$237,MATCH($B64,'Detailed price list'!$B$5:$B$237,0)),INDEX('Detailed price list'!H$5:H$237,MATCH($B64,'Detailed price list'!$L$5:$L$237,0))), SUMPRODUCT(('Detailed price list'!H$5:H$237)*('Detailed price list'!$M$5:$M$237)*('Detailed price list'!$L$5:$L$237=$B64))/SUMIF('Detailed price list'!$L$5:$L$237,$B64,'Detailed price list'!$M$5:$M$237)) -> 22.06720017
B65: Legacy Bracket - Minor (Cat P) road - Short | C65: =IF(SUMIF('Detailed price list'!$L$5:$L$237,$B65,'Detailed price list'!$M$5:$M$237)=0, IFERROR(INDEX('Detailed price list'!D$5:D$237,MATCH($B65,'Detailed price list'!$B$5:$B$237,0)),INDEX('Detailed price list'!D$5:D$237,MATCH($B65,'Detailed price list'!$L$5:$L$237,0))), SUMPRODUCT(('Detailed price list'!D$5:D$237)*('Detailed price list'!$M$5:$M$237)*('Detailed price list'!$L$5:$L$237=$B65))/SUMIF('Detailed price list'!$L$5:$L$237,$B65,'Detailed price list'!$M$5:$M$237)) -> 7.732532703 | D65: =IF(SUMIF('Detailed price list'!$L$5:$L$237,$B65,'Detailed price list'!$M$5:$M$237)=0, IFERROR(INDEX('Detailed price list'!E$5:E$237,MATCH($B65,'Detailed price list'!$B$5:$B$237,0)),INDEX('Detailed price list'!E$5:E$237,MATCH($B65,'Detailed price list'!$L$5:$L$237,0))), SUMPRODUCT(('Detailed price list'!E$5:E$237)*('Detailed price list'!$M$5:$M$237)*('Detailed price list'!$L$5:$L$237=$B65))/SUMIF('Detailed price list'!$L$5:$L$237,$B65,'Detailed price list'!$M$5:$M$237)) -> 7.949026694 | E65: =IF(SUMIF('Detailed price list'!$L$5:$L$237,$B65,'Detailed price list'!$M$5:$M$237)=0, IFERROR(INDEX('Detailed price list'!F$5:F$237,MATCH($B65,'Detailed price list'!$B$5:$B$237,0)),INDEX('Detailed price list'!F$5:F$237,MATCH($B65,'Detailed price list'!$L$5:$L$237,0))), SUMPRODUCT(('Detailed price list'!F$5:F$237)*('Detailed price list'!$M$5:$M$237)*('Detailed price list'!$L$5:$L$237=$B65))/SUMIF('Detailed price list'!$L$5:$L$237,$B65,'Detailed price list'!$M$5:$M$237)) -> 8.171582043 | F65: =IF(SUMIF('Detailed price list'!$L$5:$L$237,$B65,'Detailed price list'!$M$5:$M$237)=0, IFERROR(INDEX('Detailed price list'!G$5:G$237,MATCH($B65,'Detailed price list'!$B$5:$B$237,0)),INDEX('Detailed price list'!G$5:G$237,MATCH($B65,'Detailed price list'!$L$5:$L$237,0))), SUMPRODUCT(('Detailed price list'!G$5:G$237)*('Detailed price list'!$M$5:$M$237)*('Detailed price list'!$L$5:$L$237=$B65))/SUMIF('Detailed price list'!$L$5:$L$237,$B65,'Detailed price list'!$M$5:$M$237)) -> 8.400368455 | G65: =IF(SUMIF('Detailed price list'!$L$5:$L$237,$B65,'Detailed price list'!$M$5:$M$237)=0, IFERROR(INDEX('Detailed price list'!H$5:H$237,MATCH($B65,'Detailed price list'!$B$5:$B$237,0)),INDEX('Detailed price list'!H$5:H$237,MATCH($B65,'Detailed price list'!$L$5:$L$237,0))), SUMPRODUCT(('Detailed price list'!H$5:H$237)*('Detailed price list'!$M$5:$M$237)*('Detailed price list'!$L$5:$L$237=$B65))/SUMIF('Detailed price list'!$L$5:$L$237,$B65,'Detailed price list'!$M$5:$M$237)) -> 8.635560386
B66: Legacy Bracket - Minor (Cat P) road - Short | C66: =IF(SUMIF('Detailed price list'!$L$5:$L$237,$B66,'Detailed price list'!$M$5:$M$237)=0, IFERROR(INDEX('Detailed price list'!D$5:D$237,MATCH($B66,'Detailed price list'!$B$5:$B$237,0)),INDEX('Detailed price list'!D$5:D$237,MATCH($B66,'Detailed price list'!$L$5:$L$237,0))), SUMPRODUCT(('Detailed price list'!D$5:D$237)*('Detailed price list'!$M$5:$M$237)*('Detailed price list'!$L$5:$L$237=$B66))/SUMIF('Detailed price list'!$L$5:$L$237,$B66,'Detailed price list'!$M$5:$M$237)) -> 7.732532703 | D66: =IF(SUMIF('Detailed price list'!$L$5:$L$237,$B66,'Detailed price list'!$M$5:$M$237)=0, IFERROR(INDEX('Detailed price list'!E$5:E$237,MATCH($B66,'Detailed price list'!$B$5:$B$237,0)),INDEX('Detailed price list'!E$5:E$237,MATCH($B66,'Detailed price list'!$L$5:$L$237,0))), SUMPRODUCT(('Detailed price list'!E$5:E$237)*('Detailed price list'!$M$5:$M$237)*('Detailed price list'!$L$5:$L$237=$B66))/SUMIF('Detailed price list'!$L$5:$L$237,$B66,'Detailed price list'!$M$5:$M$237)) -> 7.949026694 | E66: =IF(SUMIF('Detailed price list'!$L$5:$L$237,$B66,'Detailed price list'!$M$5:$M$237)=0, IFERROR(INDEX('Detailed price list'!F$5:F$237,MATCH($B66,'Detailed price list'!$B$5:$B$237,0)),INDEX('Detailed price list'!F$5:F$237,MATCH($B66,'Detailed price list'!$L$5:$L$237,0))), SUMPRODUCT(('Detailed price list'!F$5:F$237)*('Detailed price list'!$M$5:$M$237)*('Detailed price list'!$L$5:$L$237=$B66))/SUMIF('Detailed price list'!$L$5:$L$237,$B66,'Detailed price list'!$M$5:$M$237)) -> 8.171582043 | F66: =IF(SUMIF('Detailed price list'!$L$5:$L$237,$B66,'Detailed price list'!$M$5:$M$237)=0, IFERROR(INDEX('Detailed price list'!G$5:G$237,MATCH($B66,'Detailed price list'!$B$5:$B$237,0)),INDEX('Detailed price list'!G$5:G$237,MATCH($B66,'Detailed price list'!$L$5:$L$237,0))), SUMPRODUCT(('Detailed price list'!G$5:G$237)*('Detailed price list'!$M$5:$M$237)*('Detailed price list'!$L$5:$L$237=$B66))/SUMIF('Detailed price list'!$L$5:$L$237,$B66,'Detailed price list'!$M$5:$M$237)) -> 8.400368455 | G66: =IF(SUMIF('Detailed price list'!$L$5:$L$237,$B66,'Detailed price list'!$M$5:$M$237)=0, IFERROR(INDEX('Detailed price list'!H$5:H$237,MATCH($B66,'Detailed price list'!$B$5:$B$237,0)),INDEX('Detailed price list'!H$5:H$237,MATCH($B66,'Detailed price list'!$L$5:$L$237,0))), SUMPRODUCT(('Detailed price list'!H$5:H$237)*('Detailed price list'!$M$5:$M$237)*('Detailed price list'!$L$5:$L$237=$B66))/SUMIF('Detailed price list'!$L$5:$L$237,$B66,'Detailed price list'!$M$5:$M$237)) -> 8.635560386
B67: Legacy Bracket - Minor (Cat P) road - Short | C67: =IF(SUMIF('Detailed price list'!$L$5:$L$237,$B67,'Detailed price list'!$M$5:$M$237)=0, IFERROR(INDEX('Detailed price list'!D$5:D$237,MATCH($B67,'Detailed price list'!$B$5:$B$237,0)),INDEX('Detailed price list'!D$5:D$237,MATCH($B67,'Detailed price list'!$L$5:$L$237,0))), SUMPRODUCT(('Detailed price list'!D$5:D$237)*('Detailed price list'!$M$5:$M$237)*('Detailed price list'!$L$5:$L$237=$B67))/SUMIF('Detailed price list'!$L$5:$L$237,$B67,'Detailed price list'!$M$5:$M$237)) -> 7.732532703 | D67: =IF(SUMIF('Detailed price list'!$L$5:$L$237,$B67,'Detailed price list'!$M$5:$M$237)=0, IFERROR(INDEX('Detailed price list'!E$5:E$237,MATCH($B67,'Detailed price list'!$B$5:$B$237,0)),INDEX('Detailed price list'!E$5:E$237,MATCH($B67,'Detailed price list'!$L$5:$L$237,0))), SUMPRODUCT(('Detailed price list'!E$5:E$237)*('Detailed price list'!$M$5:$M$237)*('Detailed price list'!$L$5:$L$237=$B67))/SUMIF('Detailed price list'!$L$5:$L$237,$B67,'Detailed price list'!$M$5:$M$237)) -> 7.949026694 | E67: =IF(SUMIF('Detailed price list'!$L$5:$L$237,$B67,'Detailed price list'!$M$5:$M$237)=0, IFERROR(INDEX('Detailed price list'!F$5:F$237,MATCH($B67,'Detailed price list'!$B$5:$B$237,0)),INDEX('Detailed price list'!F$5:F$237,MATCH($B67,'Detailed price list'!$L$5:$L$237,0))), SUMPRODUCT(('Detailed price list'!F$5:F$237)*('Detailed price list'!$M$5:$M$237)*('Detailed price list'!$L$5:$L$237=$B67))/SUMIF('Detailed price list'!$L$5:$L$237,$B67,'Detailed price list'!$M$5:$M$237)) -> 8.171582043 | F67: =IF(SUMIF('Detailed price list'!$L$5:$L$237,$B67,'Detailed price list'!$M$5:$M$237)=0, IFERROR(INDEX('Detailed price list'!G$5:G$237,MATCH($B67,'Detailed price list'!$B$5:$B$237,0)),INDEX('Detailed price list'!G$5:G$237,MATCH($B67,'Detailed price list'!$L$5:$L$237,0))), SUMPRODUCT(('Detailed price list'!G$5:G$237)*('Detailed price list'!$M$5:$M$237)*('Detailed price list'!$L$5:$L$237=$B67))/SUMIF('Detailed price list'!$L$5:$L$237,$B67,'Detailed price list'!$M$5:$M$237)) -> 8.400368455 | G67: =IF(SUMIF('Detailed price list'!$L$5:$L$237,$B67,'Detailed price list'!$M$5:$M$237)=0, IFERROR(INDEX('Detailed price list'!H$5:H$237,MATCH($B67,'Detailed price list'!$B$5:$B$237,0)),INDEX('Detailed price list'!H$5:H$237,MATCH($B67,'Detailed price list'!$L$5:$L$237,0))), SUMPRODUCT(('Detailed price list'!H$5:H$237)*('Detailed price list'!$M$5:$M$237)*('Detailed price list'!$L$5:$L$237=$B67))/SUMIF('Detailed price list'!$L$5:$L$237,$B67,'Detailed price list'!$M$5:$M$237)) -> 8.635560386
B68: Legacy Bracket - Minor (Cat P) road - Short | C68: =IF(SUMIF('Detailed price list'!$L$5:$L$237,$B68,'Detailed price list'!$M$5:$M$237)=0, IFERROR(INDEX('Detailed price list'!D$5:D$237,MATCH($B68,'Detailed price list'!$B$5:$B$237,0)),INDEX('Detailed price list'!D$5:D$237,MATCH($B68,'Detailed price list'!$L$5:$L$237,0))), SUMPRODUCT(('Detailed price list'!D$5:D$237)*('Detailed price list'!$M$5:$M$237)*('Detailed price list'!$L$5:$L$237=$B68))/SUMIF('Detailed price list'!$L$5:$L$237,$B68,'Detailed price list'!$M$5:$M$237)) -> 7.732532703 | D68: =IF(SUMIF('Detailed price list'!$L$5:$L$237,$B68,'Detailed price list'!$M$5:$M$237)=0, IFERROR(INDEX('Detailed price list'!E$5:E$237,MATCH($B68,'Detailed price list'!$B$5:$B$237,0)),INDEX('Detailed price list'!E$5:E$237,MATCH($B68,'Detailed price list'!$L$5:$L$237,0))), SUMPRODUCT(('Detailed price list'!E$5:E$237)*('Detailed price list'!$M$5:$M$237)*('Detailed price list'!$L$5:$L$237=$B68))/SUMIF('Detailed price list'!$L$5:$L$237,$B68,'Detailed price list'!$M$5:$M$237)) -> 7.949026694 | E68: =IF(SUMIF('Detailed price list'!$L$5:$L$237,$B68,'Detailed price list'!$M$5:$M$237)=0, IFERROR(INDEX('Detailed price list'!F$5:F$237,MATCH($B68,'Detailed price list'!$B$5:$B$237,0)),INDEX('Detailed price list'!F$5:F$237,MATCH($B68,'Detailed price list'!$L$5:$L$237,0))), SUMPRODUCT(('Detailed price list'!F$5:F$237)*('Detailed price list'!$M$5:$M$237)*('Detailed price list'!$L$5:$L$237=$B68))/SUMIF('Detailed price list'!$L$5:$L$237,$B68,'Detailed price list'!$M$5:$M$237)) -> 8.171582043 | F68: =IF(SUMIF('Detailed price list'!$L$5:$L$237,$B68,'Detailed price list'!$M$5:$M$237)=0, IFERROR(INDEX('Detailed price list'!G$5:G$237,MATCH($B68,'Detailed price list'!$B$5:$B$237,0)),INDEX('Detailed price list'!G$5:G$237,MATCH($B68,'Detailed price list'!$L$5:$L$237,0))), SUMPRODUCT(('Detailed price list'!G$5:G$237)*('Detailed price list'!$M$5:$M$237)*('Detailed price list'!$L$5:$L$237=$B68))/SUMIF('Detailed price list'!$L$5:$L$237,$B68,'Detailed price list'!$M$5:$M$237)) -> 8.400368455 | G68: =IF(SUMIF('Detailed price list'!$L$5:$L$237,$B68,'Detailed price list'!$M$5:$M$237)=0, IFERROR(INDEX('Detailed price list'!H$5:H$237,MATCH($B68,'Detailed price list'!$B$5:$B$237,0)),INDEX('Detailed price list'!H$5:H$237,MATCH($B68,'Detailed price list'!$L$5:$L$237,0))), SUMPRODUCT(('Detailed price list'!H$5:H$237)*('Detailed price list'!$M$5:$M$237)*('Detailed price list'!$L$5:$L$237=$B68))/SUMIF('Detailed price list'!$L$5:$L$237,$B68,'Detailed price list'!$M$5:$M$237)) -> 8.635560386
B69: Legacy Bracket - Minor (Cat P) road - Short | C69: =IF(SUMIF('Detailed price list'!$L$5:$L$237,$B69,'Detailed price list'!$M$5:$M$237)=0, IFERROR(INDEX('Detailed price list'!D$5:D$237,MATCH($B69,'Detailed price list'!$B$5:$B$237,0)),INDEX('Detailed price list'!D$5:D$237,MATCH($B69,'Detailed price list'!$L$5:$L$237,0))), SUMPRODUCT(('Detailed price list'!D$5:D$237)*('Detailed price list'!$M$5:$M$237)*('Detailed price list'!$L$5:$L$237=$B69))/SUMIF('Detailed price list'!$L$5:$L$237,$B69,'Detailed price list'!$M$5:$M$237)) -> 7.732532703 | D69: =IF(SUMIF('Detailed price list'!$L$5:$L$237,$B69,'Detailed price list'!$M$5:$M$237)=0, IFERROR(INDEX('Detailed price list'!E$5:E$237,MATCH($B69,'Detailed price list'!$B$5:$B$237,0)),INDEX('Detailed price list'!E$5:E$237,MATCH($B69,'Detailed price list'!$L$5:$L$237,0))), SUMPRODUCT(('Detailed price list'!E$5:E$237)*('Detailed price list'!$M$5:$M$237)*('Detailed price list'!$L$5:$L$237=$B69))/SUMIF('Detailed price list'!$L$5:$L$237,$B69,'Detailed price list'!$M$5:$M$237)) -> 7.949026694 | E69: =IF(SUMIF('Detailed price list'!$L$5:$L$237,$B69,'Detailed price list'!$M$5:$M$237)=0, IFERROR(INDEX('Detailed price list'!F$5:F$237,MATCH($B69,'Detailed price list'!$B$5:$B$237,0)),INDEX('Detailed price list'!F$5:F$237,MATCH($B69,'Detailed price list'!$L$5:$L$237,0))), SUMPRODUCT(('Detailed price list'!F$5:F$237)*('Detailed price list'!$M$5:$M$237)*('Detailed price list'!$L$5:$L$237=$B69))/SUMIF('Detailed price list'!$L$5:$L$237,$B69,'Detailed price list'!$M$5:$M$237)) -> 8.171582043 | F69: =IF(SUMIF('Detailed price list'!$L$5:$L$237,$B69,'Detailed price list'!$M$5:$M$237)=0, IFERROR(INDEX('Detailed price list'!G$5:G$237,MATCH($B69,'Detailed price list'!$B$5:$B$237,0)),INDEX('Detailed price list'!G$5:G$237,MATCH($B69,'Detailed price list'!$L$5:$L$237,0))), SUMPRODUCT(('Detailed price list'!G$5:G$237)*('Detailed price list'!$M$5:$M$237)*('Detailed price list'!$L$5:$L$237=$B69))/SUMIF('Detailed price list'!$L$5:$L$237,$B69,'Detailed price list'!$M$5:$M$237)) -> 8.400368455 | G69: =IF(SUMIF('Detailed price list'!$L$5:$L$237,$B69,'Detailed price list'!$M$5:$M$237)=0, IFERROR(INDEX('Detailed price list'!H$5:H$237,MATCH($B69,'Detailed price list'!$B$5:$B$237,0)),INDEX('Detailed price list'!H$5:H$237,MATCH($B69,'Detailed price list'!$L$5:$L$237,0))), SUMPRODUCT(('Detailed price list'!H$5:H$237)*('Detailed price list'!$M$5:$M$237)*('Detailed price list'!$L$5:$L$237=$B69))/SUMIF('Detailed price list'!$L$5:$L$237,$B69,'Detailed price list'!$M$5:$M$237)) -> 8.635560386
B70: Legacy Bracket - Minor (Cat P) road - Short | C70: =IF(SUMIF('Detailed price list'!$L$5:$L$237,$B70,'Detailed price list'!$M$5:$M$237)=0, IFERROR(INDEX('Detailed price list'!D$5:D$237,MATCH($B70,'Detailed price list'!$B$5:$B$237,0)),INDEX('Detailed price list'!D$5:D$237,MATCH($B70,'Detailed price list'!$L$5:$L$237,0))), SUMPRODUCT(('Detailed price list'!D$5:D$237)*('Detailed price list'!$M$5:$M$237)*('Detailed price list'!$L$5:$L$237=$B70))/SUMIF('Detailed price list'!$L$5:$L$237,$B70,'Detailed price list'!$M$5:$M$237)) -> 7.732532703 | D70: =IF(SUMIF('Detailed price list'!$L$5:$L$237,$B70,'Detailed price list'!$M$5:$M$237)=0, IFERROR(INDEX('Detailed price list'!E$5:E$237,MATCH($B70,'Detailed price list'!$B$5:$B$237,0)),INDEX('Detailed price list'!E$5:E$237,MATCH($B70,'Detailed price list'!$L$5:$L$237,0))), SUMPRODUCT(('Detailed price list'!E$5:E$237)*('Detailed price list'!$M$5:$M$237)*('Detailed price list'!$L$5:$L$237=$B70))/SUMIF('Detailed price list'!$L$5:$L$237,$B70,'Detailed price list'!$M$5:$M$237)) -> 7.949026694 | E70: =IF(SUMIF('Detailed price list'!$L$5:$L$237,$B70,'Detailed price list'!$M$5:$M$237)=0, IFERROR(INDEX('Detailed price list'!F$5:F$237,MATCH($B70,'Detailed price list'!$B$5:$B$237,0)),INDEX('Detailed price list'!F$5:F$237,MATCH($B70,'Detailed price list'!$L$5:$L$237,0))), SUMPRODUCT(('Detailed price list'!F$5:F$237)*('Detailed price list'!$M$5:$M$237)*('Detailed price list'!$L$5:$L$237=$B70))/SUMIF('Detailed price list'!$L$5:$L$237,$B70,'Detailed price list'!$M$5:$M$237)) -> 8.171582043 | F70: =IF(SUMIF('Detailed price list'!$L$5:$L$237,$B70,'Detailed price list'!$M$5:$M$237)=0, IFERROR(INDEX('Detailed price list'!G$5:G$237,MATCH($B70,'Detailed price list'!$B$5:$B$237,0)),INDEX('Detailed price list'!G$5:G$237,MATCH($B70,'Detailed price list'!$L$5:$L$237,0))), SUMPRODUCT(('Detailed price list'!G$5:G$237)*('Detailed price list'!$M$5:$M$237)*('Detailed price list'!$L$5:$L$237=$B70))/SUMIF('Detailed price list'!$L$5:$L$237,$B70,'Detailed price list'!$M$5:$M$237)) -> 8.400368455 | G70: =IF(SUMIF('Detailed price list'!$L$5:$L$237,$B70,'Detailed price list'!$M$5:$M$237)=0, IFERROR(INDEX('Detailed price list'!H$5:H$237,MATCH($B70,'Detailed price list'!$B$5:$B$237,0)),INDEX('Detailed price list'!H$5:H$237,MATCH($B70,'Detailed price list'!$L$5:$L$237,0))), SUMPRODUCT(('Detailed price list'!H$5:H$237)*('Detailed price list'!$M$5:$M$237)*('Detailed price list'!$L$5:$L$237=$B70))/SUMIF('Detailed price list'!$L$5:$L$237,$B70,'Detailed price list'!$M$5:$M$237)) -> 8.635560386
B71: Legacy Bracket - Minor (Cat P) road - Short | C71: =IF(SUMIF('Detailed price list'!$L$5:$L$237,$B71,'Detailed price list'!$M$5:$M$237)=0, IFERROR(INDEX('Detailed price list'!D$5:D$237,MATCH($B71,'Detailed price list'!$B$5:$B$237,0)),INDEX('Detailed price list'!D$5:D$237,MATCH($B71,'Detailed price list'!$L$5:$L$237,0))), SUMPRODUCT(('Detailed price list'!D$5:D$237)*('Detailed price list'!$M$5:$M$237)*('Detailed price list'!$L$5:$L$237=$B71))/SUMIF('Detailed price list'!$L$5:$L$237,$B71,'Detailed price list'!$M$5:$M$237)) -> 7.732532703 | D71: =IF(SUMIF('Detailed price list'!$L$5:$L$237,$B71,'Detailed price list'!$M$5:$M$237)=0, IFERROR(INDEX('Detailed price list'!E$5:E$237,MATCH($B71,'Detailed price list'!$B$5:$B$237,0)),INDEX('Detailed price list'!E$5:E$237,MATCH($B71,'Detailed price list'!$L$5:$L$237,0))), SUMPRODUCT(('Detailed price list'!E$5:E$237)*('Detailed price list'!$M$5:$M$237)*('Detailed price list'!$L$5:$L$237=$B71))/SUMIF('Detailed price list'!$L$5:$L$237,$B71,'Detailed price list'!$M$5:$M$237)) -> 7.949026694 | E71: =IF(SUMIF('Detailed price list'!$L$5:$L$237,$B71,'Detailed price list'!$M$5:$M$237)=0, IFERROR(INDEX('Detailed price list'!F$5:F$237,MATCH($B71,'Detailed price list'!$B$5:$B$237,0)),INDEX('Detailed price list'!F$5:F$237,MATCH($B71,'Detailed price list'!$L$5:$L$237,0))), SUMPRODUCT(('Detailed price list'!F$5:F$237)*('Detailed price list'!$M$5:$M$237)*('Detailed price list'!$L$5:$L$237=$B71))/SUMIF('Detailed price list'!$L$5:$L$237,$B71,'Detailed price list'!$M$5:$M$237)) -> 8.171582043 | F71: =IF(SUMIF('Detailed price list'!$L$5:$L$237,$B71,'Detailed price list'!$M$5:$M$237)=0, IFERROR(INDEX('Detailed price list'!G$5:G$237,MATCH($B71,'Detailed price list'!$B$5:$B$237,0)),INDEX('Detailed price list'!G$5:G$237,MATCH($B71,'Detailed price list'!$L$5:$L$237,0))), SUMPRODUCT(('Detailed price list'!G$5:G$237)*('Detailed price list'!$M$5:$M$237)*('Detailed price list'!$L$5:$L$237=$B71))/SUMIF('Detailed price list'!$L$5:$L$237,$B71,'Detailed price list'!$M$5:$M$237)) -> 8.400368455 | G71: =IF(SUMIF('Detailed price list'!$L$5:$L$237,$B71,'Detailed price list'!$M$5:$M$237)=0, IFERROR(INDEX('Detailed price list'!H$5:H$237,MATCH($B71,'Detailed price list'!$B$5:$B$237,0)),INDEX('Detailed price list'!H$5:H$237,MATCH($B71,'Detailed price list'!$L$5:$L$237,0))), SUMPRODUCT(('Detailed price list'!H$5:H$237)*('Detailed price list'!$M$5:$M$237)*('Detailed price list'!$L$5:$L$237=$B71))/SUMIF('Detailed price list'!$L$5:$L$237,$B71,'Detailed price list'!$M$5:$M$237)) -> 8.635560386
B72: Legacy Bracket - Minor (Cat P) road - Short | C72: =IF(SUMIF('Detailed price list'!$L$5:$L$237,$B72,'Detailed price list'!$M$5:$M$237)=0, IFERROR(INDEX('Detailed price list'!D$5:D$237,MATCH($B72,'Detailed price list'!$B$5:$B$237,0)),INDEX('Detailed price list'!D$5:D$237,MATCH($B72,'Detailed price list'!$L$5:$L$237,0))), SUMPRODUCT(('Detailed price list'!D$5:D$237)*('Detailed price list'!$M$5:$M$237)*('Detailed price list'!$L$5:$L$237=$B72))/SUMIF('Detailed price list'!$L$5:$L$237,$B72,'Detailed price list'!$M$5:$M$237)) -> 7.732532703 | D72: =IF(SUMIF('Detailed price list'!$L$5:$L$237,$B72,'Detailed price list'!$M$5:$M$237)=0, IFERROR(INDEX('Detailed price list'!E$5:E$237,MATCH($B72,'Detailed price list'!$B$5:$B$237,0)),INDEX('Detailed price list'!E$5:E$237,MATCH($B72,'Detailed price list'!$L$5:$L$237,0))), SUMPRODUCT(('Detailed price list'!E$5:E$237)*('Detailed price list'!$M$5:$M$237)*('Detailed price list'!$L$5:$L$237=$B72))/SUMIF('Detailed price list'!$L$5:$L$237,$B72,'Detailed price list'!$M$5:$M$237)) -> 7.949026694 | E72: =IF(SUMIF('Detailed price list'!$L$5:$L$237,$B72,'Detailed price list'!$M$5:$M$237)=0, IFERROR(INDEX('Detailed price list'!F$5:F$237,MATCH($B72,'Detailed price list'!$B$5:$B$237,0)),INDEX('Detailed price list'!F$5:F$237,MATCH($B72,'Detailed price list'!$L$5:$L$237,0))), SUMPRODUCT(('Detailed price list'!F$5:F$237)*('Detailed price list'!$M$5:$M$237)*('Detailed price list'!$L$5:$L$237=$B72))/SUMIF('Detailed price list'!$L$5:$L$237,$B72,'Detailed price list'!$M$5:$M$237)) -> 8.171582043 | F72: =IF(SUMIF('Detailed price list'!$L$5:$L$237,$B72,'Detailed price list'!$M$5:$M$237)=0, IFERROR(INDEX('Detailed price list'!G$5:G$237,MATCH($B72,'Detailed price list'!$B$5:$B$237,0)),INDEX('Detailed price list'!G$5:G$237,MATCH($B72,'Detailed price list'!$L$5:$L$237,0))), SUMPRODUCT(('Detailed price list'!G$5:G$237)*('Detailed price list'!$M$5:$M$237)*('Detailed price list'!$L$5:$L$237=$B72))/SUMIF('Detailed price list'!$L$5:$L$237,$B72,'Detailed price list'!$M$5:$M$237)) -> 8.400368455 | G72: =IF(SUMIF('Detailed price list'!$L$5:$L$237,$B72,'Detailed price list'!$M$5:$M$237)=0, IFERROR(INDEX('Detailed price list'!H$5:H$237,MATCH($B72,'Detailed price list'!$B$5:$B$237,0)),INDEX('Detailed price list'!H$5:H$237,MATCH($B72,'Detailed price list'!$L$5:$L$237,0))), SUMPRODUCT(('Detailed price list'!H$5:H$237)*('Detailed price list'!$M$5:$M$237)*('Detailed price list'!$L$5:$L$237=$B72))/SUMIF('Detailed price list'!$L$5:$L$237,$B72,'Detailed price list'!$M$5:$M$237)) -> 8.635560386
B73: Legacy Bracket - Minor (Cat P) road - Medium | C73: =IF(SUMIF('Detailed price list'!$L$5:$L$237,$B73,'Detailed price list'!$M$5:$M$237)=0, IFERROR(INDEX('Detailed price list'!D$5:D$237,MATCH($B73,'Detailed price list'!$B$5:$B$237,0)),INDEX('Detailed price list'!D$5:D$237,MATCH($B73,'Detailed price list'!$L$5:$L$237,0))), SUMPRODUCT(('Detailed price list'!D$5:D$237)*('Detailed price list'!$M$5:$M$237)*('Detailed price list'!$L$5:$L$237=$B73))/SUMIF('Detailed price list'!$L$5:$L$237,$B73,'Detailed price list'!$M$5:$M$237)) -> 14.19825569 | D73: =IF(SUMIF('Detailed price list'!$L$5:$L$237,$B73,'Detailed price list'!$M$5:$M$237)=0, IFERROR(INDEX('Detailed price list'!E$5:E$237,MATCH($B73,'Detailed price list'!$B$5:$B$237,0)),INDEX('Detailed price list'!E$5:E$237,MATCH($B73,'Detailed price list'!$L$5:$L$237,0))), SUMPRODUCT(('Detailed price list'!E$5:E$237)*('Detailed price list'!$M$5:$M$237)*('Detailed price list'!$L$5:$L$237=$B73))/SUMIF('Detailed price list'!$L$5:$L$237,$B73,'Detailed price list'!$M$5:$M$237)) -> 14.59577577 | E73: =IF(SUMIF('Detailed price list'!$L$5:$L$237,$B73,'Detailed price list'!$M$5:$M$237)=0, IFERROR(INDEX('Detailed price list'!F$5:F$237,MATCH($B73,'Detailed price list'!$B$5:$B$237,0)),INDEX('Detailed price list'!F$5:F$237,MATCH($B73,'Detailed price list'!$L$5:$L$237,0))), SUMPRODUCT(('Detailed price list'!F$5:F$237)*('Detailed price list'!$M$5:$M$237)*('Detailed price list'!$L$5:$L$237=$B73))/SUMIF('Detailed price list'!$L$5:$L$237,$B73,'Detailed price list'!$M$5:$M$237)) -> 15.00442555 | F73: =IF(SUMIF('Detailed price list'!$L$5:$L$237,$B73,'Detailed price list'!$M$5:$M$237)=0, IFERROR(INDEX('Detailed price list'!G$5:G$237,MATCH($B73,'Detailed price list'!$B$5:$B$237,0)),INDEX('Detailed price list'!G$5:G$237,MATCH($B73,'Detailed price list'!$L$5:$L$237,0))), SUMPRODUCT(('Detailed price list'!G$5:G$237)*('Detailed price list'!$M$5:$M$237)*('Detailed price list'!$L$5:$L$237=$B73))/SUMIF('Detailed price list'!$L$5:$L$237,$B73,'Detailed price list'!$M$5:$M$237)) -> 15.42451662 | G73: =IF(SUMIF('Detailed price list'!$L$5:$L$237,$B73,'Detailed price list'!$M$5:$M$237)=0, IFERROR(INDEX('Detailed price list'!H$5:H$237,MATCH($B73,'Detailed price list'!$B$5:$B$237,0)),INDEX('Detailed price list'!H$5:H$237,MATCH($B73,'Detailed price list'!$L$5:$L$237,0))), SUMPRODUCT(('Detailed price list'!H$5:H$237)*('Detailed price list'!$M$5:$M$237)*('Detailed price list'!$L$5:$L$237=$B73))/SUMIF('Detailed price list'!$L$5:$L$237,$B73,'Detailed price list'!$M$5:$M$237)) -> 15.85636933
B74: Legacy Bracket - Minor (Cat P) road - Medium | C74: =IF(SUMIF('Detailed price list'!$L$5:$L$237,$B74,'Detailed price list'!$M$5:$M$237)=0, IFERROR(INDEX('Detailed price list'!D$5:D$237,MATCH($B74,'Detailed price list'!$B$5:$B$237,0)),INDEX('Detailed price list'!D$5:D$237,MATCH($B74,'Detailed price list'!$L$5:$L$237,0))), SUMPRODUCT(('Detailed price list'!D$5:D$237)*('Detailed price list'!$M$5:$M$237)*('Detailed price list'!$L$5:$L$237=$B74))/SUMIF('Detailed price list'!$L$5:$L$237,$B74,'Detailed price list'!$M$5:$M$237)) -> 14.19825569 | D74: =IF(SUMIF('Detailed price list'!$L$5:$L$237,$B74,'Detailed price list'!$M$5:$M$237)=0, IFERROR(INDEX('Detailed price list'!E$5:E$237,MATCH($B74,'Detailed price list'!$B$5:$B$237,0)),INDEX('Detailed price list'!E$5:E$237,MATCH($B74,'Detailed price list'!$L$5:$L$237,0))), SUMPRODUCT(('Detailed price list'!E$5:E$237)*('Detailed price list'!$M$5:$M$237)*('Detailed price list'!$L$5:$L$237=$B74))/SUMIF('Detailed price list'!$L$5:$L$237,$B74,'Detailed price list'!$M$5:$M$237)) -> 14.59577577 | E74: =IF(SUMIF('Detailed price list'!$L$5:$L$237,$B74,'Detailed price list'!$M$5:$M$237)=0, IFERROR(INDEX('Detailed price list'!F$5:F$237,MATCH($B74,'Detailed price list'!$B$5:$B$237,0)),INDEX('Detailed price list'!F$5:F$237,MATCH($B74,'Detailed price list'!$L$5:$L$237,0))), SUMPRODUCT(('Detailed price list'!F$5:F$237)*('Detailed price list'!$M$5:$M$237)*('Detailed price list'!$L$5:$L$237=$B74))/SUMIF('Detailed price list'!$L$5:$L$237,$B74,'Detailed price list'!$M$5:$M$237)) -> 15.00442555 | F74: =IF(SUMIF('Detailed price list'!$L$5:$L$237,$B74,'Detailed price list'!$M$5:$M$237)=0, IFERROR(INDEX('Detailed price list'!G$5:G$237,MATCH($B74,'Detailed price list'!$B$5:$B$237,0)),INDEX('Detailed price list'!G$5:G$237,MATCH($B74,'Detailed price list'!$L$5:$L$237,0))), SUMPRODUCT(('Detailed price list'!G$5:G$237)*('Detailed price list'!$M$5:$M$237)*('Detailed price list'!$L$5:$L$237=$B74))/SUMIF('Detailed price list'!$L$5:$L$237,$B74,'Detailed price list'!$M$5:$M$237)) -> 15.42451662 | G74: =IF(SUMIF('Detailed price list'!$L$5:$L$237,$B74,'Detailed price list'!$M$5:$M$237)=0, IFERROR(INDEX('Detailed price list'!H$5:H$237,MATCH($B74,'Detailed price list'!$B$5:$B$237,0)),INDEX('Detailed price list'!H$5:H$237,MATCH($B74,'Detailed price list'!$L$5:$L$237,0))), SUMPRODUCT(('Detailed price list'!H$5:H$237)*('Detailed price list'!$M$5:$M$237)*('Detailed price list'!$L$5:$L$237=$B74))/SUMIF('Detailed price list'!$L$5:$L$237,$B74,'Detailed price list'!$M$5:$M$237)) -> 15.85636933
B75: Legacy Bracket - Minor (Cat P) road - Medium | C75: =IF(SUMIF('Detailed price list'!$L$5:$L$237,$B75,'Detailed price list'!$M$5:$M$237)=0, IFERROR(INDEX('Detailed price list'!D$5:D$237,MATCH($B75,'Detailed price list'!$B$5:$B$237,0)),INDEX('Detailed price list'!D$5:D$237,MATCH($B75,'Detailed price list'!$L$5:$L$237,0))), SUMPRODUCT(('Detailed price list'!D$5:D$237)*('Detailed price list'!$M$5:$M$237)*('Detailed price list'!$L$5:$L$237=$B75))/SUMIF('Detailed price list'!$L$5:$L$237,$B75,'Detailed price list'!$M$5:$M$237)) -> 14.19825569 | D75: =IF(SUMIF('Detailed price list'!$L$5:$L$237,$B75,'Detailed price list'!$M$5:$M$237)=0, IFERROR(INDEX('Detailed price list'!E$5:E$237,MATCH($B75,'Detailed price list'!$B$5:$B$237,0)),INDEX('Detailed price list'!E$5:E$237,MATCH($B75,'Detailed price list'!$L$5:$L$237,0))), SUMPRODUCT(('Detailed price list'!E$5:E$237)*('Detailed price list'!$M$5:$M$237)*('Detailed price list'!$L$5:$L$237=$B75))/SUMIF('Detailed price list'!$L$5:$L$237,$B75,'Detailed price list'!$M$5:$M$237)) -> 14.59577577 | E75: =IF(SUMIF('Detailed price list'!$L$5:$L$237,$B75,'Detailed price list'!$M$5:$M$237)=0, IFERROR(INDEX('Detailed price list'!F$5:F$237,MATCH($B75,'Detailed price list'!$B$5:$B$237,0)),INDEX('Detailed price list'!F$5:F$237,MATCH($B75,'Detailed price list'!$L$5:$L$237,0))), SUMPRODUCT(('Detailed price list'!F$5:F$237)*('Detailed price list'!$M$5:$M$237)*('Detailed price list'!$L$5:$L$237=$B75))/SUMIF('Detailed price list'!$L$5:$L$237,$B75,'Detailed price list'!$M$5:$M$237)) -> 15.00442555 | F75: =IF(SUMIF('Detailed price list'!$L$5:$L$237,$B75,'Detailed price list'!$M$5:$M$237)=0, IFERROR(INDEX('Detailed price list'!G$5:G$237,MATCH($B75,'Detailed price list'!$B$5:$B$237,0)),INDEX('Detailed price list'!G$5:G$237,MATCH($B75,'Detailed price list'!$L$5:$L$237,0))), SUMPRODUCT(('Detailed price list'!G$5:G$237)*('Detailed price list'!$M$5:$M$237)*('Detailed price list'!$L$5:$L$237=$B75))/SUMIF('Detailed price list'!$L$5:$L$237,$B75,'Detailed price list'!$M$5:$M$237)) -> 15.42451662 | G75: =IF(SUMIF('Detailed price list'!$L$5:$L$237,$B75,'Detailed price list'!$M$5:$M$237)=0, IFERROR(INDEX('Detailed price list'!H$5:H$237,MATCH($B75,'Detailed price list'!$B$5:$B$237,0)),INDEX('Detailed price list'!H$5:H$237,MATCH($B75,'Detailed price list'!$L$5:$L$237,0))), SUMPRODUCT(('Detailed price list'!H$5:H$237)*('Detailed price list'!$M$5:$M$237)*('Detailed price list'!$L$5:$L$237=$B75))/SUMIF('Detailed price list'!$L$5:$L$237,$B75,'Detailed price list'!$M$5:$M$237)) -> 15.85636933
B76: Legacy Bracket - Minor (Cat P) road - Medium | C76: =IF(SUMIF('Detailed price list'!$L$5:$L$237,$B76,'Detailed price list'!$M$5:$M$237)=0, IFERROR(INDEX('Detailed price list'!D$5:D$237,MATCH($B76,'Detailed price list'!$B$5:$B$237,0)),INDEX('Detailed price list'!D$5:D$237,MATCH($B76,'Detailed price list'!$L$5:$L$237,0))), SUMPRODUCT(('Detailed price list'!D$5:D$237)*('Detailed price list'!$M$5:$M$237)*('Detailed price list'!$L$5:$L$237=$B76))/SUMIF('Detailed price list'!$L$5:$L$237,$B76,'Detailed price list'!$M$5:$M$237)) -> 14.19825569 | D76: =IF(SUMIF('Detailed price list'!$L$5:$L$237,$B76,'Detailed price list'!$M$5:$M$237)=0, IFERROR(INDEX('Detailed price list'!E$5:E$237,MATCH($B76,'Detailed price list'!$B$5:$B$237,0)),INDEX('Detailed price list'!E$5:E$237,MATCH($B76,'Detailed price list'!$L$5:$L$237,0))), SUMPRODUCT(('Detailed price list'!E$5:E$237)*('Detailed price list'!$M$5:$M$237)*('Detailed price list'!$L$5:$L$237=$B76))/SUMIF('Detailed price list'!$L$5:$L$237,$B76,'Detailed price list'!$M$5:$M$237)) -> 14.59577577 | E76: =IF(SUMIF('Detailed price list'!$L$5:$L$237,$B76,'Detailed price list'!$M$5:$M$237)=0, IFERROR(INDEX('Detailed price list'!F$5:F$237,MATCH($B76,'Detailed price list'!$B$5:$B$237,0)),INDEX('Detailed price list'!F$5:F$237,MATCH($B76,'Detailed price list'!$L$5:$L$237,0))), SUMPRODUCT(('Detailed price list'!F$5:F$237)*('Detailed price list'!$M$5:$M$237)*('Detailed price list'!$L$5:$L$237=$B76))/SUMIF('Detailed price list'!$L$5:$L$237,$B76,'Detailed price list'!$M$5:$M$237)) -> 15.00442555 | F76: =IF(SUMIF('Detailed price list'!$L$5:$L$237,$B76,'Detailed price list'!$M$5:$M$237)=0, IFERROR(INDEX('Detailed price list'!G$5:G$237,MATCH($B76,'Detailed price list'!$B$5:$B$237,0)),INDEX('Detailed price list'!G$5:G$237,MATCH($B76,'Detailed price list'!$L$5:$L$237,0))), SUMPRODUCT(('Detailed price list'!G$5:G$237)*('Detailed price list'!$M$5:$M$237)*('Detailed price list'!$L$5:$L$237=$B76))/SUMIF('Detailed price list'!$L$5:$L$237,$B76,'Detailed price list'!$M$5:$M$237)) -> 15.42451662 | G76: =IF(SUMIF('Detailed price list'!$L$5:$L$237,$B76,'Detailed price list'!$M$5:$M$237)=0, IFERROR(INDEX('Detailed price list'!H$5:H$237,MATCH($B76,'Detailed price list'!$B$5:$B$237,0)),INDEX('Detailed price list'!H$5:H$237,MATCH($B76,'Detailed price list'!$L$5:$L$237,0))), SUMPRODUCT(('Detailed price list'!H$5:H$237)*('Detailed price list'!$M$5:$M$237)*('Detailed price list'!$L$5:$L$237=$B76))/SUMIF('Detailed price list'!$L$5:$L$237,$B76,'Detailed price list'!$M$5:$M$237)) -> 15.85636933
B77: Legacy Bracket - Minor (Cat P) road - Long | C77: =IF(SUMIF('Detailed price list'!$L$5:$L$237,$B77,'Detailed price list'!$M$5:$M$237)=0, IFERROR(INDEX('Detailed price list'!D$5:D$237,MATCH($B77,'Detailed price list'!$B$5:$B$237,0)),INDEX('Detailed price list'!D$5:D$237,MATCH($B77,'Detailed price list'!$L$5:$L$237,0))), SUMPRODUCT(('Detailed price list'!D$5:D$237)*('Detailed price list'!$M$5:$M$237)*('Detailed price list'!$L$5:$L$237=$B77))/SUMIF('Detailed price list'!$L$5:$L$237,$B77,'Detailed price list'!$M$5:$M$237)) -> 22.45163532 | D77: =IF(SUMIF('Detailed price list'!$L$5:$L$237,$B77,'Detailed price list'!$M$5:$M$237)=0, IFERROR(INDEX('Detailed price list'!E$5:E$237,MATCH($B77,'Detailed price list'!$B$5:$B$237,0)),INDEX('Detailed price list'!E$5:E$237,MATCH($B77,'Detailed price list'!$L$5:$L$237,0))), SUMPRODUCT(('Detailed price list'!E$5:E$237)*('Detailed price list'!$M$5:$M$237)*('Detailed price list'!$L$5:$L$237=$B77))/SUMIF('Detailed price list'!$L$5:$L$237,$B77,'Detailed price list'!$M$5:$M$237)) -> 23.08023197 | E77: =IF(SUMIF('Detailed price list'!$L$5:$L$237,$B77,'Detailed price list'!$M$5:$M$237)=0, IFERROR(INDEX('Detailed price list'!F$5:F$237,MATCH($B77,'Detailed price list'!$B$5:$B$237,0)),INDEX('Detailed price list'!F$5:F$237,MATCH($B77,'Detailed price list'!$L$5:$L$237,0))), SUMPRODUCT(('Detailed price list'!F$5:F$237)*('Detailed price list'!$M$5:$M$237)*('Detailed price list'!$L$5:$L$237=$B77))/SUMIF('Detailed price list'!$L$5:$L$237,$B77,'Detailed price list'!$M$5:$M$237)) -> 23.72642795 | F77: =IF(SUMIF('Detailed price list'!$L$5:$L$237,$B77,'Detailed price list'!$M$5:$M$237)=0, IFERROR(INDEX('Detailed price list'!G$5:G$237,MATCH($B77,'Detailed price list'!$B$5:$B$237,0)),INDEX('Detailed price list'!G$5:G$237,MATCH($B77,'Detailed price list'!$L$5:$L$237,0))), SUMPRODUCT(('Detailed price list'!G$5:G$237)*('Detailed price list'!$M$5:$M$237)*('Detailed price list'!$L$5:$L$237=$B77))/SUMIF('Detailed price list'!$L$5:$L$237,$B77,'Detailed price list'!$M$5:$M$237)) -> 24.390716 | G77: =IF(SUMIF('Detailed price list'!$L$5:$L$237,$B77,'Detailed price list'!$M$5:$M$237)=0, IFERROR(INDEX('Detailed price list'!H$5:H$237,MATCH($B77,'Detailed price list'!$B$5:$B$237,0)),INDEX('Detailed price list'!H$5:H$237,MATCH($B77,'Detailed price list'!$L$5:$L$237,0))), SUMPRODUCT(('Detailed price list'!H$5:H$237)*('Detailed price list'!$M$5:$M$237)*('Detailed price list'!$L$5:$L$237=$B77))/SUMIF('Detailed price list'!$L$5:$L$237,$B77,'Detailed price list'!$M$5:$M$237)) -> 25.07360267
B78: Legacy Bracket - Minor (Cat P) road - Long | C78: =IF(SUMIF('Detailed price list'!$L$5:$L$237,$B78,'Detailed price list'!$M$5:$M$237)=0, IFERROR(INDEX('Detailed price list'!D$5:D$237,MATCH($B78,'Detailed price list'!$B$5:$B$237,0)),INDEX('Detailed price list'!D$5:D$237,MATCH($B78,'Detailed price list'!$L$5:$L$237,0))), SUMPRODUCT(('Detailed price list'!D$5:D$237)*('Detailed price list'!$M$5:$M$237)*('Detailed price list'!$L$5:$L$237=$B78))/SUMIF('Detailed price list'!$L$5:$L$237,$B78,'Detailed price list'!$M$5:$M$237)) -> 22.45163532 | D78: =IF(SUMIF('Detailed price list'!$L$5:$L$237,$B78,'Detailed price list'!$M$5:$M$237)=0, IFERROR(INDEX('Detailed price list'!E$5:E$237,MATCH($B78,'Detailed price list'!$B$5:$B$237,0)),INDEX('Detailed price list'!E$5:E$237,MATCH($B78,'Detailed price list'!$L$5:$L$237,0))), SUMPRODUCT(('Detailed price list'!E$5:E$237)*('Detailed price list'!$M$5:$M$237)*('Detailed price list'!$L$5:$L$237=$B78))/SUMIF('Detailed price list'!$L$5:$L$237,$B78,'Detailed price list'!$M$5:$M$237)) -> 23.08023197 | E78: =IF(SUMIF('Detailed price list'!$L$5:$L$237,$B78,'Detailed price list'!$M$5:$M$237)=0, IFERROR(INDEX('Detailed price list'!F$5:F$237,MATCH($B78,'Detailed price list'!$B$5:$B$237,0)),INDEX('Detailed price list'!F$5:F$237,MATCH($B78,'Detailed price list'!$L$5:$L$237,0))), SUMPRODUCT(('Detailed price list'!F$5:F$237)*('Detailed price list'!$M$5:$M$237)*('Detailed price list'!$L$5:$L$237=$B78))/SUMIF('Detailed price list'!$L$5:$L$237,$B78,'Detailed price list'!$M$5:$M$237)) -> 23.72642795 | F78: =IF(SUMIF('Detailed price list'!$L$5:$L$237,$B78,'Detailed price list'!$M$5:$M$237)=0, IFERROR(INDEX('Detailed price list'!G$5:G$237,MATCH($B78,'Detailed price list'!$B$5:$B$237,0)),INDEX('Detailed price list'!G$5:G$237,MATCH($B78,'Detailed price list'!$L$5:$L$237,0))), SUMPRODUCT(('Detailed price list'!G$5:G$237)*('Detailed price list'!$M$5:$M$237)*('Detailed price list'!$L$5:$L$237=$B78))/SUMIF('Detailed price list'!$L$5:$L$237,$B78,'Detailed price list'!$M$5:$M$237)) -> 24.390716 | G78: =IF(SUMIF('Detailed price list'!$L$5:$L$237,$B78,'Detailed price list'!$M$5:$M$237)=0, IFERROR(INDEX('Detailed price list'!H$5:H$237,MATCH($B78,'Detailed price list'!$B$5:$B$237,0)),INDEX('Detailed price list'!H$5:H$237,MATCH($B78,'Detailed price list'!$L$5:$L$237,0))), SUMPRODUCT(('Detailed price list'!H$5:H$237)*('Detailed price list'!$M$5:$M$237)*('Detailed price list'!$L$5:$L$237=$B78))/SUMIF('Detailed price list'!$L$5:$L$237,$B78,'Detailed price list'!$M$5:$M$237)) -> 25.07360267
B79: Legacy Bracket - Minor (Cat P) road - Long | C79: =IF(SUMIF('Detailed price list'!$L$5:$L$237,$B79,'Detailed price list'!$M$5:$M$237)=0, IFERROR(INDEX('Detailed price list'!D$5:D$237,MATCH($B79,'Detailed price list'!$B$5:$B$237,0)),INDEX('Detailed price list'!D$5:D$237,MATCH($B79,'Detailed price list'!$L$5:$L$237,0))), SUMPRODUCT(('Detailed price list'!D$5:D$237)*('Detailed price list'!$M$5:$M$237)*('Detailed price list'!$L$5:$L$237=$B79))/SUMIF('Detailed price list'!$L$5:$L$237,$B79,'Detailed price list'!$M$5:$M$237)) -> 22.45163532 | D79: =IF(SUMIF('Detailed price list'!$L$5:$L$237,$B79,'Detailed price list'!$M$5:$M$237)=0, IFERROR(INDEX('Detailed price list'!E$5:E$237,MATCH($B79,'Detailed price list'!$B$5:$B$237,0)),INDEX('Detailed price list'!E$5:E$237,MATCH($B79,'Detailed price list'!$L$5:$L$237,0))), SUMPRODUCT(('Detailed price list'!E$5:E$237)*('Detailed price list'!$M$5:$M$237)*('Detailed price list'!$L$5:$L$237=$B79))/SUMIF('Detailed price list'!$L$5:$L$237,$B79,'Detailed price list'!$M$5:$M$237)) -> 23.08023197 | E79: =IF(SUMIF('Detailed price list'!$L$5:$L$237,$B79,'Detailed price list'!$M$5:$M$237)=0, IFERROR(INDEX('Detailed price list'!F$5:F$237,MATCH($B79,'Detailed price list'!$B$5:$B$237,0)),INDEX('Detailed price list'!F$5:F$237,MATCH($B79,'Detailed price list'!$L$5:$L$237,0))), SUMPRODUCT(('Detailed price list'!F$5:F$237)*('Detailed price list'!$M$5:$M$237)*('Detailed price list'!$L$5:$L$237=$B79))/SUMIF('Detailed price list'!$L$5:$L$237,$B79,'Detailed price list'!$M$5:$M$237)) -> 23.72642795 | F79: =IF(SUMIF('Detailed price list'!$L$5:$L$237,$B79,'Detailed price list'!$M$5:$M$237)=0, IFERROR(INDEX('Detailed price list'!G$5:G$237,MATCH($B79,'Detailed price list'!$B$5:$B$237,0)),INDEX('Detailed price list'!G$5:G$237,MATCH($B79,'Detailed price list'!$L$5:$L$237,0))), SUMPRODUCT(('Detailed price list'!G$5:G$237)*('Detailed price list'!$M$5:$M$237)*('Detailed price list'!$L$5:$L$237=$B79))/SUMIF('Detailed price list'!$L$5:$L$237,$B79,'Detailed price list'!$M$5:$M$237)) -> 24.390716 | G79: =IF(SUMIF('Detailed price list'!$L$5:$L$237,$B79,'Detailed price list'!$M$5:$M$237)=0, IFERROR(INDEX('Detailed price list'!H$5:H$237,MATCH($B79,'Detailed price list'!$B$5:$B$237,0)),INDEX('Detailed price list'!H$5:H$237,MATCH($B79,'Detailed price list'!$L$5:$L$237,0))), SUMPRODUCT(('Detailed price list'!H$5:H$237)*('Detailed price list'!$M$5:$M$237)*('Detailed price list'!$L$5:$L$237=$B79))/SUMIF('Detailed price list'!$L$5:$L$237,$B79,'Detailed price list'!$M$5:$M$237)) -> 25.07360267
B80: Legacy Bracket - Minor (Cat P) road - Long | C80: =IF(SUMIF('Detailed price list'!$L$5:$L$237,$B80,'Detailed price list'!$M$5:$M$237)=0, IFERROR(INDEX('Detailed price list'!D$5:D$237,MATCH($B80,'Detailed price list'!$B$5:$B$237,0)),INDEX('Detailed price list'!D$5:D$237,MATCH($B80,'Detailed price list'!$L$5:$L$237,0))), SUMPRODUCT(('Detailed price list'!D$5:D$237)*('Detailed price list'!$M$5:$M$237)*('Detailed price list'!$L$5:$L$237=$B80))/SUMIF('Detailed price list'!$L$5:$L$237,$B80,'Detailed price list'!$M$5:$M$237)) -> 22.45163532 | D80: =IF(SUMIF('Detailed price list'!$L$5:$L$237,$B80,'Detailed price list'!$M$5:$M$237)=0, IFERROR(INDEX('Detailed price list'!E$5:E$237,MATCH($B80,'Detailed price list'!$B$5:$B$237,0)),INDEX('Detailed price list'!E$5:E$237,MATCH($B80,'Detailed price list'!$L$5:$L$237,0))), SUMPRODUCT(('Detailed price list'!E$5:E$237)*('Detailed price list'!$M$5:$M$237)*('Detailed price list'!$L$5:$L$237=$B80))/SUMIF('Detailed price list'!$L$5:$L$237,$B80,'Detailed price list'!$M$5:$M$237)) -> 23.08023197 | E80: =IF(SUMIF('Detailed price list'!$L$5:$L$237,$B80,'Detailed price list'!$M$5:$M$237)=0, IFERROR(INDEX('Detailed price list'!F$5:F$237,MATCH($B80,'Detailed price list'!$B$5:$B$237,0)),INDEX('Detailed price list'!F$5:F$237,MATCH($B80,'Detailed price list'!$L$5:$L$237,0))), SUMPRODUCT(('Detailed price list'!F$5:F$237)*('Detailed price list'!$M$5:$M$237)*('Detailed price list'!$L$5:$L$237=$B80))/SUMIF('Detailed price list'!$L$5:$L$237,$B80,'Detailed price list'!$M$5:$M$237)) -> 23.72642795 | F80: =IF(SUMIF('Detailed price list'!$L$5:$L$237,$B80,'Detailed price list'!$M$5:$M$237)=0, IFERROR(INDEX('Detailed price list'!G$5:G$237,MATCH($B80,'Detailed price list'!$B$5:$B$237,0)),INDEX('Detailed price list'!G$5:G$237,MATCH($B80,'Detailed price list'!$L$5:$L$237,0))), SUMPRODUCT(('Detailed price list'!G$5:G$237)*('Detailed price list'!$M$5:$M$237)*('Detailed price list'!$L$5:$L$237=$B80))/SUMIF('Detailed price list'!$L$5:$L$237,$B80,'Detailed price list'!$M$5:$M$237)) -> 24.390716 | G80: =IF(SUMIF('Detailed price list'!$L$5:$L$237,$B80,'Detailed price list'!$M$5:$M$237)=0, IFERROR(INDEX('Detailed price list'!H$5:H$237,MATCH($B80,'Detailed price list'!$B$5:$B$237,0)),INDEX('Detailed price list'!H$5:H$237,MATCH($B80,'Detailed price list'!$L$5:$L$237,0))), SUMPRODUCT(('Detailed price list'!H$5:H$237)*('Detailed price list'!$M$5:$M$237)*('Detailed price list'!$L$5:$L$237=$B80))/SUMIF('Detailed price list'!$L$5:$L$237,$B80,'Detailed price list'!$M$5:$M$237)) -> 25.07360267
B81: Legacy Bracket - Major (Cat V) road - Short | C81: =IF(SUMIF('Detailed price list'!$L$5:$L$237,$B81,'Detailed price list'!$M$5:$M$237)=0, IFERROR(INDEX('Detailed price list'!D$5:D$237,MATCH($B81,'Detailed price list'!$B$5:$B$237,0)),INDEX('Detailed price list'!D$5:D$237,MATCH($B81,'Detailed price list'!$L$5:$L$237,0))), SUMPRODUCT(('Detailed price list'!D$5:D$237)*('Detailed price list'!$M$5:$M$237)*('Detailed price list'!$L$5:$L$237=$B81))/SUMIF('Detailed price list'!$L$5:$L$237,$B81,'Detailed price list'!$M$5:$M$237)) -> 11.47677737 | D81: =IF(SUMIF('Detailed price list'!$L$5:$L$237,$B81,'Detailed price list'!$M$5:$M$237)=0, IFERROR(INDEX('Detailed price list'!E$5:E$237,MATCH($B81,'Detailed price list'!$B$5:$B$237,0)),INDEX('Detailed price list'!E$5:E$237,MATCH($B81,'Detailed price list'!$L$5:$L$237,0))), SUMPRODUCT(('Detailed price list'!E$5:E$237)*('Detailed price list'!$M$5:$M$237)*('Detailed price list'!$L$5:$L$237=$B81))/SUMIF('Detailed price list'!$L$5:$L$237,$B81,'Detailed price list'!$M$5:$M$237)) -> 11.79810202 | E81: =IF(SUMIF('Detailed price list'!$L$5:$L$237,$B81,'Detailed price list'!$M$5:$M$237)=0, IFERROR(INDEX('Detailed price list'!F$5:F$237,MATCH($B81,'Detailed price list'!$B$5:$B$237,0)),INDEX('Detailed price list'!F$5:F$237,MATCH($B81,'Detailed price list'!$L$5:$L$237,0))), SUMPRODUCT(('Detailed price list'!F$5:F$237)*('Detailed price list'!$M$5:$M$237)*('Detailed price list'!$L$5:$L$237=$B81))/SUMIF('Detailed price list'!$L$5:$L$237,$B81,'Detailed price list'!$M$5:$M$237)) -> 12.12842305 | F81: =IF(SUMIF('Detailed price list'!$L$5:$L$237,$B81,'Detailed price list'!$M$5:$M$237)=0, IFERROR(INDEX('Detailed price list'!G$5:G$237,MATCH($B81,'Detailed price list'!$B$5:$B$237,0)),INDEX('Detailed price list'!G$5:G$237,MATCH($B81,'Detailed price list'!$L$5:$L$237,0))), SUMPRODUCT(('Detailed price list'!G$5:G$237)*('Detailed price list'!$M$5:$M$237)*('Detailed price list'!$L$5:$L$237=$B81))/SUMIF('Detailed price list'!$L$5:$L$237,$B81,'Detailed price list'!$M$5:$M$237)) -> 12.46799235 | G81: =IF(SUMIF('Detailed price list'!$L$5:$L$237,$B81,'Detailed price list'!$M$5:$M$237)=0, IFERROR(INDEX('Detailed price list'!H$5:H$237,MATCH($B81,'Detailed price list'!$B$5:$B$237,0)),INDEX('Detailed price list'!H$5:H$237,MATCH($B81,'Detailed price list'!$L$5:$L$237,0))), SUMPRODUCT(('Detailed price list'!H$5:H$237)*('Detailed price list'!$M$5:$M$237)*('Detailed price list'!$L$5:$L$237=$B81))/SUMIF('Detailed price list'!$L$5:$L$237,$B81,'Detailed price list'!$M$5:$M$237)) -> 12.81706885
